Workbook

Sheet Cover
A2: Cap and Floor Financial Model 1 (CFFM1) - Actual Cost of Debt (ACOD)
B3: Regime design model
C4: =MID(CELL("filename"),SEARCH("[",CELL("filename"))+1,SEARCH("]",CELL("filename"))-SEARCH("[",CELL("filename"))-1) -> 
C5: DISCLAIMER: In the event of any inconsistency between this model and a project's licence, the licence conditions take precedence.
C6: For guidance on the use of the CFFM1 - ACOD, please refer to the CFFM1 Handbook - ACOD (CFFM1H - ACOD)
B8: Model key
E10: Sample | G10: Calculated value
E11: Sample | G11: Formula changes in cells to the right
E12: Sample | G12: Import from other sheet
E13: Sample | G13: Export to other sheet
E14: Sample | G14: Import from & export to other sheet
E15: Sample | G15: Initial input
E16: Sample | G16: Initial input for non-GB indexed portion (to be left empty if GB-indexed only)
E17: Sample | G17: Updated input
E18: Sample | G18: Notes and instructions
E19: Sample | G19: Cell intentionally blank
G20: Rows added to accommodate project-finance related inputs and calculations
B22: Contents
E24: Cover | G24: Model key and content directory
E25: Version Control | G25: Version control and log of changes
E26: Inputs | G26: Input data
E27: Data Sources | G27: Sources of input data
E28: Pre Op RAV | G28: Pre-operational RAV balances and project-finance eligible costs
E29: Finance | G29: Interest during construction, transaction costs, project-finance debt service
E30: Op RAV | G30: Operational RAV balances, return on RAV and RAV depreciation
E31: Allowances Cap | G31: Cap allowances (excluding tax) and annuitisation
E32: Allowances Floor | G32: Floor allowances (excluding tax) and annuitisation
E33: Tax Deductions | G33: Tax calculations
E34: Tax Cap | G34: Tax allowances at cap and annuitisation
E35: Tax Floor | G35: Tax allowances at floor and annuitisation
E36: Cap Floor Levels | G36: Cap and Floor values
B38: Checks
E40: Depreciation | G40: ='Op Rav'!I27 -> TRUE
E41: Debt tenor | G41: =Inputs!I157 -> TRUE
B43: End of sheet

Sheet Version Control
A1: Version control
B2: Version number | C2: File pathname | D2: Based on version | E2: Author or editor | F2: Date | G2: Description of changes | H2: Rationale for changes | I2: Location of changes | J2: Impact of changes on outputs | K2: Quality assurance performed? By? | L2: Comments on QA performed
B4: 1.1 | C4: link | D4: N/a | E4: Andrew Stone & Neill Aitken (NGV) | F4: 2017-01-31 | G4: N/a | H4: N/a | I4: N/a | J4: N/a | K4: Internal (ORE) and external (BDO) | L4: Comments reflected in version 1.1
B5: 2.1 | C5: link | D5: 1.1 | E5: Martin Namor | F5: 2019-03-20 | G5: CFFM split into CFFM1 (up to PCR) & CFFM2 (operations) | H5: Simplification and standardisation | I5: Throughout the model | J5: No impact | K5: Internal (ORE - Svitlana Voronkova) | L5: Comments reflected in version 2.2
B6: 2.2 | D6: 2.1 | E6: Martin Namor | F6: 2019-09-05 | G6: Minor changes | H6: Reflecting comments from QA and tidying up | I6: Throughout the model | J6: No impact | K6: Internal (ORE - Svitlana Voronkova) | L6: Further comments reflected in version 2.2
B7: 3.1 | D7: 2.2 | E7: Martin Namor & Greenlink & NeuConnect | F7: 2020-12-11 | G7: Inclusion of additional inputs and calculations relevant to project financing | H7: Allowing determination of actual floor level (AFL) in addition to notional floor level (NFL) | I7: Throughout the model | J7: Additional output (actual floor); Original outputs (notional cap and floor) unchanged | K7: Internal (ORE - Svitlana Voronkova) | L7: Comments reflected in version 3.1
B8: 3.2 | D8: 3.1 | E8: Martin Namor | F8: 2021-02-05 | G8: Changes required to remove post-tail AFL | H8: Allowing for AFL only during debt tenor and tail period | I8: Throughout the model | J8: Removal of post-tail AFL | K8: Internal (IC - RIccardo Rosselli; ORE - Svitlana Voronkova) | L8: Comments reflected in version 3.2
B9: 3.3 | D9: 3.2 | E9: Greenlink & NeuConnect | F9: 2021-05-14 | G9: Inclusion of additional dates and flags | H9: Correcting errors and allowing separate profiling for NFL and ACL | I9: Throughout the model | J9: No impact | K9: Internal (RF - Martin Namor; ORE - Svitlana Voronkova) | L9: Comments reflected in version 3.3

Sheet Inputs
A1: Inputs | H1: Licence
E2: Parameter | G2: Units | H2: Terminology | I2: Constant | K2: Annual values
B4: Indexation, currency and base year price term
E6: GB indexed portion of interconnector | G6: choice % | I6: 1
E7: Non-GB indexed portion of interconnector | G7: % | I7: =100%-I6 -> 0
E9: Currency of cost inputs | G9: choice | I9: £
E11: Base year price term | G11: choice | I11: £m 20/21 prices
B13: Variables set after financial close
C15: Actual values
E17: Year commencing | K17: =$I$148 -> 2013-01-01 | L17: =+K18+1 -> 2014-01-01 | M17: =+L18+1 -> 2015-01-01 | N17: =+M18+1 -> 2016-01-01 | O17: =+N18+1 -> 2017-01-01 | P17: =+O18+1 -> 2018-01-01 | Q17: =+P18+1 -> 2019-01-01 | R17: =+Q18+1 -> 2020-01-01 | S17: =+R18+1 -> 2021-01-01 | T17: =+S18+1 -> 2022-01-01 | U17: =+T18+1 -> 2023-01-01 | V17: =+U18+1 -> 2024-01-01 | W17: =+V18+1 -> 2025-01-01 | X17: =+W18+1 -> 2026-01-01 | Y17: =+X18+1 -> 2027-01-01 | Z17: =+Y18+1 -> 2028-01-01 | AA17: =+Z18+1 -> 2029-01-01 | AB17: =+AA18+1 -> 2030-01-01 | AC17: =+AB18+1 -> 2031-01-01 | AD17: =+AC18+1 -> 2032-01-01 | AE17: =+AD18+1 -> 2033-01-01 | AF17: =+AE18+1 -> 2034-01-01 | AG17: =+AF18+1 -> 2035-01-01 | AH17: =+AG18+1 -> 2036-01-01 | AI17: =+AH18+1 -> 2037-01-01 | AJ17: =+AI18+1 -> 2038-01-01 | AK17: =+AJ18+1 -> 2039-01-01 | AL17: =+AK18+1 -> 2040-01-01 | AM17: =+AL18+1 -> 2041-01-01 | AN17: =+AM18+1 -> 2042-01-01 | AO17: =+AN18+1 -> 2043-01-01 | AP17: =+AO18+1 -> 2044-01-01 | AQ17: =+AP18+1 -> 2045-01-01 | AR17: =+AQ18+1 -> 2046-01-01 | AS17: =+AR18+1 -> 2047-01-01 | AT17: =+AS18+1 -> 2048-01-01 | AU17: =+AT18+1 -> 2049-01-01 | AV17: =+AU18+1 -> 2050-01-01 | AW17: =+AV18+1 -> 2051-01-01 | AX17: =+AW18+1 -> 2052-01-01
E18: Year ending | K18: =EOMONTH(K17,11) -> 2013-12-31 | L18: =DATE(YEAR(K18) + 1, MONTH(K18), DAY(K18)) -> 2014-12-31 | M18: =DATE(YEAR(L18) + 1, MONTH(L18), DAY(L18)) -> 2015-12-31 | N18: =DATE(YEAR(M18) + 1, MONTH(M18), DAY(M18)) -> 2016-12-31 | O18: =DATE(YEAR(N18) + 1, MONTH(N18), DAY(N18)) -> 2017-12-31 | P18: =DATE(YEAR(O18) + 1, MONTH(O18), DAY(O18)) -> 2018-12-31 | Q18: =DATE(YEAR(P18) + 1, MONTH(P18), DAY(P18)) -> 2019-12-31 | R18: =DATE(YEAR(Q18) + 1, MONTH(Q18), DAY(Q18)) -> 2020-12-31 | S18: =DATE(YEAR(R18) + 1, MONTH(R18), DAY(R18)) -> 2021-12-31 | T18: =DATE(YEAR(S18) + 1, MONTH(S18), DAY(S18)) -> 2022-12-31 | U18: =DATE(YEAR(T18) + 1, MONTH(T18), DAY(T18)) -> 2023-12-31 | V18: =DATE(YEAR(U18) + 1, MONTH(U18), DAY(U18)) -> 2024-12-31 | W18: =DATE(YEAR(V18) + 1, MONTH(V18), DAY(V18)) -> 2025-12-31 | X18: =DATE(YEAR(W18) + 1, MONTH(W18), DAY(W18)) -> 2026-12-31 | Y18: =DATE(YEAR(X18) + 1, MONTH(X18), DAY(X18)) -> 2027-12-31 | Z18: =DATE(YEAR(Y18) + 1, MONTH(Y18), DAY(Y18)) -> 2028-12-31 | AA18: =DATE(YEAR(Z18) + 1, MONTH(Z18), DAY(Z18)) -> 2029-12-31 | AB18: =DATE(YEAR(AA18) + 1, MONTH(AA18), DAY(AA18)) -> 2030-12-31 | AC18: =DATE(YEAR(AB18) + 1, MONTH(AB18), DAY(AB18)) -> 2031-12-31 | AD18: =DATE(YEAR(AC18) + 1, MONTH(AC18), DAY(AC18)) -> 2032-12-31 | AE18: =DATE(YEAR(AD18) + 1, MONTH(AD18), DAY(AD18)) -> 2033-12-31 | AF18: =DATE(YEAR(AE18) + 1, MONTH(AE18), DAY(AE18)) -> 2034-12-31 | AG18: =DATE(YEAR(AF18) + 1, MONTH(AF18), DAY(AF18)) -> 2035-12-31 | AH18: =DATE(YEAR(AG18) + 1, MONTH(AG18), DAY(AG18)) -> 2036-12-31 | AI18: =DATE(YEAR(AH18) + 1, MONTH(AH18), DAY(AH18)) -> 2037-12-31 | AJ18: =DATE(YEAR(AI18) + 1, MONTH(AI18), DAY(AI18)) -> 2038-12-31 | AK18: =DATE(YEAR(AJ18) + 1, MONTH(AJ18), DAY(AJ18)) -> 2039-12-31 | AL18: =DATE(YEAR(AK18) + 1, MONTH(AK18), DAY(AK18)) -> 2040-12-31 | AM18: =DATE(YEAR(AL18) + 1, MONTH(AL18), DAY(AL18)) -> 2041-12-31 | AN18: =DATE(YEAR(AM18) + 1, MONTH(AM18), DAY(AM18)) -> 2042-12-31 | AO18: =DATE(YEAR(AN18) + 1, MONTH(AN18), DAY(AN18)) -> 2043-12-31 | AP18: =DATE(YEAR(AO18) + 1, MONTH(AO18), DAY(AO18)) -> 2044-12-31 | AQ18: =DATE(YEAR(AP18) + 1, MONTH(AP18), DAY(AP18)) -> 2045-12-31 | AR18: =DATE(YEAR(AQ18) + 1, MONTH(AQ18), DAY(AQ18)) -> 2046-12-31 | AS18: =DATE(YEAR(AR18) + 1, MONTH(AR18), DAY(AR18)) -> 2047-12-31 | AT18: =DATE(YEAR(AS18) + 1, MONTH(AS18), DAY(AS18)) -> 2048-12-31 | AU18: =DATE(YEAR(AT18) + 1, MONTH(AT18), DAY(AT18)) -> 2049-12-31 | AV18: =DATE(YEAR(AU18) + 1, MONTH(AU18), DAY(AU18)) -> 2050-12-31 | AW18: =DATE(YEAR(AV18) + 1, MONTH(AV18), DAY(AV18)) -> 2051-12-31 | AX18: =DATE(YEAR(AW18) + 1, MONTH(AW18), DAY(AW18)) -> 2052-12-31
E20: Development costs | G20: =CONCATENATE($I$9,"m nominal prices") -> £m nominal prices | K20: 0 | L20: 1.04476513 | M20: 4.28656587 | N20: 6.9791947 | O20: 6.95986221 | P20: 2.29393096 | Q20: -0.82025805 | R20: 0 | S20: 0 | T20: 0 | U20: 0 | V20: 0 | W20: 0 | X20: 0 | Y20: 0 | Z20: 0 | AA20: 0 | AB20: 0 | AC20: 0 | AD20: 0 | AE20: 0 | AF20: 0 | AG20: 0 | AH20: 0 | AI20: 0 | AJ20: 0 | AK20: 0 | AL20: 0 | AM20: 0 | AN20: 0 | AO20: 0 | AP20: 0 | AQ20: 0 | AR20: 0 | AS20: 0 | AT20: 0 | AU20: 0 | AV20: 0 | AW20: 0 | AX20: 0
E21: Capex | G21: =CONCATENATE($I$9,"m nominal prices") -> £m nominal prices | K21: 0 | L21: 0 | M21: 0 | N21: 0 | O21: 0 | P21: 5.2279186 | Q21: 69.32087305 | R21: 166.74904 | S21: 251.3800351 | T21: 184.7754168 | U21: 76.04698584 | V21: 3.391085106 | W21: 0 | X21: 0 | Y21: 0 | Z21: 0 | AA21: 0 | AB21: 0 | AC21: 0 | AD21: 0 | AE21: 0 | AF21: 0 | AG21: 0 | AH21: 0 | AI21: 0 | AJ21: 0 | AK21: 0 | AL21: 0 | AM21: 0 | AN21: 0 | AO21: 0 | AP21: 0 | AQ21: 0 | AR21: 0 | AS21: 0 | AT21: 0 | AU21: 0 | AV21: 0 | AW21: 0 | AX21: 0
E22: Spares | G22: £m nominal prices | K22: 0 | L22: 0 | M22: 0 | N22: 0 | O22: 0 | P22: 0 | Q22: 1.362326499 | R22: 1.463752389 | S22: 2.776933773 | T22: 3.43631043 | U22: 0.01114358755 | V22: 0.03343076265 | W22: 0 | X22: 0 | Y22: 0 | Z22: 0 | AA22: 0 | AB22: 0 | AC22: 0 | AD22: 0 | AE22: 0 | AF22: 0 | AG22: 0 | AH22: 0 | AI22: 0 | AJ22: 0 | AK22: 0 | AL22: 0 | AM22: 0 | AN22: 0 | AO22: 0 | AP22: 0 | AQ22: 0 | AR22: 0 | AS22: 0 | AT22: 0 | AU22: 0 | AV22: 0 | AW22: 0 | AX22: 0
E24: Base year UK RPI inflation index value (CHAW) | G24: Jan 1987 = 100 | H24: UK RPI index 2019/20 | I24: 290.6416667
E25: Base year Ireland inflation index value | G25: Dec 2011 = 100
E26: Base year average exchange rate (XUMAERS) | G26: GBP / EUR
E28: 12 month average UK RPI inflation index value (CHAW) | G28: =G24 -> Jan 1987 = 100 | H28: UK RPI index t | K28: 250.1083333 | L28: 256.0333333 | M28: 258.5416667 | N28: 263.05 | O28: 272.475 | P28: 281.5833333 | Q28: 288.8 | R28: 293.1416667 | S28: =R28*(1+2.7%) -> 301.0564917 | T28: =S28*(1+3.1%) -> 310.3892429 | U28: =T28*(1+3.3%) -> 320.6320879 | V28: =U28*(1+$I$179) -> 330.8281883 | W28: 341.3485247 | X28: 352.2034078 | Y28: 363.4034762 | Z28: 374.9597067 | AA28: 386.8834254 | AB28: 399.1863183 | AC28: 411.8804432 | AD28: 424.9782413 | AE28: 438.4925494 | AF28: 452.4366125 | AG28: 466.8240967 | AH28: 481.669103 | AI28: 496.9861805 | AJ28: 512.790341 | AK28: 529.0970739 | AL28: 545.9223608 | AM28: 563.2826919 | AN28: 581.1950815 | AO28: 599.6770851 | AP28: 618.7468164 | AQ28: 638.4229652 | AR28: 658.7248155 | AS28: 679.6722646 | AT28: 701.2858426 | AU28: 723.5867324 | AV28: 746.5967905 | AW28: 770.3385684 | AX28: 794.8353349
E29: 12 month average Ireland CPI inflation index value | G29: =G25 -> Dec 2011 = 100
E30: 12 month average exchange rate (XUMAERS) | G30: GBP / EUR
E32: Indexation factor | H32: =IF(I6=100%,"CRPIt","PPPIt") -> CRPIt | K32: =IF($I$6=100%,(K28/$I$24),($I$6*(K28/$I$24)+$I$7*(K29/$I$25)/(K30/$I$26))) -> 0.8605384637 | L32: =IF($I$6=100%,(L28/$I$24),($I$6*(L28/$I$24)+$I$7*(L29/$I$25)/(L30/$I$26))) -> 0.8809243914 | M32: =IF($I$6=100%,(M28/$I$24),($I$6*(M28/$I$24)+$I$7*(M29/$I$25)/(M30/$I$26))) -> 0.8895547209 | N32: =IF($I$6=100%,(N28/$I$24),($I$6*(N28/$I$24)+$I$7*(N29/$I$25)/(N30/$I$26))) -> 0.9050663761 | O32: 0.937494624 | P32: 0.9688333286 | Q32: 0.9936634458 | R32: 1.008601657 | S32: 1.035833902 | T32: 1.067944753 | U32: 1.10318693 | V32: 1.138268274 | W32: 1.174465205 | X32: 1.211813199 | Y32: 1.250348859 | Z32: 1.290109952 | AA32: 1.331135449 | AB32: 1.373465556 | AC32: 1.417141761 | AD32: 1.462206869 | AE32: 1.508705047 | AF32: 1.556681868 | AG32: 1.606184351 | AH32: 1.657261013 | AI32: 1.709961914 | AJ32: 1.764338702 | AK32: 1.820444673 | AL32: 1.878334814 | AM32: 1.938065861 | AN32: 1.999696355 | AO32: 2.063286699 | AP32: 2.128899216 | AQ32: 2.196598211 | AR32: 2.266450035 | AS32: 2.338523146 | AT32: 2.412888182 | AU32: 2.489618026 | AV32: 2.568787879 | AW32: 2.650475334 | AX32: 2.734760449
E34: =E20 -> Development costs | G34: =$I$11 -> £m 20/21 prices | K34: =IF($I$9="£",K20/K$32,K20/K$32/K$30) -> 0 | L34: =IF($I$9="£",L20/L$32,L20/L$32/L$30) -> 1.185987288 | M34: =IF($I$9="£",M20/M$32,M20/M$32/M$30) -> 4.818777046 | N34: =IF($I$9="£",N20/N$32,N20/N$32/N$30) -> 7.711251776 | O34: =IF($I$9="£",O20/O$32,O20/O$32/O$30) -> 7.423895596 | P34: 2.367725069 | Q34: -0.8254888045 | R34: 0 | S34: 0 | T34: 0 | U34: 0 | V34: 0 | W34: 0 | X34: 0 | Y34: 0 | Z34: 0 | AA34: 0 | AB34: 0 | AC34: 0 | AD34: 0 | AE34: 0 | AF34: 0 | AG34: 0 | AH34: 0 | AI34: 0 | AJ34: 0 | AK34: 0 | AL34: 0 | AM34: 0 | AN34: 0 | AO34: 0 | AP34: 0 | AQ34: 0 | AR34: 0 | AS34: 0 | AT34: 0 | AU34: 0 | AV34: 0 | AW34: 0 | AX34: 0
E35: =E21 -> Capex | G35: =$I$11 -> £m 20/21 prices | K35: =IF($I$9="£",K21/K$32,K21/K$32/K$30) -> 0 | L35: 0 | M35: 0 | N35: 0 | O35: 0 | P35: 5.396096982 | Q35: 69.76292964 | R35: 165.3269542 | S35: 242.6837301 | T35: 173.0196401 | U35: 68.93390755 | V35: 2.979161576 | W35: 0 | X35: 0 | Y35: 0 | Z35: 0 | AA35: 0 | AB35: 0 | AC35: 0 | AD35: 0 | AE35: 0 | AF35: 0 | AG35: 0 | AH35: 0 | AI35: 0 | AJ35: 0 | AK35: 0 | AL35: 0 | AM35: 0 | AN35: 0 | AO35: 0 | AP35: 0 | AQ35: 0 | AR35: 0 | AS35: 0 | AT35: 0 | AU35: 0 | AV35: 0 | AW35: 0 | AX35: 0
E36: =E22 -> Spares | G36: £m 20/21 prices | K36: 0 | L36: 0 | M36: 0 | N36: 0 | O36: 0 | P36: 0 | Q36: 1.371014004 | R36: 1.45126907 | S36: 2.680867819 | T36: 3.217685579 | U36: 0.01010126865 | V36: 0.02936984488 | W36: 0 | X36: 0 | Y36: 0 | Z36: 0 | AA36: 0 | AB36: 0 | AC36: 0 | AD36: 0 | AE36: 0 | AF36: 0 | AG36: 0 | AH36: 0 | AI36: 0 | AJ36: 0 | AK36: 0 | AL36: 0 | AM36: 0 | AN36: 0 | AO36: 0 | AP36: 0 | AQ36: 0 | AR36: 0 | AS36: 0 | AT36: 0 | AU36: 0 | AV36: 0 | AW36: 0 | AX36: 0
C38: Ex-ante allowances for the operational period
E40: Operational Year | K40: Year 1 | L40: Year 2 | M40: Year 3 | N40: Year 4 | O40: Year 5 | P40: Year 6 | Q40: Year 7 | R40: Year 8 | S40: Year 9 | T40: Year 10 | U40: Year 11 | V40: Year 12 | W40: Year 13 | X40: Year 14 | Y40: Year 15 | Z40: Year 16 | AA40: Year 17 | AB40: Year 18 | AC40: Year 19 | AD40: Year 20 | AE40: Year 21 | AF40: Year 22 | AG40: Year 23 | AH40: Year 24 | AI40: Year 25
E42: Replacement Capex | G42: £m 2018 prices | K42: 0 | L42: 0 | M42: 0 | N42: 0 | O42: 0 | P42: 0 | Q42: 3.881599766 | R42: 0 | S42: 0 | T42: 0 | U42: 0 | V42: 0 | W42: 0 | X42: 0 | Y42: 24.25999854 | Z42: 0 | AA42: 0 | AB42: 0 | AC42: 0 | AD42: 0 | AE42: 0 | AF42: 0 | AG42: 4.851999708 | AH42: 0 | AI42: 0
E43: Decommissioning baseline | G43: £m 2018 prices | K43: 0.18 | L43: 0.18 | M43: 0.18 | N43: 0.18 | O43: 0.18 | P43: 0.18 | Q43: 0.18 | R43: 0.18 | S43: 0.18 | T43: 0.18 | U43: 0.18 | V43: 0.18 | W43: 0.18 | X43: 0.18 | Y43: 0.18 | Z43: 0.18 | AA43: 0.18 | AB43: 0.18 | AC43: 0.18 | AD43: 0.18 | AE43: 0.18 | AF43: 0.18 | AG43: 0.18 | AH43: 0.18 | AI43: 0.18
E44: Controllable Opex | G44: £m 2018 prices | K44: 13 | L44: 20 | M44: 17.5 | N44: 17.5 | O44: 17.5 | P44: 17.5 | Q44: 17.5 | R44: 17.5 | S44: 17.5 | T44: 17.5 | U44: 17.5 | V44: 17.5 | W44: 17.5 | X44: 17.5 | Y44: 17.5 | Z44: 17.5 | AA44: 17.5 | AB44: 17.5 | AC44: 17.5 | AD44: 17.5 | AE44: 17.5 | AF44: 17.5 | AG44: 17.5 | AH44: 17.5 | AI44: 17.5
E45: Non-controllable Opex baseline | G45: £m 2018 prices | K45: 0 | L45: 0 | M45: 0 | N45: 0 | O45: 0 | P45: 0 | Q45: 0 | R45: 0 | S45: 0 | T45: 0 | U45: 0 | V45: 0 | W45: 0 | X45: 0 | Y45: 0 | Z45: 0 | AA45: 0 | AB45: 0 | AC45: 0 | AD45: 0 | AE45: 0 | AF45: 0 | AG45: 0 | AH45: 0 | AI45: 0
E47: =E24 -> Base year UK RPI inflation index value (CHAW) | G47: =G24 -> Jan 1987 = 100 | H47: =H24 -> UK RPI index 2019/20 | I47: =I24 -> 290.6416667
E48: =IF(E25="","",E25) -> Base year Ireland inflation index value | G48: =IF(G25="","",G25) -> Dec 2011 = 100
E49: =IF(E26="","",E26) -> Base year average exchange rate (XUMAERS) | G49: GBP / EUR
E51: 2018 average UK RPI inflation index value (CHAW) | G51: =G24 -> Jan 1987 = 100 | I51: 281.5833333
E52: 2018 average Ireland CPI inflation index value | G52: =IF(G25="","",G25) -> Dec 2011 = 100
E53: 2018 average exchange rate (XUMAERS) | G53: =IF(G26="","",G26) -> GBP / EUR
E55: =IF(E30="","",E30) -> 12 month average exchange rate (XUMAERS) | G55: =IF(G30="","",G30) -> GBP / EUR | H55: =IF(H30="","",H30) -> 
E57: Indexation conversion from 2018 to 2019/20 terms | I57: =I51/$I$47 -> 0.9688333286
E59: =E42 -> Replacement Capex | G59: =$I$11 -> £m 20/21 prices | K59: =IF($I$9="£",K42/$I$57,K42/K$55/$I$57) -> 0 | L59: 0 | M59: 0 | N59: 0 | O59: 0 | P59: 0 | Q59: 4.00646804 | R59: 0 | S59: 0 | T59: 0 | U59: 0 | V59: 0 | W59: 0 | X59: 0 | Y59: 25.04042525 | Z59: 0 | AA59: 0 | AB59: 0 | AC59: 0 | AD59: 0 | AE59: 0 | AF59: 0 | AG59: 5.008085049 | AH59: 0 | AI59: 0
E60: =E43 -> Decommissioning baseline | G60: £m 20/21 prices | K60: 0.1857904706 | L60: 0.1857904706 | M60: 0.1857904706 | N60: 0.1857904706 | O60: 0.1857904706 | P60: 0.1857904706 | Q60: 0.1857904706 | R60: 0.1857904706 | S60: 0.1857904706 | T60: 0.1857904706 | U60: 0.1857904706 | V60: 0.1857904706 | W60: 0.1857904706 | X60: 0.1857904706 | Y60: 0.1857904706 | Z60: 0.1857904706 | AA60: 0.1857904706 | AB60: 0.1857904706 | AC60: 0.1857904706 | AD60: 0.1857904706 | AE60: 0.1857904706 | AF60: 0.1857904706 | AG60: 0.1857904706 | AH60: 0.1857904706 | AI60: 0.1857904706
E61: =E44 -> Controllable Opex | G61: £m 20/21 prices | K61: 13.41820065 | L61: 20.64338562 | M61: 18.06296241 | N61: 18.06296241 | O61: 18.06296241 | P61: 18.06296241 | Q61: 18.06296241 | R61: 18.06296241 | S61: 18.06296241 | T61: 18.06296241 | U61: 18.06296241 | V61: 18.06296241 | W61: 18.06296241 | X61: 18.06296241 | Y61: 18.06296241 | Z61: 18.06296241 | AA61: 18.06296241 | AB61: 18.06296241 | AC61: 18.06296241 | AD61: 18.06296241 | AE61: 18.06296241 | AF61: 18.06296241 | AG61: 18.06296241 | AH61: 18.06296241 | AI61: 18.06296241
E62: =E45 -> Non-controllable Opex baseline | G62: £m 20/21 prices | K62: 0 | L62: 0 | M62: 0 | N62: 0 | O62: 0 | P62: 0 | Q62: 0 | R62: 0 | S62: 0 | T62: 0 | U62: 0 | V62: 0 | W62: 0 | X62: 0 | Y62: 0 | Z62: 0 | AA62: 0 | AB62: 0 | AC62: 0 | AD62: 0 | AE62: 0 | AF62: 0 | AG62: 0 | AH62: 0 | AI62: 0
B64: Variables set at financial close
C66: Finance
E68: Cap return rate | G68: real annual % | I68: 0.0823
E69: Floor return rate | G69: real annual % | I69: -0.0051
E70: Interest during construction (IDC) rate | G70: real annual % | I70: 0.0389
E71: Cost of debt (for tax) | G71: real annual % | I71: =I69 -> -0.0051
E73: Pre-operational notional gearing | G73: % | I73: 0.416
E74: Operational notional gearing | G74: % | I74: 0.5
E76: Equity transaction costs | G76: % | I76: 0.05
E77: Debt transaction costs | G77: % | I77: 0.025
C79: Actual cost of debt
E81: Project finance key input: senior debt amount or gearing | G81: 1: Amount (£m) 2: Gearing (%) | I81: 1
E82: Project finance senior debt amount (input if 1; empty if 2) | G82: =CONCATENATE($I$9,"m nominal prices") -> £m nominal prices | I82: 530
E83: Project finance actual gearing (input if 2; empty if 1) | G83: % | I83: 0.7
E85: Senior Debt tenor | G85: full years | I85: 20
E86: Senior Debt tail requirement | G86: full years | I86: 2
E87: DSCR sizing | G87: DSCRx | I87: 1.2
E89: Fixed rate - Construction | G89: nominal % | I89: 0.003
E90: Fixed rate - Operation | G90: nominal % | I90: 0.006
E92: Senior Debt construction margin | G92: nominal % | I92: 0.021
E93: of which: swap margin | G93: nominal % | I93: 0.001
E94: Senior Debt upfront fee | G94: nominal % | I94: 0.015
E95: Senior Debt commitment fee | G95: % of applicable margin | I95: 0.35
E97: Senior Debt drawdown year | G97: Year | K97: 1 | L97: 2 | M97: 3 | N97: 4 | O97: 5 | P97: 6 | Q97: 7 | R97: 8 | S97: 9 | T97: 10
E98: Senior Debt drawdown profile | G98: % | K98: 0.2782 | L98: 0.3205 | M98: 0.4013 | N98: 0 | O98: 0 | P98: 0 | Q98: 0 | R98: 0 | S98: 0 | T98: 0
E100: Debt Service Reserve Facility/Account amount | G100: =CONCATENATE($I$9,"m nominal prices") -> £m nominal prices | I100: 10
E101: Debt Service Reserve Facility upfront fee | G101: nominal % | I101: 0.015
E102: Debt Service Reserve Facility construction margin | G102: nominal % | I102: 0.021
E103: Debt Service Reserve Facility commitment fee | G103: % of applicable margin | I103: 0.35
E105: Cap and Floor Liquidity Facility amount | G105: =CONCATENATE($I$9,"m nominal prices") -> £m nominal prices | I105: 25
E106: Cap and Floor Liquidity Facility average outstanding loan | G106: £m nominal prices | I106: 5
E107: Cap and Floor Liquidity Facility upfront fee | G107: nominal % | I107: 0.015
E108: Cap and Floor Liquidity Facility construction margin | G108: nominal % | I108: 0.021
E109: Cap and Floor Liquidity Facility commitment fee | G109: % of applicable margin | I109: 0.35
E111: Standby Debt Facility amount | G111: =CONCATENATE($I$9,"m nominal prices") -> £m nominal prices | I111: 10
E112: Standby Debt Facility upfront fee | G112: nominal % | I112: 0.015
E113: Standby Debt Facility construction margin | G113: nominal % | I113: 0.021
E114: Standby Debt Facility commitment fee | G114: % of applicable margin | I114: 0.35
E116: VAT Facility amount | G116: =CONCATENATE($I$9,"m nominal prices") -> £m nominal prices | I116: 15
E117: VAT Facility average outstanding loan | G117: £m nominal prices | I117: 5
E118: VAT Facility upfront fee | G118: nominal % | I118: 0.013
E119: VAT Facility construction margin | G119: nominal % | I119: 0.013
E120: VAT Facility commitment fee | G120: % of applicable margin | I120: 0.35
E122: Other Facilities amount | G122: =CONCATENATE($I$9,"m nominal prices") -> £m nominal prices | I122: 0
E123: Other Facilities upfront fee | G123: nominal % | I123: 0
E124: Other Facilities construction margin | G124: nominal % | I124: 0
E125: Other Facilities commitment fee | G125: % of applicable margin | I125: 0
E127: Debt Service Reserve: Facility or Account | G127: 1: DSRF 2: DSRA | I127: 1
E128: Switch for transaction costs in taxes | G128: 1: notional costs 2: actual costs | I128: 2
E130: Year commencing | K130: =$I$148 -> 2013-01-01 | L130: =+K131+1 -> 2014-01-01 | M130: =+L131+1 -> 2015-01-01 | N130: =+M131+1 -> 2016-01-01 | O130: =+N131+1 -> 2017-01-01 | P130: =+O131+1 -> 2018-01-01 | Q130: =+P131+1 -> 2019-01-01 | R130: =+Q131+1 -> 2020-01-01 | S130: =+R131+1 -> 2021-01-01 | T130: =+S131+1 -> 2022-01-01 | U130: =+T131+1 -> 2023-01-01 | V130: =+U131+1 -> 2024-01-01 | W130: =+V131+1 -> 2025-01-01 | X130: =+W131+1 -> 2026-01-01 | Y130: =+X131+1 -> 2027-01-01 | Z130: =+Y131+1 -> 2028-01-01 | AA130: =+Z131+1 -> 2029-01-01 | AB130: =+AA131+1 -> 2030-01-01 | AC130: =+AB131+1 -> 2031-01-01 | AD130: =+AC131+1 -> 2032-01-01 | AE130: =+AD131+1 -> 2033-01-01 | AF130: =+AE131+1 -> 2034-01-01 | AG130: =+AF131+1 -> 2035-01-01 | AH130: =+AG131+1 -> 2036-01-01 | AI130: =+AH131+1 -> 2037-01-01 | AJ130: =+AI131+1 -> 2038-01-01 | AK130: =+AJ131+1 -> 2039-01-01 | AL130: =+AK131+1 -> 2040-01-01 | AM130: =+AL131+1 -> 2041-01-01 | AN130: =+AM131+1 -> 2042-01-01 | AO130: =+AN131+1 -> 2043-01-01 | AP130: =+AO131+1 -> 2044-01-01 | AQ130: =+AP131+1 -> 2045-01-01 | AR130: =+AQ131+1 -> 2046-01-01 | AS130: =+AR131+1 -> 2047-01-01 | AT130: =+AS131+1 -> 2048-01-01 | AU130: =+AT131+1 -> 2049-01-01 | AV130: =+AU131+1 -> 2050-01-01 | AW130: =+AV131+1 -> 2051-01-01 | AX130: =+AW131+1 -> 2052-01-01
E131: Year ending | K131: =EOMONTH(K130,11) -> 2013-12-31 | L131: =DATE(YEAR(K131) + 1, MONTH(K131), DAY(K131)) -> 2014-12-31 | M131: =DATE(YEAR(L131) + 1, MONTH(L131), DAY(L131)) -> 2015-12-31 | N131: =DATE(YEAR(M131) + 1, MONTH(M131), DAY(M131)) -> 2016-12-31 | O131: =DATE(YEAR(N131) + 1, MONTH(N131), DAY(N131)) -> 2017-12-31 | P131: =DATE(YEAR(O131) + 1, MONTH(O131), DAY(O131)) -> 2018-12-31 | Q131: =DATE(YEAR(P131) + 1, MONTH(P131), DAY(P131)) -> 2019-12-31 | R131: =DATE(YEAR(Q131) + 1, MONTH(Q131), DAY(Q131)) -> 2020-12-31 | S131: =DATE(YEAR(R131) + 1, MONTH(R131), DAY(R131)) -> 2021-12-31 | T131: =DATE(YEAR(S131) + 1, MONTH(S131), DAY(S131)) -> 2022-12-31 | U131: =DATE(YEAR(T131) + 1, MONTH(T131), DAY(T131)) -> 2023-12-31 | V131: =DATE(YEAR(U131) + 1, MONTH(U131), DAY(U131)) -> 2024-12-31 | W131: =DATE(YEAR(V131) + 1, MONTH(V131), DAY(V131)) -> 2025-12-31 | X131: =DATE(YEAR(W131) + 1, MONTH(W131), DAY(W131)) -> 2026-12-31 | Y131: =DATE(YEAR(X131) + 1, MONTH(X131), DAY(X131)) -> 2027-12-31 | Z131: =DATE(YEAR(Y131) + 1, MONTH(Y131), DAY(Y131)) -> 2028-12-31 | AA131: =DATE(YEAR(Z131) + 1, MONTH(Z131), DAY(Z131)) -> 2029-12-31 | AB131: =DATE(YEAR(AA131) + 1, MONTH(AA131), DAY(AA131)) -> 2030-12-31 | AC131: =DATE(YEAR(AB131) + 1, MONTH(AB131), DAY(AB131)) -> 2031-12-31 | AD131: =DATE(YEAR(AC131) + 1, MONTH(AC131), DAY(AC131)) -> 2032-12-31 | AE131: =DATE(YEAR(AD131) + 1, MONTH(AD131), DAY(AD131)) -> 2033-12-31 | AF131: =DATE(YEAR(AE131) + 1, MONTH(AE131), DAY(AE131)) -> 2034-12-31 | AG131: =DATE(YEAR(AF131) + 1, MONTH(AF131), DAY(AF131)) -> 2035-12-31 | AH131: =DATE(YEAR(AG131) + 1, MONTH(AG131), DAY(AG131)) -> 2036-12-31 | AI131: =DATE(YEAR(AH131) + 1, MONTH(AH131), DAY(AH131)) -> 2037-12-31 | AJ131: =DATE(YEAR(AI131) + 1, MONTH(AI131), DAY(AI131)) -> 2038-12-31 | AK131: =DATE(YEAR(AJ131) + 1, MONTH(AJ131), DAY(AJ131)) -> 2039-12-31 | AL131: =DATE(YEAR(AK131) + 1, MONTH(AK131), DAY(AK131)) -> 2040-12-31 | AM131: =DATE(YEAR(AL131) + 1, MONTH(AL131), DAY(AL131)) -> 2041-12-31 | AN131: =DATE(YEAR(AM131) + 1, MONTH(AM131), DAY(AM131)) -> 2042-12-31 | AO131: =DATE(YEAR(AN131) + 1, MONTH(AN131), DAY(AN131)) -> 2043-12-31 | AP131: =DATE(YEAR(AO131) + 1, MONTH(AO131), DAY(AO131)) -> 2044-12-31 | AQ131: =DATE(YEAR(AP131) + 1, MONTH(AP131), DAY(AP131)) -> 2045-12-31 | AR131: =DATE(YEAR(AQ131) + 1, MONTH(AQ131), DAY(AQ131)) -> 2046-12-31 | AS131: =DATE(YEAR(AR131) + 1, MONTH(AR131), DAY(AR131)) -> 2047-12-31 | AT131: =DATE(YEAR(AS131) + 1, MONTH(AS131), DAY(AS131)) -> 2048-12-31 | AU131: =DATE(YEAR(AT131) + 1, MONTH(AT131), DAY(AT131)) -> 2049-12-31 | AV131: =DATE(YEAR(AU131) + 1, MONTH(AU131), DAY(AU131)) -> 2050-12-31 | AW131: =DATE(YEAR(AV131) + 1, MONTH(AV131), DAY(AV131)) -> 2051-12-31 | AX131: =DATE(YEAR(AW131) + 1, MONTH(AW131), DAY(AW131)) -> 2052-12-31
E133: Senior Debt repayment year | G133: Year | K133: =K171 -> 0 | L133: =L171 -> 0 | M133: 0 | N133: 0 | O133: 0 | P133: 0 | Q133: 0 | R133: 0 | S133: 0 | T133: 0 | U133: 0 | V133: 1 | W133: 2 | X133: 3 | Y133: 4 | Z133: 5 | AA133: 6 | AB133: 7 | AC133: 8 | AD133: 9 | AE133: 10 | AF133: 11 | AG133: 12 | AH133: 13 | AI133: 14 | AJ133: 15 | AK133: 16 | AL133: 17 | AM133: 18 | AN133: 19 | AO133: 20 | AP133: 0 | AQ133: 0 | AR133: 0 | AS133: 0 | AT133: 0 | AU133: 0 | AV133: 0 | AW133: 0 | AX133: 0
E134: Senior Debt repayment profile | G134: % | V134: 0.01818738284 | W134: 0.02815820841 | X134: 0.03072892814 | Y134: 0.03353769598 | Z134: 0.03550490131 | AA134: 0.03627836374 | AB134: 0.03018141334 | AC134: 0.04168796199 | AD134: 0.04600111668 | AE134: 0.04963773401 | AF134: 0.05208145325 | AG134: 0.05602175857 | AH134: 0.06018952346 | AI134: 0.0645531039 | AJ134: 0.01549082171 | AK134: 0.06638503515 | AL134: 0.07601867872 | AM134: 0.08111535023 | AN134: 0.08638195851 | AO134: 0.09185861005
E136: Senior Debt operation margin (including swap margin) | G136: nominal % | V136: 0.018 | W136: 0.018 | X136: 0.018 | Y136: 0.018 | Z136: 0.018 | AA136: 0.02 | AB136: 0.02 | AC136: 0.02 | AD136: 0.02 | AE136: 0.02 | AF136: 0.022 | AG136: 0.022 | AH136: 0.022 | AI136: 0.022 | AJ136: 0.022 | AK136: 0.024 | AL136: 0.024 | AM136: 0.024 | AN136: 0.024 | AO136: 0.024
E137: Debt Service Reserve Facility operation margin | G137: nominal % | V137: 0.018 | W137: 0.018 | X137: 0.018 | Y137: 0.018 | Z137: 0.018 | AA137: 0.02 | AB137: 0.02 | AC137: 0.02 | AD137: 0.02 | AE137: 0.02 | AF137: 0.022 | AG137: 0.022 | AH137: 0.022 | AI137: 0.022 | AJ137: 0.022 | AK137: 0.024 | AL137: 0.024 | AM137: 0.024 | AN137: 0.024 | AO137: 0.024
E138: Cap and Floor Liquidity Facility operation margin | G138: nominal % | V138: 0.018 | W138: 0.018 | X138: 0.018 | Y138: 0.018 | Z138: 0.018 | AA138: 0.02 | AB138: 0.02 | AC138: 0.02 | AD138: 0.02 | AE138: 0.02 | AF138: 0.022 | AG138: 0.022 | AH138: 0.022 | AI138: 0.022 | AJ138: 0.022 | AK138: 0.024 | AL138: 0.024 | AM138: 0.024 | AN138: 0.024 | AO138: 0.024
E139: Standby Debt Facility operation margin | G139: nominal % | V139: 0.018 | W139: 0.018 | X139: 0.018 | Y139: 0.018 | Z139: 0.018 | AA139: 0.02 | AB139: 0.02 | AC139: 0.02 | AD139: 0.02 | AE139: 0.02 | AF139: 0.022 | AG139: 0.022 | AH139: 0.022 | AI139: 0.022 | AJ139: 0.022 | AK139: 0.024 | AL139: 0.024 | AM139: 0.024 | AN139: 0.024 | AO139: 0.024
E140: VAT Facility operation margin | G140: nominal % | V140: 0.013 | W140: 0.018 | X140: 0.018 | Y140: 0.018 | Z140: 0.018 | AA140: 0.02 | AB140: 0.02 | AC140: 0.02 | AD140: 0.02 | AE140: 0.02 | AF140: 0.022 | AG140: 0.022 | AH140: 0.022 | AI140: 0.022 | AJ140: 0.022 | AK140: 0.024 | AL140: 0.024 | AM140: 0.024 | AN140: 0.024 | AO140: 0.024
E141: Other facilities operation margin | G141: nominal % | V141: 0.018 | W141: 0.013 | X141: 0.013 | Y141: 0.013 | Z141: 0.013 | AA141: 0.013 | AB141: 0.013 | AC141: 0.013 | AD141: 0.013 | AE141: 0.013 | AF141: 0.013 | AG141: 0.013 | AH141: 0.013 | AI141: 0.013 | AJ141: 0.013 | AK141: 0.013 | AL141: 0.013 | AM141: 0.013 | AN141: 0.013 | AO141: 0.013
C143: Model operation
E145: Year commencing | K145: =$I$148 -> 2013-01-01 | L145: =+K146+1 -> 2014-01-01 | M145: =+L146+1 -> 2015-01-01 | N145: =+M146+1 -> 2016-01-01 | O145: =+N146+1 -> 2017-01-01 | P145: =+O146+1 -> 2018-01-01 | Q145: =+P146+1 -> 2019-01-01 | R145: =+Q146+1 -> 2020-01-01 | S145: =+R146+1 -> 2021-01-01 | T145: =+S146+1 -> 2022-01-01 | U145: =+T146+1 -> 2023-01-01 | V145: =+U146+1 -> 2024-01-01 | W145: =+V146+1 -> 2025-01-01 | X145: =+W146+1 -> 2026-01-01 | Y145: =+X146+1 -> 2027-01-01 | Z145: =+Y146+1 -> 2028-01-01 | AA145: =+Z146+1 -> 2029-01-01 | AB145: =+AA146+1 -> 2030-01-01 | AC145: =+AB146+1 -> 2031-01-01 | AD145: =+AC146+1 -> 2032-01-01 | AE145: =+AD146+1 -> 2033-01-01 | AF145: =+AE146+1 -> 2034-01-01 | AG145: =+AF146+1 -> 2035-01-01 | AH145: =+AG146+1 -> 2036-01-01 | AI145: =+AH146+1 -> 2037-01-01 | AJ145: =+AI146+1 -> 2038-01-01 | AK145: =+AJ146+1 -> 2039-01-01 | AL145: =+AK146+1 -> 2040-01-01 | AM145: =+AL146+1 -> 2041-01-01 | AN145: =+AM146+1 -> 2042-01-01 | AO145: =+AN146+1 -> 2043-01-01 | AP145: =+AO146+1 -> 2044-01-01 | AQ145: =+AP146+1 -> 2045-01-01 | AR145: =+AQ146+1 -> 2046-01-01 | AS145: =+AR146+1 -> 2047-01-01 | AT145: =+AS146+1 -> 2048-01-01 | AU145: =+AT146+1 -> 2049-01-01 | AV145: =+AU146+1 -> 2050-01-01 | AW145: =+AV146+1 -> 2051-01-01 | AX145: =+AW146+1 -> 2052-01-01
E146: Year ending | K146: =EOMONTH(K145,11) -> 2013-12-31 | L146: =DATE(YEAR(K146) + 1, MONTH(K146), DAY(K146)) -> 2014-12-31 | M146: =DATE(YEAR(L146) + 1, MONTH(L146), DAY(L146)) -> 2015-12-31 | N146: =DATE(YEAR(M146) + 1, MONTH(M146), DAY(M146)) -> 2016-12-31 | O146: =DATE(YEAR(N146) + 1, MONTH(N146), DAY(N146)) -> 2017-12-31 | P146: =DATE(YEAR(O146) + 1, MONTH(O146), DAY(O146)) -> 2018-12-31 | Q146: =DATE(YEAR(P146) + 1, MONTH(P146), DAY(P146)) -> 2019-12-31 | R146: =DATE(YEAR(Q146) + 1, MONTH(Q146), DAY(Q146)) -> 2020-12-31 | S146: =DATE(YEAR(R146) + 1, MONTH(R146), DAY(R146)) -> 2021-12-31 | T146: =DATE(YEAR(S146) + 1, MONTH(S146), DAY(S146)) -> 2022-12-31 | U146: =DATE(YEAR(T146) + 1, MONTH(T146), DAY(T146)) -> 2023-12-31 | V146: =DATE(YEAR(U146) + 1, MONTH(U146), DAY(U146)) -> 2024-12-31 | W146: =DATE(YEAR(V146) + 1, MONTH(V146), DAY(V146)) -> 2025-12-31 | X146: =DATE(YEAR(W146) + 1, MONTH(W146), DAY(W146)) -> 2026-12-31 | Y146: =DATE(YEAR(X146) + 1, MONTH(X146), DAY(X146)) -> 2027-12-31 | Z146: =DATE(YEAR(Y146) + 1, MONTH(Y146), DAY(Y146)) -> 2028-12-31 | AA146: =DATE(YEAR(Z146) + 1, MONTH(Z146), DAY(Z146)) -> 2029-12-31 | AB146: =DATE(YEAR(AA146) + 1, MONTH(AA146), DAY(AA146)) -> 2030-12-31 | AC146: =DATE(YEAR(AB146) + 1, MONTH(AB146), DAY(AB146)) -> 2031-12-31 | AD146: =DATE(YEAR(AC146) + 1, MONTH(AC146), DAY(AC146)) -> 2032-12-31 | AE146: =DATE(YEAR(AD146) + 1, MONTH(AD146), DAY(AD146)) -> 2033-12-31 | AF146: =DATE(YEAR(AE146) + 1, MONTH(AE146), DAY(AE146)) -> 2034-12-31 | AG146: =DATE(YEAR(AF146) + 1, MONTH(AF146), DAY(AF146)) -> 2035-12-31 | AH146: =DATE(YEAR(AG146) + 1, MONTH(AG146), DAY(AG146)) -> 2036-12-31 | AI146: =DATE(YEAR(AH146) + 1, MONTH(AH146), DAY(AH146)) -> 2037-12-31 | AJ146: =DATE(YEAR(AI146) + 1, MONTH(AI146), DAY(AI146)) -> 2038-12-31 | AK146: =DATE(YEAR(AJ146) + 1, MONTH(AJ146), DAY(AJ146)) -> 2039-12-31 | AL146: =DATE(YEAR(AK146) + 1, MONTH(AK146), DAY(AK146)) -> 2040-12-31 | AM146: =DATE(YEAR(AL146) + 1, MONTH(AL146), DAY(AL146)) -> 2041-12-31 | AN146: =DATE(YEAR(AM146) + 1, MONTH(AM146), DAY(AM146)) -> 2042-12-31 | AO146: =DATE(YEAR(AN146) + 1, MONTH(AN146), DAY(AN146)) -> 2043-12-31 | AP146: =DATE(YEAR(AO146) + 1, MONTH(AO146), DAY(AO146)) -> 2044-12-31 | AQ146: =DATE(YEAR(AP146) + 1, MONTH(AP146), DAY(AP146)) -> 2045-12-31 | AR146: =DATE(YEAR(AQ146) + 1, MONTH(AQ146), DAY(AQ146)) -> 2046-12-31 | AS146: =DATE(YEAR(AR146) + 1, MONTH(AR146), DAY(AR146)) -> 2047-12-31 | AT146: =DATE(YEAR(AS146) + 1, MONTH(AS146), DAY(AS146)) -> 2048-12-31 | AU146: =DATE(YEAR(AT146) + 1, MONTH(AT146), DAY(AT146)) -> 2049-12-31 | AV146: =DATE(YEAR(AU146) + 1, MONTH(AU146), DAY(AU146)) -> 2050-12-31 | AW146: =DATE(YEAR(AV146) + 1, MONTH(AV146), DAY(AV146)) -> 2051-12-31 | AX146: =DATE(YEAR(AW146) + 1, MONTH(AW146), DAY(AW146)) -> 2052-12-31
E148: Model start date | G148: date | I148: 2013-01-01
E149: Regime start date | G149: date | I149: 2021-01-01
E150: End date for IDC | G150: date | I150: 2023-12-31
E151: Start of operations | G151: date | I151: 2024-01-01
E152: Regime end date | G152: date | I152: =DATE(YEAR($I$149)+I155,MONTH($I$149),DAY($I$149))-1 -> 2045-12-31
E153: Debt end date | G153: date | I153: =EOMONTH(I151-1,I85*12) -> 2043-12-31
E154: Debt tail end date | G154: date | I154: =MIN(EOMONTH(I151-1,(I85+I86)*12),I152) -> 2045-12-31
E155: Number of operational years | G155: full years | I155: 25
E157: Debt tenor <= (Regime end date - Start of operations) | G157: check | I157: =I85<=ROUND((I152-I151)/365.25,0) -> TRUE
E159: Days in year | G159: days | K159: =K$146-K$145+1 -> 365 | L159: 365 | M159: =M$146-M$145+1 -> 365 | N159: =N$146-N$145+1 -> 366 | O159: 365 | P159: 365 | Q159: 365 | R159: 366 | S159: 365 | T159: 365 | U159: 365 | V159: 366 | W159: 365 | X159: 365 | Y159: 365 | Z159: 366 | AA159: 365 | AB159: 365 | AC159: 365 | AD159: 366 | AE159: 365 | AF159: 365 | AG159: 365 | AH159: 366 | AI159: 365 | AJ159: 365 | AK159: 365 | AL159: 366 | AM159: 365 | AN159: 365 | AO159: 365 | AP159: 366 | AQ159: 365 | AR159: 365 | AS159: 365 | AT159: 366 | AU159: 365 | AV159: 365 | AW159: 365 | AX159: 366
E160: IDC flag | G160: flag | K160: =IF($I$150>=K$146,1,IF($I$150>=K$145,($I$150-K$145+1)/K$159,0)) -> 1 | L160: =IF($I$150>=L$146,1,IF($I$150>=L$145,($I$150-L$145+1)/L$159,0)) -> 1 | M160: 1 | N160: 1 | O160: 1 | P160: 1 | Q160: 1 | R160: 1 | S160: 1 | T160: 1 | U160: 1 | V160: 0 | W160: 0 | X160: 0 | Y160: 0 | Z160: 0 | AA160: 0 | AB160: 0 | AC160: 0 | AD160: 0 | AE160: 0 | AF160: 0 | AG160: 0 | AH160: 0 | AI160: 0 | AJ160: 0 | AK160: 0 | AL160: 0 | AM160: 0 | AN160: 0 | AO160: 0 | AP160: 0 | AQ160: 0 | AR160: 0 | AS160: 0 | AT160: 0 | AU160: 0 | AV160: 0 | AW160: 0 | AX160: 0
E161: Post-IDC and pre-operations flag | G161: flag | K161: =IF(OR(K160=1,K162=1),0,IF($I$151<K145,0,IF($I$151<K146,($I$151-(MAX($I$150+1,K145)))/K159,MIN(1,(K146-$I$150)/K159)))) -> 0 | L161: =IF(OR(L160=1,L162=1),0,IF($I$151<L145,0,IF($I$151<L146,($I$151-(MAX($I$150+1,L145)))/L159,MIN(1,(L146-$I$150)/L159)))) -> 0 | M161: 0 | N161: 0 | O161: 0 | P161: 0 | Q161: 0 | R161: 0 | S161: 0 | T161: 0 | U161: 0 | V161: 0 | W161: 0 | X161: 0 | Y161: 0 | Z161: 0 | AA161: 0 | AB161: 0 | AC161: 0 | AD161: 0 | AE161: 0 | AF161: 0 | AG161: 0 | AH161: 0 | AI161: 0 | AJ161: 0 | AK161: 0 | AL161: 0 | AM161: 0 | AN161: 0 | AO161: 0 | AP161: 0 | AQ161: 0 | AR161: 0 | AS161: 0 | AT161: 0 | AU161: 0 | AV161: 0 | AW161: 0 | AX161: 0
E162: Operations flag | G162: flag | K162: =IF(OR($I$151>K$146,$I$152<K$145),0,IF($I$151>=K$145,(K$146-$I$151+1)/K$159,IF($I$152<=K$146,($I$152-K$145+1)/K$159,1))) -> 0 | L162: 0 | M162: 0 | N162: 0 | O162: 0 | P162: 0 | Q162: 0 | R162: 0 | S162: 0 | T162: 0 | U162: 0 | V162: 1 | W162: 1 | X162: 1 | Y162: 1 | Z162: 1 | AA162: 1 | AB162: 1 | AC162: 1 | AD162: 1 | AE162: 1 | AF162: 1 | AG162: 1 | AH162: 1 | AI162: 1 | AJ162: 1 | AK162: 1 | AL162: 1 | AM162: 1 | AN162: 1 | AO162: 1 | AP162: 1 | AQ162: 1 | AR162: 0 | AS162: 0 | AT162: 0 | AU162: 0 | AV162: 0 | AW162: 0 | AX162: 0
E163: Regime flag | G163: flag | K163: =IF(OR($I$149>K$146,$I$152<K$145),0,IF($I$149>=K$145,(K$146-$I$149+1)/K$159,IF($I$152<=K$146,($I$152-K$145+1)/K$159,1))) -> 0 | L163: =IF(OR($I$149>L$146,$I$152<L$145),0,IF($I$149>=L$145,(L$146-$I$149+1)/L$159,IF($I$152<=L$146,($I$152-L$145+1)/L$159,1))) -> 0 | M163: 0 | N163: 0 | O163: 0 | P163: 0 | Q163: 0 | R163: 0 | S163: 1 | T163: 1 | U163: 1 | V163: 1 | W163: 1 | X163: 1 | Y163: 1 | Z163: 1 | AA163: 1 | AB163: 1 | AC163: 1 | AD163: 1 | AE163: 1 | AF163: 1 | AG163: 1 | AH163: 1 | AI163: 1 | AJ163: 1 | AK163: 1 | AL163: 1 | AM163: 1 | AN163: 1 | AO163: 1 | AP163: 1 | AQ163: 1 | AR163: 0 | AS163: 0 | AT163: 0 | AU163: 0 | AV163: 0 | AW163: 0 | AX163: 0
E164: Regime years | G164: count | K164: =ROUNDUP(SUM($K$163:K163)*(K163<>0),0) -> 0 | L164: =ROUNDUP(SUM($K$163:L163)*(L163<>0),0) -> 0 | M164: =ROUNDUP(SUM($K$163:M163)*(M163<>0),0) -> 0 | N164: =ROUNDUP(SUM($K$163:N163)*(N163<>0),0) -> 0 | O164: =ROUNDUP(SUM($K$163:O163)*(O163<>0),0) -> 0 | P164: =ROUNDUP(SUM($K$163:P163)*(P163<>0),0) -> 0 | Q164: =ROUNDUP(SUM($K$163:Q163)*(Q163<>0),0) -> 0 | R164: =ROUNDUP(SUM($K$163:R163)*(R163<>0),0) -> 0 | S164: =ROUNDUP(SUM($K$163:S163)*(S163<>0),0) -> 1 | T164: =ROUNDUP(SUM($K$163:T163)*(T163<>0),0) -> 2 | U164: =ROUNDUP(SUM($K$163:U163)*(U163<>0),0) -> 3 | V164: =ROUNDUP(SUM($K$163:V163)*(V163<>0),0) -> 4 | W164: =ROUNDUP(SUM($K$163:W163)*(W163<>0),0) -> 5 | X164: =ROUNDUP(SUM($K$163:X163)*(X163<>0),0) -> 6 | Y164: =ROUNDUP(SUM($K$163:Y163)*(Y163<>0),0) -> 7 | Z164: =ROUNDUP(SUM($K$163:Z163)*(Z163<>0),0) -> 8 | AA164: =ROUNDUP(SUM($K$163:AA163)*(AA163<>0),0) -> 9 | AB164: =ROUNDUP(SUM($K$163:AB163)*(AB163<>0),0) -> 10 | AC164: =ROUNDUP(SUM($K$163:AC163)*(AC163<>0),0) -> 11 | AD164: =ROUNDUP(SUM($K$163:AD163)*(AD163<>0),0) -> 12 | AE164: =ROUNDUP(SUM($K$163:AE163)*(AE163<>0),0) -> 13 | AF164: =ROUNDUP(SUM($K$163:AF163)*(AF163<>0),0) -> 14 | AG164: =ROUNDUP(SUM($K$163:AG163)*(AG163<>0),0) -> 15 | AH164: =ROUNDUP(SUM($K$163:AH163)*(AH163<>0),0) -> 16 | AI164: =ROUNDUP(SUM($K$163:AI163)*(AI163<>0),0) -> 17 | AJ164: =ROUNDUP(SUM($K$163:AJ163)*(AJ163<>0),0) -> 18 | AK164: =ROUNDUP(SUM($K$163:AK163)*(AK163<>0),0) -> 19 | AL164: =ROUNDUP(SUM($K$163:AL163)*(AL163<>0),0) -> 20 | AM164: =ROUNDUP(SUM($K$163:AM163)*(AM163<>0),0) -> 21 | AN164: =ROUNDUP(SUM($K$163:AN163)*(AN163<>0),0) -> 22 | AO164: =ROUNDUP(SUM($K$163:AO163)*(AO163<>0),0) -> 23 | AP164: =ROUNDUP(SUM($K$163:AP163)*(AP163<>0),0) -> 24 | AQ164: =ROUNDUP(SUM($K$163:AQ163)*(AQ163<>0),0) -> 25 | AR164: =ROUNDUP(SUM($K$163:AR163)*(AR163<>0),0) -> 0 | AS164: =ROUNDUP(SUM($K$163:AS163)*(AS163<>0),0) -> 0 | AT164: =ROUNDUP(SUM($K$163:AT163)*(AT163<>0),0) -> 0 | AU164: =ROUNDUP(SUM($K$163:AU163)*(AU163<>0),0) -> 0 | AV164: =ROUNDUP(SUM($K$163:AV163)*(AV163<>0),0) -> 0 | AW164: =ROUNDUP(SUM($K$163:AW163)*(AW163<>0),0) -> 0 | AX164: =ROUNDUP(SUM($K$163:AX163)*(AX163<>0),0) -> 0
E165: Transfer construction to operations flag - Notional | G165: flag | K165: =IF(AND(SUM(K34:K36)<>0,SUM(L34:$AY36)=0),1,0) -> 0 | L165: =IF(AND(SUM(L34:L36)<>0,SUM(M34:$AY36)=0),1,0) -> 0 | M165: =IF(AND(SUM(M34:M36)<>0,SUM(N34:$AY36)=0),1,0) -> 0 | N165: =IF(AND(SUM(N34:N36)<>0,SUM(O34:$AY36)=0),1,0) -> 0 | O165: =IF(AND(SUM(O34:O36)<>0,SUM(P34:$AY36)=0),1,0) -> 0 | P165: =IF(AND(SUM(P34:P36)<>0,SUM(Q34:$AY36)=0),1,0) -> 0 | Q165: =IF(AND(SUM(Q34:Q36)<>0,SUM(R34:$AY36)=0),1,0) -> 0 | R165: =IF(AND(SUM(R34:R36)<>0,SUM(S34:$AY36)=0),1,0) -> 0 | S165: =IF(AND(SUM(S34:S36)<>0,SUM(T34:$AY36)=0),1,0) -> 0 | T165: =IF(AND(SUM(T34:T36)<>0,SUM(U34:$AY36)=0),1,0) -> 0 | U165: =IF(AND(SUM(U34:U36)<>0,SUM(V34:$AY36)=0),1,0) -> 0 | V165: =IF(AND(SUM(V34:V36)<>0,SUM(W34:$AY36)=0),1,0) -> 1 | W165: =IF(AND(SUM(W34:W36)<>0,SUM(X34:$AY36)=0),1,0) -> 0 | X165: =IF(AND(SUM(X34:X36)<>0,SUM(Y34:$AY36)=0),1,0) -> 0 | Y165: =IF(AND(SUM(Y34:Y36)<>0,SUM(Z34:$AY36)=0),1,0) -> 0 | Z165: =IF(AND(SUM(Z34:Z36)<>0,SUM(AA34:$AY36)=0),1,0) -> 0 | AA165: =IF(AND(SUM(AA34:AA36)<>0,SUM(AB34:$AY36)=0),1,0) -> 0 | AB165: =IF(AND(SUM(AB34:AB36)<>0,SUM(AC34:$AY36)=0),1,0) -> 0 | AC165: =IF(AND(SUM(AC34:AC36)<>0,SUM(AD34:$AY36)=0),1,0) -> 0 | AD165: =IF(AND(SUM(AD34:AD36)<>0,SUM(AE34:$AY36)=0),1,0) -> 0 | AE165: =IF(AND(SUM(AE34:AE36)<>0,SUM(AF34:$AY36)=0),1,0) -> 0 | AF165: =IF(AND(SUM(AF34:AF36)<>0,SUM(AG34:$AY36)=0),1,0) -> 0 | AG165: =IF(AND(SUM(AG34:AG36)<>0,SUM(AH34:$AY36)=0),1,0) -> 0 | AH165: =IF(AND(SUM(AH34:AH36)<>0,SUM(AI34:$AY36)=0),1,0) -> 0 | AI165: =IF(AND(SUM(AI34:AI36)<>0,SUM(AJ34:$AY36)=0),1,0) -> 0 | AJ165: =IF(AND(SUM(AJ34:AJ36)<>0,SUM(AK34:$AY36)=0),1,0) -> 0 | AK165: =IF(AND(SUM(AK34:AK36)<>0,SUM(AL34:$AY36)=0),1,0) -> 0 | AL165: =IF(AND(SUM(AL34:AL36)<>0,SUM(AM34:$AY36)=0),1,0) -> 0 | AM165: =IF(AND(SUM(AM34:AM36)<>0,SUM(AN34:$AY36)=0),1,0) -> 0 | AN165: =IF(AND(SUM(AN34:AN36)<>0,SUM(AO34:$AY36)=0),1,0) -> 0 | AO165: =IF(AND(SUM(AO34:AO36)<>0,SUM(AP34:$AY36)=0),1,0) -> 0 | AP165: =IF(AND(SUM(AP34:AP36)<>0,SUM(AQ34:$AY36)=0),1,0) -> 0 | AQ165: =IF(AND(SUM(AQ34:AQ36)<>0,SUM(AR34:$AY36)=0),1,0) -> 0 | AR165: =IF(AND(SUM(AR34:AR36)<>0,SUM(AS34:$AY36)=0),1,0) -> 0 | AS165: =IF(AND(SUM(AS34:AS36)<>0,SUM(AT34:$AY36)=0),1,0) -> 0 | AT165: =IF(AND(SUM(AT34:AT36)<>0,SUM(AU34:$AY36)=0),1,0) -> 0 | AU165: =IF(AND(SUM(AU34:AU36)<>0,SUM(AV34:$AY36)=0),1,0) -> 0 | AV165: =IF(AND(SUM(AV34:AV36)<>0,SUM(AW34:$AY36)=0),1,0) -> 0 | AW165: =IF(AND(SUM(AW34:AW36)<>0,SUM(AX34:$AY36)=0),1,0) -> 0 | AX165: =IF(AND(SUM(AX34:AX36)<>0,SUM(AY34:$AY36)=0),1,0) -> 0
E166: Transfer construction to operations flag - ACOD | G166: flag | H166: ` | K166: =IF(AND($I$151<=K$146,$I$151>=K$145),1,0) -> 0 | L166: 0 | M166: =IF(AND($I$151<=M$146,$I$151>=M$145),1,0) -> 0 | N166: =IF(AND($I$151<=N$146,$I$151>=N$145),1,0) -> 0 | O166: 0 | P166: 0 | Q166: 0 | R166: 0 | S166: 0 | T166: 0 | U166: 0 | V166: 1 | W166: 0 | X166: 0 | Y166: 0 | Z166: 0 | AA166: 0 | AB166: 0 | AC166: 0 | AD166: 0 | AE166: 0 | AF166: 0 | AG166: 0 | AH166: 0 | AI166: 0 | AJ166: 0 | AK166: 0 | AL166: 0 | AM166: 0 | AN166: 0 | AO166: 0 | AP166: 0 | AQ166: 0 | AR166: 0 | AS166: 0 | AT166: 0 | AU166: 0 | AV166: 0 | AW166: 0 | AX166: 0
E167: Initial transaction costs flag | G167: flag | K167: =IF(AND(SUM($J35:K35)=0,L35>0),1,0) -> 0 | L167: =IF(AND(SUM($J35:L35)=0,M35>0),1,0) -> 0 | M167: =IF(AND(SUM($J35:M35)=0,N35>0),1,0) -> 0 | N167: =IF(AND(SUM($J35:N35)=0,O35>0),1,0) -> 0 | O167: =IF(AND(SUM($J35:O35)=0,P35>0),1,0) -> 1 | P167: =IF(AND(SUM($J35:P35)=0,Q35>0),1,0) -> 0 | Q167: =IF(AND(SUM($J35:Q35)=0,R35>0),1,0) -> 0 | R167: =IF(AND(SUM($J35:R35)=0,S35>0),1,0) -> 0 | S167: =IF(AND(SUM($J35:S35)=0,T35>0),1,0) -> 0 | T167: =IF(AND(SUM($J35:T35)=0,U35>0),1,0) -> 0 | U167: =IF(AND(SUM($J35:U35)=0,V35>0),1,0) -> 0 | V167: =IF(AND(SUM($J35:V35)=0,W35>0),1,0) -> 0 | W167: =IF(AND(SUM($J35:W35)=0,X35>0),1,0) -> 0 | X167: =IF(AND(SUM($J35:X35)=0,Y35>0),1,0) -> 0 | Y167: =IF(AND(SUM($J35:Y35)=0,Z35>0),1,0) -> 0 | Z167: =IF(AND(SUM($J35:Z35)=0,AA35>0),1,0) -> 0 | AA167: =IF(AND(SUM($J35:AA35)=0,AB35>0),1,0) -> 0 | AB167: =IF(AND(SUM($J35:AB35)=0,AC35>0),1,0) -> 0 | AC167: =IF(AND(SUM($J35:AC35)=0,AD35>0),1,0) -> 0 | AD167: =IF(AND(SUM($J35:AD35)=0,AE35>0),1,0) -> 0 | AE167: =IF(AND(SUM($J35:AE35)=0,AF35>0),1,0) -> 0 | AF167: =IF(AND(SUM($J35:AF35)=0,AG35>0),1,0) -> 0 | AG167: =IF(AND(SUM($J35:AG35)=0,AH35>0),1,0) -> 0 | AH167: =IF(AND(SUM($J35:AH35)=0,AI35>0),1,0) -> 0 | AI167: =IF(AND(SUM($J35:AI35)=0,AJ35>0),1,0) -> 0 | AJ167: =IF(AND(SUM($J35:AJ35)=0,AK35>0),1,0) -> 0 | AK167: =IF(AND(SUM($J35:AK35)=0,AL35>0),1,0) -> 0 | AL167: =IF(AND(SUM($J35:AL35)=0,AM35>0),1,0) -> 0 | AM167: =IF(AND(SUM($J35:AM35)=0,AN35>0),1,0) -> 0 | AN167: =IF(AND(SUM($J35:AN35)=0,AO35>0),1,0) -> 0 | AO167: =IF(AND(SUM($J35:AO35)=0,AP35>0),1,0) -> 0 | AP167: =IF(AND(SUM($J35:AP35)=0,AQ35>0),1,0) -> 0 | AQ167: =IF(AND(SUM($J35:AQ35)=0,AR35>0),1,0) -> 0 | AR167: =IF(AND(SUM($J35:AR35)=0,AS35>0),1,0) -> 0 | AS167: =IF(AND(SUM($J35:AS35)=0,AT35>0),1,0) -> 0 | AT167: =IF(AND(SUM($J35:AT35)=0,AU35>0),1,0) -> 0 | AU167: =IF(AND(SUM($J35:AU35)=0,AV35>0),1,0) -> 0 | AV167: =IF(AND(SUM($J35:AV35)=0,AW35>0),1,0) -> 0 | AW167: =IF(AND(SUM($J35:AW35)=0,AX35>0),1,0) -> 0 | AX167: =IF(AND(SUM($J35:AX35)=0,AY35>0),1,0) -> 0
E168: Financial close flag | G168: flag | K168: =IF(AND(SUM($J35:J35)=0,K35>0),1,0) -> 0 | L168: =IF(AND(SUM($J35:K35)=0,L35>0),1,0) -> 0 | M168: =IF(AND(SUM($J35:L35)=0,M35>0),1,0) -> 0 | N168: =IF(AND(SUM($J35:M35)=0,N35>0),1,0) -> 0 | O168: =IF(AND(SUM($J35:N35)=0,O35>0),1,0) -> 0 | P168: =IF(AND(SUM($J35:O35)=0,P35>0),1,0) -> 1 | Q168: =IF(AND(SUM($J35:P35)=0,Q35>0),1,0) -> 0 | R168: =IF(AND(SUM($J35:Q35)=0,R35>0),1,0) -> 0 | S168: =IF(AND(SUM($J35:R35)=0,S35>0),1,0) -> 0 | T168: =IF(AND(SUM($J35:S35)=0,T35>0),1,0) -> 0 | U168: =IF(AND(SUM($J35:T35)=0,U35>0),1,0) -> 0 | V168: =IF(AND(SUM($J35:U35)=0,V35>0),1,0) -> 0 | W168: =IF(AND(SUM($J35:V35)=0,W35>0),1,0) -> 0 | X168: =IF(AND(SUM($J35:W35)=0,X35>0),1,0) -> 0 | Y168: =IF(AND(SUM($J35:X35)=0,Y35>0),1,0) -> 0 | Z168: =IF(AND(SUM($J35:Y35)=0,Z35>0),1,0) -> 0 | AA168: =IF(AND(SUM($J35:Z35)=0,AA35>0),1,0) -> 0 | AB168: =IF(AND(SUM($J35:AA35)=0,AB35>0),1,0) -> 0 | AC168: =IF(AND(SUM($J35:AB35)=0,AC35>0),1,0) -> 0 | AD168: =IF(AND(SUM($J35:AC35)=0,AD35>0),1,0) -> 0 | AE168: =IF(AND(SUM($J35:AD35)=0,AE35>0),1,0) -> 0 | AF168: =IF(AND(SUM($J35:AE35)=0,AF35>0),1,0) -> 0 | AG168: =IF(AND(SUM($J35:AF35)=0,AG35>0),1,0) -> 0 | AH168: =IF(AND(SUM($J35:AG35)=0,AH35>0),1,0) -> 0 | AI168: =IF(AND(SUM($J35:AH35)=0,AI35>0),1,0) -> 0 | AJ168: =IF(AND(SUM($J35:AI35)=0,AJ35>0),1,0) -> 0 | AK168: =IF(AND(SUM($J35:AJ35)=0,AK35>0),1,0) -> 0 | AL168: =IF(AND(SUM($J35:AK35)=0,AL35>0),1,0) -> 0 | AM168: =IF(AND(SUM($J35:AL35)=0,AM35>0),1,0) -> 0 | AN168: =IF(AND(SUM($J35:AM35)=0,AN35>0),1,0) -> 0 | AO168: =IF(AND(SUM($J35:AN35)=0,AO35>0),1,0) -> 0 | AP168: =IF(AND(SUM($J35:AO35)=0,AP35>0),1,0) -> 0 | AQ168: =IF(AND(SUM($J35:AP35)=0,AQ35>0),1,0) -> 0 | AR168: =IF(AND(SUM($J35:AQ35)=0,AR35>0),1,0) -> 0 | AS168: =IF(AND(SUM($J35:AR35)=0,AS35>0),1,0) -> 0 | AT168: =IF(AND(SUM($J35:AS35)=0,AT35>0),1,0) -> 0 | AU168: =IF(AND(SUM($J35:AT35)=0,AU35>0),1,0) -> 0 | AV168: =IF(AND(SUM($J35:AU35)=0,AV35>0),1,0) -> 0 | AW168: =IF(AND(SUM($J35:AV35)=0,AW35>0),1,0) -> 0 | AX168: =IF(AND(SUM($J35:AW35)=0,AX35>0),1,0) -> 0
E169: Debt drawdown flag | G169: flag | K169: =(SUM($J$168:K168)>=1)*(SUM($J$166:K166)<1) -> 0 | L169: =(SUM($J$168:L168)>=1)*(SUM($J$166:L166)<1) -> 0 | M169: =(SUM($J$168:M168)>=1)*(SUM($J$166:M166)<1) -> 0 | N169: =(SUM($J$168:N168)>=1)*(SUM($J$166:N166)<1) -> 0 | O169: =(SUM($J$168:O168)>=1)*(SUM($J$166:O166)<1) -> 0 | P169: =(SUM($J$168:P168)>=1)*(SUM($J$166:P166)<1) -> 1 | Q169: =(SUM($J$168:Q168)>=1)*(SUM($J$166:Q166)<1) -> 1 | R169: =(SUM($J$168:R168)>=1)*(SUM($J$166:R166)<1) -> 1 | S169: =(SUM($J$168:S168)>=1)*(SUM($J$166:S166)<1) -> 1 | T169: =(SUM($J$168:T168)>=1)*(SUM($J$166:T166)<1) -> 1 | U169: =(SUM($J$168:U168)>=1)*(SUM($J$166:U166)<1) -> 1 | V169: =(SUM($J$168:V168)>=1)*(SUM($J$166:V166)<1) -> 0 | W169: =(SUM($J$168:W168)>=1)*(SUM($J$166:W166)<1) -> 0 | X169: =(SUM($J$168:X168)>=1)*(SUM($J$166:X166)<1) -> 0 | Y169: =(SUM($J$168:Y168)>=1)*(SUM($J$166:Y166)<1) -> 0 | Z169: =(SUM($J$168:Z168)>=1)*(SUM($J$166:Z166)<1) -> 0 | AA169: =(SUM($J$168:AA168)>=1)*(SUM($J$166:AA166)<1) -> 0 | AB169: =(SUM($J$168:AB168)>=1)*(SUM($J$166:AB166)<1) -> 0 | AC169: =(SUM($J$168:AC168)>=1)*(SUM($J$166:AC166)<1) -> 0 | AD169: =(SUM($J$168:AD168)>=1)*(SUM($J$166:AD166)<1) -> 0 | AE169: =(SUM($J$168:AE168)>=1)*(SUM($J$166:AE166)<1) -> 0 | AF169: =(SUM($J$168:AF168)>=1)*(SUM($J$166:AF166)<1) -> 0 | AG169: =(SUM($J$168:AG168)>=1)*(SUM($J$166:AG166)<1) -> 0 | AH169: =(SUM($J$168:AH168)>=1)*(SUM($J$166:AH166)<1) -> 0 | AI169: =(SUM($J$168:AI168)>=1)*(SUM($J$166:AI166)<1) -> 0 | AJ169: =(SUM($J$168:AJ168)>=1)*(SUM($J$166:AJ166)<1) -> 0 | AK169: =(SUM($J$168:AK168)>=1)*(SUM($J$166:AK166)<1) -> 0 | AL169: =(SUM($J$168:AL168)>=1)*(SUM($J$166:AL166)<1) -> 0 | AM169: =(SUM($J$168:AM168)>=1)*(SUM($J$166:AM166)<1) -> 0 | AN169: =(SUM($J$168:AN168)>=1)*(SUM($J$166:AN166)<1) -> 0 | AO169: =(SUM($J$168:AO168)>=1)*(SUM($J$166:AO166)<1) -> 0 | AP169: =(SUM($J$168:AP168)>=1)*(SUM($J$166:AP166)<1) -> 0 | AQ169: =(SUM($J$168:AQ168)>=1)*(SUM($J$166:AQ166)<1) -> 0 | AR169: =(SUM($J$168:AR168)>=1)*(SUM($J$166:AR166)<1) -> 0 | AS169: =(SUM($J$168:AS168)>=1)*(SUM($J$166:AS166)<1) -> 0 | AT169: =(SUM($J$168:AT168)>=1)*(SUM($J$166:AT166)<1) -> 0 | AU169: =(SUM($J$168:AU168)>=1)*(SUM($J$166:AU166)<1) -> 0 | AV169: =(SUM($J$168:AV168)>=1)*(SUM($J$166:AV166)<1) -> 0 | AW169: =(SUM($J$168:AW168)>=1)*(SUM($J$166:AW166)<1) -> 0 | AX169: =(SUM($J$168:AX168)>=1)*(SUM($J$166:AX166)<1) -> 0
E170: Debt repayment flag | G170: flag | K170: =IF(OR($I$151>K$146,$I$153<K$145),0,IF($I$151>=K$145,(K$146-$I$151+1)/K$159,IF($I$153<=K$146,($I$153-K$145+1)/K$159,1))) -> 0 | L170: =IF(OR($I$151>L$146,$I$153<L$145),0,IF($I$151>=L$145,(L$146-$I$151+1)/L$159,IF($I$153<=L$146,($I$153-L$145+1)/L$159,1))) -> 0 | M170: 0 | N170: 0 | O170: 0 | P170: 0 | Q170: 0 | R170: 0 | S170: 0 | T170: 0 | U170: 0 | V170: 1 | W170: 1 | X170: 1 | Y170: 1 | Z170: 1 | AA170: 1 | AB170: 1 | AC170: 1 | AD170: 1 | AE170: 1 | AF170: 1 | AG170: 1 | AH170: 1 | AI170: 1 | AJ170: 1 | AK170: 1 | AL170: 1 | AM170: 1 | AN170: 1 | AO170: 1 | AP170: 0 | AQ170: 0 | AR170: 0 | AS170: 0 | AT170: 0 | AU170: 0 | AV170: 0 | AW170: 0 | AX170: 0
E171: Debt repayment years | G171: count | K171: =SUM($K$170:K170)*(K170<>0) -> 0 | L171: =SUM($K$170:L170)*(L170<>0) -> 0 | M171: =SUM($K$170:M170)*(M170<>0) -> 0 | N171: =SUM($K$170:N170)*(N170<>0) -> 0 | O171: =SUM($K$170:O170)*(O170<>0) -> 0 | P171: =SUM($K$170:P170)*(P170<>0) -> 0 | Q171: =SUM($K$170:Q170)*(Q170<>0) -> 0 | R171: =SUM($K$170:R170)*(R170<>0) -> 0 | S171: =SUM($K$170:S170)*(S170<>0) -> 0 | T171: =SUM($K$170:T170)*(T170<>0) -> 0 | U171: =SUM($K$170:U170)*(U170<>0) -> 0 | V171: =SUM($K$170:V170)*(V170<>0) -> 1 | W171: =SUM($K$170:W170)*(W170<>0) -> 2 | X171: =SUM($K$170:X170)*(X170<>0) -> 3 | Y171: =SUM($K$170:Y170)*(Y170<>0) -> 4 | Z171: =SUM($K$170:Z170)*(Z170<>0) -> 5 | AA171: =SUM($K$170:AA170)*(AA170<>0) -> 6 | AB171: =SUM($K$170:AB170)*(AB170<>0) -> 7 | AC171: =SUM($K$170:AC170)*(AC170<>0) -> 8 | AD171: =SUM($K$170:AD170)*(AD170<>0) -> 9 | AE171: =SUM($K$170:AE170)*(AE170<>0) -> 10 | AF171: =SUM($K$170:AF170)*(AF170<>0) -> 11 | AG171: =SUM($K$170:AG170)*(AG170<>0) -> 12 | AH171: =SUM($K$170:AH170)*(AH170<>0) -> 13 | AI171: =SUM($K$170:AI170)*(AI170<>0) -> 14 | AJ171: =SUM($K$170:AJ170)*(AJ170<>0) -> 15 | AK171: =SUM($K$170:AK170)*(AK170<>0) -> 16 | AL171: =SUM($K$170:AL170)*(AL170<>0) -> 17 | AM171: =SUM($K$170:AM170)*(AM170<>0) -> 18 | AN171: =SUM($K$170:AN170)*(AN170<>0) -> 19 | AO171: =SUM($K$170:AO170)*(AO170<>0) -> 20 | AP171: =SUM($K$170:AP170)*(AP170<>0) -> 0 | AQ171: =SUM($K$170:AQ170)*(AQ170<>0) -> 0 | AR171: =SUM($K$170:AR170)*(AR170<>0) -> 0 | AS171: =SUM($K$170:AS170)*(AS170<>0) -> 0 | AT171: =SUM($K$170:AT170)*(AT170<>0) -> 0 | AU171: =SUM($K$170:AU170)*(AU170<>0) -> 0 | AV171: =SUM($K$170:AV170)*(AV170<>0) -> 0 | AW171: =SUM($K$170:AW170)*(AW170<>0) -> 0 | AX171: =SUM($K$170:AX170)*(AX170<>0) -> 0
E172: Debt tail flag | G172: flag | K172: =IF(OR($I$151>K$146,$I$154<K$145),0,IF($I$151>=K$145,(K$146-$I$151+1)/K$159,IF($I$154<=K$146,($I$154-K$145+1)/K$159,1)))-K170 -> 0 | L172: =IF(OR($I$151>L$146,$I$154<L$145),0,IF($I$151>=L$145,(L$146-$I$151+1)/L$159,IF($I$154<=L$146,($I$154-L$145+1)/L$159,1)))-L170 -> 0 | M172: 0 | N172: 0 | O172: 0 | P172: 0 | Q172: 0 | R172: 0 | S172: 0 | T172: 0 | U172: 0 | V172: 0 | W172: 0 | X172: 0 | Y172: 0 | Z172: 0 | AA172: 0 | AB172: 0 | AC172: 0 | AD172: 0 | AE172: 0 | AF172: 0 | AG172: 0 | AH172: 0 | AI172: 0 | AJ172: 0 | AK172: 0 | AL172: 0 | AM172: 0 | AN172: 0 | AO172: 0 | AP172: 1 | AQ172: 1 | AR172: 0 | AS172: 0 | AT172: 0 | AU172: 0 | AV172: 0 | AW172: 0 | AX172: 0
C174: Tax - Financial years
E176: Year commencing | K176: =K17 -> 2013-01-01 | L176: =+K177+1 -> 2014-01-01 | M176: =+L177+1 -> 2015-01-01 | N176: =+M177+1 -> 2016-01-01 | O176: 2017-01-01 | P176: 2018-01-01 | Q176: 2019-01-01 | R176: 2020-01-01 | S176: 2021-01-01 | T176: 2022-01-01 | U176: 2023-01-01 | V176: 2024-01-01 | W176: 2025-01-01 | X176: 2026-01-01 | Y176: 2027-01-01 | Z176: 2028-01-01 | AA176: 2029-01-01 | AB176: 2030-01-01 | AC176: 2031-01-01 | AD176: 2032-01-01 | AE176: 2033-01-01 | AF176: 2034-01-01 | AG176: 2035-01-01 | AH176: 2036-01-01 | AI176: 2037-01-01 | AJ176: 2038-01-01 | AK176: 2039-01-01 | AL176: 2040-01-01 | AM176: 2041-01-01 | AN176: 2042-01-01 | AO176: 2043-01-01 | AP176: 2044-01-01 | AQ176: 2045-01-01 | AR176: 2046-01-01 | AS176: 2047-01-01 | AT176: 2048-01-01 | AU176: 2049-01-01 | AV176: 2050-01-01 | AW176: 2051-01-01 | AX176: 2052-01-01
E177: Year ending | K177: =K18 -> 2013-12-31 | L177: =DATE(YEAR(K177) + 1, MONTH(K177), DAY(K177)) -> 2014-12-31 | M177: 2015-12-31 | N177: 2016-12-31 | O177: 2017-12-31 | P177: 2018-12-31 | Q177: 2019-12-31 | R177: 2020-12-31 | S177: 2021-12-31 | T177: 2022-12-31 | U177: 2023-12-31 | V177: 2024-12-31 | W177: 2025-12-31 | X177: 2026-12-31 | Y177: 2027-12-31 | Z177: 2028-12-31 | AA177: 2029-12-31 | AB177: 2030-12-31 | AC177: 2031-12-31 | AD177: 2032-12-31 | AE177: 2033-12-31 | AF177: 2034-12-31 | AG177: 2035-12-31 | AH177: 2036-12-31 | AI177: 2037-12-31 | AJ177: 2038-12-31 | AK177: 2039-12-31 | AL177: 2040-12-31 | AM177: 2041-12-31 | AN177: 2042-12-31 | AO177: 2043-12-31 | AP177: 2044-12-31 | AQ177: 2045-12-31 | AR177: 2046-12-31 | AS177: 2047-12-31 | AT177: 2048-12-31 | AU177: 2049-12-31 | AV177: 2050-12-31 | AW177: 2051-12-31 | AX177: 2052-12-31
E179: Long-term expected UK RPI inflation | G179: % | I179: 0.0318
E180: =E24 -> Base year UK RPI inflation index value (CHAW) | G180: =G24 -> Jan 1987 = 100 | H180: =H24 -> UK RPI index 2019/20 | I180: =I24 -> 290.6416667
E182: =E28 -> 12 month average UK RPI inflation index value (CHAW) | G182: =G28 -> Jan 1987 = 100 | H182: =H28 -> UK RPI index t | K182: =K28 -> 250.1083333 | L182: 256.0333333 | M182: 258.5416667 | N182: 263.05 | O182: 272.475 | P182: 281.5833333 | Q182: 288.8 | R182: 293.1416667 | S182: 301.0564917 | T182: 310.3892429 | U182: 320.6320879 | V182: 330.8281883 | W182: 341.3485247 | X182: 352.2034078 | Y182: 363.4034762 | Z182: 374.9597067 | AA182: 386.8834254 | AB182: 399.1863183 | AC182: 411.8804432 | AD182: 424.9782413 | AE182: 438.4925494 | AF182: 452.4366125 | AG182: 466.8240967 | AH182: 481.669103 | AI182: 496.9861805 | AJ182: 512.790341 | AK182: 529.0970739 | AL182: 545.9223608 | AM182: 563.2826919 | AN182: 581.1950815 | AO182: 599.6770851 | AP182: 618.7468164 | AQ182: 638.4229652 | AR182: 658.7248155 | AS182: 679.6722646 | AT182: 701.2858426 | AU182: 723.5867324 | AV182: 746.5967905 | AW182: 770.3385684 | AX182: 794.8353349
E183: UK RPI inflation uplift from 2019/20 term | G183: scalar | K183: =K182/$I$180 -> 0.8605384637 | L183: =L182/$I$180 -> 0.8809243914 | M183: 0.8895547209 | N183: 0.9050663761 | O183: 0.937494624 | P183: 0.9688333286 | Q183: 0.9936634458 | R183: 1.008601657 | S183: 1.035833902 | T183: 1.067944753 | U183: 1.10318693 | V183: 1.138268274 | W183: 1.174465205 | X183: 1.211813199 | Y183: 1.250348859 | Z183: 1.290109952 | AA183: 1.331135449 | AB183: 1.373465556 | AC183: 1.417141761 | AD183: 1.462206869 | AE183: 1.508705047 | AF183: 1.556681868 | AG183: 1.606184351 | AH183: 1.657261013 | AI183: 1.709961914 | AJ183: 1.764338702 | AK183: 1.820444673 | AL183: 1.878334814 | AM183: 1.938065861 | AN183: 1.999696355 | AO183: 2.063286699 | AP183: 2.128899216 | AQ183: 2.196598211 | AR183: 2.266450035 | AS183: 2.338523146 | AT183: 2.412888182 | AU183: 2.489618026 | AV183: 2.568787879 | AW183: 2.650475334 | AX183: 2.734760449
C185: Tax - Operational years
E187: Operational Year | K187: Year 1 | L187: Year 2 | M187: Year 3 | N187: Year 4 | O187: Year 5 | P187: Year 6 | Q187: Year 7 | R187: Year 8 | S187: Year 9 | T187: Year 10 | U187: Year 11 | V187: Year 12 | W187: Year 13 | X187: Year 14 | Y187: Year 15 | Z187: Year 16 | AA187: Year 17 | AB187: Year 18 | AC187: Year 19 | AD187: Year 20 | AE187: Year 21 | AF187: Year 22 | AG187: Year 23 | AH187: Year 24 | AI187: Year 25
E189: Corporation tax rate | G189: % | K189: 0.19 | L189: 0.19 | M189: 0.19 | N189: 0.19 | O189: 0.19 | P189: 0.19 | Q189: 0.19 | R189: 0.19 | S189: 0.19 | T189: 0.19 | U189: 0.19 | V189: 0.19 | W189: 0.19 | X189: 0.19 | Y189: 0.19 | Z189: 0.19 | AA189: 0.19 | AB189: 0.19 | AC189: 0.19 | AD189: 0.19 | AE189: 0.19 | AF189: 0.19 | AG189: 0.19 | AH189: 0.19 | AI189: 0.19
E190: Capital allowance rate (declining balance) | G190: % | K190: 0.08 | L190: 0.08 | M190: 0.08 | N190: 0.08 | O190: 0.08 | P190: 0.08 | Q190: 0.08 | R190: 0.08 | S190: 0.08 | T190: 0.08 | U190: 0.08 | V190: 0.08 | W190: 0.08 | X190: 0.08 | Y190: 0.08 | Z190: 0.08 | AA190: 0.08 | AB190: 0.08 | AC190: 0.08 | AD190: 0.08 | AE190: 0.08 | AF190: 0.08 | AG190: 0.08 | AH190: 0.08 | AI190: 0.08
E192: =E179 -> Long-term expected UK RPI inflation | G192: % | I192: =I179 -> 0.0318
E193: Start of price base year | G193: date | I193: 2019-04-01
E194: End of price base year | G194: date | I194: =EOMONTH(I193,11) -> 2020-03-31
E195: UK RPI uplift from 2019/20 term to start of regime | G195: scalar | I195: =(1+$I$192)^((I149-AVERAGE(I193,I194))/365.25) -> 1.040079468
C197: Tax - Annuity
E199: Tax element of Cap and Floor annuity previously calculated and fixed | G199: choice | I199: No
B201: End of sheet

Sheet Data Sources
A1: Data Sources | H1: Licence | I1: Reference row in
E2: Parameter | G2: Units | H2: Terminology | I2: Inputs sheet | K2: Source | L2: Link
B4: Indexation, currency and base year price term
E6: =Inputs!E6 -> GB indexed portion of interconnector | G6: =Inputs!G6 -> choice % | I6: =ROW(Inputs!E6) -> 6 | K6: Project's licence
E7: =Inputs!E9 -> Currency of cost inputs | G7: =Inputs!G9 -> choice | I7: =ROW(Inputs!E9) -> 9 | K7: Final Project Assessment decision
E8: =Inputs!E11 -> Base year price term | G8: =Inputs!G11 -> choice | I8: =ROW(Inputs!E11) -> 11 | K8: Project's licence
B10: Variables set after financial close
C12: Actual values
E14: =Inputs!E20 -> Development costs | G14: =Inputs!G20 -> £m nominal prices | I14: =ROW(Inputs!E20) -> 20 | K14: Final Project Assessment decision
E15: =Inputs!E21 -> Capex | G15: =Inputs!G21 -> £m nominal prices | I15: =ROW(Inputs!E21) -> 21 | K15: Final Project Assessment decision
E16: =Inputs!E22 -> Spares | G16: =Inputs!G22 -> £m nominal prices | I16: =ROW(Inputs!E22) -> 22 | K16: Final Project Assessment decision
E18: =Inputs!E24 -> Base year UK RPI inflation index value (CHAW) | G18: =Inputs!G24 -> Jan 1987 = 100 | H18: =Inputs!H24 -> UK RPI index 2019/20 | I18: =ROW(Inputs!E24) -> 24 | K18: Office for National Statistics | L18: RPI All Items Index: Jan 1987=100
E19: =Inputs!E25 -> Base year Ireland inflation index value | G19: =Inputs!G25 -> Dec 2011 = 100 | I19: =ROW(Inputs!E25) -> 25
E20: =Inputs!E26 -> Base year average exchange rate (XUMAERS) | G20: =Inputs!G26 -> GBP / EUR | I20: =ROW(Inputs!E26) -> 26 | K20: Bank of England | L20: XUMARES
E22: =Inputs!E28 -> 12 month average UK RPI inflation index value (CHAW) | G22: =Inputs!G28 -> Jan 1987 = 100 | H22: =Inputs!H28 -> UK RPI index t | I22: =ROW(Inputs!E28) -> 28 | K22: Office for National Statistics | L22: RPI All Items Index: Jan 1987=100
E23: =Inputs!E29 -> 12 month average Ireland CPI inflation index value | G23: =Inputs!G29 -> Dec 2011 = 100 | I23: =ROW(Inputs!E29) -> 29
E24: =Inputs!E30 -> 12 month average exchange rate (XUMAERS) | G24: =Inputs!G30 -> GBP / EUR | I24: =ROW(Inputs!E30) -> 30 | K24: Bank of England | L24: XUMAERS
C26: Ex-ante allowances for the operational period
E28: =Inputs!E42 -> Replacement Capex | G28: =Inputs!G42 -> £m 2018 prices | I28: =ROW(Inputs!E42) -> 42 | K28: Final Project Assessment decision
E29: =Inputs!E43 -> Decommissioning baseline | G29: =Inputs!G43 -> £m 2018 prices | I29: =ROW(Inputs!E43) -> 43 | K29: Final Project Assessment decision
E30: =Inputs!E44 -> Controllable Opex | G30: =Inputs!G44 -> £m 2018 prices | I30: =ROW(Inputs!E44) -> 44 | K30: Final Project Assessment decision
E31: =Inputs!E45 -> Non-controllable Opex baseline | G31: =Inputs!G45 -> £m 2018 prices | I31: =ROW(Inputs!E45) -> 45 | K31: Final Project Assessment decision
E33: =Inputs!E51 -> 2018 average UK RPI inflation index value (CHAW) | G33: =Inputs!G51 -> Jan 1987 = 100 | I33: =ROW(Inputs!E51) -> 51 | K33: Office for National Statistics | L33: RPI All Items Index: Jan 1987=100
E34: =Inputs!E52 -> 2018 average Ireland CPI inflation index value | G34: =Inputs!G52 -> Dec 2011 = 100 | I34: =ROW(Inputs!E52) -> 52
E35: =Inputs!E53 -> 2018 average exchange rate (XUMAERS) | G35: =Inputs!G53 -> GBP / EUR | I35: =ROW(Inputs!E53) -> 53 | K35: Bank of England | L35: XUMAERS
E37: =Inputs!E55 -> 12 month average exchange rate (XUMAERS) | G37: =Inputs!G55 -> GBP / EUR | H37: =Inputs!H55 ->  | I37: =ROW(Inputs!E55) -> 55 | K37: Bank of England | L37: XUMAERS
B39: Variables set at financial close
C41: Finance
E43: =Inputs!E68 -> Cap return rate | G43: =Inputs!G68 -> real annual % | I43: =ROW(Inputs!E68) -> 68 | K43: Ofgem's determination based on FID date
E44: =Inputs!E69 -> Floor return rate | G44: =Inputs!G69 -> real annual % | I44: =ROW(Inputs!E69) -> 69 | K44: Ofgem's determination based on FID date
E45: =Inputs!E70 -> Interest during construction (IDC) rate | G45: =Inputs!G70 -> real annual % | I45: =ROW(Inputs!E70) -> 70 | K45: Ofgem's determination based on FID date
E47: =Inputs!E73 -> Pre-operational notional gearing | G47: =Inputs!G73 -> % | I47: =ROW(Inputs!E73) -> 73 | K47: Ofgem's determination based on FID date
E48: =Inputs!E74 -> Operational notional gearing | G48: =Inputs!G74 -> % | I48: =ROW(Inputs!E74) -> 74 | K48: Window 1 policy decision (fixed for Window 1 projects)
E50: =Inputs!E76 -> Equity transaction costs | G50: =Inputs!G76 -> % | I50: =ROW(Inputs!E76) -> 76 | K50: Window 1 policy decision (fixed for Window 1 projects)
E51: =Inputs!E77 -> Debt transaction costs | G51: =Inputs!G77 -> % | I51: =ROW(Inputs!E77) -> 77 | K51: Window 1 policy decision (fixed for Window 1 projects)
C53: Actual cost of debt
E55: =Inputs!E81 -> Project finance key input: senior debt amount or gearing | G55: =Inputs!G81 -> 1: Amount (£m) 2: Gearing (%) | I55: =ROW(Inputs!E81) -> 81 | K55: Developer's Final Project Assessment submission
E56: =Inputs!E82 -> Project finance senior debt amount (input if 1; empty if 2) | G56: =Inputs!G82 -> £m nominal prices | I56: =ROW(Inputs!E82) -> 82 | K56: Developer's Final Project Assessment submission
E57: =Inputs!E83 -> Project finance actual gearing (input if 2; empty if 1) | G57: =Inputs!G83 -> % | I57: =ROW(Inputs!E83) -> 83 | K57: Developer's Final Project Assessment submission
E59: =Inputs!E85 -> Senior Debt tenor | G59: =Inputs!G85 -> full years | I59: =ROW(Inputs!E85) -> 85 | K59: Developer's Final Project Assessment submission
E60: =Inputs!E86 -> Senior Debt tail requirement | G60: =Inputs!G86 -> full years | I60: =ROW(Inputs!E86) -> 86 | K60: Developer's Final Project Assessment submission
E61: =Inputs!E87 -> DSCR sizing | G61: =Inputs!G87 -> DSCRx | I61: =ROW(Inputs!E87) -> 87 | K61: Developer's Final Project Assessment submission
E63: =Inputs!E89 -> Fixed rate - Construction | G63: =Inputs!G89 -> nominal % | I63: =ROW(Inputs!E89) -> 89 | K63: Developer's Final Project Assessment submission
E64: =Inputs!E90 -> Fixed rate - Operation | G64: =Inputs!G90 -> nominal % | I64: =ROW(Inputs!E90) -> 90 | K64: Developer's Final Project Assessment submission
E66: =Inputs!E92 -> Senior Debt construction margin | G66: =Inputs!G92 -> nominal % | I66: =ROW(Inputs!E92) -> 92 | K66: Developer's Final Project Assessment submission
E67: =Inputs!E93 -> of which: swap margin | G67: =Inputs!G93 -> nominal % | I67: =ROW(Inputs!E93) -> 93 | K67: Developer's Final Project Assessment submission
E68: =Inputs!E94 -> Senior Debt upfront fee | G68: =Inputs!G94 -> nominal % | I68: =ROW(Inputs!E94) -> 94 | K68: Developer's Final Project Assessment submission
E69: =Inputs!E95 -> Senior Debt commitment fee | G69: =Inputs!G95 -> % of applicable margin | I69: =ROW(Inputs!E95) -> 95 | K69: Developer's Final Project Assessment submission
E71: =Inputs!E97 -> Senior Debt drawdown year | G71: =Inputs!G97 -> Year | I71: =ROW(Inputs!E97) -> 97 | K71: Developer's Final Project Assessment submission
E72: =Inputs!E98 -> Senior Debt drawdown profile | G72: =Inputs!G98 -> % | I72: =ROW(Inputs!E98) -> 98 | K72: Developer's Final Project Assessment submission
E74: =Inputs!E100 -> Debt Service Reserve Facility/Account amount | G74: =Inputs!G100 -> £m nominal prices | I74: =ROW(Inputs!E100) -> 100 | K74: Developer's Final Project Assessment submission
E75: =Inputs!E101 -> Debt Service Reserve Facility upfront fee | G75: =Inputs!G101 -> nominal % | I75: =ROW(Inputs!E101) -> 101 | K75: Developer's Final Project Assessment submission
E76: =Inputs!E102 -> Debt Service Reserve Facility construction margin | G76: =Inputs!G102 -> nominal % | I76: =ROW(Inputs!E102) -> 102 | K76: Developer's Final Project Assessment submission
E77: =Inputs!E103 -> Debt Service Reserve Facility commitment fee | G77: =Inputs!G103 -> % of applicable margin | I77: =ROW(Inputs!E103) -> 103 | K77: Developer's Final Project Assessment submission
E79: =Inputs!E105 -> Cap and Floor Liquidity Facility amount | G79: =Inputs!G105 -> £m nominal prices | I79: =ROW(Inputs!E105) -> 105 | K79: Developer's Final Project Assessment submission
E80: =Inputs!E107 -> Cap and Floor Liquidity Facility upfront fee | G80: =Inputs!G107 -> nominal % | I80: =ROW(Inputs!E107) -> 107 | K80: Developer's Final Project Assessment submission
E81: =Inputs!E108 -> Cap and Floor Liquidity Facility construction margin | G81: =Inputs!G108 -> nominal % | I81: =ROW(Inputs!E108) -> 108 | K81: Developer's Final Project Assessment submission
E82: =Inputs!E109 -> Cap and Floor Liquidity Facility commitment fee | G82: =Inputs!G109 -> % of applicable margin | I82: =ROW(Inputs!E109) -> 109 | K82: Developer's Final Project Assessment submission
E84: =Inputs!E111 -> Standby Debt Facility amount | G84: =Inputs!G111 -> £m nominal prices | I84: =ROW(Inputs!E111) -> 111 | K84: Developer's Final Project Assessment submission
E85: =Inputs!E112 -> Standby Debt Facility upfront fee | G85: =Inputs!G112 -> nominal % | I85: =ROW(Inputs!E112) -> 112 | K85: Developer's Final Project Assessment submission
E86: =Inputs!E113 -> Standby Debt Facility construction margin | G86: =Inputs!G113 -> nominal % | I86: =ROW(Inputs!E113) -> 113 | K86: Developer's Final Project Assessment submission
E87: =Inputs!E114 -> Standby Debt Facility commitment fee | G87: =Inputs!G114 -> % of applicable margin | I87: =ROW(Inputs!E114) -> 114 | K87: Developer's Final Project Assessment submission
E89: =Inputs!E116 -> VAT Facility amount | G89: =Inputs!G116 -> £m nominal prices | I89: =ROW(Inputs!E116) -> 116 | K89: Developer's Final Project Assessment submission
E90: =Inputs!E117 -> VAT Facility average outstanding loan | G90: =Inputs!G117 -> £m nominal prices | I90: =ROW(Inputs!E117) -> 117 | K90: Developer's Final Project Assessment submission
E91: =Inputs!E118 -> VAT Facility upfront fee | G91: =Inputs!G118 -> nominal % | I91: =ROW(Inputs!E118) -> 118 | K91: Developer's Final Project Assessment submission
E92: =Inputs!E119 -> VAT Facility construction margin | G92: =Inputs!G119 -> nominal % | I92: =ROW(Inputs!E119) -> 119 | K92: Developer's Final Project Assessment submission
E93: =Inputs!E120 -> VAT Facility commitment fee | G93: =Inputs!G120 -> % of applicable margin | I93: =ROW(Inputs!E120) -> 120 | K93: Developer's Final Project Assessment submission
E95: =Inputs!E122 -> Other Facilities amount | G95: =Inputs!G122 -> £m nominal prices | I95: =ROW(Inputs!E122) -> 122 | K95: Developer's Final Project Assessment submission
E96: =Inputs!E123 -> Other Facilities upfront fee | G96: =Inputs!G123 -> nominal % | I96: =ROW(Inputs!E123) -> 123 | K96: Developer's Final Project Assessment submission
E97: =Inputs!E124 -> Other Facilities construction margin | G97: =Inputs!G124 -> nominal % | I97: =ROW(Inputs!E124) -> 124 | K97: Developer's Final Project Assessment submission
E98: =Inputs!E125 -> Other Facilities commitment fee | G98: =Inputs!G125 -> % of applicable margin | I98: =ROW(Inputs!E125) -> 125 | K98: Developer's Final Project Assessment submission
E100: =Inputs!E127 -> Debt Service Reserve: Facility or Account | G100: =Inputs!G127 -> 1: DSRF 2: DSRA | I100: =ROW(Inputs!E127) -> 127 | K100: Developer's Final Project Assessment submission
E101: =Inputs!E128 -> Switch for transaction costs in taxes | G101: =Inputs!G128 -> 1: notional costs 2: actual costs | I101: =ROW(Inputs!E128) -> 128 | K101: Developer's Final Project Assessment submission
E103: =Inputs!E133 -> Senior Debt repayment year | G103: =Inputs!G133 -> Year | I103: =ROW(Inputs!E133) -> 133 | K103: Developer's Final Project Assessment submission
E104: =Inputs!E134 -> Senior Debt repayment profile | G104: =Inputs!G134 -> % | I104: =ROW(Inputs!E134) -> 134 | K104: Developer's Final Project Assessment submission
E106: =Inputs!E136 -> Senior Debt operation margin (including swap margin) | G106: =Inputs!G136 -> nominal % | I106: =ROW(Inputs!E136) -> 136 | K106: Developer's Final Project Assessment submission
E107: =Inputs!E137 -> Debt Service Reserve Facility operation margin | G107: =Inputs!G137 -> nominal % | I107: =ROW(Inputs!E137) -> 137 | K107: Developer's Final Project Assessment submission
E108: =Inputs!E138 -> Cap and Floor Liquidity Facility operation margin | G108: =Inputs!G138 -> nominal % | I108: =ROW(Inputs!E138) -> 138 | K108: Developer's Final Project Assessment submission
E109: =Inputs!E139 -> Standby Debt Facility operation margin | G109: =Inputs!G139 -> nominal % | I109: =ROW(Inputs!E139) -> 139 | K109: Developer's Final Project Assessment submission
E110: =Inputs!E140 -> VAT Facility operation margin | G110: =Inputs!G140 -> nominal % | I110: =ROW(Inputs!E140) -> 140 | K110: Developer's Final Project Assessment submission
E111: =Inputs!E141 -> Other facilities operation margin | G111: =Inputs!G141 -> nominal % | I111: =ROW(Inputs!E141) -> 141 | K111: Developer's Final Project Assessment submission
C113: Model operation
E115: =Inputs!E149 -> Regime start date | G115: =Inputs!G149 -> date | I115: =ROW(Inputs!I149) -> 149 | K115: Final Project Assessment decision
E116: =Inputs!E150 -> End date for IDC | G116: =Inputs!G150 -> date | I116: =ROW(Inputs!I150) -> 150 | K116: Final Project Assessment decision
E117: =Inputs!E151 -> Start of operations | G117: =Inputs!G151 -> date | I117: =ROW(Inputs!I151) -> 151 | K117: Final Project Assessment decision
E118: =Inputs!E155 -> Number of operational years | G118: =Inputs!G155 -> full years | I118: =ROW(Inputs!I155) -> 155 | K118: Project's licence
C120: Tax - Financial years
E122: =Inputs!E179 -> Long-term expected UK RPI inflation | G122: =Inputs!G179 -> % | I122: =ROW(Inputs!E179) -> 179 | K122: Ofgem's determination based on FID date
E123: =Inputs!E182 -> 12 month average UK RPI inflation index value (CHAW) | G123: =Inputs!G182 -> Jan 1987 = 100 | H123: =Inputs!H182 -> UK RPI index t | I123: =ROW(Inputs!E182) -> 182 | K123: Office for National Statistics | L123: RPI All Items Index: Jan 1987=100
C125: Tax - Operational years
E127: =Inputs!E189 -> Corporation tax rate | G127: =Inputs!G189 -> % | I127: =ROW(Inputs!E189) -> 189 | K127: Ofgem's determination based on FID date
E128: =Inputs!E190 -> Capital allowance rate (declining balance) | G128: =Inputs!G190 -> % | I128: =ROW(Inputs!E190) -> 190 | K128: Ofgem's determination based on FID date
E129: =Inputs!E193 -> Start of price base year | G129: =Inputs!G193 -> date | I129: =ROW(Inputs!E193) -> 193 | K129: Project's licence
C131: Tax - Annuity
E133: =Inputs!E199 -> Tax element of Cap and Floor annuity previously calculated and fixed | G133: =Inputs!G199 -> choice | I133: =ROW(Inputs!E199) -> 199 | K133: N/a at Final Project Assessment
B135: End of sheet

Sheet Pre Op RAV
A1: Pre Op RAV | H1: Licence
E2: Parameter | G2: Units | H2: Terminology | I2: Constant | K2: Annual values
E3: Year commencing | K3: =Inputs!K17 -> 2013-01-01 | L3: =+K4+1 -> 2014-01-01 | M3: =+L4+1 -> 2015-01-01 | N3: =+M4+1 -> 2016-01-01 | O3: 2017-01-01 | P3: 2018-01-01 | Q3: 2019-01-01 | R3: 2020-01-01 | S3: 2021-01-01 | T3: 2022-01-01 | U3: 2023-01-01 | V3: 2024-01-01 | W3: 2025-01-01 | X3: 2026-01-01 | Y3: 2027-01-01 | Z3: 2028-01-01 | AA3: 2029-01-01 | AB3: 2030-01-01 | AC3: 2031-01-01 | AD3: 2032-01-01 | AE3: 2033-01-01 | AF3: 2034-01-01 | AG3: 2035-01-01 | AH3: 2036-01-01 | AI3: 2037-01-01 | AJ3: 2038-01-01 | AK3: 2039-01-01 | AL3: 2040-01-01 | AM3: 2041-01-01 | AN3: 2042-01-01 | AO3: 2043-01-01 | AP3: 2044-01-01 | AQ3: 2045-01-01 | AR3: 2046-01-01 | AS3: 2047-01-01 | AT3: 2048-01-01 | AU3: 2049-01-01 | AV3: 2050-01-01 | AW3: 2051-01-01 | AX3: 2052-01-01
E4: Year ending | K4: =Inputs!K18 -> 2013-12-31 | L4: =DATE(YEAR(K4) + 1, MONTH(K4), DAY(K4)) -> 2014-12-31 | M4: 2015-12-31 | N4: 2016-12-31 | O4: 2017-12-31 | P4: 2018-12-31 | Q4: 2019-12-31 | R4: 2020-12-31 | S4: 2021-12-31 | T4: 2022-12-31 | U4: 2023-12-31 | V4: 2024-12-31 | W4: 2025-12-31 | X4: 2026-12-31 | Y4: 2027-12-31 | Z4: 2028-12-31 | AA4: 2029-12-31 | AB4: 2030-12-31 | AC4: 2031-12-31 | AD4: 2032-12-31 | AE4: 2033-12-31 | AF4: 2034-12-31 | AG4: 2035-12-31 | AH4: 2036-12-31 | AI4: 2037-12-31 | AJ4: 2038-12-31 | AK4: 2039-12-31 | AL4: 2040-12-31 | AM4: 2041-12-31 | AN4: 2042-12-31 | AO4: 2043-12-31 | AP4: 2044-12-31 | AQ4: 2045-12-31 | AR4: 2046-12-31 | AS4: 2047-12-31 | AT4: 2048-12-31 | AU4: 2049-12-31 | AV4: 2050-12-31 | AW4: 2051-12-31 | AX4: 2052-12-31
B6: Flags
E8: IDC flag | G8: flag | K8: =Inputs!K160 -> 1 | L8: =Inputs!L160 -> 1 | M8: =Inputs!M160 -> 1 | N8: =Inputs!N160 -> 1 | O8: =Inputs!O160 -> 1 | P8: =Inputs!P160 -> 1 | Q8: =Inputs!Q160 -> 1 | R8: =Inputs!R160 -> 1 | S8: =Inputs!S160 -> 1 | T8: =Inputs!T160 -> 1 | U8: =Inputs!U160 -> 1 | V8: =Inputs!V160 -> 0 | W8: =Inputs!W160 -> 0 | X8: =Inputs!X160 -> 0 | Y8: =Inputs!Y160 -> 0 | Z8: =Inputs!Z160 -> 0 | AA8: =Inputs!AA160 -> 0 | AB8: =Inputs!AB160 -> 0 | AC8: =Inputs!AC160 -> 0 | AD8: =Inputs!AD160 -> 0 | AE8: =Inputs!AE160 -> 0 | AF8: =Inputs!AF160 -> 0 | AG8: =Inputs!AG160 -> 0 | AH8: =Inputs!AH160 -> 0 | AI8: =Inputs!AI160 -> 0 | AJ8: =Inputs!AJ160 -> 0 | AK8: =Inputs!AK160 -> 0 | AL8: =Inputs!AL160 -> 0 | AM8: =Inputs!AM160 -> 0 | AN8: =Inputs!AN160 -> 0 | AO8: =Inputs!AO160 -> 0 | AP8: =Inputs!AP160 -> 0 | AQ8: =Inputs!AQ160 -> 0 | AR8: =Inputs!AR160 -> 0 | AS8: =Inputs!AS160 -> 0 | AT8: =Inputs!AT160 -> 0 | AU8: =Inputs!AU160 -> 0 | AV8: =Inputs!AV160 -> 0 | AW8: =Inputs!AW160 -> 0 | AX8: =Inputs!AX160 -> 0
E9: Post-IDC and pre-operations flag | G9: flag | K9: =Inputs!K161 -> 0 | L9: =Inputs!L161 -> 0 | M9: =Inputs!M161 -> 0 | N9: =Inputs!N161 -> 0 | O9: =Inputs!O161 -> 0 | P9: =Inputs!P161 -> 0 | Q9: =Inputs!Q161 -> 0 | R9: =Inputs!R161 -> 0 | S9: =Inputs!S161 -> 0 | T9: =Inputs!T161 -> 0 | U9: =Inputs!U161 -> 0 | V9: =Inputs!V161 -> 0 | W9: =Inputs!W161 -> 0 | X9: =Inputs!X161 -> 0 | Y9: =Inputs!Y161 -> 0 | Z9: =Inputs!Z161 -> 0 | AA9: =Inputs!AA161 -> 0 | AB9: =Inputs!AB161 -> 0 | AC9: =Inputs!AC161 -> 0 | AD9: =Inputs!AD161 -> 0 | AE9: =Inputs!AE161 -> 0 | AF9: =Inputs!AF161 -> 0 | AG9: =Inputs!AG161 -> 0 | AH9: =Inputs!AH161 -> 0 | AI9: =Inputs!AI161 -> 0 | AJ9: =Inputs!AJ161 -> 0 | AK9: =Inputs!AK161 -> 0 | AL9: =Inputs!AL161 -> 0 | AM9: =Inputs!AM161 -> 0 | AN9: =Inputs!AN161 -> 0 | AO9: =Inputs!AO161 -> 0 | AP9: =Inputs!AP161 -> 0 | AQ9: =Inputs!AQ161 -> 0 | AR9: =Inputs!AR161 -> 0 | AS9: =Inputs!AS161 -> 0 | AT9: =Inputs!AT161 -> 0 | AU9: =Inputs!AU161 -> 0 | AV9: =Inputs!AV161 -> 0 | AW9: =Inputs!AW161 -> 0 | AX9: =Inputs!AX161 -> 0
E10: Operations flag | G10: flag | K10: =Inputs!K162 -> 0 | L10: =Inputs!L162 -> 0 | M10: =Inputs!M162 -> 0 | N10: =Inputs!N162 -> 0 | O10: =Inputs!O162 -> 0 | P10: =Inputs!P162 -> 0 | Q10: =Inputs!Q162 -> 0 | R10: =Inputs!R162 -> 0 | S10: =Inputs!S162 -> 0 | T10: =Inputs!T162 -> 0 | U10: =Inputs!U162 -> 0 | V10: =Inputs!V162 -> 1 | W10: =Inputs!W162 -> 1 | X10: =Inputs!X162 -> 1 | Y10: =Inputs!Y162 -> 1 | Z10: =Inputs!Z162 -> 1 | AA10: =Inputs!AA162 -> 1 | AB10: =Inputs!AB162 -> 1 | AC10: =Inputs!AC162 -> 1 | AD10: =Inputs!AD162 -> 1 | AE10: =Inputs!AE162 -> 1 | AF10: =Inputs!AF162 -> 1 | AG10: =Inputs!AG162 -> 1 | AH10: =Inputs!AH162 -> 1 | AI10: =Inputs!AI162 -> 1 | AJ10: =Inputs!AJ162 -> 1 | AK10: =Inputs!AK162 -> 1 | AL10: =Inputs!AL162 -> 1 | AM10: =Inputs!AM162 -> 1 | AN10: =Inputs!AN162 -> 1 | AO10: =Inputs!AO162 -> 1 | AP10: =Inputs!AP162 -> 1 | AQ10: =Inputs!AQ162 -> 1 | AR10: =Inputs!AR162 -> 0 | AS10: =Inputs!AS162 -> 0 | AT10: =Inputs!AT162 -> 0 | AU10: =Inputs!AU162 -> 0 | AV10: =Inputs!AV162 -> 0 | AW10: =Inputs!AW162 -> 0 | AX10: =Inputs!AX162 -> 0
E11: Transfer construction to operations flag - Notional | G11: flag | K11: =Inputs!K165 -> 0 | L11: =Inputs!L165 -> 0 | M11: =Inputs!M165 -> 0 | N11: =Inputs!N165 -> 0 | O11: =Inputs!O165 -> 0 | P11: =Inputs!P165 -> 0 | Q11: =Inputs!Q165 -> 0 | R11: =Inputs!R165 -> 0 | S11: =Inputs!S165 -> 0 | T11: =Inputs!T165 -> 0 | U11: =Inputs!U165 -> 0 | V11: =Inputs!V165 -> 1 | W11: =Inputs!W165 -> 0 | X11: =Inputs!X165 -> 0 | Y11: =Inputs!Y165 -> 0 | Z11: =Inputs!Z165 -> 0 | AA11: =Inputs!AA165 -> 0 | AB11: =Inputs!AB165 -> 0 | AC11: =Inputs!AC165 -> 0 | AD11: =Inputs!AD165 -> 0 | AE11: =Inputs!AE165 -> 0 | AF11: =Inputs!AF165 -> 0 | AG11: =Inputs!AG165 -> 0 | AH11: =Inputs!AH165 -> 0 | AI11: =Inputs!AI165 -> 0 | AJ11: =Inputs!AJ165 -> 0 | AK11: =Inputs!AK165 -> 0 | AL11: =Inputs!AL165 -> 0 | AM11: =Inputs!AM165 -> 0 | AN11: =Inputs!AN165 -> 0 | AO11: =Inputs!AO165 -> 0 | AP11: =Inputs!AP165 -> 0 | AQ11: =Inputs!AQ165 -> 0 | AR11: =Inputs!AR165 -> 0 | AS11: =Inputs!AS165 -> 0 | AT11: =Inputs!AT165 -> 0 | AU11: =Inputs!AU165 -> 0 | AV11: =Inputs!AV165 -> 0 | AW11: =Inputs!AW165 -> 0 | AX11: =Inputs!AX165 -> 0
E12: Transfer construction to operations flag - ACOD | G12: flag | K12: =Inputs!K166 -> 0 | L12: =Inputs!L166 -> 0 | M12: =Inputs!M166 -> 0 | N12: =Inputs!N166 -> 0 | O12: =Inputs!O166 -> 0 | P12: =Inputs!P166 -> 0 | Q12: =Inputs!Q166 -> 0 | R12: =Inputs!R166 -> 0 | S12: =Inputs!S166 -> 0 | T12: =Inputs!T166 -> 0 | U12: =Inputs!U166 -> 0 | V12: =Inputs!V166 -> 1 | W12: =Inputs!W166 -> 0 | X12: =Inputs!X166 -> 0 | Y12: =Inputs!Y166 -> 0 | Z12: =Inputs!Z166 -> 0 | AA12: =Inputs!AA166 -> 0 | AB12: =Inputs!AB166 -> 0 | AC12: =Inputs!AC166 -> 0 | AD12: =Inputs!AD166 -> 0 | AE12: =Inputs!AE166 -> 0 | AF12: =Inputs!AF166 -> 0 | AG12: =Inputs!AG166 -> 0 | AH12: =Inputs!AH166 -> 0 | AI12: =Inputs!AI166 -> 0 | AJ12: =Inputs!AJ166 -> 0 | AK12: =Inputs!AK166 -> 0 | AL12: =Inputs!AL166 -> 0 | AM12: =Inputs!AM166 -> 0 | AN12: =Inputs!AN166 -> 0 | AO12: =Inputs!AO166 -> 0 | AP12: =Inputs!AP166 -> 0 | AQ12: =Inputs!AQ166 -> 0 | AR12: =Inputs!AR166 -> 0 | AS12: =Inputs!AS166 -> 0 | AT12: =Inputs!AT166 -> 0 | AU12: =Inputs!AU166 -> 0 | AV12: =Inputs!AV166 -> 0 | AW12: =Inputs!AW166 -> 0 | AX12: =Inputs!AX166 -> 0
E13: Financial close flag | G13: flag | K13: =Inputs!K168 -> 0 | L13: =Inputs!L168 -> 0 | M13: =Inputs!M168 -> 0 | N13: =Inputs!N168 -> 0 | O13: =Inputs!O168 -> 0 | P13: =Inputs!P168 -> 1 | Q13: =Inputs!Q168 -> 0 | R13: =Inputs!R168 -> 0 | S13: =Inputs!S168 -> 0 | T13: =Inputs!T168 -> 0 | U13: =Inputs!U168 -> 0 | V13: =Inputs!V168 -> 0 | W13: =Inputs!W168 -> 0 | X13: =Inputs!X168 -> 0 | Y13: =Inputs!Y168 -> 0 | Z13: =Inputs!Z168 -> 0 | AA13: =Inputs!AA168 -> 0 | AB13: =Inputs!AB168 -> 0 | AC13: =Inputs!AC168 -> 0 | AD13: =Inputs!AD168 -> 0 | AE13: =Inputs!AE168 -> 0 | AF13: =Inputs!AF168 -> 0 | AG13: =Inputs!AG168 -> 0 | AH13: =Inputs!AH168 -> 0 | AI13: =Inputs!AI168 -> 0 | AJ13: =Inputs!AJ168 -> 0 | AK13: =Inputs!AK168 -> 0 | AL13: =Inputs!AL168 -> 0 | AM13: =Inputs!AM168 -> 0 | AN13: =Inputs!AN168 -> 0 | AO13: =Inputs!AO168 -> 0 | AP13: =Inputs!AP168 -> 0 | AQ13: =Inputs!AQ168 -> 0 | AR13: =Inputs!AR168 -> 0 | AS13: =Inputs!AS168 -> 0 | AT13: =Inputs!AT168 -> 0 | AU13: =Inputs!AU168 -> 0 | AV13: =Inputs!AV168 -> 0 | AW13: =Inputs!AW168 -> 0 | AX13: =Inputs!AX168 -> 0
B15: RAV
C17: Pre-operational
E19: Opening pre-operational RAV (before transfers) | G19: =Inputs!$I$11 -> £m 20/21 prices | L19: =K26 -> 0 | M19: =L26 -> 1.208614639 | N19: 6.166343832 | O19: 14.2645887 | P19: 22.38501667 | Q19: 31.16774117 | R19: 104.0300302 | S19: 278.0369692 | T19: 538.8984956 | U19: 739.4613898 | V19: =U26 -> 838.4858235 | W19: 0 | X19: 0 | Y19: 0 | Z19: 0 | AA19: 0 | AB19: 0 | AC19: 0 | AD19: 0 | AE19: 0 | AF19: 0 | AG19: 0 | AH19: 0 | AI19: 0 | AJ19: 0 | AK19: 0 | AL19: 0 | AM19: 0 | AN19: 0 | AO19: 0 | AP19: 0 | AQ19: 0 | AR19: 0 | AS19: 0 | AT19: 0 | AU19: 0 | AV19: 0 | AW19: 0 | AX19: 0
E20: =Inputs!E34 -> Development costs | G20: =Inputs!$I$11 -> £m 20/21 prices | K20: =Inputs!K34 -> 0 | L20: =Inputs!L34 -> 1.185987288 | M20: =Inputs!M34 -> 4.818777046 | N20: =Inputs!N34 -> 7.711251776 | O20: =Inputs!O34 -> 7.423895596 | P20: =Inputs!P34 -> 2.367725069 | Q20: =Inputs!Q34 -> -0.8254888045 | R20: =Inputs!R34 -> 0 | S20: =Inputs!S34 -> 0 | T20: =Inputs!T34 -> 0 | U20: =Inputs!U34 -> 0 | V20: =Inputs!V34 -> 0 | W20: =Inputs!W34 -> 0 | X20: =Inputs!X34 -> 0 | Y20: =Inputs!Y34 -> 0 | Z20: =Inputs!Z34 -> 0 | AA20: =Inputs!AA34 -> 0 | AB20: =Inputs!AB34 -> 0 | AC20: =Inputs!AC34 -> 0 | AD20: =Inputs!AD34 -> 0 | AE20: =Inputs!AE34 -> 0 | AF20: =Inputs!AF34 -> 0 | AG20: =Inputs!AG34 -> 0 | AH20: =Inputs!AH34 -> 0 | AI20: =Inputs!AI34 -> 0 | AJ20: =Inputs!AJ34 -> 0 | AK20: =Inputs!AK34 -> 0 | AL20: =Inputs!AL34 -> 0 | AM20: =Inputs!AM34 -> 0 | AN20: =Inputs!AN34 -> 0 | AO20: =Inputs!AO34 -> 0 | AP20: =Inputs!AP34 -> 0 | AQ20: =Inputs!AQ34 -> 0 | AR20: =Inputs!AR34 -> 0 | AS20: =Inputs!AS34 -> 0 | AT20: =Inputs!AT34 -> 0 | AU20: =Inputs!AU34 -> 0 | AV20: =Inputs!AV34 -> 0 | AW20: =Inputs!AW34 -> 0 | AX20: =Inputs!AX34 -> 0
E21: =Inputs!E35 -> Capex | G21: =Inputs!$I$11 -> £m 20/21 prices | K21: =Inputs!K35 -> 0 | L21: =Inputs!L35 -> 0 | M21: =Inputs!M35 -> 0 | N21: =Inputs!N35 -> 0 | O21: =Inputs!O35 -> 0 | P21: =Inputs!P35 -> 5.396096982 | Q21: =Inputs!Q35 -> 69.76292964 | R21: =Inputs!R35 -> 165.3269542 | S21: =Inputs!S35 -> 242.6837301 | T21: =Inputs!T35 -> 173.0196401 | U21: =Inputs!U35 -> 68.93390755 | V21: =Inputs!V35 -> 2.979161576 | W21: =Inputs!W35 -> 0 | X21: =Inputs!X35 -> 0 | Y21: =Inputs!Y35 -> 0 | Z21: =Inputs!Z35 -> 0 | AA21: =Inputs!AA35 -> 0 | AB21: =Inputs!AB35 -> 0 | AC21: =Inputs!AC35 -> 0 | AD21: =Inputs!AD35 -> 0 | AE21: =Inputs!AE35 -> 0 | AF21: =Inputs!AF35 -> 0 | AG21: =Inputs!AG35 -> 0 | AH21: =Inputs!AH35 -> 0 | AI21: =Inputs!AI35 -> 0 | AJ21: =Inputs!AJ35 -> 0 | AK21: =Inputs!AK35 -> 0 | AL21: =Inputs!AL35 -> 0 | AM21: =Inputs!AM35 -> 0 | AN21: =Inputs!AN35 -> 0 | AO21: =Inputs!AO35 -> 0 | AP21: =Inputs!AP35 -> 0 | AQ21: =Inputs!AQ35 -> 0 | AR21: =Inputs!AR35 -> 0 | AS21: =Inputs!AS35 -> 0 | AT21: =Inputs!AT35 -> 0 | AU21: =Inputs!AU35 -> 0 | AV21: =Inputs!AV35 -> 0 | AW21: =Inputs!AW35 -> 0 | AX21: =Inputs!AX35 -> 0
E22: =Inputs!E36 -> Spares | G22: =Inputs!$I$11 -> £m 20/21 prices | K22: =Inputs!K36 -> 0 | L22: =Inputs!L36 -> 0 | M22: =Inputs!M36 -> 0 | N22: =Inputs!N36 -> 0 | O22: =Inputs!O36 -> 0 | P22: =Inputs!P36 -> 0 | Q22: =Inputs!Q36 -> 1.371014004 | R22: =Inputs!R36 -> 1.45126907 | S22: =Inputs!S36 -> 2.680867819 | T22: =Inputs!T36 -> 3.217685579 | U22: =Inputs!U36 -> 0.01010126865 | V22: =Inputs!V36 -> 0.02936984488 | W22: =Inputs!W36 -> 0 | X22: =Inputs!X36 -> 0 | Y22: =Inputs!Y36 -> 0 | Z22: =Inputs!Z36 -> 0 | AA22: =Inputs!AA36 -> 0 | AB22: =Inputs!AB36 -> 0 | AC22: =Inputs!AC36 -> 0 | AD22: =Inputs!AD36 -> 0 | AE22: =Inputs!AE36 -> 0 | AF22: =Inputs!AF36 -> 0 | AG22: =Inputs!AG36 -> 0 | AH22: =Inputs!AH36 -> 0 | AI22: =Inputs!AI36 -> 0 | AJ22: =Inputs!AJ36 -> 0 | AK22: =Inputs!AK36 -> 0 | AL22: =Inputs!AL36 -> 0 | AM22: =Inputs!AM36 -> 0 | AN22: =Inputs!AN36 -> 0 | AO22: =Inputs!AO36 -> 0 | AP22: =Inputs!AP36 -> 0 | AQ22: =Inputs!AQ36 -> 0 | AR22: =Inputs!AR36 -> 0 | AS22: =Inputs!AS36 -> 0 | AT22: =Inputs!AT36 -> 0 | AU22: =Inputs!AU36 -> 0 | AV22: =Inputs!AV36 -> 0 | AW22: =Inputs!AW36 -> 0 | AX22: =Inputs!AX36 -> 0
E23: =Finance!E28 -> Capitalised interest during construction | G23: =Inputs!$I$11 -> £m 20/21 prices | K23: =Finance!K28 -> 0 | L23: =Finance!L28 -> 0.02262735078 | M23: =Finance!M28 -> 0.1389521476 | N23: =Finance!N28 -> 0.386993093 | O23: =Finance!O28 -> 0.6965323743 | P23: =Finance!P28 -> 1.01890245 | Q23: =Finance!Q28 -> 2.553834172 | R23: =Finance!R28 -> 7.228715737 | S23: =Finance!S28 -> 15.49692844 | T23: =Finance!T28 -> 24.32556845 | U23: =Finance!U28 -> 30.08042495 | V23: =Finance!V28 -> 0 | W23: =Finance!W28 -> 0 | X23: =Finance!X28 -> 0 | Y23: =Finance!Y28 -> 0 | Z23: =Finance!Z28 -> 0 | AA23: =Finance!AA28 -> 0 | AB23: =Finance!AB28 -> 0 | AC23: =Finance!AC28 -> 0 | AD23: =Finance!AD28 -> 0 | AE23: =Finance!AE28 -> 0 | AF23: =Finance!AF28 -> 0 | AG23: =Finance!AG28 -> 0 | AH23: =Finance!AH28 -> 0 | AI23: =Finance!AI28 -> 0 | AJ23: =Finance!AJ28 -> 0 | AK23: =Finance!AK28 -> 0 | AL23: =Finance!AL28 -> 0 | AM23: =Finance!AM28 -> 0 | AN23: =Finance!AN28 -> 0 | AO23: =Finance!AO28 -> 0 | AP23: =Finance!AP28 -> 0 | AQ23: =Finance!AQ28 -> 0 | AR23: =Finance!AR28 -> 0 | AS23: =Finance!AS28 -> 0 | AT23: =Finance!AT28 -> 0 | AU23: =Finance!AU28 -> 0 | AV23: =Finance!AV28 -> 0 | AW23: =Finance!AW28 -> 0 | AX23: =Finance!AX28 -> 0
E24: Closing pre-operational RAV (after IDC) | G24: =Inputs!$I$11 -> £m 20/21 prices | K24: =SUM(K19:K23) -> 0 | L24: 1.208614639 | M24: 6.166343832 | N24: 14.2645887 | O24: 22.38501667 | P24: 31.16774117 | Q24: 104.0300302 | R24: 278.0369692 | S24: 538.8984956 | T24: 739.4613898 | U24: 838.4858235 | V24: =SUM(V19:V23) -> 841.494355 | W24: 0 | X24: 0 | Y24: 0 | Z24: 0 | AA24: 0 | AB24: 0 | AC24: 0 | AD24: 0 | AE24: 0 | AF24: 0 | AG24: 0 | AH24: 0 | AI24: 0 | AJ24: 0 | AK24: 0 | AL24: 0 | AM24: 0 | AN24: 0 | AO24: 0 | AP24: 0 | AQ24: 0 | AR24: 0 | AS24: 0 | AT24: 0 | AU24: 0 | AV24: 0 | AW24: 0 | AX24: 0
E25: Pre-operational RAV transfers | G25: =Inputs!$I$11 -> £m 20/21 prices | K25: =-K24*K11 -> 0 | L25: =-L24*L11 -> 0 | M25: 0 | N25: 0 | O25: 0 | P25: 0 | Q25: 0 | R25: 0 | S25: 0 | T25: 0 | U25: 0 | V25: -841.494355 | W25: 0 | X25: 0 | Y25: 0 | Z25: 0 | AA25: 0 | AB25: 0 | AC25: 0 | AD25: 0 | AE25: 0 | AF25: 0 | AG25: 0 | AH25: 0 | AI25: 0 | AJ25: 0 | AK25: 0 | AL25: 0 | AM25: 0 | AN25: 0 | AO25: 0 | AP25: 0 | AQ25: 0 | AR25: 0 | AS25: 0 | AT25: 0 | AU25: 0 | AV25: 0 | AW25: 0 | AX25: 0
E26: Closing pre-operational RAV (after IDC) - adjusted for RAV transfers | G26: =Inputs!$I$11 -> £m 20/21 prices | K26: =SUM(K24:K25) -> 0 | L26: 1.208614639 | M26: 6.166343832 | N26: 14.2645887 | O26: 22.38501667 | P26: 31.16774117 | Q26: 104.0300302 | R26: 278.0369692 | S26: 538.8984956 | T26: 739.4613898 | U26: =SUM(U24:U25) -> 838.4858235 | V26: =SUM(V24:V25) -> 0 | W26: 0 | X26: 0 | Y26: 0 | Z26: 0 | AA26: 0 | AB26: 0 | AC26: 0 | AD26: 0 | AE26: 0 | AF26: 0 | AG26: 0 | AH26: 0 | AI26: 0 | AJ26: 0 | AK26: 0 | AL26: 0 | AM26: 0 | AN26: 0 | AO26: 0 | AP26: 0 | AQ26: 0 | AR26: 0 | AS26: 0 | AT26: 0 | AU26: 0 | AV26: 0 | AW26: 0 | AX26: 0
B28: Actual cost of debt
C30: Development costs
E32: Opening development costs (before transfers) | G32: =CONCATENATE(Inputs!$I$9,"m nominal prices") -> £m nominal prices | L32: =K36 -> 0 | M32: =L36 -> 1.04476513 | N32: 5.331331 | O32: 12.3105257 | P32: 19.27038791 | Q32: 0 | R32: -0.82025805 | S32: -0.82025805 | T32: -0.82025805 | U32: -0.82025805 | V32: -0.82025805 | W32: -0.82025805 | X32: -0.82025805 | Y32: -0.82025805 | Z32: -0.82025805 | AA32: -0.82025805 | AB32: -0.82025805 | AC32: -0.82025805 | AD32: -0.82025805 | AE32: -0.82025805 | AF32: -0.82025805 | AG32: -0.82025805 | AH32: -0.82025805 | AI32: -0.82025805 | AJ32: -0.82025805 | AK32: -0.82025805 | AL32: -0.82025805 | AM32: -0.82025805 | AN32: -0.82025805 | AO32: -0.82025805 | AP32: -0.82025805 | AQ32: -0.82025805 | AR32: -0.82025805 | AS32: -0.82025805 | AT32: -0.82025805 | AU32: -0.82025805 | AV32: -0.82025805 | AW32: -0.82025805 | AX32: -0.82025805
E33: Development costs | G33: =CONCATENATE(Inputs!$I$9,"m nominal prices") -> £m nominal prices | K33: =Inputs!K20 -> 0 | L33: =Inputs!L20 -> 1.04476513 | M33: =Inputs!M20 -> 4.28656587 | N33: =Inputs!N20 -> 6.9791947 | O33: =Inputs!O20 -> 6.95986221 | P33: =Inputs!P20 -> 2.29393096 | Q33: =Inputs!Q20 -> -0.82025805 | R33: =Inputs!R20 -> 0 | S33: =Inputs!S20 -> 0 | T33: =Inputs!T20 -> 0 | U33: =Inputs!U20 -> 0 | V33: =Inputs!V20 -> 0 | W33: =Inputs!W20 -> 0 | X33: =Inputs!X20 -> 0 | Y33: =Inputs!Y20 -> 0 | Z33: =Inputs!Z20 -> 0 | AA33: =Inputs!AA20 -> 0 | AB33: =Inputs!AB20 -> 0 | AC33: =Inputs!AC20 -> 0 | AD33: =Inputs!AD20 -> 0 | AE33: =Inputs!AE20 -> 0 | AF33: =Inputs!AF20 -> 0 | AG33: =Inputs!AG20 -> 0 | AH33: =Inputs!AH20 -> 0 | AI33: =Inputs!AI20 -> 0 | AJ33: =Inputs!AJ20 -> 0 | AK33: =Inputs!AK20 -> 0 | AL33: =Inputs!AL20 -> 0 | AM33: =Inputs!AM20 -> 0 | AN33: =Inputs!AN20 -> 0 | AO33: =Inputs!AO20 -> 0 | AP33: =Inputs!AP20 -> 0 | AQ33: =Inputs!AQ20 -> 0 | AR33: =Inputs!AR20 -> 0 | AS33: =Inputs!AS20 -> 0 | AT33: =Inputs!AT20 -> 0 | AU33: =Inputs!AU20 -> 0 | AV33: =Inputs!AV20 -> 0 | AW33: =Inputs!AW20 -> 0 | AX33: =Inputs!AX20 -> 0
E34: Closing development costs (before transfers) | G34: =CONCATENATE(Inputs!$I$9,"m nominal prices") -> £m nominal prices | K34: =SUM(K32:K33) -> 0 | L34: 1.04476513 | M34: 5.331331 | N34: 12.3105257 | O34: 19.27038791 | P34: 21.56431887 | Q34: -0.82025805 | R34: -0.82025805 | S34: -0.82025805 | T34: -0.82025805 | U34: -0.82025805 | V34: -0.82025805 | W34: -0.82025805 | X34: -0.82025805 | Y34: -0.82025805 | Z34: -0.82025805 | AA34: -0.82025805 | AB34: -0.82025805 | AC34: -0.82025805 | AD34: -0.82025805 | AE34: -0.82025805 | AF34: -0.82025805 | AG34: -0.82025805 | AH34: -0.82025805 | AI34: -0.82025805 | AJ34: -0.82025805 | AK34: -0.82025805 | AL34: -0.82025805 | AM34: -0.82025805 | AN34: -0.82025805 | AO34: -0.82025805 | AP34: -0.82025805 | AQ34: -0.82025805 | AR34: -0.82025805 | AS34: -0.82025805 | AT34: -0.82025805 | AU34: -0.82025805 | AV34: -0.82025805 | AW34: -0.82025805 | AX34: -0.82025805
E35: Development costs transfers | G35: =CONCATENATE(Inputs!$I$9,"m nominal prices") -> £m nominal prices | K35: =-K34*K13 -> 0 | L35: =-L34*L13 -> 0 | M35: =-M34*M13 -> 0 | N35: =-N34*N13 -> 0 | O35: =-O34*O13 -> 0 | P35: -21.56431887 | Q35: 0 | R35: 0 | S35: 0 | T35: 0 | U35: 0 | V35: 0 | W35: 0 | X35: 0 | Y35: 0 | Z35: 0 | AA35: 0 | AB35: 0 | AC35: 0 | AD35: 0 | AE35: 0 | AF35: 0 | AG35: 0 | AH35: 0 | AI35: 0 | AJ35: 0 | AK35: 0 | AL35: 0 | AM35: 0 | AN35: 0 | AO35: 0 | AP35: 0 | AQ35: 0 | AR35: 0 | AS35: 0 | AT35: 0 | AU35: 0 | AV35: 0 | AW35: 0 | AX35: 0
E36: Closing development costs (after transfers) | G36: =CONCATENATE(Inputs!$I$9,"m nominal prices") -> £m nominal prices | K36: =SUM(K34:K35) -> 0 | L36: 1.04476513 | M36: 5.331331 | N36: 12.3105257 | O36: 19.27038791 | P36: 0 | Q36: -0.82025805 | R36: -0.82025805 | S36: -0.82025805 | T36: -0.82025805 | U36: =SUM(U34:U35) -> -0.82025805 | V36: =SUM(V34:V35) -> -0.82025805 | W36: -0.82025805 | X36: -0.82025805 | Y36: -0.82025805 | Z36: -0.82025805 | AA36: -0.82025805 | AB36: -0.82025805 | AC36: -0.82025805 | AD36: -0.82025805 | AE36: -0.82025805 | AF36: -0.82025805 | AG36: -0.82025805 | AH36: -0.82025805 | AI36: -0.82025805 | AJ36: -0.82025805 | AK36: -0.82025805 | AL36: -0.82025805 | AM36: -0.82025805 | AN36: -0.82025805 | AO36: -0.82025805 | AP36: -0.82025805 | AQ36: -0.82025805 | AR36: -0.82025805 | AS36: -0.82025805 | AT36: -0.82025805 | AU36: -0.82025805 | AV36: -0.82025805 | AW36: -0.82025805 | AX36: -0.82025805
C38: Pre-operational costs
E40: Opening eligible costs | G40: =CONCATENATE(Inputs!$I$9,"m nominal prices") -> £m nominal prices | L40: =K48 -> 0 | M40: =L48 -> 0 | N40: 0 | O40: 0 | P40: 0 | Q40: 42.28506947 | R40: 122.528806 | S40: 303.9178485 | T40: 571.2510673 | U40: 772.6390446 | V40: 861.873424 | W40: 0 | X40: 0 | Y40: 0 | Z40: 0 | AA40: 0 | AB40: 0 | AC40: 0 | AD40: 0 | AE40: 0 | AF40: 0 | AG40: 0 | AH40: 0 | AI40: 0 | AJ40: 0 | AK40: 0 | AL40: 0 | AM40: 0 | AN40: 0 | AO40: 0 | AP40: 0 | AQ40: 0 | AR40: 0 | AS40: 0 | AT40: 0 | AU40: 0 | AV40: 0 | AW40: 0 | AX40: 0
E41: Development costs transfers | G41: =CONCATENATE(Inputs!$I$9,"m nominal prices") -> £m nominal prices | K41: =-K35 -> 0 | L41: =-L35 -> 0 | M41: 0 | N41: 0 | O41: 0 | P41: 21.56431887 | Q41: 0 | R41: 0 | S41: 0 | T41: 0 | U41: 0 | V41: 0 | W41: 0 | X41: 0 | Y41: 0 | Z41: 0 | AA41: 0 | AB41: 0 | AC41: 0 | AD41: 0 | AE41: 0 | AF41: 0 | AG41: 0 | AH41: 0 | AI41: 0 | AJ41: 0 | AK41: 0 | AL41: 0 | AM41: 0 | AN41: 0 | AO41: 0 | AP41: 0 | AQ41: 0 | AR41: 0 | AS41: 0 | AT41: 0 | AU41: 0 | AV41: 0 | AW41: 0 | AX41: 0
E42: Capex | G42: =CONCATENATE(Inputs!$I$9,"m nominal prices") -> £m nominal prices | K42: =Inputs!K21 -> 0 | L42: =Inputs!L21 -> 0 | M42: =Inputs!M21 -> 0 | N42: =Inputs!N21 -> 0 | O42: =Inputs!O21 -> 0 | P42: =Inputs!P21 -> 5.2279186 | Q42: =Inputs!Q21 -> 69.32087305 | R42: =Inputs!R21 -> 166.74904 | S42: =Inputs!S21 -> 251.3800351 | T42: =Inputs!T21 -> 184.7754168 | U42: =Inputs!U21 -> 76.04698584 | V42: =Inputs!V21 -> 3.391085106 | W42: =Inputs!W21 -> 0 | X42: =Inputs!X21 -> 0 | Y42: =Inputs!Y21 -> 0 | Z42: =Inputs!Z21 -> 0 | AA42: =Inputs!AA21 -> 0 | AB42: =Inputs!AB21 -> 0 | AC42: =Inputs!AC21 -> 0 | AD42: =Inputs!AD21 -> 0 | AE42: =Inputs!AE21 -> 0 | AF42: =Inputs!AF21 -> 0 | AG42: =Inputs!AG21 -> 0 | AH42: =Inputs!AH21 -> 0 | AI42: =Inputs!AI21 -> 0 | AJ42: =Inputs!AJ21 -> 0 | AK42: =Inputs!AK21 -> 0 | AL42: =Inputs!AL21 -> 0 | AM42: =Inputs!AM21 -> 0 | AN42: =Inputs!AN21 -> 0 | AO42: =Inputs!AO21 -> 0 | AP42: =Inputs!AP21 -> 0 | AQ42: =Inputs!AQ21 -> 0 | AR42: =Inputs!AR21 -> 0 | AS42: =Inputs!AS21 -> 0 | AT42: =Inputs!AT21 -> 0 | AU42: =Inputs!AU21 -> 0 | AV42: =Inputs!AV21 -> 0 | AW42: =Inputs!AW21 -> 0 | AX42: =Inputs!AX21 -> 0
E43: Spares | G43: =CONCATENATE(Inputs!$I$9,"m nominal prices") -> £m nominal prices | K43: =Inputs!K22 -> 0 | L43: =Inputs!L22 -> 0 | M43: =Inputs!M22 -> 0 | N43: =Inputs!N22 -> 0 | O43: =Inputs!O22 -> 0 | P43: =Inputs!P22 -> 0 | Q43: =Inputs!Q22 -> 1.362326499 | R43: =Inputs!R22 -> 1.463752389 | S43: =Inputs!S22 -> 2.776933773 | T43: =Inputs!T22 -> 3.43631043 | U43: =Inputs!U22 -> 0.01114358755 | V43: =Inputs!V22 -> 0.03343076265 | W43: =Inputs!W22 -> 0 | X43: =Inputs!X22 -> 0 | Y43: =Inputs!Y22 -> 0 | Z43: =Inputs!Z22 -> 0 | AA43: =Inputs!AA22 -> 0 | AB43: =Inputs!AB22 -> 0 | AC43: =Inputs!AC22 -> 0 | AD43: =Inputs!AD22 -> 0 | AE43: =Inputs!AE22 -> 0 | AF43: =Inputs!AF22 -> 0 | AG43: =Inputs!AG22 -> 0 | AH43: =Inputs!AH22 -> 0 | AI43: =Inputs!AI22 -> 0 | AJ43: =Inputs!AJ22 -> 0 | AK43: =Inputs!AK22 -> 0 | AL43: =Inputs!AL22 -> 0 | AM43: =Inputs!AM22 -> 0 | AN43: =Inputs!AN22 -> 0 | AO43: =Inputs!AO22 -> 0 | AP43: =Inputs!AP22 -> 0 | AQ43: =Inputs!AQ22 -> 0 | AR43: =Inputs!AR22 -> 0 | AS43: =Inputs!AS22 -> 0 | AT43: =Inputs!AT22 -> 0 | AU43: =Inputs!AU22 -> 0 | AV43: =Inputs!AV22 -> 0 | AW43: =Inputs!AW22 -> 0 | AX43: =Inputs!AX22 -> 0
E44: DSRA funding | G44: =CONCATENATE(Inputs!$I$9,"m nominal prices") -> £m nominal prices | K44: =Finance!K155 -> 0 | L44: =Finance!L155 -> 0 | M44: =Finance!M155 -> 0 | N44: =Finance!N155 -> 0 | O44: =Finance!O155 -> 0 | P44: =Finance!P155 -> 0 | Q44: =Finance!Q155 -> 0 | R44: =Finance!R155 -> 0 | S44: =Finance!S155 -> 0 | T44: =Finance!T155 -> 0 | U44: =Finance!U155 -> 0 | V44: =Finance!V155 -> 0 | W44: =Finance!W155 -> 0 | X44: =Finance!X155 -> 0 | Y44: =Finance!Y155 -> 0 | Z44: =Finance!Z155 -> 0 | AA44: =Finance!AA155 -> 0 | AB44: =Finance!AB155 -> 0 | AC44: =Finance!AC155 -> 0 | AD44: =Finance!AD155 -> 0 | AE44: =Finance!AE155 -> 0 | AF44: =Finance!AF155 -> 0 | AG44: =Finance!AG155 -> 0 | AH44: =Finance!AH155 -> 0 | AI44: =Finance!AI155 -> 0 | AJ44: =Finance!AJ155 -> 0 | AK44: =Finance!AK155 -> 0 | AL44: =Finance!AL155 -> 0 | AM44: =Finance!AM155 -> 0 | AN44: =Finance!AN155 -> 0 | AO44: =Finance!AO155 -> 0 | AP44: =Finance!AP155 -> 0 | AQ44: =Finance!AQ155 -> 0 | AR44: =Finance!AR155 -> 0 | AS44: =Finance!AS155 -> 0 | AT44: =Finance!AT155 -> 0 | AU44: =Finance!AU155 -> 0 | AV44: =Finance!AV155 -> 0 | AW44: =Finance!AW155 -> 0 | AX44: =Finance!AX155 -> 0
E45: Financial expenses during construction | G45: =CONCATENATE(Inputs!$I$9,"m nominal prices") -> £m nominal prices | K45: =Finance!K114 -> 0 | L45: =Finance!L114 -> 0 | M45: =Finance!M114 -> 0 | N45: =Finance!N114 -> 0 | O45: =Finance!O114 -> 0 | P45: =Finance!P114 -> 15.492832 | Q45: =Finance!Q114 -> 9.560537 | R45: =Finance!R114 -> 13.17625 | S45: =Finance!S114 -> 13.17625 | T45: =Finance!T114 -> 13.17625 | U45: =Finance!U114 -> 13.17625 | V45: =Finance!V114 -> 0 | W45: =Finance!W114 -> 0 | X45: =Finance!X114 -> 0 | Y45: =Finance!Y114 -> 0 | Z45: =Finance!Z114 -> 0 | AA45: =Finance!AA114 -> 0 | AB45: =Finance!AB114 -> 0 | AC45: =Finance!AC114 -> 0 | AD45: =Finance!AD114 -> 0 | AE45: =Finance!AE114 -> 0 | AF45: =Finance!AF114 -> 0 | AG45: =Finance!AG114 -> 0 | AH45: =Finance!AH114 -> 0 | AI45: =Finance!AI114 -> 0 | AJ45: =Finance!AJ114 -> 0 | AK45: =Finance!AK114 -> 0 | AL45: =Finance!AL114 -> 0 | AM45: =Finance!AM114 -> 0 | AN45: =Finance!AN114 -> 0 | AO45: =Finance!AO114 -> 0 | AP45: =Finance!AP114 -> 0 | AQ45: =Finance!AQ114 -> 0 | AR45: =Finance!AR114 -> 0 | AS45: =Finance!AS114 -> 0 | AT45: =Finance!AT114 -> 0 | AU45: =Finance!AU114 -> 0 | AV45: =Finance!AV114 -> 0 | AW45: =Finance!AW114 -> 0 | AX45: =Finance!AX114 -> 0
E46: Closing eligible costs | G46: =CONCATENATE(Inputs!$I$9,"m nominal prices") -> £m nominal prices | K46: =SUM(K40:K45) -> 0 | L46: =SUM(L40:L45) -> 0 | M46: 0 | N46: 0 | O46: 0 | P46: 42.28506947 | Q46: 122.528806 | R46: 303.9178485 | S46: 571.2510673 | T46: 772.6390446 | U46: 861.873424 | V46: 865.2979399 | W46: 0 | X46: 0 | Y46: 0 | Z46: 0 | AA46: 0 | AB46: 0 | AC46: 0 | AD46: 0 | AE46: 0 | AF46: 0 | AG46: 0 | AH46: 0 | AI46: 0 | AJ46: 0 | AK46: 0 | AL46: 0 | AM46: 0 | AN46: 0 | AO46: 0 | AP46: 0 | AQ46: 0 | AR46: 0 | AS46: 0 | AT46: 0 | AU46: 0 | AV46: 0 | AW46: 0 | AX46: 0
E47: Eligible costs transfer | G47: =CONCATENATE(Inputs!$I$9,"m nominal prices") -> £m nominal prices | K47: =-K46*K12 -> 0 | L47: =-L46*L12 -> 0 | M47: 0 | N47: 0 | O47: 0 | P47: 0 | Q47: 0 | R47: 0 | S47: 0 | T47: 0 | U47: 0 | V47: -865.2979399 | W47: =-W46*W12 -> 0 | X47: 0 | Y47: 0 | Z47: 0 | AA47: 0 | AB47: 0 | AC47: 0 | AD47: 0 | AE47: 0 | AF47: 0 | AG47: 0 | AH47: 0 | AI47: 0 | AJ47: 0 | AK47: 0 | AL47: 0 | AM47: 0 | AN47: 0 | AO47: 0 | AP47: 0 | AQ47: 0 | AR47: 0 | AS47: 0 | AT47: 0 | AU47: 0 | AV47: 0 | AW47: 0 | AX47: 0
E48: Closing eligible costs - adjusted for transfer | G48: =CONCATENATE(Inputs!$I$9,"m nominal prices") -> £m nominal prices | K48: =SUM(K46:K47) -> 0 | L48: 0 | M48: 0 | N48: 0 | O48: 0 | P48: 42.28506947 | Q48: 122.528806 | R48: 303.9178485 | S48: 571.2510673 | T48: 772.6390446 | U48: =SUM(U46:U47) -> 861.873424 | V48: =SUM(V46:V47) -> 0 | W48: 0 | X48: 0 | Y48: 0 | Z48: 0 | AA48: 0 | AB48: 0 | AC48: 0 | AD48: 0 | AE48: 0 | AF48: 0 | AG48: 0 | AH48: 0 | AI48: 0 | AJ48: 0 | AK48: 0 | AL48: 0 | AM48: 0 | AN48: 0 | AO48: 0 | AP48: 0 | AQ48: 0 | AR48: 0 | AS48: 0 | AT48: 0 | AU48: 0 | AV48: 0 | AW48: 0 | AX48: 0
C50: Eligible costs
C51: Note: Due to the circularity of the interest calculation, "Copy-PasteValues" must be performed from Row 52 to Row 53 until the circularity check shows 'OK'
E53: Eligible costs - copy | G53: =CONCATENATE(Inputs!$I$9,"m nominal prices") -> £m nominal prices | K53: =SUM(K41:K45) -> 0 | L53: 0 | M53: 0 | N53: 0 | O53: 0 | P53: 42.28506947 | Q53: 80.24373655 | R53: 181.3890424 | S53: =SUM(S41:S45) -> 267.3332189 | T53: 201.3879773 | U53: 89.23437942 | V53: 3.424515869 | W53: 0 | X53: 0 | Y53: 0 | Z53: 0 | AA53: 0 | AB53: 0 | AC53: 0 | AD53: 0 | AE53: 0 | AF53: 0 | AG53: 0 | AH53: 0 | AI53: 0 | AJ53: 0 | AK53: 0 | AL53: 0 | AM53: 0 | AN53: 0 | AO53: 0 | AP53: 0 | AQ53: 0 | AR53: 0 | AS53: 0 | AT53: 0 | AU53: 0 | AV53: 0 | AW53: 0 | AX53: 0
E54: Eligible costs - paste | G54: =CONCATENATE(Inputs!$I$9,"m nominal prices") -> £m nominal prices | K54: 0 | L54: 0 | M54: 0 | N54: 0 | O54: 0 | P54: 42.28506947 | Q54: 80.24373655 | R54: 181.3890424 | S54: 267.3332189 | T54: 201.3879773 | U54: 89.23437942 | V54: 3.424515869 | W54: 0 | X54: 0 | Y54: 0 | Z54: 0 | AA54: 0 | AB54: 0 | AC54: 0 | AD54: 0 | AE54: 0 | AF54: 0 | AG54: 0 | AH54: 0 | AI54: 0 | AJ54: 0 | AK54: 0 | AL54: 0 | AM54: 0 | AN54: 0 | AO54: 0 | AP54: 0 | AQ54: 0 | AR54: 0 | AS54: 0 | AT54: 0 | AU54: 0 | AV54: 0 | AW54: 0 | AX54: 0
E56: Delta | G56: =CONCATENATE(Inputs!$I$9,"m nominal prices") -> £m nominal prices | K56: =ABS(K53-K54) -> 0 | L56: =ABS(L53-L54) -> 0 | M56: 0 | N56: 0 | O56: 0 | P56: 0 | Q56: 0 | R56: 0 | S56: 0 | T56: 0 | U56: 0 | V56: 0 | W56: 0 | X56: 0 | Y56: 0 | Z56: 0 | AA56: 0 | AB56: 0 | AC56: 0 | AD56: 0 | AE56: 0 | AF56: 0 | AG56: 0 | AH56: 0 | AI56: 0 | AJ56: 0 | AK56: 0 | AL56: 0 | AM56: 0 | AN56: 0 | AO56: 0 | AP56: 0 | AQ56: 0 | AR56: 0 | AS56: 0 | AT56: 0 | AU56: 0 | AV56: 0 | AW56: 0 | AX56: 0
E57: Circularity check | I57: =IF(SUM(K56:AX56)<0.000001,"OK","Copy-Paste") -> OK
B59: End of sheet

Sheet Finance
A1: Finance | H1: Licence
E2: Parameter | G2: Units | H2: Terminology | I2: Constant | K2: Annual values
E3: Year commencing | K3: =Inputs!K17 -> 2013-01-01 | L3: =+K4+1 -> 2014-01-01 | M3: 2015-01-01 | N3: 2016-01-01 | O3: 2017-01-01 | P3: 2018-01-01 | Q3: 2019-01-01 | R3: 2020-01-01 | S3: 2021-01-01 | T3: 2022-01-01 | U3: 2023-01-01 | V3: 2024-01-01 | W3: 2025-01-01 | X3: 2026-01-01 | Y3: 2027-01-01 | Z3: 2028-01-01 | AA3: 2029-01-01 | AB3: 2030-01-01 | AC3: 2031-01-01 | AD3: 2032-01-01 | AE3: 2033-01-01 | AF3: 2034-01-01 | AG3: 2035-01-01 | AH3: 2036-01-01 | AI3: 2037-01-01 | AJ3: 2038-01-01 | AK3: 2039-01-01 | AL3: 2040-01-01 | AM3: 2041-01-01 | AN3: 2042-01-01 | AO3: 2043-01-01 | AP3: 2044-01-01 | AQ3: 2045-01-01 | AR3: 2046-01-01 | AS3: 2047-01-01 | AT3: 2048-01-01 | AU3: =+AT4+1 -> 2049-01-01 | AV3: =+AU4+1 -> 2050-01-01 | AW3: =+AV4+1 -> 2051-01-01 | AX3: =+AW4+1 -> 2052-01-01
E4: Year ending | K4: =Inputs!K18 -> 2013-12-31 | L4: =DATE(YEAR(K4) + 1, MONTH(K4), DAY(K4)) -> 2014-12-31 | M4: 2015-12-31 | N4: 2016-12-31 | O4: 2017-12-31 | P4: 2018-12-31 | Q4: 2019-12-31 | R4: 2020-12-31 | S4: 2021-12-31 | T4: 2022-12-31 | U4: 2023-12-31 | V4: 2024-12-31 | W4: 2025-12-31 | X4: 2026-12-31 | Y4: 2027-12-31 | Z4: 2028-12-31 | AA4: 2029-12-31 | AB4: 2030-12-31 | AC4: 2031-12-31 | AD4: 2032-12-31 | AE4: 2033-12-31 | AF4: 2034-12-31 | AG4: 2035-12-31 | AH4: 2036-12-31 | AI4: 2037-12-31 | AJ4: 2038-12-31 | AK4: 2039-12-31 | AL4: 2040-12-31 | AM4: 2041-12-31 | AN4: 2042-12-31 | AO4: 2043-12-31 | AP4: 2044-12-31 | AQ4: 2045-12-31 | AR4: 2046-12-31 | AS4: 2047-12-31 | AT4: 2048-12-31 | AU4: =DATE(YEAR(AT4) + 1, MONTH(AT4), DAY(AT4)) -> 2049-12-31 | AV4: =DATE(YEAR(AU4) + 1, MONTH(AU4), DAY(AU4)) -> 2050-12-31 | AW4: =DATE(YEAR(AV4) + 1, MONTH(AV4), DAY(AV4)) -> 2051-12-31 | AX4: =DATE(YEAR(AW4) + 1, MONTH(AW4), DAY(AW4)) -> 2052-12-31
B6: Flags
E8: Post-IDC and pre-operations flag | G8: flag | K8: =Inputs!K161 -> 0 | L8: =Inputs!L161 -> 0 | M8: =Inputs!M161 -> 0 | N8: =Inputs!N161 -> 0 | O8: =Inputs!O161 -> 0 | P8: =Inputs!P161 -> 0 | Q8: =Inputs!Q161 -> 0 | R8: =Inputs!R161 -> 0 | S8: =Inputs!S161 -> 0 | T8: =Inputs!T161 -> 0 | U8: =Inputs!U161 -> 0 | V8: =Inputs!V161 -> 0 | W8: =Inputs!W161 -> 0 | X8: =Inputs!X161 -> 0 | Y8: =Inputs!Y161 -> 0 | Z8: =Inputs!Z161 -> 0 | AA8: =Inputs!AA161 -> 0 | AB8: =Inputs!AB161 -> 0 | AC8: =Inputs!AC161 -> 0 | AD8: =Inputs!AD161 -> 0 | AE8: =Inputs!AE161 -> 0 | AF8: =Inputs!AF161 -> 0 | AG8: =Inputs!AG161 -> 0 | AH8: =Inputs!AH161 -> 0 | AI8: =Inputs!AI161 -> 0 | AJ8: =Inputs!AJ161 -> 0 | AK8: =Inputs!AK161 -> 0 | AL8: =Inputs!AL161 -> 0 | AM8: =Inputs!AM161 -> 0 | AN8: =Inputs!AN161 -> 0 | AO8: =Inputs!AO161 -> 0 | AP8: =Inputs!AP161 -> 0 | AQ8: =Inputs!AQ161 -> 0 | AR8: =Inputs!AR161 -> 0 | AS8: =Inputs!AS161 -> 0 | AT8: =Inputs!AT161 -> 0 | AU8: =Inputs!AU161 -> 0 | AV8: =Inputs!AV161 -> 0 | AW8: =Inputs!AW161 -> 0 | AX8: =Inputs!AX161 -> 0
E9: Operations flag | G9: flag | K9: =Inputs!K162 -> 0 | L9: =Inputs!L162 -> 0 | M9: =Inputs!M162 -> 0 | N9: =Inputs!N162 -> 0 | O9: =Inputs!O162 -> 0 | P9: =Inputs!P162 -> 0 | Q9: =Inputs!Q162 -> 0 | R9: =Inputs!R162 -> 0 | S9: =Inputs!S162 -> 0 | T9: =Inputs!T162 -> 0 | U9: =Inputs!U162 -> 0 | V9: =Inputs!V162 -> 1 | W9: =Inputs!W162 -> 1 | X9: =Inputs!X162 -> 1 | Y9: =Inputs!Y162 -> 1 | Z9: =Inputs!Z162 -> 1 | AA9: =Inputs!AA162 -> 1 | AB9: =Inputs!AB162 -> 1 | AC9: =Inputs!AC162 -> 1 | AD9: =Inputs!AD162 -> 1 | AE9: =Inputs!AE162 -> 1 | AF9: =Inputs!AF162 -> 1 | AG9: =Inputs!AG162 -> 1 | AH9: =Inputs!AH162 -> 1 | AI9: =Inputs!AI162 -> 1 | AJ9: =Inputs!AJ162 -> 1 | AK9: =Inputs!AK162 -> 1 | AL9: =Inputs!AL162 -> 1 | AM9: =Inputs!AM162 -> 1 | AN9: =Inputs!AN162 -> 1 | AO9: =Inputs!AO162 -> 1 | AP9: =Inputs!AP162 -> 1 | AQ9: =Inputs!AQ162 -> 1 | AR9: =Inputs!AR162 -> 0 | AS9: =Inputs!AS162 -> 0 | AT9: =Inputs!AT162 -> 0 | AU9: =Inputs!AU162 -> 0 | AV9: =Inputs!AV162 -> 0 | AW9: =Inputs!AW162 -> 0 | AX9: =Inputs!AX162 -> 0
E10: Regime years | G10: count | K10: =Inputs!K164 -> 0 | L10: =Inputs!L164 -> 0 | M10: =Inputs!M164 -> 0 | N10: =Inputs!N164 -> 0 | O10: =Inputs!O164 -> 0 | P10: =Inputs!P164 -> 0 | Q10: =Inputs!Q164 -> 0 | R10: =Inputs!R164 -> 0 | S10: =Inputs!S164 -> 1 | T10: =Inputs!T164 -> 2 | U10: =Inputs!U164 -> 3 | V10: =Inputs!V164 -> 4 | W10: =Inputs!W164 -> 5 | X10: =Inputs!X164 -> 6 | Y10: =Inputs!Y164 -> 7 | Z10: =Inputs!Z164 -> 8 | AA10: =Inputs!AA164 -> 9 | AB10: =Inputs!AB164 -> 10 | AC10: =Inputs!AC164 -> 11 | AD10: =Inputs!AD164 -> 12 | AE10: =Inputs!AE164 -> 13 | AF10: =Inputs!AF164 -> 14 | AG10: =Inputs!AG164 -> 15 | AH10: =Inputs!AH164 -> 16 | AI10: =Inputs!AI164 -> 17 | AJ10: =Inputs!AJ164 -> 18 | AK10: =Inputs!AK164 -> 19 | AL10: =Inputs!AL164 -> 20 | AM10: =Inputs!AM164 -> 21 | AN10: =Inputs!AN164 -> 22 | AO10: =Inputs!AO164 -> 23 | AP10: =Inputs!AP164 -> 24 | AQ10: =Inputs!AQ164 -> 25 | AR10: =Inputs!AR164 -> 0 | AS10: =Inputs!AS164 -> 0 | AT10: =Inputs!AT164 -> 0 | AU10: =Inputs!AU164 -> 0 | AV10: =Inputs!AV164 -> 0 | AW10: =Inputs!AW164 -> 0 | AX10: =Inputs!AX164 -> 0
E11: Transfer construction to operations flag - Notional | G11: flag | K11: =Inputs!K165 -> 0 | L11: =Inputs!L165 -> 0 | M11: =Inputs!M165 -> 0 | N11: =Inputs!N165 -> 0 | O11: =Inputs!O165 -> 0 | P11: =Inputs!P165 -> 0 | Q11: =Inputs!Q165 -> 0 | R11: =Inputs!R165 -> 0 | S11: =Inputs!S165 -> 0 | T11: =Inputs!T165 -> 0 | U11: =Inputs!U165 -> 0 | V11: =Inputs!V165 -> 1 | W11: =Inputs!W165 -> 0 | X11: =Inputs!X165 -> 0 | Y11: =Inputs!Y165 -> 0 | Z11: =Inputs!Z165 -> 0 | AA11: =Inputs!AA165 -> 0 | AB11: =Inputs!AB165 -> 0 | AC11: =Inputs!AC165 -> 0 | AD11: =Inputs!AD165 -> 0 | AE11: =Inputs!AE165 -> 0 | AF11: =Inputs!AF165 -> 0 | AG11: =Inputs!AG165 -> 0 | AH11: =Inputs!AH165 -> 0 | AI11: =Inputs!AI165 -> 0 | AJ11: =Inputs!AJ165 -> 0 | AK11: =Inputs!AK165 -> 0 | AL11: =Inputs!AL165 -> 0 | AM11: =Inputs!AM165 -> 0 | AN11: =Inputs!AN165 -> 0 | AO11: =Inputs!AO165 -> 0 | AP11: =Inputs!AP165 -> 0 | AQ11: =Inputs!AQ165 -> 0 | AR11: =Inputs!AR165 -> 0 | AS11: =Inputs!AS165 -> 0 | AT11: =Inputs!AT165 -> 0 | AU11: =Inputs!AU165 -> 0 | AV11: =Inputs!AV165 -> 0 | AW11: =Inputs!AW165 -> 0 | AX11: =Inputs!AX165 -> 0
E12: Transfer construction to operations flag - ACOD | G12: flag | K12: =Inputs!K166 -> 0 | L12: =Inputs!L166 -> 0 | M12: =Inputs!M166 -> 0 | N12: =Inputs!N166 -> 0 | O12: =Inputs!O166 -> 0 | P12: =Inputs!P166 -> 0 | Q12: =Inputs!Q166 -> 0 | R12: =Inputs!R166 -> 0 | S12: =Inputs!S166 -> 0 | T12: =Inputs!T166 -> 0 | U12: =Inputs!U166 -> 0 | V12: =Inputs!V166 -> 1 | W12: =Inputs!W166 -> 0 | X12: =Inputs!X166 -> 0 | Y12: =Inputs!Y166 -> 0 | Z12: =Inputs!Z166 -> 0 | AA12: =Inputs!AA166 -> 0 | AB12: =Inputs!AB166 -> 0 | AC12: =Inputs!AC166 -> 0 | AD12: =Inputs!AD166 -> 0 | AE12: =Inputs!AE166 -> 0 | AF12: =Inputs!AF166 -> 0 | AG12: =Inputs!AG166 -> 0 | AH12: =Inputs!AH166 -> 0 | AI12: =Inputs!AI166 -> 0 | AJ12: =Inputs!AJ166 -> 0 | AK12: =Inputs!AK166 -> 0 | AL12: =Inputs!AL166 -> 0 | AM12: =Inputs!AM166 -> 0 | AN12: =Inputs!AN166 -> 0 | AO12: =Inputs!AO166 -> 0 | AP12: =Inputs!AP166 -> 0 | AQ12: =Inputs!AQ166 -> 0 | AR12: =Inputs!AR166 -> 0 | AS12: =Inputs!AS166 -> 0 | AT12: =Inputs!AT166 -> 0 | AU12: =Inputs!AU166 -> 0 | AV12: =Inputs!AV166 -> 0 | AW12: =Inputs!AW166 -> 0 | AX12: =Inputs!AX166 -> 0
E13: Initial transaction costs flag | G13: flag | K13: =Inputs!K167 -> 0 | L13: =Inputs!L167 -> 0 | M13: =Inputs!M167 -> 0 | N13: =Inputs!N167 -> 0 | O13: =Inputs!O167 -> 1 | P13: =Inputs!P167 -> 0 | Q13: =Inputs!Q167 -> 0 | R13: =Inputs!R167 -> 0 | S13: =Inputs!S167 -> 0 | T13: =Inputs!T167 -> 0 | U13: =Inputs!U167 -> 0 | V13: =Inputs!V167 -> 0 | W13: =Inputs!W167 -> 0 | X13: =Inputs!X167 -> 0 | Y13: =Inputs!Y167 -> 0 | Z13: =Inputs!Z167 -> 0 | AA13: =Inputs!AA167 -> 0 | AB13: =Inputs!AB167 -> 0 | AC13: =Inputs!AC167 -> 0 | AD13: =Inputs!AD167 -> 0 | AE13: =Inputs!AE167 -> 0 | AF13: =Inputs!AF167 -> 0 | AG13: =Inputs!AG167 -> 0 | AH13: =Inputs!AH167 -> 0 | AI13: =Inputs!AI167 -> 0 | AJ13: =Inputs!AJ167 -> 0 | AK13: =Inputs!AK167 -> 0 | AL13: =Inputs!AL167 -> 0 | AM13: =Inputs!AM167 -> 0 | AN13: =Inputs!AN167 -> 0 | AO13: =Inputs!AO167 -> 0 | AP13: =Inputs!AP167 -> 0 | AQ13: =Inputs!AQ167 -> 0 | AR13: =Inputs!AR167 -> 0 | AS13: =Inputs!AS167 -> 0 | AT13: =Inputs!AT167 -> 0 | AU13: =Inputs!AU167 -> 0 | AV13: =Inputs!AV167 -> 0 | AW13: =Inputs!AW167 -> 0 | AX13: =Inputs!AX167 -> 0
E14: Financial close flag | G14: flag | K14: =Inputs!K168 -> 0 | L14: =Inputs!L168 -> 0 | M14: =Inputs!M168 -> 0 | N14: =Inputs!N168 -> 0 | O14: =Inputs!O168 -> 0 | P14: =Inputs!P168 -> 1 | Q14: =Inputs!Q168 -> 0 | R14: =Inputs!R168 -> 0 | S14: =Inputs!S168 -> 0 | T14: =Inputs!T168 -> 0 | U14: =Inputs!U168 -> 0 | V14: =Inputs!V168 -> 0 | W14: =Inputs!W168 -> 0 | X14: =Inputs!X168 -> 0 | Y14: =Inputs!Y168 -> 0 | Z14: =Inputs!Z168 -> 0 | AA14: =Inputs!AA168 -> 0 | AB14: =Inputs!AB168 -> 0 | AC14: =Inputs!AC168 -> 0 | AD14: =Inputs!AD168 -> 0 | AE14: =Inputs!AE168 -> 0 | AF14: =Inputs!AF168 -> 0 | AG14: =Inputs!AG168 -> 0 | AH14: =Inputs!AH168 -> 0 | AI14: =Inputs!AI168 -> 0 | AJ14: =Inputs!AJ168 -> 0 | AK14: =Inputs!AK168 -> 0 | AL14: =Inputs!AL168 -> 0 | AM14: =Inputs!AM168 -> 0 | AN14: =Inputs!AN168 -> 0 | AO14: =Inputs!AO168 -> 0 | AP14: =Inputs!AP168 -> 0 | AQ14: =Inputs!AQ168 -> 0 | AR14: =Inputs!AR168 -> 0 | AS14: =Inputs!AS168 -> 0 | AT14: =Inputs!AT168 -> 0 | AU14: =Inputs!AU168 -> 0 | AV14: =Inputs!AV168 -> 0 | AW14: =Inputs!AW168 -> 0 | AX14: =Inputs!AX168 -> 0
E15: Debt drawdown flag | G15: flag | K15: =Inputs!K169 -> 0 | L15: =Inputs!L169 -> 0 | M15: =Inputs!M169 -> 0 | N15: =Inputs!N169 -> 0 | O15: =Inputs!O169 -> 0 | P15: =Inputs!P169 -> 1 | Q15: =Inputs!Q169 -> 1 | R15: =Inputs!R169 -> 1 | S15: =Inputs!S169 -> 1 | T15: =Inputs!T169 -> 1 | U15: =Inputs!U169 -> 1 | V15: =Inputs!V169 -> 0 | W15: =Inputs!W169 -> 0 | X15: =Inputs!X169 -> 0 | Y15: =Inputs!Y169 -> 0 | Z15: =Inputs!Z169 -> 0 | AA15: =Inputs!AA169 -> 0 | AB15: =Inputs!AB169 -> 0 | AC15: =Inputs!AC169 -> 0 | AD15: =Inputs!AD169 -> 0 | AE15: =Inputs!AE169 -> 0 | AF15: =Inputs!AF169 -> 0 | AG15: =Inputs!AG169 -> 0 | AH15: =Inputs!AH169 -> 0 | AI15: =Inputs!AI169 -> 0 | AJ15: =Inputs!AJ169 -> 0 | AK15: =Inputs!AK169 -> 0 | AL15: =Inputs!AL169 -> 0 | AM15: =Inputs!AM169 -> 0 | AN15: =Inputs!AN169 -> 0 | AO15: =Inputs!AO169 -> 0 | AP15: =Inputs!AP169 -> 0 | AQ15: =Inputs!AQ169 -> 0 | AR15: =Inputs!AR169 -> 0 | AS15: =Inputs!AS169 -> 0 | AT15: =Inputs!AT169 -> 0 | AU15: =Inputs!AU169 -> 0 | AV15: =Inputs!AV169 -> 0 | AW15: =Inputs!AW169 -> 0 | AX15: =Inputs!AX169 -> 0
E16: Debt repayment year | G16: count | K16: =Inputs!K171 -> 0 | L16: =Inputs!L171 -> 0 | M16: =Inputs!M171 -> 0 | N16: =Inputs!N171 -> 0 | O16: =Inputs!O171 -> 0 | P16: =Inputs!P171 -> 0 | Q16: =Inputs!Q171 -> 0 | R16: =Inputs!R171 -> 0 | S16: =Inputs!S171 -> 0 | T16: =Inputs!T171 -> 0 | U16: =Inputs!U171 -> 0 | V16: =Inputs!V171 -> 1 | W16: =Inputs!W171 -> 2 | X16: =Inputs!X171 -> 3 | Y16: =Inputs!Y171 -> 4 | Z16: =Inputs!Z171 -> 5 | AA16: =Inputs!AA171 -> 6 | AB16: =Inputs!AB171 -> 7 | AC16: =Inputs!AC171 -> 8 | AD16: =Inputs!AD171 -> 9 | AE16: =Inputs!AE171 -> 10 | AF16: =Inputs!AF171 -> 11 | AG16: =Inputs!AG171 -> 12 | AH16: =Inputs!AH171 -> 13 | AI16: =Inputs!AI171 -> 14 | AJ16: =Inputs!AJ171 -> 15 | AK16: =Inputs!AK171 -> 16 | AL16: =Inputs!AL171 -> 17 | AM16: =Inputs!AM171 -> 18 | AN16: =Inputs!AN171 -> 19 | AO16: =Inputs!AO171 -> 20 | AP16: =Inputs!AP171 -> 0 | AQ16: =Inputs!AQ171 -> 0 | AR16: =Inputs!AR171 -> 0 | AS16: =Inputs!AS171 -> 0 | AT16: =Inputs!AT171 -> 0 | AU16: =Inputs!AU171 -> 0 | AV16: =Inputs!AV171 -> 0 | AW16: =Inputs!AW171 -> 0 | AX16: =Inputs!AX171 -> 0
B18: Pre-operational interest during construction
C20: Pre-operational interest during construction
E22: Interest during construction rate | G22: =Inputs!G70 -> real annual % | I22: =Inputs!I70 -> 0.0389
E24: Opening pre-operational RAV (before transfers) | G24: =Inputs!$I$11 -> £m 20/21 prices | K24: ='Pre Op RAV'!K19 -> 0 | L24: ='Pre Op RAV'!L19 -> 0 | M24: ='Pre Op RAV'!M19 -> 1.208614639 | N24: ='Pre Op RAV'!N19 -> 6.166343832 | O24: ='Pre Op RAV'!O19 -> 14.2645887 | P24: ='Pre Op RAV'!P19 -> 22.38501667 | Q24: ='Pre Op RAV'!Q19 -> 31.16774117 | R24: ='Pre Op RAV'!R19 -> 104.0300302 | S24: ='Pre Op RAV'!S19 -> 278.0369692 | T24: ='Pre Op RAV'!T19 -> 538.8984956 | U24: ='Pre Op RAV'!U19 -> 739.4613898 | V24: ='Pre Op RAV'!V19 -> 838.4858235 | W24: ='Pre Op RAV'!W19 -> 0 | X24: ='Pre Op RAV'!X19 -> 0 | Y24: ='Pre Op RAV'!Y19 -> 0 | Z24: ='Pre Op RAV'!Z19 -> 0 | AA24: ='Pre Op RAV'!AA19 -> 0 | AB24: ='Pre Op RAV'!AB19 -> 0 | AC24: ='Pre Op RAV'!AC19 -> 0 | AD24: ='Pre Op RAV'!AD19 -> 0 | AE24: ='Pre Op RAV'!AE19 -> 0 | AF24: ='Pre Op RAV'!AF19 -> 0 | AG24: ='Pre Op RAV'!AG19 -> 0 | AH24: ='Pre Op RAV'!AH19 -> 0 | AI24: ='Pre Op RAV'!AI19 -> 0 | AJ24: ='Pre Op RAV'!AJ19 -> 0 | AK24: ='Pre Op RAV'!AK19 -> 0 | AL24: ='Pre Op RAV'!AL19 -> 0 | AM24: ='Pre Op RAV'!AM19 -> 0 | AN24: ='Pre Op RAV'!AN19 -> 0 | AO24: ='Pre Op RAV'!AO19 -> 0 | AP24: ='Pre Op RAV'!AP19 -> 0 | AQ24: ='Pre Op RAV'!AQ19 -> 0 | AR24: ='Pre Op RAV'!AR19 -> 0 | AS24: ='Pre Op RAV'!AS19 -> 0 | AT24: ='Pre Op RAV'!AT19 -> 0 | AU24: ='Pre Op RAV'!AU19 -> 0 | AV24: ='Pre Op RAV'!AV19 -> 0 | AW24: ='Pre Op RAV'!AW19 -> 0 | AX24: ='Pre Op RAV'!AX19 -> 0
E25: Development costs | G25: =Inputs!$I$11 -> £m 20/21 prices | K25: =Inputs!K34 -> 0 | L25: =Inputs!L34 -> 1.185987288 | M25: =Inputs!M34 -> 4.818777046 | N25: =Inputs!N34 -> 7.711251776 | O25: =Inputs!O34 -> 7.423895596 | P25: =Inputs!P34 -> 2.367725069 | Q25: =Inputs!Q34 -> -0.8254888045 | R25: =Inputs!R34 -> 0 | S25: =Inputs!S34 -> 0 | T25: =Inputs!T34 -> 0 | U25: =Inputs!U34 -> 0 | V25: =Inputs!V34 -> 0 | W25: =Inputs!W34 -> 0 | X25: =Inputs!X34 -> 0 | Y25: =Inputs!Y34 -> 0 | Z25: =Inputs!Z34 -> 0 | AA25: =Inputs!AA34 -> 0 | AB25: =Inputs!AB34 -> 0 | AC25: =Inputs!AC34 -> 0 | AD25: =Inputs!AD34 -> 0 | AE25: =Inputs!AE34 -> 0 | AF25: =Inputs!AF34 -> 0 | AG25: =Inputs!AG34 -> 0 | AH25: =Inputs!AH34 -> 0 | AI25: =Inputs!AI34 -> 0 | AJ25: =Inputs!AJ34 -> 0 | AK25: =Inputs!AK34 -> 0 | AL25: =Inputs!AL34 -> 0 | AM25: =Inputs!AM34 -> 0 | AN25: =Inputs!AN34 -> 0 | AO25: =Inputs!AO34 -> 0 | AP25: =Inputs!AP34 -> 0 | AQ25: =Inputs!AQ34 -> 0 | AR25: =Inputs!AR34 -> 0 | AS25: =Inputs!AS34 -> 0 | AT25: =Inputs!AT34 -> 0 | AU25: =Inputs!AU34 -> 0 | AV25: =Inputs!AV34 -> 0 | AW25: =Inputs!AW34 -> 0 | AX25: =Inputs!AX34 -> 0
E26: Capex | G26: =Inputs!$I$11 -> £m 20/21 prices | K26: =Inputs!K35 -> 0 | L26: =Inputs!L35 -> 0 | M26: =Inputs!M35 -> 0 | N26: =Inputs!N35 -> 0 | O26: =Inputs!O35 -> 0 | P26: =Inputs!P35 -> 5.396096982 | Q26: =Inputs!Q35 -> 69.76292964 | R26: =Inputs!R35 -> 165.3269542 | S26: =Inputs!S35 -> 242.6837301 | T26: =Inputs!T35 -> 173.0196401 | U26: =Inputs!U35 -> 68.93390755 | V26: =Inputs!V35 -> 2.979161576 | W26: =Inputs!W35 -> 0 | X26: =Inputs!X35 -> 0 | Y26: =Inputs!Y35 -> 0 | Z26: =Inputs!Z35 -> 0 | AA26: =Inputs!AA35 -> 0 | AB26: =Inputs!AB35 -> 0 | AC26: =Inputs!AC35 -> 0 | AD26: =Inputs!AD35 -> 0 | AE26: =Inputs!AE35 -> 0 | AF26: =Inputs!AF35 -> 0 | AG26: =Inputs!AG35 -> 0 | AH26: =Inputs!AH35 -> 0 | AI26: =Inputs!AI35 -> 0 | AJ26: =Inputs!AJ35 -> 0 | AK26: =Inputs!AK35 -> 0 | AL26: =Inputs!AL35 -> 0 | AM26: =Inputs!AM35 -> 0 | AN26: =Inputs!AN35 -> 0 | AO26: =Inputs!AO35 -> 0 | AP26: =Inputs!AP35 -> 0 | AQ26: =Inputs!AQ35 -> 0 | AR26: =Inputs!AR35 -> 0 | AS26: =Inputs!AS35 -> 0 | AT26: =Inputs!AT35 -> 0 | AU26: =Inputs!AU35 -> 0 | AV26: =Inputs!AV35 -> 0 | AW26: =Inputs!AW35 -> 0 | AX26: =Inputs!AX35 -> 0
E27: Spares | G27: =Inputs!$I$11 -> £m 20/21 prices | K27: =Inputs!K36 -> 0 | L27: =Inputs!L36 -> 0 | M27: =Inputs!M36 -> 0 | N27: =Inputs!N36 -> 0 | O27: =Inputs!O36 -> 0 | P27: =Inputs!P36 -> 0 | Q27: =Inputs!Q36 -> 1.371014004 | R27: =Inputs!R36 -> 1.45126907 | S27: =Inputs!S36 -> 2.680867819 | T27: =Inputs!T36 -> 3.217685579 | U27: =Inputs!U36 -> 0.01010126865 | V27: =Inputs!V36 -> 0.02936984488 | W27: =Inputs!W36 -> 0 | X27: =Inputs!X36 -> 0 | Y27: =Inputs!Y36 -> 0 | Z27: =Inputs!Z36 -> 0 | AA27: =Inputs!AA36 -> 0 | AB27: =Inputs!AB36 -> 0 | AC27: =Inputs!AC36 -> 0 | AD27: =Inputs!AD36 -> 0 | AE27: =Inputs!AE36 -> 0 | AF27: =Inputs!AF36 -> 0 | AG27: =Inputs!AG36 -> 0 | AH27: =Inputs!AH36 -> 0 | AI27: =Inputs!AI36 -> 0 | AJ27: =Inputs!AJ36 -> 0 | AK27: =Inputs!AK36 -> 0 | AL27: =Inputs!AL36 -> 0 | AM27: =Inputs!AM36 -> 0 | AN27: =Inputs!AN36 -> 0 | AO27: =Inputs!AO36 -> 0 | AP27: =Inputs!AP36 -> 0 | AQ27: =Inputs!AQ36 -> 0 | AR27: =Inputs!AR36 -> 0 | AS27: =Inputs!AS36 -> 0 | AT27: =Inputs!AT36 -> 0 | AU27: =Inputs!AU36 -> 0 | AV27: =Inputs!AV36 -> 0 | AW27: =Inputs!AW36 -> 0 | AX27: =Inputs!AX36 -> 0
E28: Capitalised interest during construction | G28: =Inputs!$I$11 -> £m 20/21 prices | K28: =((1+$I22)^(1-K8-K9)-1)*(K24+(K25+K26+K27)/(2+$I22)) -> 0 | L28: =((1+$I22)^(1-L8-L9)-1)*(L24+(L25+L26+L27)/(2+$I22)) -> 0.02262735078 | M28: 0.1389521476 | N28: 0.386993093 | O28: 0.6965323743 | P28: 1.01890245 | Q28: 2.553834172 | R28: 7.228715737 | S28: 15.49692844 | T28: 24.32556845 | U28: 30.08042495 | V28: 0 | W28: 0 | X28: 0 | Y28: 0 | Z28: 0 | AA28: 0 | AB28: 0 | AC28: 0 | AD28: 0 | AE28: 0 | AF28: 0 | AG28: 0 | AH28: 0 | AI28: 0 | AJ28: 0 | AK28: 0 | AL28: 0 | AM28: 0 | AN28: 0 | AO28: 0 | AP28: 0 | AQ28: 0 | AR28: 0 | AS28: 0 | AT28: 0 | AU28: 0 | AV28: 0 | AW28: 0 | AX28: 0
B30: Transaction costs
C32: Parameters
E34: Pre-operational notional gearing | G34: =Inputs!G73 -> % | I34: =Inputs!I73 -> 0.416
E35: Operational notional gearing | G35: =Inputs!G74 -> % | I35: =Inputs!I74 -> 0.5
E37: Debt transaction costs | G37: =Inputs!G77 -> % | I37: =Inputs!I77 -> 0.025
E38: Equity transaction costs | G38: =Inputs!G76 -> % | I38: =Inputs!I76 -> 0.05
C40: Allowance
E42: Transaction costs - opening | G42: =Inputs!$I$11 -> £m 20/21 prices | K42: =J50 -> 0 | L42: =K50 -> 0 | M42: =L50 -> 0 | N42: =M50 -> 0 | O42: 0 | P42: 33.95894651 | Q42: 35.27994953 | R42: 36.65233957 | S42: 38.07811558 | T42: 39.55935427 | U42: 41.09821315 | V42: 42.69693365 | W42: 0 | X42: 0 | Y42: 0 | Z42: 0 | AA42: 0 | AB42: 0 | AC42: 0 | AD42: 0 | AE42: 0 | AF42: 0 | AG42: 0 | AH42: 0 | AI42: 0 | AJ42: 0 | AK42: 0 | AL42: 0 | AM42: 0 | AN42: 0 | AO42: 0 | AP42: 0 | AQ42: 0 | AR42: 0 | AS42: 0 | AT42: 0 | AU42: =AT50 -> 0 | AV42: =AU50 -> 0 | AW42: =AV50 -> 0 | AX42: =AW50 -> 0
E43: Initial debt transaction costs | G43: =Inputs!$I$11 -> £m 20/21 prices | K43: =$I34*K$13*$I37*'Op Rav'!$K$11 -> 0 | L43: =$I34*L$13*$I37*'Op Rav'!$K$11 -> 0 | M43: =$I34*M$13*$I37*'Op Rav'!$K$11 -> 0 | N43: =$I34*N$13*$I37*'Op Rav'!$K$11 -> 0 | O43: =$I34*O$13*$I37*'Op Rav'!$K$11 -> 8.751541292 | P43: =$I34*P$13*$I37*'Op Rav'!$K$11 -> 0 | Q43: =$I34*Q$13*$I37*'Op Rav'!$K$11 -> 0 | R43: =$I34*R$13*$I37*'Op Rav'!$K$11 -> 0 | S43: =$I34*S$13*$I37*'Op Rav'!$K$11 -> 0 | T43: =$I34*T$13*$I37*'Op Rav'!$K$11 -> 0 | U43: =$I34*U$13*$I37*'Op Rav'!$K$11 -> 0 | V43: =$I34*V$13*$I37*'Op Rav'!$K$11 -> 0 | W43: =$I34*W$13*$I37*'Op Rav'!$K$11 -> 0 | X43: =$I34*X$13*$I37*'Op Rav'!$K$11 -> 0 | Y43: =$I34*Y$13*$I37*'Op Rav'!$K$11 -> 0 | Z43: =$I34*Z$13*$I37*'Op Rav'!$K$11 -> 0 | AA43: =$I34*AA$13*$I37*'Op Rav'!$K$11 -> 0 | AB43: =$I34*AB$13*$I37*'Op Rav'!$K$11 -> 0 | AC43: =$I34*AC$13*$I37*'Op Rav'!$K$11 -> 0 | AD43: =$I34*AD$13*$I37*'Op Rav'!$K$11 -> 0 | AE43: =$I34*AE$13*$I37*'Op Rav'!$K$11 -> 0 | AF43: =$I34*AF$13*$I37*'Op Rav'!$K$11 -> 0 | AG43: =$I34*AG$13*$I37*'Op Rav'!$K$11 -> 0 | AH43: =$I34*AH$13*$I37*'Op Rav'!$K$11 -> 0 | AI43: =$I34*AI$13*$I37*'Op Rav'!$K$11 -> 0 | AJ43: =$I34*AJ$13*$I37*'Op Rav'!$K$11 -> 0 | AK43: =$I34*AK$13*$I37*'Op Rav'!$K$11 -> 0 | AL43: =$I34*AL$13*$I37*'Op Rav'!$K$11 -> 0 | AM43: =$I34*AM$13*$I37*'Op Rav'!$K$11 -> 0 | AN43: =$I34*AN$13*$I37*'Op Rav'!$K$11 -> 0 | AO43: =$I34*AO$13*$I37*'Op Rav'!$K$11 -> 0 | AP43: =$I34*AP$13*$I37*'Op Rav'!$K$11 -> 0 | AQ43: =$I34*AQ$13*$I37*'Op Rav'!$K$11 -> 0 | AR43: =$I34*AR$13*$I37*'Op Rav'!$K$11 -> 0 | AS43: =$I34*AS$13*$I37*'Op Rav'!$K$11 -> 0 | AT43: =$I34*AT$13*$I37*'Op Rav'!$K$11 -> 0 | AU43: =$I34*AU$13*$I37*'Op Rav'!$K$11 -> 0 | AV43: =$I34*AV$13*$I37*'Op Rav'!$K$11 -> 0 | AW43: =$I34*AW$13*$I37*'Op Rav'!$K$11 -> 0 | AX43: =$I34*AX$13*$I37*'Op Rav'!$K$11 -> 0
E44: Initial equity transaction costs | G44: =Inputs!$I$11 -> £m 20/21 prices | K44: =(1-$I34)*K$13*$I38*'Op Rav'!$K$11 -> 0 | L44: =(1-$I34)*L$13*$I38*'Op Rav'!$K$11 -> 0 | M44: =(1-$I34)*M$13*$I38*'Op Rav'!$K$11 -> 0 | N44: =(1-$I34)*N$13*$I38*'Op Rav'!$K$11 -> 0 | O44: =(1-$I34)*O$13*$I38*'Op Rav'!$K$11 -> 24.57163517 | P44: =(1-$I34)*P$13*$I38*'Op Rav'!$K$11 -> 0 | Q44: =(1-$I34)*Q$13*$I38*'Op Rav'!$K$11 -> 0 | R44: =(1-$I34)*R$13*$I38*'Op Rav'!$K$11 -> 0 | S44: =(1-$I34)*S$13*$I38*'Op Rav'!$K$11 -> 0 | T44: =(1-$I34)*T$13*$I38*'Op Rav'!$K$11 -> 0 | U44: =(1-$I34)*U$13*$I38*'Op Rav'!$K$11 -> 0 | V44: =(1-$I34)*V$13*$I38*'Op Rav'!$K$11 -> 0 | W44: =(1-$I34)*W$13*$I38*'Op Rav'!$K$11 -> 0 | X44: =(1-$I34)*X$13*$I38*'Op Rav'!$K$11 -> 0 | Y44: =(1-$I34)*Y$13*$I38*'Op Rav'!$K$11 -> 0 | Z44: =(1-$I34)*Z$13*$I38*'Op Rav'!$K$11 -> 0 | AA44: =(1-$I34)*AA$13*$I38*'Op Rav'!$K$11 -> 0 | AB44: =(1-$I34)*AB$13*$I38*'Op Rav'!$K$11 -> 0 | AC44: =(1-$I34)*AC$13*$I38*'Op Rav'!$K$11 -> 0 | AD44: =(1-$I34)*AD$13*$I38*'Op Rav'!$K$11 -> 0 | AE44: =(1-$I34)*AE$13*$I38*'Op Rav'!$K$11 -> 0 | AF44: =(1-$I34)*AF$13*$I38*'Op Rav'!$K$11 -> 0 | AG44: =(1-$I34)*AG$13*$I38*'Op Rav'!$K$11 -> 0 | AH44: =(1-$I34)*AH$13*$I38*'Op Rav'!$K$11 -> 0 | AI44: =(1-$I34)*AI$13*$I38*'Op Rav'!$K$11 -> 0 | AJ44: =(1-$I34)*AJ$13*$I38*'Op Rav'!$K$11 -> 0 | AK44: =(1-$I34)*AK$13*$I38*'Op Rav'!$K$11 -> 0 | AL44: =(1-$I34)*AL$13*$I38*'Op Rav'!$K$11 -> 0 | AM44: =(1-$I34)*AM$13*$I38*'Op Rav'!$K$11 -> 0 | AN44: =(1-$I34)*AN$13*$I38*'Op Rav'!$K$11 -> 0 | AO44: =(1-$I34)*AO$13*$I38*'Op Rav'!$K$11 -> 0 | AP44: =(1-$I34)*AP$13*$I38*'Op Rav'!$K$11 -> 0 | AQ44: =(1-$I34)*AQ$13*$I38*'Op Rav'!$K$11 -> 0 | AR44: =(1-$I34)*AR$13*$I38*'Op Rav'!$K$11 -> 0 | AS44: =(1-$I34)*AS$13*$I38*'Op Rav'!$K$11 -> 0 | AT44: =(1-$I34)*AT$13*$I38*'Op Rav'!$K$11 -> 0 | AU44: =(1-$I34)*AU$13*$I38*'Op Rav'!$K$11 -> 0 | AV44: =(1-$I34)*AV$13*$I38*'Op Rav'!$K$11 -> 0 | AW44: =(1-$I34)*AW$13*$I38*'Op Rav'!$K$11 -> 0 | AX44: =(1-$I34)*AX$13*$I38*'Op Rav'!$K$11 -> 0
E45: Final debt transaction costs | G45: =Inputs!$I$11 -> £m 20/21 prices | K45: =($I35-$I34)*'Op Rav'!$K$11*$I37*K$11 -> 0 | L45: =($I35-$I34)*'Op Rav'!$K$11*$I37*L$11 -> 0 | M45: =($I35-$I34)*'Op Rav'!$K$11*$I37*M$11 -> 0 | N45: =($I35-$I34)*'Op Rav'!$K$11*$I37*N$11 -> 0 | O45: =($I35-$I34)*'Op Rav'!$K$11*$I37*O$11 -> 0 | P45: =($I35-$I34)*'Op Rav'!$K$11*$I37*P$11 -> 0 | Q45: =($I35-$I34)*'Op Rav'!$K$11*$I37*Q$11 -> 0 | R45: =($I35-$I34)*'Op Rav'!$K$11*$I37*R$11 -> 0 | S45: =($I35-$I34)*'Op Rav'!$K$11*$I37*S$11 -> 0 | T45: =($I35-$I34)*'Op Rav'!$K$11*$I37*T$11 -> 0 | U45: =($I35-$I34)*'Op Rav'!$K$11*$I37*U$11 -> 0 | V45: =($I35-$I34)*'Op Rav'!$K$11*$I37*V$11 -> 1.767138145 | W45: =($I35-$I34)*'Op Rav'!$K$11*$I37*W$11 -> 0 | X45: =($I35-$I34)*'Op Rav'!$K$11*$I37*X$11 -> 0 | Y45: =($I35-$I34)*'Op Rav'!$K$11*$I37*Y$11 -> 0 | Z45: =($I35-$I34)*'Op Rav'!$K$11*$I37*Z$11 -> 0 | AA45: =($I35-$I34)*'Op Rav'!$K$11*$I37*AA$11 -> 0 | AB45: =($I35-$I34)*'Op Rav'!$K$11*$I37*AB$11 -> 0 | AC45: =($I35-$I34)*'Op Rav'!$K$11*$I37*AC$11 -> 0 | AD45: =($I35-$I34)*'Op Rav'!$K$11*$I37*AD$11 -> 0 | AE45: =($I35-$I34)*'Op Rav'!$K$11*$I37*AE$11 -> 0 | AF45: =($I35-$I34)*'Op Rav'!$K$11*$I37*AF$11 -> 0 | AG45: =($I35-$I34)*'Op Rav'!$K$11*$I37*AG$11 -> 0 | AH45: =($I35-$I34)*'Op Rav'!$K$11*$I37*AH$11 -> 0 | AI45: =($I35-$I34)*'Op Rav'!$K$11*$I37*AI$11 -> 0 | AJ45: =($I35-$I34)*'Op Rav'!$K$11*$I37*AJ$11 -> 0 | AK45: =($I35-$I34)*'Op Rav'!$K$11*$I37*AK$11 -> 0 | AL45: =($I35-$I34)*'Op Rav'!$K$11*$I37*AL$11 -> 0 | AM45: =($I35-$I34)*'Op Rav'!$K$11*$I37*AM$11 -> 0 | AN45: =($I35-$I34)*'Op Rav'!$K$11*$I37*AN$11 -> 0 | AO45: =($I35-$I34)*'Op Rav'!$K$11*$I37*AO$11 -> 0 | AP45: =($I35-$I34)*'Op Rav'!$K$11*$I37*AP$11 -> 0 | AQ45: =($I35-$I34)*'Op Rav'!$K$11*$I37*AQ$11 -> 0 | AR45: =($I35-$I34)*'Op Rav'!$K$11*$I37*AR$11 -> 0 | AS45: =($I35-$I34)*'Op Rav'!$K$11*$I37*AS$11 -> 0 | AT45: =($I35-$I34)*'Op Rav'!$K$11*$I37*AT$11 -> 0 | AU45: =($I35-$I34)*'Op Rav'!$K$11*$I37*AU$11 -> 0 | AV45: =($I35-$I34)*'Op Rav'!$K$11*$I37*AV$11 -> 0 | AW45: =($I35-$I34)*'Op Rav'!$K$11*$I37*AW$11 -> 0 | AX45: =($I35-$I34)*'Op Rav'!$K$11*$I37*AX$11 -> 0
E46: Final equity transaction costs | G46: =Inputs!$I$11 -> £m 20/21 prices | K46: =($I34-$I35)*'Op Rav'!$K$11*$I38*K$11 -> 0 | L46: =($I34-$I35)*'Op Rav'!$K$11*$I38*L$11 -> 0 | M46: =($I34-$I35)*'Op Rav'!$K$11*$I38*M$11 -> 0 | N46: =($I34-$I35)*'Op Rav'!$K$11*$I38*N$11 -> 0 | O46: =($I34-$I35)*'Op Rav'!$K$11*$I38*O$11 -> 0 | P46: =($I34-$I35)*'Op Rav'!$K$11*$I38*P$11 -> 0 | Q46: =($I34-$I35)*'Op Rav'!$K$11*$I38*Q$11 -> 0 | R46: =($I34-$I35)*'Op Rav'!$K$11*$I38*R$11 -> 0 | S46: =($I34-$I35)*'Op Rav'!$K$11*$I38*S$11 -> 0 | T46: =($I34-$I35)*'Op Rav'!$K$11*$I38*T$11 -> 0 | U46: =($I34-$I35)*'Op Rav'!$K$11*$I38*U$11 -> 0 | V46: =($I34-$I35)*'Op Rav'!$K$11*$I38*V$11 -> -3.534276291 | W46: =($I34-$I35)*'Op Rav'!$K$11*$I38*W$11 -> 0 | X46: =($I34-$I35)*'Op Rav'!$K$11*$I38*X$11 -> 0 | Y46: =($I34-$I35)*'Op Rav'!$K$11*$I38*Y$11 -> 0 | Z46: =($I34-$I35)*'Op Rav'!$K$11*$I38*Z$11 -> 0 | AA46: =($I34-$I35)*'Op Rav'!$K$11*$I38*AA$11 -> 0 | AB46: =($I34-$I35)*'Op Rav'!$K$11*$I38*AB$11 -> 0 | AC46: =($I34-$I35)*'Op Rav'!$K$11*$I38*AC$11 -> 0 | AD46: =($I34-$I35)*'Op Rav'!$K$11*$I38*AD$11 -> 0 | AE46: =($I34-$I35)*'Op Rav'!$K$11*$I38*AE$11 -> 0 | AF46: =($I34-$I35)*'Op Rav'!$K$11*$I38*AF$11 -> 0 | AG46: =($I34-$I35)*'Op Rav'!$K$11*$I38*AG$11 -> 0 | AH46: =($I34-$I35)*'Op Rav'!$K$11*$I38*AH$11 -> 0 | AI46: =($I34-$I35)*'Op Rav'!$K$11*$I38*AI$11 -> 0 | AJ46: =($I34-$I35)*'Op Rav'!$K$11*$I38*AJ$11 -> 0 | AK46: =($I34-$I35)*'Op Rav'!$K$11*$I38*AK$11 -> 0 | AL46: =($I34-$I35)*'Op Rav'!$K$11*$I38*AL$11 -> 0 | AM46: =($I34-$I35)*'Op Rav'!$K$11*$I38*AM$11 -> 0 | AN46: =($I34-$I35)*'Op Rav'!$K$11*$I38*AN$11 -> 0 | AO46: =($I34-$I35)*'Op Rav'!$K$11*$I38*AO$11 -> 0 | AP46: =($I34-$I35)*'Op Rav'!$K$11*$I38*AP$11 -> 0 | AQ46: =($I34-$I35)*'Op Rav'!$K$11*$I38*AQ$11 -> 0 | AR46: =($I34-$I35)*'Op Rav'!$K$11*$I38*AR$11 -> 0 | AS46: =($I34-$I35)*'Op Rav'!$K$11*$I38*AS$11 -> 0 | AT46: =($I34-$I35)*'Op Rav'!$K$11*$I38*AT$11 -> 0 | AU46: =($I34-$I35)*'Op Rav'!$K$11*$I38*AU$11 -> 0 | AV46: =($I34-$I35)*'Op Rav'!$K$11*$I38*AV$11 -> 0 | AW46: =($I34-$I35)*'Op Rav'!$K$11*$I38*AW$11 -> 0 | AX46: =($I34-$I35)*'Op Rav'!$K$11*$I38*AX$11 -> 0
E47: Transaction costs - annual movement | G47: =Inputs!$I$11 -> £m 20/21 prices | K47: =SUM(K43:K46) -> 0 | L47: =SUM(L43:L46) -> 0 | M47: 0 | N47: 0 | O47: 33.32317646 | P47: 0 | Q47: 0 | R47: =SUM(R43:R46) -> 0 | S47: 0 | T47: 0 | U47: 0 | V47: -1.767138145 | W47: 0 | X47: 0 | Y47: 0 | Z47: 0 | AA47: 0 | AB47: 0 | AC47: 0 | AD47: 0 | AE47: 0 | AF47: 0 | AG47: 0 | AH47: 0 | AI47: 0 | AJ47: 0 | AK47: 0 | AL47: 0 | AM47: 0 | AN47: 0 | AO47: 0 | AP47: 0 | AQ47: 0 | AR47: 0 | AS47: 0 | AT47: 0 | AU47: =SUM(AU43:AU46) -> 0 | AV47: 0 | AW47: 0 | AX47: 0
E48: Capitalised IDC on transaction costs | G48: =Inputs!$I$11 -> £m 20/21 prices | K48: =((1+$I22)^(1-K$9-K$8)-1)*(K42+(K43+K44+K45+K46)/(2+$I22)) -> 0 | L48: =((1+$I22)^(1-L$9-L$8)-1)*(L42+(L43+L44+L45+L46)/(2+$I22)) -> 0 | M48: 0 | N48: 0 | O48: 0.6357700545 | P48: 1.321003019 | Q48: 1.372390037 | R48: 1.425776009 | S48: 1.481238696 | T48: 1.538858881 | U48: 1.598720492 | V48: 0 | W48: 0 | X48: 0 | Y48: 0 | Z48: 0 | AA48: 0 | AB48: 0 | AC48: 0 | AD48: 0 | AE48: 0 | AF48: 0 | AG48: 0 | AH48: 0 | AI48: 0 | AJ48: 0 | AK48: 0 | AL48: 0 | AM48: 0 | AN48: 0 | AO48: 0 | AP48: 0 | AQ48: 0 | AR48: 0 | AS48: 0 | AT48: 0 | AU48: 0 | AV48: 0 | AW48: 0 | AX48: 0
E49: Transfer to operational RAV | G49: =Inputs!$I$11 -> £m 20/21 prices | K49: =-SUM(K42,K47,K48)*K$11 -> 0 | L49: =-SUM(L42,L47,L48)*L$11 -> 0 | M49: 0 | N49: 0 | O49: 0 | P49: 0 | Q49: 0 | R49: 0 | S49: 0 | T49: 0 | U49: 0 | V49: -40.9297955 | W49: 0 | X49: 0 | Y49: 0 | Z49: 0 | AA49: 0 | AB49: 0 | AC49: 0 | AD49: 0 | AE49: 0 | AF49: 0 | AG49: 0 | AH49: 0 | AI49: 0 | AJ49: 0 | AK49: 0 | AL49: 0 | AM49: 0 | AN49: 0 | AO49: 0 | AP49: 0 | AQ49: 0 | AR49: 0 | AS49: 0 | AT49: 0 | AU49: 0 | AV49: 0 | AW49: 0 | AX49: 0
E50: Transaction costs - closing | G50: =Inputs!$I$11 -> £m 20/21 prices | K50: =SUM(K49,K48,K47,K42) -> 0 | L50: =SUM(L49,L48,L47,L42) -> 0 | M50: 0 | N50: 0 | O50: 33.95894651 | P50: 35.27994953 | Q50: 36.65233957 | R50: 38.07811558 | S50: 39.55935427 | T50: 41.09821315 | U50: 42.69693365 | V50: 0 | W50: 0 | X50: 0 | Y50: 0 | Z50: 0 | AA50: 0 | AB50: 0 | AC50: 0 | AD50: 0 | AE50: 0 | AF50: 0 | AG50: 0 | AH50: 0 | AI50: 0 | AJ50: 0 | AK50: 0 | AL50: 0 | AM50: 0 | AN50: 0 | AO50: 0 | AP50: 0 | AQ50: 0 | AR50: 0 | AS50: 0 | AT50: 0 | AU50: 0 | AV50: 0 | AW50: 0 | AX50: 0
B52: Actual cost of debt
C54: Debt balance and reserves
E56: Eligible costs | G56: =CONCATENATE(Inputs!$I$9,"m nominal prices") -> £m nominal prices | K56: ='Pre Op RAV'!K54 -> 0 | L56: ='Pre Op RAV'!L54 -> 0 | M56: ='Pre Op RAV'!M54 -> 0 | N56: ='Pre Op RAV'!N54 -> 0 | O56: ='Pre Op RAV'!O54 -> 0 | P56: ='Pre Op RAV'!P54 -> 42.28506947 | Q56: ='Pre Op RAV'!Q54 -> 80.24373655 | R56: ='Pre Op RAV'!R54 -> 181.3890424 | S56: ='Pre Op RAV'!S54 -> 267.3332189 | T56: ='Pre Op RAV'!T54 -> 201.3879773 | U56: ='Pre Op RAV'!U54 -> 89.23437942 | V56: ='Pre Op RAV'!V54 -> 3.424515869 | W56: ='Pre Op RAV'!W54 -> 0 | X56: ='Pre Op RAV'!X54 -> 0 | Y56: ='Pre Op RAV'!Y54 -> 0 | Z56: ='Pre Op RAV'!Z54 -> 0 | AA56: ='Pre Op RAV'!AA54 -> 0 | AB56: ='Pre Op RAV'!AB54 -> 0 | AC56: ='Pre Op RAV'!AC54 -> 0 | AD56: ='Pre Op RAV'!AD54 -> 0 | AE56: ='Pre Op RAV'!AE54 -> 0 | AF56: ='Pre Op RAV'!AF54 -> 0 | AG56: ='Pre Op RAV'!AG54 -> 0 | AH56: ='Pre Op RAV'!AH54 -> 0 | AI56: ='Pre Op RAV'!AI54 -> 0 | AJ56: ='Pre Op RAV'!AJ54 -> 0 | AK56: ='Pre Op RAV'!AK54 -> 0 | AL56: ='Pre Op RAV'!AL54 -> 0 | AM56: ='Pre Op RAV'!AM54 -> 0 | AN56: ='Pre Op RAV'!AN54 -> 0 | AO56: ='Pre Op RAV'!AO54 -> 0 | AP56: ='Pre Op RAV'!AP54 -> 0 | AQ56: ='Pre Op RAV'!AQ54 -> 0 | AR56: ='Pre Op RAV'!AR54 -> 0 | AS56: ='Pre Op RAV'!AS54 -> 0 | AT56: ='Pre Op RAV'!AT54 -> 0 | AU56: ='Pre Op RAV'!AU54 -> 0 | AV56: ='Pre Op RAV'!AV54 -> 0 | AW56: ='Pre Op RAV'!AW54 -> 0 | AX56: ='Pre Op RAV'!AX54 -> 0
E58: Project finance senior debt amount | G58: =CONCATENATE(Inputs!$I$9,"m nominal prices") -> £m nominal prices | I58: =IF(Inputs!I81=1,Inputs!I82,I59*SUM(K56:AX56)) -> 530
E59: Project finance actual gearing on eligible costs | G59: % | I59: =IF(Inputs!I81=2,Inputs!I83,Finance!I58/SUM(Finance!K56:AX56)) -> 0.612505792
E60: Senior debt drawdown profile | G60: % | K60: =IF(Finance!K15>0,INDEX(Inputs!$K$98:$T$98,1,SUM(Finance!$K$15:K15)),0) -> 0 | L60: =IF(Finance!L15>0,INDEX(Inputs!$K$98:$T$98,1,SUM(Finance!$K$15:L15)),0) -> 0 | M60: =IF(Finance!M15>0,INDEX(Inputs!$K$98:$T$98,1,SUM(Finance!$K$15:M15)),0) -> 0 | N60: =IF(Finance!N15>0,INDEX(Inputs!$K$98:$T$98,1,SUM(Finance!$K$15:N15)),0) -> 0 | O60: =IF(Finance!O15>0,INDEX(Inputs!$K$98:$T$98,1,SUM(Finance!$K$15:O15)),0) -> 0 | P60: =IF(Finance!P15>0,INDEX(Inputs!$K$98:$T$98,1,SUM(Finance!$K$15:P15)),0) -> 0.2782 | Q60: =IF(Finance!Q15>0,INDEX(Inputs!$K$98:$T$98,1,SUM(Finance!$K$15:Q15)),0) -> 0.3205 | R60: =IF(Finance!R15>0,INDEX(Inputs!$K$98:$T$98,1,SUM(Finance!$K$15:R15)),0) -> 0.4013 | S60: =IF(Finance!S15>0,INDEX(Inputs!$K$98:$T$98,1,SUM(Finance!$K$15:S15)),0) -> 0 | T60: =IF(Finance!T15>0,INDEX(Inputs!$K$98:$T$98,1,SUM(Finance!$K$15:T15)),0) -> 0 | U60: =IF(Finance!U15>0,INDEX(Inputs!$K$98:$T$98,1,SUM(Finance!$K$15:U15)),0) -> 0 | V60: =IF(Finance!V15>0,INDEX(Inputs!$K$98:$T$98,1,SUM(Finance!$K$15:V15)),0) -> 0 | W60: =IF(Finance!W15>0,INDEX(Inputs!$K$98:$T$98,1,SUM(Finance!$K$15:W15)),0) -> 0 | X60: =IF(Finance!X15>0,INDEX(Inputs!$K$98:$T$98,1,SUM(Finance!$K$15:X15)),0) -> 0 | Y60: =IF(Finance!Y15>0,INDEX(Inputs!$K$98:$T$98,1,SUM(Finance!$K$15:Y15)),0) -> 0 | Z60: =IF(Finance!Z15>0,INDEX(Inputs!$K$98:$T$98,1,SUM(Finance!$K$15:Z15)),0) -> 0 | AA60: =IF(Finance!AA15>0,INDEX(Inputs!$K$98:$T$98,1,SUM(Finance!$K$15:AA15)),0) -> 0 | AB60: =IF(Finance!AB15>0,INDEX(Inputs!$K$98:$T$98,1,SUM(Finance!$K$15:AB15)),0) -> 0 | AC60: =IF(Finance!AC15>0,INDEX(Inputs!$K$98:$T$98,1,SUM(Finance!$K$15:AC15)),0) -> 0 | AD60: =IF(Finance!AD15>0,INDEX(Inputs!$K$98:$T$98,1,SUM(Finance!$K$15:AD15)),0) -> 0 | AE60: =IF(Finance!AE15>0,INDEX(Inputs!$K$98:$T$98,1,SUM(Finance!$K$15:AE15)),0) -> 0 | AF60: =IF(Finance!AF15>0,INDEX(Inputs!$K$98:$T$98,1,SUM(Finance!$K$15:AF15)),0) -> 0 | AG60: =IF(Finance!AG15>0,INDEX(Inputs!$K$98:$T$98,1,SUM(Finance!$K$15:AG15)),0) -> 0 | AH60: =IF(Finance!AH15>0,INDEX(Inputs!$K$98:$T$98,1,SUM(Finance!$K$15:AH15)),0) -> 0 | AI60: =IF(Finance!AI15>0,INDEX(Inputs!$K$98:$T$98,1,SUM(Finance!$K$15:AI15)),0) -> 0 | AJ60: =IF(Finance!AJ15>0,INDEX(Inputs!$K$98:$T$98,1,SUM(Finance!$K$15:AJ15)),0) -> 0 | AK60: =IF(Finance!AK15>0,INDEX(Inputs!$K$98:$T$98,1,SUM(Finance!$K$15:AK15)),0) -> 0 | AL60: =IF(Finance!AL15>0,INDEX(Inputs!$K$98:$T$98,1,SUM(Finance!$K$15:AL15)),0) -> 0 | AM60: =IF(Finance!AM15>0,INDEX(Inputs!$K$98:$T$98,1,SUM(Finance!$K$15:AM15)),0) -> 0 | AN60: =IF(Finance!AN15>0,INDEX(Inputs!$K$98:$T$98,1,SUM(Finance!$K$15:AN15)),0) -> 0 | AO60: =IF(Finance!AO15>0,INDEX(Inputs!$K$98:$T$98,1,SUM(Finance!$K$15:AO15)),0) -> 0 | AP60: =IF(Finance!AP15>0,INDEX(Inputs!$K$98:$T$98,1,SUM(Finance!$K$15:AP15)),0) -> 0 | AQ60: =IF(Finance!AQ15>0,INDEX(Inputs!$K$98:$T$98,1,SUM(Finance!$K$15:AQ15)),0) -> 0 | AR60: =IF(Finance!AR15>0,INDEX(Inputs!$K$98:$T$98,1,SUM(Finance!$K$15:AR15)),0) -> 0 | AS60: =IF(Finance!AS15>0,INDEX(Inputs!$K$98:$T$98,1,SUM(Finance!$K$15:AS15)),0) -> 0 | AT60: =IF(Finance!AT15>0,INDEX(Inputs!$K$98:$T$98,1,SUM(Finance!$K$15:AT15)),0) -> 0 | AU60: =IF(Finance!AU15>0,INDEX(Inputs!$K$98:$T$98,1,SUM(Finance!$K$15:AU15)),0) -> 0 | AV60: =IF(Finance!AV15>0,INDEX(Inputs!$K$98:$T$98,1,SUM(Finance!$K$15:AV15)),0) -> 0 | AW60: =IF(Finance!AW15>0,INDEX(Inputs!$K$98:$T$98,1,SUM(Finance!$K$15:AW15)),0) -> 0 | AX60: =IF(Finance!AX15>0,INDEX(Inputs!$K$98:$T$98,1,SUM(Finance!$K$15:AX15)),0) -> 0
E61: Senior debt repayment profile | G61: % | K61: =SUMIF(Inputs!133:133,Finance!K16,Inputs!134:134)*(K16<>0) -> 0 | L61: =SUMIF(Inputs!133:133,Finance!L16,Inputs!134:134)*(L16<>0) -> 0 | M61: =SUMIF(Inputs!133:133,Finance!M16,Inputs!134:134)*(M16<>0) -> 0 | N61: =SUMIF(Inputs!133:133,Finance!N16,Inputs!134:134)*(N16<>0) -> 0 | O61: =SUMIF(Inputs!133:133,Finance!O16,Inputs!134:134)*(O16<>0) -> 0 | P61: =SUMIF(Inputs!133:133,Finance!P16,Inputs!134:134)*(P16<>0) -> 0 | Q61: =SUMIF(Inputs!133:133,Finance!Q16,Inputs!134:134)*(Q16<>0) -> 0 | R61: =SUMIF(Inputs!133:133,Finance!R16,Inputs!134:134)*(R16<>0) -> 0 | S61: =SUMIF(Inputs!133:133,Finance!S16,Inputs!134:134)*(S16<>0) -> 0 | T61: =SUMIF(Inputs!133:133,Finance!T16,Inputs!134:134)*(T16<>0) -> 0 | U61: =SUMIF(Inputs!133:133,Finance!U16,Inputs!134:134)*(U16<>0) -> 0 | V61: =SUMIF(Inputs!133:133,Finance!V16,Inputs!134:134)*(V16<>0) -> 0.01818738284 | W61: =SUMIF(Inputs!133:133,Finance!W16,Inputs!134:134)*(W16<>0) -> 0.02815820841 | X61: =SUMIF(Inputs!133:133,Finance!X16,Inputs!134:134)*(X16<>0) -> 0.03072892814 | Y61: =SUMIF(Inputs!133:133,Finance!Y16,Inputs!134:134)*(Y16<>0) -> 0.03353769598 | Z61: =SUMIF(Inputs!133:133,Finance!Z16,Inputs!134:134)*(Z16<>0) -> 0.03550490131 | AA61: =SUMIF(Inputs!133:133,Finance!AA16,Inputs!134:134)*(AA16<>0) -> 0.03627836374 | AB61: =SUMIF(Inputs!133:133,Finance!AB16,Inputs!134:134)*(AB16<>0) -> 0.03018141334 | AC61: =SUMIF(Inputs!133:133,Finance!AC16,Inputs!134:134)*(AC16<>0) -> 0.04168796199 | AD61: =SUMIF(Inputs!133:133,Finance!AD16,Inputs!134:134)*(AD16<>0) -> 0.04600111668 | AE61: =SUMIF(Inputs!133:133,Finance!AE16,Inputs!134:134)*(AE16<>0) -> 0.04963773401 | AF61: =SUMIF(Inputs!133:133,Finance!AF16,Inputs!134:134)*(AF16<>0) -> 0.05208145325 | AG61: =SUMIF(Inputs!133:133,Finance!AG16,Inputs!134:134)*(AG16<>0) -> 0.05602175857 | AH61: =SUMIF(Inputs!133:133,Finance!AH16,Inputs!134:134)*(AH16<>0) -> 0.06018952346 | AI61: =SUMIF(Inputs!133:133,Finance!AI16,Inputs!134:134)*(AI16<>0) -> 0.0645531039 | AJ61: =SUMIF(Inputs!133:133,Finance!AJ16,Inputs!134:134)*(AJ16<>0) -> 0.01549082171 | AK61: =SUMIF(Inputs!133:133,Finance!AK16,Inputs!134:134)*(AK16<>0) -> 0.06638503515 | AL61: =SUMIF(Inputs!133:133,Finance!AL16,Inputs!134:134)*(AL16<>0) -> 0.07601867872 | AM61: =SUMIF(Inputs!133:133,Finance!AM16,Inputs!134:134)*(AM16<>0) -> 0.08111535023 | AN61: =SUMIF(Inputs!133:133,Finance!AN16,Inputs!134:134)*(AN16<>0) -> 0.08638195851 | AO61: =SUMIF(Inputs!133:133,Finance!AO16,Inputs!134:134)*(AO16<>0) -> 0.09185861005 | AP61: =SUMIF(Inputs!133:133,Finance!AP16,Inputs!134:134)*(AP16<>0) -> 0 | AQ61: =SUMIF(Inputs!133:133,Finance!AQ16,Inputs!134:134)*(AQ16<>0) -> 0 | AR61: =SUMIF(Inputs!133:133,Finance!AR16,Inputs!134:134)*(AR16<>0) -> 0 | AS61: =SUMIF(Inputs!133:133,Finance!AS16,Inputs!134:134)*(AS16<>0) -> 0 | AT61: =SUMIF(Inputs!133:133,Finance!AT16,Inputs!134:134)*(AT16<>0) -> 0 | AU61: =SUMIF(Inputs!133:133,Finance!AU16,Inputs!134:134)*(AU16<>0) -> 0 | AV61: =SUMIF(Inputs!133:133,Finance!AV16,Inputs!134:134)*(AV16<>0) -> 0 | AW61: =SUMIF(Inputs!133:133,Finance!AW16,Inputs!134:134)*(AW16<>0) -> 0 | AX61: =SUMIF(Inputs!133:133,Finance!AX16,Inputs!134:134)*(AX16<>0) -> 0
E63: Opening senior debt balance | G63: =CONCATENATE(Inputs!$I$9,"m nominal prices") -> £m nominal prices | L63: =K66 -> 0 | M63: =L66 -> 0 | N63: 0 | O63: 0 | P63: 0 | Q63: 147.446 | R63: 317.311 | S63: 530 | T63: 530 | U63: 530 | V63: 530 | W63: 520.3606871 | X63: 505.4368366 | Y63: 489.1505047 | Z63: 471.3755259 | AA63: 452.5579282 | AB63: 433.3303954 | AC63: 417.3342463 | AD63: 395.2396265 | AE63: 370.8590346 | AF63: 344.5510356 | AG63: 316.9478654 | AH63: 287.2563333 | AI63: 255.3558859 | AJ63: 221.1427408 | AK63: 212.9326053 | AL63: 177.7485367 | AM63: 137.458637 | AN63: 94.46750133 | AO63: 48.68506333 | AP63: =AO66 -> 1.278976924e-13 | AQ63: 1.278976924e-13 | AR63: 1.278976924e-13 | AS63: 1.278976924e-13 | AT63: 1.278976924e-13 | AU63: 1.278976924e-13 | AV63: 1.278976924e-13 | AW63: 1.278976924e-13 | AX63: 1.278976924e-13
E64: Senior debt drawdowns | G64: =CONCATENATE(Inputs!$I$9,"m nominal prices") -> £m nominal prices | K64: =K60*$I$58 -> 0 | L64: =L60*$I$58 -> 0 | M64: 0 | N64: 0 | O64: 0 | P64: 147.446 | Q64: 169.865 | R64: 212.689 | S64: 0 | T64: 0 | U64: 0 | V64: 0 | W64: 0 | X64: 0 | Y64: 0 | Z64: 0 | AA64: 0 | AB64: 0 | AC64: 0 | AD64: 0 | AE64: 0 | AF64: 0 | AG64: 0 | AH64: 0 | AI64: 0 | AJ64: 0 | AK64: 0 | AL64: 0 | AM64: 0 | AN64: 0 | AO64: 0 | AP64: 0 | AQ64: 0 | AR64: 0 | AS64: 0 | AT64: 0 | AU64: 0 | AV64: 0 | AW64: 0 | AX64: 0
E65: Senior debt repayments | G65: =CONCATENATE(Inputs!$I$9,"m nominal prices") -> £m nominal prices | K65: =-$I$58*K61 -> 0 | L65: =-$I$58*L61 -> 0 | M65: 0 | N65: 0 | O65: 0 | P65: 0 | Q65: 0 | R65: 0 | S65: 0 | T65: 0 | U65: 0 | V65: =-$I$58*V61 -> -9.639312904 | W65: -14.92385046 | X65: -16.28633191 | Y65: -17.77497887 | Z65: -18.81759769 | AA65: -19.22753278 | AB65: -15.99614907 | AC65: -22.09461985 | AD65: -24.38059184 | AE65: -26.30799903 | AF65: -27.60317023 | AG65: -29.69153204 | AH65: -31.90044744 | AI65: -34.21314507 | AJ65: -8.210135508 | AK65: -35.18406863 | AL65: -40.28989972 | AM65: -42.99113562 | AN65: -45.78243801 | AO65: -48.68506333 | AP65: 0 | AQ65: 0 | AR65: 0 | AS65: 0 | AT65: 0 | AU65: 0 | AV65: 0 | AW65: 0 | AX65: 0
E66: Closing senior debt balance | G66: =CONCATENATE(Inputs!$I$9,"m nominal prices") -> £m nominal prices | K66: =SUM(K63:K65) -> 0 | L66: =SUM(L63:L65) -> 0 | M66: 0 | N66: 0 | O66: 0 | P66: 147.446 | Q66: 317.311 | R66: 530 | S66: 530 | T66: 530 | U66: 530 | V66: 520.3606871 | W66: 505.4368366 | X66: 489.1505047 | Y66: 471.3755259 | Z66: 452.5579282 | AA66: 433.3303954 | AB66: 417.3342463 | AC66: 395.2396265 | AD66: 370.8590346 | AE66: 344.5510356 | AF66: 316.9478654 | AG66: 287.2563333 | AH66: 255.3558859 | AI66: 221.1427408 | AJ66: 212.9326053 | AK66: 177.7485367 | AL66: 137.458637 | AM66: 94.46750133 | AN66: 48.68506333 | AO66: 1.278976924e-13 | AP66: 1.278976924e-13 | AQ66: 1.278976924e-13 | AR66: 1.278976924e-13 | AS66: 1.278976924e-13 | AT66: 1.278976924e-13 | AU66: 1.278976924e-13 | AV66: 1.278976924e-13 | AW66: 1.278976924e-13 | AX66: 1.278976924e-13
E68: Debt Service Reserve Facility amount | G68: =CONCATENATE(Inputs!$I$9,"m nominal prices") -> £m nominal prices | I68: =Inputs!I100*(Inputs!I127=1) -> 10
E69: Cap and Floor Liquidity Facility amount | G69: =CONCATENATE(Inputs!$I$9,"m nominal prices") -> £m nominal prices | I69: =Inputs!I105 -> 25
E70: Cap and Floor Liquidity Facility average outstanding loan | G70: =CONCATENATE(Inputs!$I$9,"m nominal prices") -> £m nominal prices | I70: =Inputs!I106 -> 5
E71: Standby Debt Facility amount | G71: =CONCATENATE(Inputs!$I$9,"m nominal prices") -> £m nominal prices | I71: =Inputs!I111 -> 10
E72: VAT Facility amount | G72: =CONCATENATE(Inputs!$I$9,"m nominal prices") -> £m nominal prices | I72: =Inputs!I116 -> 15
E73: VAT Facility average outstanding loan | G73: =CONCATENATE(Inputs!$I$9,"m nominal prices") -> £m nominal prices | I73: =Inputs!I117 -> 5
E74: Other facilities amount | G74: =CONCATENATE(Inputs!$I$9,"m nominal prices") -> £m nominal prices | I74: =Inputs!I122 -> 0
C76: Financial expenses during construction
E78: Upfront fee - Senior Debt | G78: nominal % | I78: =Inputs!I94 -> 0.015
E79: Upfront fee - Debt Service Reserve Facility | G79: nominal % | I79: =Inputs!I101 -> 0.015
E80: Upfront fee - Cap and Floor Liquidity Facility | G80: nominal % | I80: =Inputs!I107 -> 0.015
E81: Upfront fee - Standby Debt Facility | G81: nominal % | I81: =Inputs!I112 -> 0.015
E82: Upfront fee - VAT Facility | G82: nominal % | I82: =Inputs!I118 -> 0.013
E83: Upfront fee - Other facilities | G83: nominal % | I83: =Inputs!I123 -> 0
E85: Fixed rate - Construction | G85: nominal % | I85: =Inputs!I89 -> 0.003
E86: Construction margin - Senior Debt | G86: nominal % | I86: =Inputs!I92 -> 0.021
E87: of which: swap margin | G87: nominal % | I87: =Inputs!I93 -> 0.001
E88: Construction margin - Debt Service Reserve Facility | G88: nominal % | I88: =Inputs!I102 -> 0.021
E89: Construction margin - Cap and Floor Liquidity Facility | G89: nominal % | I89: =Inputs!I108 -> 0.021
E90: Construction margin - Standby Debt Facility | G90: nominal % | I90: =Inputs!I113 -> 0.021
E91: Construction margin - VAT Facility | G91: nominal % | I91: =Inputs!I119 -> 0.013
E92: Construction margin - Other facilities | G92: nominal % | I92: =Inputs!I124 -> 0
E94: Total interest rate - Senior Debt | G94: nominal % | K94: =($I$85+$I86)*K$15 -> 0 | L94: =($I$85+$I86)*L$15 -> 0 | M94: 0 | N94: 0 | O94: 0 | P94: 0.024 | Q94: 0.024 | R94: 0.024 | S94: =($I$85+$I86)*S$15 -> 0.024 | T94: =($I$85+$I86)*T$15 -> 0.024 | U94: 0.024 | V94: 0 | W94: 0 | X94: 0 | Y94: 0 | Z94: 0 | AA94: 0 | AB94: 0 | AC94: 0 | AD94: 0 | AE94: 0 | AF94: 0 | AG94: 0 | AH94: 0 | AI94: 0 | AJ94: 0 | AK94: 0 | AL94: 0 | AM94: 0 | AN94: 0 | AO94: 0 | AP94: 0 | AQ94: 0 | AR94: 0 | AS94: 0 | AT94: 0 | AU94: 0 | AV94: 0 | AW94: 0 | AX94: 0
E95: Total interest rate - Debt Service Reserve Facility | G95: nominal % | K95: =($I$85+$I88)*K$15 -> 0 | L95: 0 | M95: 0 | N95: 0 | O95: 0 | P95: 0.024 | Q95: 0.024 | R95: 0.024 | S95: =($I$85+$I88)*S$15 -> 0.024 | T95: 0.024 | U95: 0.024 | V95: 0 | W95: 0 | X95: 0 | Y95: 0 | Z95: 0 | AA95: 0 | AB95: 0 | AC95: 0 | AD95: 0 | AE95: 0 | AF95: 0 | AG95: 0 | AH95: 0 | AI95: 0 | AJ95: 0 | AK95: 0 | AL95: 0 | AM95: 0 | AN95: 0 | AO95: 0 | AP95: 0 | AQ95: 0 | AR95: 0 | AS95: 0 | AT95: 0 | AU95: 0 | AV95: 0 | AW95: 0 | AX95: 0
E96: Total interest rate - Cap and Floor Liquidity Facility | G96: nominal % | K96: =($I$85+$I89)*K$15 -> 0 | L96: =($I$85+$I89)*L$15 -> 0 | M96: 0 | N96: 0 | O96: 0 | P96: 0.024 | Q96: 0.024 | R96: 0.024 | S96: =($I$85+$I89)*S$15 -> 0.024 | T96: 0.024 | U96: 0.024 | V96: 0 | W96: 0 | X96: 0 | Y96: 0 | Z96: 0 | AA96: 0 | AB96: 0 | AC96: 0 | AD96: 0 | AE96: 0 | AF96: 0 | AG96: 0 | AH96: 0 | AI96: 0 | AJ96: 0 | AK96: 0 | AL96: 0 | AM96: 0 | AN96: 0 | AO96: 0 | AP96: 0 | AQ96: 0 | AR96: 0 | AS96: 0 | AT96: 0 | AU96: 0 | AV96: 0 | AW96: 0 | AX96: 0
E97: Total interest rate - Standby Debt Facility | G97: nominal % | K97: =($I$85+$I90)*K$15 -> 0 | L97: 0 | M97: 0 | N97: 0 | O97: 0 | P97: 0.024 | Q97: 0.024 | R97: 0.024 | S97: =($I$85+$I90)*S$15 -> 0.024 | T97: 0.024 | U97: 0.024 | V97: 0 | W97: 0 | X97: 0 | Y97: 0 | Z97: 0 | AA97: 0 | AB97: 0 | AC97: 0 | AD97: 0 | AE97: 0 | AF97: 0 | AG97: 0 | AH97: 0 | AI97: 0 | AJ97: 0 | AK97: 0 | AL97: 0 | AM97: 0 | AN97: 0 | AO97: 0 | AP97: 0 | AQ97: 0 | AR97: 0 | AS97: 0 | AT97: 0 | AU97: 0 | AV97: 0 | AW97: 0 | AX97: 0
E98: Total interest rate - VAT Facility | G98: nominal % | K98: =($I$85+$I91)*K$15 -> 0 | L98: 0 | M98: 0 | N98: 0 | O98: 0 | P98: 0.016 | Q98: 0.016 | R98: 0.016 | S98: =($I$85+$I91)*S$15 -> 0.016 | T98: 0.016 | U98: 0.016 | V98: 0 | W98: 0 | X98: 0 | Y98: 0 | Z98: 0 | AA98: 0 | AB98: 0 | AC98: 0 | AD98: 0 | AE98: 0 | AF98: 0 | AG98: 0 | AH98: 0 | AI98: 0 | AJ98: 0 | AK98: 0 | AL98: 0 | AM98: 0 | AN98: 0 | AO98: 0 | AP98: 0 | AQ98: 0 | AR98: 0 | AS98: 0 | AT98: 0 | AU98: 0 | AV98: 0 | AW98: 0 | AX98: 0
E99: Total interest rate - Other facilities | G99: nominal % | K99: =($I$85+$I92)*K$15 -> 0 | L99: 0 | M99: 0 | N99: 0 | O99: 0 | P99: 0.003 | Q99: 0.003 | R99: 0.003 | S99: =($I$85+$I92)*S$15 -> 0.003 | T99: 0.003 | U99: 0.003 | V99: 0 | W99: 0 | X99: 0 | Y99: 0 | Z99: 0 | AA99: 0 | AB99: 0 | AC99: 0 | AD99: 0 | AE99: 0 | AF99: 0 | AG99: 0 | AH99: 0 | AI99: 0 | AJ99: 0 | AK99: 0 | AL99: 0 | AM99: 0 | AN99: 0 | AO99: 0 | AP99: 0 | AQ99: 0 | AR99: 0 | AS99: 0 | AT99: 0 | AU99: 0 | AV99: 0 | AW99: 0 | AX99: 0
E101: Commitment fee - Senior Debt | G101: % of applicable margin | I101: =Inputs!I95 -> 0.35
E102: Commitment fee - Debt Service Reserve Facility | G102: % of applicable margin | I102: =Inputs!I103 -> 0.35
E103: Commitment fee - Cap and Floor Liquidity Facility | G103: % of applicable margin | I103: =Inputs!I109 -> 0.35
E104: Commitment fee - Standby Debt Facility | G104: % of applicable margin | I104: =Inputs!I114 -> 0.35
E105: Commitment fee - VAT Facility | G105: % of applicable margin | I105: =Inputs!I120 -> 0.35
E106: Commitment fee - Other facilities | G106: % of applicable margin | I106: =Inputs!I125 -> 0
E108: Upfront fee payable - Senior Debt | G108: =CONCATENATE(Inputs!$I$9,"m nominal prices") -> £m nominal prices | K108: =$I$58*$I$78*K14 -> 0 | L108: =$I$58*$I$78*L14 -> 0 | M108: 0 | N108: 0 | O108: 0 | P108: 7.95 | Q108: 0 | R108: 0 | S108: =$I$58*$I$78*S14 -> 0 | T108: 0 | U108: 0 | V108: 0 | W108: 0 | X108: 0 | Y108: 0 | Z108: 0 | AA108: 0 | AB108: 0 | AC108: 0 | AD108: 0 | AE108: 0 | AF108: 0 | AG108: 0 | AH108: 0 | AI108: 0 | AJ108: 0 | AK108: 0 | AL108: 0 | AM108: 0 | AN108: 0 | AO108: 0 | AP108: 0 | AQ108: 0 | AR108: 0 | AS108: 0 | AT108: 0 | AU108: 0 | AV108: 0 | AW108: 0 | AX108: 0
E109: Upfront fee payable - Ancillary Facilities | G109: =CONCATENATE(Inputs!$I$9,"m nominal prices") -> £m nominal prices | K109: =($I$68*$I$79+$I$69*$I$80+$I$71*$I$81+$I$72*$I$82+$I$74*$I$83)*K14 -> 0 | L109: =($I$68*$I$79+$I$69*$I$80+$I$71*$I$81+$I$72*$I$82+$I$74*$I$83)*L14 -> 0 | M109: =($I$68*$I$79+$I$69*$I$80+$I$71*$I$81+$I$72*$I$82+$I$74*$I$83)*M14 -> 0 | N109: 0 | O109: 0 | P109: 0.87 | Q109: 0 | R109: =($I$68*$I$79+$I$69*$I$80+$I$71*$I$81+$I$72*$I$82+$I$74*$I$83)*R14 -> 0 | S109: =($I$68*$I$79+$I$69*$I$80+$I$71*$I$81+$I$72*$I$82+$I$74*$I$83)*S14 -> 0 | T109: 0 | U109: 0 | V109: 0 | W109: 0 | X109: 0 | Y109: 0 | Z109: 0 | AA109: 0 | AB109: 0 | AC109: 0 | AD109: 0 | AE109: 0 | AF109: 0 | AG109: 0 | AH109: 0 | AI109: 0 | AJ109: 0 | AK109: 0 | AL109: 0 | AM109: 0 | AN109: 0 | AO109: 0 | AP109: 0 | AQ109: 0 | AR109: 0 | AS109: 0 | AT109: 0 | AU109: 0 | AV109: 0 | AW109: 0 | AX109: 0
E110: Interest payable - Senior Debt | G110: =CONCATENATE(Inputs!$I$9,"m nominal prices") -> £m nominal prices | K110: =SUM(K63:K64)*K94*K15 -> 0 | L110: =SUM(L63:L64)*L94*L15 -> 0 | M110: 0 | N110: 0 | O110: 0 | P110: 3.538704 | Q110: 7.615464 | R110: =SUM(R63:R64)*R94*R15 -> 12.72 | S110: =SUM(S63:S64)*S94*S15 -> 12.72 | T110: 12.72 | U110: 12.72 | V110: 0 | W110: 0 | X110: 0 | Y110: 0 | Z110: 0 | AA110: 0 | AB110: 0 | AC110: 0 | AD110: 0 | AE110: 0 | AF110: 0 | AG110: 0 | AH110: 0 | AI110: 0 | AJ110: 0 | AK110: 0 | AL110: 0 | AM110: 0 | AN110: 0 | AO110: 0 | AP110: 0 | AQ110: 0 | AR110: 0 | AS110: 0 | AT110: 0 | AU110: 0 | AV110: 0 | AW110: 0 | AX110: 0
E111: Interest payable - Ancillary Facilities | G111: =CONCATENATE(Inputs!$I$9,"m nominal prices") -> £m nominal prices | K111: =$I$73*K98*K15 -> 0 | L111: =$I$73*L98*L15 -> 0 | M111: 0 | N111: 0 | O111: 0 | P111: 0.08 | Q111: 0.08 | R111: 0.08 | S111: 0.08 | T111: 0.08 | U111: 0.08 | V111: 0 | W111: 0 | X111: 0 | Y111: 0 | Z111: 0 | AA111: 0 | AB111: 0 | AC111: 0 | AD111: 0 | AE111: 0 | AF111: 0 | AG111: 0 | AH111: 0 | AI111: 0 | AJ111: 0 | AK111: 0 | AL111: 0 | AM111: 0 | AN111: 0 | AO111: 0 | AP111: 0 | AQ111: 0 | AR111: 0 | AS111: 0 | AT111: 0 | AU111: 0 | AV111: 0 | AW111: 0 | AX111: 0
E112: Commitment fee payable - Senior Debt | G112: =CONCATENATE(Inputs!$I$9,"m nominal prices") -> £m nominal prices | K112: =($I$58-SUM(K63:K64))*(K94-$I$85-$I$87)*$I$101*K15 -> 0 | L112: =($I$58-SUM(L63:L64))*(L94-$I$85-$I$87)*$I$101*L15 -> 0 | M112: 0 | N112: 0 | O112: 0 | P112: 2.677878 | Q112: 1.488823 | R112: 0 | S112: =($I$58-SUM(S63:S64))*(S94-$I$85-$I$87)*$I$101*S15 -> 0 | T112: 0 | U112: 0 | V112: 0 | W112: 0 | X112: 0 | Y112: 0 | Z112: 0 | AA112: 0 | AB112: 0 | AC112: 0 | AD112: 0 | AE112: 0 | AF112: 0 | AG112: 0 | AH112: 0 | AI112: 0 | AJ112: 0 | AK112: 0 | AL112: 0 | AM112: 0 | AN112: 0 | AO112: 0 | AP112: 0 | AQ112: 0 | AR112: 0 | AS112: 0 | AT112: 0 | AU112: 0 | AV112: 0 | AW112: 0 | AX112: 0
E113: Commitment fee payable - Ancillary Facilities | G113: =CONCATENATE(Inputs!$I$9,"m nominal prices") -> £m nominal prices | K113: =($I$68*(K95-$I$85)*$I$102+$I$69*(K96-$I$85)*$I$103+$I$71*(K97-$I$85)*$I$104+($I$72-$I$73)*(K98-$I$85)*$I$105+$I$74*(K99-$I$85)*$I$106)*K15 -> 0 | L113: =($I$68*(L95-$I$85)*$I$102+$I$69*(L96-$I$85)*$I$103+$I$71*(L97-$I$85)*$I$104+($I$72-$I$73)*(L98-$I$85)*$I$105+$I$74*(L99-$I$85)*$I$106)*L15 -> 0 | M113: =($I$68*(M95-$I$85)*$I$102+$I$69*(M96-$I$85)*$I$103+$I$71*(M97-$I$85)*$I$104+($I$72-$I$73)*(M98-$I$85)*$I$105+$I$74*(M99-$I$85)*$I$106)*M15 -> 0 | N113: 0 | O113: 0 | P113: 0.37625 | Q113: 0.37625 | R113: 0.37625 | S113: =($I$68*(S95-$I$85)*$I$102+$I$69*(S96-$I$85)*$I$103+$I$71*(S97-$I$85)*$I$104+($I$72-$I$73)*(S98-$I$85)*$I$105+$I$74*(S99-$I$85)*$I$106)*S15 -> 0.37625 | T113: 0.37625 | U113: =($I$68*(U95-$I$85)*$I$102+$I$69*(U96-$I$85)*$I$103+$I$71*(U97-$I$85)*$I$104+($I$72-$I$73)*(U98-$I$85)*$I$105+$I$74*(U99-$I$85)*$I$106)*U15 -> 0.37625 | V113: =($I$68*(V95-$I$85)*$I$102+$I$69*(V96-$I$85)*$I$103+$I$71*(V97-$I$85)*$I$104+($I$72-$I$73)*(V98-$I$85)*$I$105+$I$74*(V99-$I$85)*$I$106)*V15 -> 0 | W113: 0 | X113: 0 | Y113: 0 | Z113: 0 | AA113: 0 | AB113: 0 | AC113: 0 | AD113: 0 | AE113: 0 | AF113: 0 | AG113: 0 | AH113: 0 | AI113: 0 | AJ113: 0 | AK113: 0 | AL113: 0 | AM113: 0 | AN113: 0 | AO113: 0 | AP113: 0 | AQ113: 0 | AR113: 0 | AS113: 0 | AT113: 0 | AU113: 0 | AV113: 0 | AW113: 0 | AX113: 0
E114: Financial expenses during construction | G114: =CONCATENATE(Inputs!$I$9,"m nominal prices") -> £m nominal prices | K114: =SUM(K108:K113) -> 0 | L114: =SUM(L108:L113) -> 0 | M114: 0 | N114: 0 | O114: 0 | P114: 15.492832 | Q114: 9.560537 | R114: 13.17625 | S114: =SUM(S108:S113) -> 13.17625 | T114: 13.17625 | U114: 13.17625 | V114: 0 | W114: 0 | X114: 0 | Y114: 0 | Z114: 0 | AA114: 0 | AB114: 0 | AC114: 0 | AD114: 0 | AE114: 0 | AF114: 0 | AG114: 0 | AH114: 0 | AI114: 0 | AJ114: 0 | AK114: 0 | AL114: 0 | AM114: 0 | AN114: 0 | AO114: 0 | AP114: 0 | AQ114: 0 | AR114: 0 | AS114: 0 | AT114: 0 | AU114: 0 | AV114: 0 | AW114: 0 | AX114: 0
C116: Financial expenses during operation
E118: Fixed rate - Operation | G118: nominal % | I118: =Inputs!I90 -> 0.006
E119: Operation margin (including swap margin) - Senior Debt | G119: nominal % | K119: =SUMIF(Inputs!$133:$133,Finance!K$16,Inputs!136:136) -> 0 | L119: =SUMIF(Inputs!$133:$133,Finance!L$16,Inputs!136:136) -> 0 | M119: =SUMIF(Inputs!$133:$133,Finance!M$16,Inputs!136:136) -> 0 | N119: =SUMIF(Inputs!$133:$133,Finance!N$16,Inputs!136:136) -> 0 | O119: =SUMIF(Inputs!$133:$133,Finance!O$16,Inputs!136:136) -> 0 | P119: =SUMIF(Inputs!$133:$133,Finance!P$16,Inputs!136:136) -> 0 | Q119: =SUMIF(Inputs!$133:$133,Finance!Q$16,Inputs!136:136) -> 0 | R119: =SUMIF(Inputs!$133:$133,Finance!R$16,Inputs!136:136) -> 0 | S119: =SUMIF(Inputs!$133:$133,Finance!S$16,Inputs!136:136) -> 0 | T119: =SUMIF(Inputs!$133:$133,Finance!T$16,Inputs!136:136) -> 0 | U119: =SUMIF(Inputs!$133:$133,Finance!U$16,Inputs!136:136) -> 0 | V119: =SUMIF(Inputs!$133:$133,Finance!V$16,Inputs!136:136) -> 0.018 | W119: =SUMIF(Inputs!$133:$133,Finance!W$16,Inputs!136:136) -> 0.018 | X119: =SUMIF(Inputs!$133:$133,Finance!X$16,Inputs!136:136) -> 0.018 | Y119: =SUMIF(Inputs!$133:$133,Finance!Y$16,Inputs!136:136) -> 0.018 | Z119: =SUMIF(Inputs!$133:$133,Finance!Z$16,Inputs!136:136) -> 0.018 | AA119: =SUMIF(Inputs!$133:$133,Finance!AA$16,Inputs!136:136) -> 0.02 | AB119: =SUMIF(Inputs!$133:$133,Finance!AB$16,Inputs!136:136) -> 0.02 | AC119: =SUMIF(Inputs!$133:$133,Finance!AC$16,Inputs!136:136) -> 0.02 | AD119: =SUMIF(Inputs!$133:$133,Finance!AD$16,Inputs!136:136) -> 0.02 | AE119: =SUMIF(Inputs!$133:$133,Finance!AE$16,Inputs!136:136) -> 0.02 | AF119: =SUMIF(Inputs!$133:$133,Finance!AF$16,Inputs!136:136) -> 0.022 | AG119: =SUMIF(Inputs!$133:$133,Finance!AG$16,Inputs!136:136) -> 0.022 | AH119: =SUMIF(Inputs!$133:$133,Finance!AH$16,Inputs!136:136) -> 0.022 | AI119: =SUMIF(Inputs!$133:$133,Finance!AI$16,Inputs!136:136) -> 0.022 | AJ119: =SUMIF(Inputs!$133:$133,Finance!AJ$16,Inputs!136:136) -> 0.022 | AK119: =SUMIF(Inputs!$133:$133,Finance!AK$16,Inputs!136:136) -> 0.024 | AL119: =SUMIF(Inputs!$133:$133,Finance!AL$16,Inputs!136:136) -> 0.024 | AM119: =SUMIF(Inputs!$133:$133,Finance!AM$16,Inputs!136:136) -> 0.024 | AN119: =SUMIF(Inputs!$133:$133,Finance!AN$16,Inputs!136:136) -> 0.024 | AO119: =SUMIF(Inputs!$133:$133,Finance!AO$16,Inputs!136:136) -> 0.024 | AP119: =SUMIF(Inputs!$133:$133,Finance!AP$16,Inputs!136:136) -> 0 | AQ119: =SUMIF(Inputs!$133:$133,Finance!AQ$16,Inputs!136:136) -> 0 | AR119: =SUMIF(Inputs!$133:$133,Finance!AR$16,Inputs!136:136) -> 0 | AS119: =SUMIF(Inputs!$133:$133,Finance!AS$16,Inputs!136:136) -> 0 | AT119: =SUMIF(Inputs!$133:$133,Finance!AT$16,Inputs!136:136) -> 0 | AU119: =SUMIF(Inputs!$133:$133,Finance!AU$16,Inputs!136:136) -> 0 | AV119: =SUMIF(Inputs!$133:$133,Finance!AV$16,Inputs!136:136) -> 0 | AW119: =SUMIF(Inputs!$133:$133,Finance!AW$16,Inputs!136:136) -> 0 | AX119: =SUMIF(Inputs!$133:$133,Finance!AX$16,Inputs!136:136) -> 0
E120: Operation margin - Debt Service Reserve Facility | G120: nominal % | K120: =SUMIF(Inputs!$133:$133,Finance!K$16,Inputs!137:137) -> 0 | L120: =SUMIF(Inputs!$133:$133,Finance!L$16,Inputs!137:137) -> 0 | M120: =SUMIF(Inputs!$133:$133,Finance!M$16,Inputs!137:137) -> 0 | N120: =SUMIF(Inputs!$133:$133,Finance!N$16,Inputs!137:137) -> 0 | O120: =SUMIF(Inputs!$133:$133,Finance!O$16,Inputs!137:137) -> 0 | P120: =SUMIF(Inputs!$133:$133,Finance!P$16,Inputs!137:137) -> 0 | Q120: =SUMIF(Inputs!$133:$133,Finance!Q$16,Inputs!137:137) -> 0 | R120: =SUMIF(Inputs!$133:$133,Finance!R$16,Inputs!137:137) -> 0 | S120: =SUMIF(Inputs!$133:$133,Finance!S$16,Inputs!137:137) -> 0 | T120: =SUMIF(Inputs!$133:$133,Finance!T$16,Inputs!137:137) -> 0 | U120: =SUMIF(Inputs!$133:$133,Finance!U$16,Inputs!137:137) -> 0 | V120: =SUMIF(Inputs!$133:$133,Finance!V$16,Inputs!137:137) -> 0.018 | W120: =SUMIF(Inputs!$133:$133,Finance!W$16,Inputs!137:137) -> 0.018 | X120: =SUMIF(Inputs!$133:$133,Finance!X$16,Inputs!137:137) -> 0.018 | Y120: =SUMIF(Inputs!$133:$133,Finance!Y$16,Inputs!137:137) -> 0.018 | Z120: =SUMIF(Inputs!$133:$133,Finance!Z$16,Inputs!137:137) -> 0.018 | AA120: =SUMIF(Inputs!$133:$133,Finance!AA$16,Inputs!137:137) -> 0.02 | AB120: =SUMIF(Inputs!$133:$133,Finance!AB$16,Inputs!137:137) -> 0.02 | AC120: =SUMIF(Inputs!$133:$133,Finance!AC$16,Inputs!137:137) -> 0.02 | AD120: =SUMIF(Inputs!$133:$133,Finance!AD$16,Inputs!137:137) -> 0.02 | AE120: =SUMIF(Inputs!$133:$133,Finance!AE$16,Inputs!137:137) -> 0.02 | AF120: =SUMIF(Inputs!$133:$133,Finance!AF$16,Inputs!137:137) -> 0.022 | AG120: =SUMIF(Inputs!$133:$133,Finance!AG$16,Inputs!137:137) -> 0.022 | AH120: =SUMIF(Inputs!$133:$133,Finance!AH$16,Inputs!137:137) -> 0.022 | AI120: =SUMIF(Inputs!$133:$133,Finance!AI$16,Inputs!137:137) -> 0.022 | AJ120: =SUMIF(Inputs!$133:$133,Finance!AJ$16,Inputs!137:137) -> 0.022 | AK120: =SUMIF(Inputs!$133:$133,Finance!AK$16,Inputs!137:137) -> 0.024 | AL120: =SUMIF(Inputs!$133:$133,Finance!AL$16,Inputs!137:137) -> 0.024 | AM120: =SUMIF(Inputs!$133:$133,Finance!AM$16,Inputs!137:137) -> 0.024 | AN120: =SUMIF(Inputs!$133:$133,Finance!AN$16,Inputs!137:137) -> 0.024 | AO120: =SUMIF(Inputs!$133:$133,Finance!AO$16,Inputs!137:137) -> 0.024 | AP120: =SUMIF(Inputs!$133:$133,Finance!AP$16,Inputs!137:137) -> 0 | AQ120: =SUMIF(Inputs!$133:$133,Finance!AQ$16,Inputs!137:137) -> 0 | AR120: =SUMIF(Inputs!$133:$133,Finance!AR$16,Inputs!137:137) -> 0 | AS120: =SUMIF(Inputs!$133:$133,Finance!AS$16,Inputs!137:137) -> 0 | AT120: =SUMIF(Inputs!$133:$133,Finance!AT$16,Inputs!137:137) -> 0 | AU120: =SUMIF(Inputs!$133:$133,Finance!AU$16,Inputs!137:137) -> 0 | AV120: =SUMIF(Inputs!$133:$133,Finance!AV$16,Inputs!137:137) -> 0 | AW120: =SUMIF(Inputs!$133:$133,Finance!AW$16,Inputs!137:137) -> 0 | AX120: =SUMIF(Inputs!$133:$133,Finance!AX$16,Inputs!137:137) -> 0
E121: Operation margin - Cap and Floor Liquidity Facility | G121: nominal % | K121: =SUMIF(Inputs!$133:$133,Finance!K$16,Inputs!138:138) -> 0 | L121: =SUMIF(Inputs!$133:$133,Finance!L$16,Inputs!138:138) -> 0 | M121: =SUMIF(Inputs!$133:$133,Finance!M$16,Inputs!138:138) -> 0 | N121: =SUMIF(Inputs!$133:$133,Finance!N$16,Inputs!138:138) -> 0 | O121: =SUMIF(Inputs!$133:$133,Finance!O$16,Inputs!138:138) -> 0 | P121: =SUMIF(Inputs!$133:$133,Finance!P$16,Inputs!138:138) -> 0 | Q121: =SUMIF(Inputs!$133:$133,Finance!Q$16,Inputs!138:138) -> 0 | R121: =SUMIF(Inputs!$133:$133,Finance!R$16,Inputs!138:138) -> 0 | S121: =SUMIF(Inputs!$133:$133,Finance!S$16,Inputs!138:138) -> 0 | T121: =SUMIF(Inputs!$133:$133,Finance!T$16,Inputs!138:138) -> 0 | U121: =SUMIF(Inputs!$133:$133,Finance!U$16,Inputs!138:138) -> 0 | V121: =SUMIF(Inputs!$133:$133,Finance!V$16,Inputs!138:138) -> 0.018 | W121: =SUMIF(Inputs!$133:$133,Finance!W$16,Inputs!138:138) -> 0.018 | X121: =SUMIF(Inputs!$133:$133,Finance!X$16,Inputs!138:138) -> 0.018 | Y121: =SUMIF(Inputs!$133:$133,Finance!Y$16,Inputs!138:138) -> 0.018 | Z121: =SUMIF(Inputs!$133:$133,Finance!Z$16,Inputs!138:138) -> 0.018 | AA121: =SUMIF(Inputs!$133:$133,Finance!AA$16,Inputs!138:138) -> 0.02 | AB121: =SUMIF(Inputs!$133:$133,Finance!AB$16,Inputs!138:138) -> 0.02 | AC121: =SUMIF(Inputs!$133:$133,Finance!AC$16,Inputs!138:138) -> 0.02 | AD121: =SUMIF(Inputs!$133:$133,Finance!AD$16,Inputs!138:138) -> 0.02 | AE121: =SUMIF(Inputs!$133:$133,Finance!AE$16,Inputs!138:138) -> 0.02 | AF121: =SUMIF(Inputs!$133:$133,Finance!AF$16,Inputs!138:138) -> 0.022 | AG121: =SUMIF(Inputs!$133:$133,Finance!AG$16,Inputs!138:138) -> 0.022 | AH121: =SUMIF(Inputs!$133:$133,Finance!AH$16,Inputs!138:138) -> 0.022 | AI121: =SUMIF(Inputs!$133:$133,Finance!AI$16,Inputs!138:138) -> 0.022 | AJ121: =SUMIF(Inputs!$133:$133,Finance!AJ$16,Inputs!138:138) -> 0.022 | AK121: =SUMIF(Inputs!$133:$133,Finance!AK$16,Inputs!138:138) -> 0.024 | AL121: =SUMIF(Inputs!$133:$133,Finance!AL$16,Inputs!138:138) -> 0.024 | AM121: =SUMIF(Inputs!$133:$133,Finance!AM$16,Inputs!138:138) -> 0.024 | AN121: =SUMIF(Inputs!$133:$133,Finance!AN$16,Inputs!138:138) -> 0.024 | AO121: =SUMIF(Inputs!$133:$133,Finance!AO$16,Inputs!138:138) -> 0.024 | AP121: =SUMIF(Inputs!$133:$133,Finance!AP$16,Inputs!138:138) -> 0 | AQ121: =SUMIF(Inputs!$133:$133,Finance!AQ$16,Inputs!138:138) -> 0 | AR121: =SUMIF(Inputs!$133:$133,Finance!AR$16,Inputs!138:138) -> 0 | AS121: =SUMIF(Inputs!$133:$133,Finance!AS$16,Inputs!138:138) -> 0 | AT121: =SUMIF(Inputs!$133:$133,Finance!AT$16,Inputs!138:138) -> 0 | AU121: =SUMIF(Inputs!$133:$133,Finance!AU$16,Inputs!138:138) -> 0 | AV121: =SUMIF(Inputs!$133:$133,Finance!AV$16,Inputs!138:138) -> 0 | AW121: =SUMIF(Inputs!$133:$133,Finance!AW$16,Inputs!138:138) -> 0 | AX121: =SUMIF(Inputs!$133:$133,Finance!AX$16,Inputs!138:138) -> 0
E122: Operation margin - Standby Debt Facility | G122: nominal % | K122: =SUMIF(Inputs!$133:$133,Finance!K$16,Inputs!139:139) -> 0 | L122: =SUMIF(Inputs!$133:$133,Finance!L$16,Inputs!139:139) -> 0 | M122: =SUMIF(Inputs!$133:$133,Finance!M$16,Inputs!139:139) -> 0 | N122: =SUMIF(Inputs!$133:$133,Finance!N$16,Inputs!139:139) -> 0 | O122: =SUMIF(Inputs!$133:$133,Finance!O$16,Inputs!139:139) -> 0 | P122: =SUMIF(Inputs!$133:$133,Finance!P$16,Inputs!139:139) -> 0 | Q122: =SUMIF(Inputs!$133:$133,Finance!Q$16,Inputs!139:139) -> 0 | R122: =SUMIF(Inputs!$133:$133,Finance!R$16,Inputs!139:139) -> 0 | S122: =SUMIF(Inputs!$133:$133,Finance!S$16,Inputs!139:139) -> 0 | T122: =SUMIF(Inputs!$133:$133,Finance!T$16,Inputs!139:139) -> 0 | U122: =SUMIF(Inputs!$133:$133,Finance!U$16,Inputs!139:139) -> 0 | V122: =SUMIF(Inputs!$133:$133,Finance!V$16,Inputs!139:139) -> 0.018 | W122: =SUMIF(Inputs!$133:$133,Finance!W$16,Inputs!139:139) -> 0.018 | X122: =SUMIF(Inputs!$133:$133,Finance!X$16,Inputs!139:139) -> 0.018 | Y122: =SUMIF(Inputs!$133:$133,Finance!Y$16,Inputs!139:139) -> 0.018 | Z122: =SUMIF(Inputs!$133:$133,Finance!Z$16,Inputs!139:139) -> 0.018 | AA122: =SUMIF(Inputs!$133:$133,Finance!AA$16,Inputs!139:139) -> 0.02 | AB122: =SUMIF(Inputs!$133:$133,Finance!AB$16,Inputs!139:139) -> 0.02 | AC122: =SUMIF(Inputs!$133:$133,Finance!AC$16,Inputs!139:139) -> 0.02 | AD122: =SUMIF(Inputs!$133:$133,Finance!AD$16,Inputs!139:139) -> 0.02 | AE122: =SUMIF(Inputs!$133:$133,Finance!AE$16,Inputs!139:139) -> 0.02 | AF122: =SUMIF(Inputs!$133:$133,Finance!AF$16,Inputs!139:139) -> 0.022 | AG122: =SUMIF(Inputs!$133:$133,Finance!AG$16,Inputs!139:139) -> 0.022 | AH122: =SUMIF(Inputs!$133:$133,Finance!AH$16,Inputs!139:139) -> 0.022 | AI122: =SUMIF(Inputs!$133:$133,Finance!AI$16,Inputs!139:139) -> 0.022 | AJ122: =SUMIF(Inputs!$133:$133,Finance!AJ$16,Inputs!139:139) -> 0.022 | AK122: =SUMIF(Inputs!$133:$133,Finance!AK$16,Inputs!139:139) -> 0.024 | AL122: =SUMIF(Inputs!$133:$133,Finance!AL$16,Inputs!139:139) -> 0.024 | AM122: =SUMIF(Inputs!$133:$133,Finance!AM$16,Inputs!139:139) -> 0.024 | AN122: =SUMIF(Inputs!$133:$133,Finance!AN$16,Inputs!139:139) -> 0.024 | AO122: =SUMIF(Inputs!$133:$133,Finance!AO$16,Inputs!139:139) -> 0.024 | AP122: =SUMIF(Inputs!$133:$133,Finance!AP$16,Inputs!139:139) -> 0 | AQ122: =SUMIF(Inputs!$133:$133,Finance!AQ$16,Inputs!139:139) -> 0 | AR122: =SUMIF(Inputs!$133:$133,Finance!AR$16,Inputs!139:139) -> 0 | AS122: =SUMIF(Inputs!$133:$133,Finance!AS$16,Inputs!139:139) -> 0 | AT122: =SUMIF(Inputs!$133:$133,Finance!AT$16,Inputs!139:139) -> 0 | AU122: =SUMIF(Inputs!$133:$133,Finance!AU$16,Inputs!139:139) -> 0 | AV122: =SUMIF(Inputs!$133:$133,Finance!AV$16,Inputs!139:139) -> 0 | AW122: =SUMIF(Inputs!$133:$133,Finance!AW$16,Inputs!139:139) -> 0 | AX122: =SUMIF(Inputs!$133:$133,Finance!AX$16,Inputs!139:139) -> 0
E123: Operation margin - Other facilities | G123: nominal % | K123: =SUMIF(Inputs!$133:$133,Finance!K$16,Inputs!141:141) -> 0 | L123: =SUMIF(Inputs!$133:$133,Finance!L$16,Inputs!141:141) -> 0 | M123: =SUMIF(Inputs!$133:$133,Finance!M$16,Inputs!141:141) -> 0 | N123: =SUMIF(Inputs!$133:$133,Finance!N$16,Inputs!141:141) -> 0 | O123: =SUMIF(Inputs!$133:$133,Finance!O$16,Inputs!141:141) -> 0 | P123: =SUMIF(Inputs!$133:$133,Finance!P$16,Inputs!141:141) -> 0 | Q123: =SUMIF(Inputs!$133:$133,Finance!Q$16,Inputs!141:141) -> 0 | R123: =SUMIF(Inputs!$133:$133,Finance!R$16,Inputs!141:141) -> 0 | S123: =SUMIF(Inputs!$133:$133,Finance!S$16,Inputs!141:141) -> 0 | T123: =SUMIF(Inputs!$133:$133,Finance!T$16,Inputs!141:141) -> 0 | U123: =SUMIF(Inputs!$133:$133,Finance!U$16,Inputs!141:141) -> 0 | V123: =SUMIF(Inputs!$133:$133,Finance!V$16,Inputs!141:141) -> 0.018 | W123: =SUMIF(Inputs!$133:$133,Finance!W$16,Inputs!141:141) -> 0.013 | X123: =SUMIF(Inputs!$133:$133,Finance!X$16,Inputs!141:141) -> 0.013 | Y123: =SUMIF(Inputs!$133:$133,Finance!Y$16,Inputs!141:141) -> 0.013 | Z123: =SUMIF(Inputs!$133:$133,Finance!Z$16,Inputs!141:141) -> 0.013 | AA123: =SUMIF(Inputs!$133:$133,Finance!AA$16,Inputs!141:141) -> 0.013 | AB123: =SUMIF(Inputs!$133:$133,Finance!AB$16,Inputs!141:141) -> 0.013 | AC123: =SUMIF(Inputs!$133:$133,Finance!AC$16,Inputs!141:141) -> 0.013 | AD123: =SUMIF(Inputs!$133:$133,Finance!AD$16,Inputs!141:141) -> 0.013 | AE123: =SUMIF(Inputs!$133:$133,Finance!AE$16,Inputs!141:141) -> 0.013 | AF123: =SUMIF(Inputs!$133:$133,Finance!AF$16,Inputs!141:141) -> 0.013 | AG123: =SUMIF(Inputs!$133:$133,Finance!AG$16,Inputs!141:141) -> 0.013 | AH123: =SUMIF(Inputs!$133:$133,Finance!AH$16,Inputs!141:141) -> 0.013 | AI123: =SUMIF(Inputs!$133:$133,Finance!AI$16,Inputs!141:141) -> 0.013 | AJ123: =SUMIF(Inputs!$133:$133,Finance!AJ$16,Inputs!141:141) -> 0.013 | AK123: =SUMIF(Inputs!$133:$133,Finance!AK$16,Inputs!141:141) -> 0.013 | AL123: =SUMIF(Inputs!$133:$133,Finance!AL$16,Inputs!141:141) -> 0.013 | AM123: =SUMIF(Inputs!$133:$133,Finance!AM$16,Inputs!141:141) -> 0.013 | AN123: =SUMIF(Inputs!$133:$133,Finance!AN$16,Inputs!141:141) -> 0.013 | AO123: =SUMIF(Inputs!$133:$133,Finance!AO$16,Inputs!141:141) -> 0.013 | AP123: =SUMIF(Inputs!$133:$133,Finance!AP$16,Inputs!141:141) -> 0 | AQ123: =SUMIF(Inputs!$133:$133,Finance!AQ$16,Inputs!141:141) -> 0 | AR123: =SUMIF(Inputs!$133:$133,Finance!AR$16,Inputs!141:141) -> 0 | AS123: =SUMIF(Inputs!$133:$133,Finance!AS$16,Inputs!141:141) -> 0 | AT123: =SUMIF(Inputs!$133:$133,Finance!AT$16,Inputs!141:141) -> 0 | AU123: =SUMIF(Inputs!$133:$133,Finance!AU$16,Inputs!141:141) -> 0 | AV123: =SUMIF(Inputs!$133:$133,Finance!AV$16,Inputs!141:141) -> 0 | AW123: =SUMIF(Inputs!$133:$133,Finance!AW$16,Inputs!141:141) -> 0 | AX123: =SUMIF(Inputs!$133:$133,Finance!AX$16,Inputs!141:141) -> 0
E125: Total interest rate - Senior Debt | G125: nominal % | K125: =($I$118+K119)*(K$16<>0) -> 0 | L125: =($I$118+L119)*(L$16<>0) -> 0 | M125: 0 | N125: 0 | O125: 0 | P125: 0 | Q125: 0 | R125: 0 | S125: 0 | T125: 0 | U125: 0 | V125: 0.024 | W125: 0.024 | X125: 0.024 | Y125: 0.024 | Z125: 0.024 | AA125: 0.026 | AB125: 0.026 | AC125: 0.026 | AD125: 0.026 | AE125: 0.026 | AF125: 0.028 | AG125: 0.028 | AH125: 0.028 | AI125: 0.028 | AJ125: 0.028 | AK125: 0.03 | AL125: 0.03 | AM125: 0.03 | AN125: 0.03 | AO125: 0.03 | AP125: 0 | AQ125: 0 | AR125: 0 | AS125: 0 | AT125: 0 | AU125: 0 | AV125: 0 | AW125: 0 | AX125: 0
E126: Total interest rate - Debt Service Reserve Facility | G126: nominal % | K126: =($I$118+K120)*(K$16<>0) -> 0 | L126: 0 | M126: 0 | N126: 0 | O126: 0 | P126: 0 | Q126: 0 | R126: 0 | S126: 0 | T126: 0 | U126: 0 | V126: 0.024 | W126: 0.024 | X126: 0.024 | Y126: 0.024 | Z126: 0.024 | AA126: 0.026 | AB126: 0.026 | AC126: 0.026 | AD126: 0.026 | AE126: 0.026 | AF126: 0.028 | AG126: 0.028 | AH126: 0.028 | AI126: 0.028 | AJ126: 0.028 | AK126: 0.03 | AL126: 0.03 | AM126: 0.03 | AN126: 0.03 | AO126: 0.03 | AP126: 0 | AQ126: 0 | AR126: 0 | AS126: 0 | AT126: 0 | AU126: 0 | AV126: 0 | AW126: 0 | AX126: 0
E127: Total interest rate - Cap and Floor Liquidity Facility | G127: nominal % | K127: =($I$118+K121)*(K$16<>0) -> 0 | L127: 0 | M127: 0 | N127: 0 | O127: 0 | P127: 0 | Q127: 0 | R127: 0 | S127: 0 | T127: 0 | U127: 0 | V127: 0.024 | W127: 0.024 | X127: 0.024 | Y127: 0.024 | Z127: 0.024 | AA127: 0.026 | AB127: 0.026 | AC127: 0.026 | AD127: 0.026 | AE127: 0.026 | AF127: 0.028 | AG127: 0.028 | AH127: 0.028 | AI127: 0.028 | AJ127: 0.028 | AK127: 0.03 | AL127: 0.03 | AM127: 0.03 | AN127: 0.03 | AO127: 0.03 | AP127: 0 | AQ127: 0 | AR127: 0 | AS127: 0 | AT127: 0 | AU127: 0 | AV127: 0 | AW127: 0 | AX127: 0
E128: Total interest rate - Standby Debt Facility | G128: nominal % | K128: =($I$118+K122)*(K$16<>0) -> 0 | L128: 0 | M128: 0 | N128: 0 | O128: 0 | P128: 0 | Q128: 0 | R128: 0 | S128: 0 | T128: 0 | U128: 0 | V128: 0.024 | W128: 0.024 | X128: 0.024 | Y128: 0.024 | Z128: 0.024 | AA128: 0.026 | AB128: 0.026 | AC128: 0.026 | AD128: 0.026 | AE128: 0.026 | AF128: 0.028 | AG128: 0.028 | AH128: 0.028 | AI128: 0.028 | AJ128: 0.028 | AK128: 0.03 | AL128: 0.03 | AM128: 0.03 | AN128: 0.03 | AO128: 0.03 | AP128: 0 | AQ128: 0 | AR128: 0 | AS128: 0 | AT128: 0 | AU128: 0 | AV128: 0 | AW128: 0 | AX128: 0
E129: Total interest rate - Other facilities | G129: nominal % | K129: =($I$118+K123)*(K$16<>0) -> 0 | L129: 0 | M129: 0 | N129: 0 | O129: 0 | P129: 0 | Q129: 0 | R129: 0 | S129: 0 | T129: 0 | U129: 0 | V129: 0.024 | W129: 0.019 | X129: 0.019 | Y129: 0.019 | Z129: 0.019 | AA129: 0.019 | AB129: 0.019 | AC129: 0.019 | AD129: 0.019 | AE129: 0.019 | AF129: 0.019 | AG129: 0.019 | AH129: 0.019 | AI129: 0.019 | AJ129: 0.019 | AK129: 0.019 | AL129: 0.019 | AM129: 0.019 | AN129: 0.019 | AO129: 0.019 | AP129: 0 | AQ129: 0 | AR129: 0 | AS129: 0 | AT129: 0 | AU129: 0 | AV129: 0 | AW129: 0 | AX129: 0
E131: Commitment fee - Senior Debt | G131: % of applicable margin | I131: =Inputs!I95 -> 0.35
E132: Commitment fee - Debt Service Reserve Facility | G132: % of applicable margin | I132: =Inputs!I103 -> 0.35
E133: Commitment fee - Cap and Floor Liquidity Facility | G133: % of applicable margin | I133: =Inputs!I109 -> 0.35
E134: Commitment fee - Standby Debt Facility | G134: % of applicable margin | I134: =Inputs!I114 -> 0.35
E135: Commitment fee - Other facilities | G135: % of applicable margin | I135: =Inputs!I125 -> 0
E137: Interest payable - Senior Debt | G137: =CONCATENATE(Inputs!$I$9,"m nominal prices") -> £m nominal prices | K137: =SUM(K63:K64)*K125 -> 0 | L137: =SUM(L63:L64)*L125 -> 0 | M137: 0 | N137: 0 | O137: 0 | P137: 0 | Q137: 0 | R137: 0 | S137: 0 | T137: 0 | U137: 0 | V137: =SUM(V63:V64)*V125 -> 12.72 | W137: 12.48865649 | X137: 12.13048408 | Y137: 11.73961211 | Z137: 11.31301262 | AA137: 11.76650613 | AB137: 11.26659028 | AC137: 10.8506904 | AD137: 10.27623029 | AE137: 9.6423349 | AF137: 9.647428997 | AG137: 8.87454023 | AH137: 8.043177333 | AI137: 7.149964805 | AJ137: 6.191996743 | AK137: 6.387978159 | AL137: 5.3324561 | AM137: 4.123759109 | AN137: 2.83402504 | AO137: 1.4605519 | AP137: 0 | AQ137: 0 | AR137: 0 | AS137: 0 | AT137: 0 | AU137: 0 | AV137: 0 | AW137: 0 | AX137: 0
E138: Interest payable - Ancillary Facilities | G138: =CONCATENATE(Inputs!$I$9,"m nominal prices") -> £m nominal prices | K138: =$I$70*K127 -> 0 | L138: =$I$70*L127 -> 0 | M138: 0 | N138: 0 | O138: 0 | P138: 0 | Q138: 0 | R138: 0 | S138: 0 | T138: 0 | U138: 0 | V138: 0.12 | W138: 0.12 | X138: 0.12 | Y138: 0.12 | Z138: 0.12 | AA138: 0.13 | AB138: 0.13 | AC138: 0.13 | AD138: 0.13 | AE138: 0.13 | AF138: 0.14 | AG138: 0.14 | AH138: 0.14 | AI138: 0.14 | AJ138: 0.14 | AK138: 0.15 | AL138: 0.15 | AM138: 0.15 | AN138: 0.15 | AO138: 0.15 | AP138: 0 | AQ138: 0 | AR138: 0 | AS138: 0 | AT138: 0 | AU138: 0 | AV138: 0 | AW138: 0 | AX138: 0
E139: Commitment fee payable - Ancillary Facilities | G139: =CONCATENATE(Inputs!$I$9,"m nominal prices") -> £m nominal prices | K139: =($I$68*(K126-$I$118)*$I$132+($I$69-$I$70)*(K127-$I$118)*$I$133+$I$74*(K129-$I$118)*$I$135)*(K$16<>0) -> 0 | L139: =($I$68*(L126-$I$118)*$I$132+($I$69-$I$70)*(L127-$I$118)*$I$133+$I$74*(L129-$I$118)*$I$135)*(L$16<>0) -> 0 | M139: 0 | N139: 0 | O139: 0 | P139: 0 | Q139: 0 | R139: =($I$68*(R126-$I$118)*$I$132+($I$69-$I$70)*(R127-$I$118)*$I$133+$I$74*(R129-$I$118)*$I$135)*(R$16<>0) -> 0 | S139: 0 | T139: 0 | U139: 0 | V139: 0.189 | W139: 0.189 | X139: 0.189 | Y139: 0.189 | Z139: 0.189 | AA139: 0.21 | AB139: 0.21 | AC139: 0.21 | AD139: 0.21 | AE139: 0.21 | AF139: 0.231 | AG139: 0.231 | AH139: 0.231 | AI139: 0.231 | AJ139: 0.231 | AK139: 0.252 | AL139: 0.252 | AM139: 0.252 | AN139: 0.252 | AO139: 0.252 | AP139: 0 | AQ139: 0 | AR139: 0 | AS139: 0 | AT139: 0 | AU139: 0 | AV139: 0 | AW139: 0 | AX139: 0
E140: Financial expenses during operation | G140: =CONCATENATE(Inputs!$I$9,"m nominal prices") -> £m nominal prices | K140: =SUM(K137:K139) -> 0 | L140: =SUM(L137:L139) -> 0 | M140: 0 | N140: 0 | O140: 0 | P140: 0 | Q140: 0 | R140: 0 | S140: 0 | T140: 0 | U140: 0 | V140: =SUM(V137:V139) -> 13.029 | W140: 12.79765649 | X140: 12.43948408 | Y140: 12.04861211 | Z140: 11.62201262 | AA140: 12.10650613 | AB140: 11.60659028 | AC140: 11.1906904 | AD140: 10.61623029 | AE140: 9.9823349 | AF140: 10.018429 | AG140: 9.24554023 | AH140: 8.414177333 | AI140: 7.520964805 | AJ140: 6.562996743 | AK140: 6.789978159 | AL140: 5.7344561 | AM140: 4.525759109 | AN140: 3.23602504 | AO140: 1.8625519 | AP140: 0 | AQ140: 0 | AR140: 0 | AS140: 0 | AT140: 0 | AU140: 0 | AV140: 0 | AW140: 0 | AX140: 0
C142: Debt service
E144: Principal repayment | G144: =CONCATENATE(Inputs!$I$9,"m nominal prices") -> £m nominal prices | K144: =-K65 -> 0 | L144: =-L65 -> 0 | M144: 0 | N144: 0 | O144: 0 | P144: 0 | Q144: 0 | R144: 0 | S144: 0 | T144: 0 | U144: 0 | V144: 9.639312904 | W144: 14.92385046 | X144: 16.28633191 | Y144: 17.77497887 | Z144: 18.81759769 | AA144: 19.22753278 | AB144: 15.99614907 | AC144: 22.09461985 | AD144: 24.38059184 | AE144: 26.30799903 | AF144: 27.60317023 | AG144: 29.69153204 | AH144: 31.90044744 | AI144: 34.21314507 | AJ144: 8.210135508 | AK144: 35.18406863 | AL144: 40.28989972 | AM144: 42.99113562 | AN144: 45.78243801 | AO144: 48.68506333 | AP144: 0 | AQ144: 0 | AR144: 0 | AS144: 0 | AT144: 0 | AU144: 0 | AV144: 0 | AW144: 0 | AX144: 0
E145: Financial expenses during operation | G145: =CONCATENATE(Inputs!$I$9,"m nominal prices") -> £m nominal prices | K145: =K140 -> 0 | L145: =L140 -> 0 | M145: 0 | N145: 0 | O145: 0 | P145: 0 | Q145: 0 | R145: 0 | S145: 0 | T145: 0 | U145: 0 | V145: 13.029 | W145: 12.79765649 | X145: 12.43948408 | Y145: 12.04861211 | Z145: 11.62201262 | AA145: 12.10650613 | AB145: 11.60659028 | AC145: 11.1906904 | AD145: 10.61623029 | AE145: 9.9823349 | AF145: 10.018429 | AG145: 9.24554023 | AH145: 8.414177333 | AI145: 7.520964805 | AJ145: 6.562996743 | AK145: 6.789978159 | AL145: 5.7344561 | AM145: 4.525759109 | AN145: 3.23602504 | AO145: 1.8625519 | AP145: 0 | AQ145: 0 | AR145: 0 | AS145: 0 | AT145: 0 | AU145: 0 | AV145: 0 | AW145: 0 | AX145: 0
E146: Total debt service | G146: =CONCATENATE(Inputs!$I$9,"m nominal prices") -> £m nominal prices | K146: =SUM(K144:K145) -> 0 | L146: =SUM(L144:L145) -> 0 | M146: 0 | N146: 0 | O146: 0 | P146: 0 | Q146: 0 | R146: 0 | S146: 0 | T146: 0 | U146: 0 | V146: 22.6683129 | W146: 27.72150695 | X146: 28.72581599 | Y146: 29.82359098 | Z146: 30.43961031 | AA146: 31.33403891 | AB146: 27.60273935 | AC146: 33.28531026 | AD146: 34.99682213 | AE146: 36.29033393 | AF146: 37.62159922 | AG146: 38.93707227 | AH146: 40.31462477 | AI146: 41.73410987 | AJ146: 14.77313225 | AK146: 41.97404679 | AL146: 46.02435582 | AM146: 47.51689473 | AN146: 49.01846305 | AO146: 50.54761523 | AP146: 0 | AQ146: 0 | AR146: 0 | AS146: 0 | AT146: 0 | AU146: 0 | AV146: 0 | AW146: 0 | AX146: 0
E148: DSCR sizing | G148: =Inputs!G87 -> DSCRx | I148: =Inputs!I87 -> 1.2
E150: Total debt service including buffer | G150: =CONCATENATE(Inputs!$I$9,"m nominal prices") -> £m nominal prices | K150: =K146*$I$148 -> 0 | L150: =L146*$I$148 -> 0 | M150: 0 | N150: 0 | O150: 0 | P150: 0 | Q150: 0 | R150: 0 | S150: 0 | T150: 0 | U150: 0 | V150: 27.20197548 | W150: 33.26580834 | X150: 34.47097919 | Y150: 35.78830918 | Z150: 36.52753238 | AA150: 37.6008467 | AB150: 33.12328722 | AC150: 39.94237231 | AD150: 41.99618655 | AE150: 43.54840071 | AF150: 45.14591907 | AG150: 46.72448673 | AH150: 48.37754972 | AI150: 50.08093185 | AJ150: 17.7277587 | AK150: 50.36885615 | AL150: 55.22922699 | AM150: 57.02027368 | AN150: 58.82215566 | AO150: 60.65713827 | AP150: 0 | AQ150: 0 | AR150: 0 | AS150: 0 | AT150: 0 | AU150: 0 | AV150: 0 | AW150: 0 | AX150: 0
E151: Total debt service including buffer | G151: =Inputs!$I$11 -> £m 20/21 prices | K151: =K150/Inputs!K$32 -> 0 | L151: =L150/Inputs!L$32 -> 0 | M151: =M150/Inputs!M$32 -> 0 | N151: =N150/Inputs!N$32 -> 0 | O151: =O150/Inputs!O$32 -> 0 | P151: =P150/Inputs!P$32 -> 0 | Q151: =Q150/Inputs!Q$32 -> 0 | R151: =R150/Inputs!R$32 -> 0 | S151: =S150/Inputs!S$32 -> 0 | T151: =T150/Inputs!T$32 -> 0 | U151: =U150/Inputs!U$32 -> 0 | V151: =V150/Inputs!V$32 -> 23.89768397 | W151: =W150/Inputs!W$32 -> 28.32421785 | X151: =X150/Inputs!X$32 -> 28.44578622 | Y151: =Y150/Inputs!Y$32 -> 28.62265914 | Z151: =Z150/Inputs!Z$32 -> 28.31350329 | AA151: =AA150/Inputs!AA$32 -> 28.24719808 | AB151: =AB150/Inputs!AB$32 -> 24.11657655 | AC151: =AC150/Inputs!AC$32 -> 28.18516356 | AD151: =AD150/Inputs!AD$32 -> 28.72109785 | AE151: =AE150/Inputs!AE$32 -> 28.86475444 | AF151: =AF150/Inputs!AF$32 -> 29.00137787 | AG151: =AG150/Inputs!AG$32 -> 29.09036357 | AH151: =AH150/Inputs!AH$32 -> 29.1912676 | AI151: =AI150/Inputs!AI$32 -> 29.28774697 | AJ151: =AJ150/Inputs!AJ$32 -> 10.04782057 | AK151: =AK150/Inputs!AK$32 -> 27.66843557 | AL151: =AL150/Inputs!AL$32 -> 29.40329199 | AM151: =AM150/Inputs!AM$32 -> 29.42122599 | AN151: =AN150/Inputs!AN$32 -> 29.41554377 | AO151: =AO150/Inputs!AO$32 -> 29.39830819 | AP151: =AP150/Inputs!AP$32 -> 0 | AQ151: =AQ150/Inputs!AQ$32 -> 0 | AR151: =AR150/Inputs!AR$32 -> 0 | AS151: =AS150/Inputs!AS$32 -> 0 | AT151: =AT150/Inputs!AT$32 -> 0 | AU151: =AU150/Inputs!AU$32 -> 0 | AV151: =AV150/Inputs!AV$32 -> 0 | AW151: =AW150/Inputs!AW$32 -> 0 | AX151: =AX150/Inputs!AX$32 -> 0
C153: DSRA calculation
E155: DSRA pre-funding | K155: =Inputs!$I$100*Finance!K12*(Inputs!$I$127=2) -> 0 | L155: =Inputs!$I$100*Finance!L12*(Inputs!$I$127=2) -> 0 | M155: =Inputs!$I$100*Finance!M12*(Inputs!$I$127=2) -> 0 | N155: =Inputs!$I$100*Finance!N12*(Inputs!$I$127=2) -> 0 | O155: =Inputs!$I$100*Finance!O12*(Inputs!$I$127=2) -> 0 | P155: =Inputs!$I$100*Finance!P12*(Inputs!$I$127=2) -> 0 | Q155: =Inputs!$I$100*Finance!Q12*(Inputs!$I$127=2) -> 0 | R155: =Inputs!$I$100*Finance!R12*(Inputs!$I$127=2) -> 0 | S155: =Inputs!$I$100*Finance!S12*(Inputs!$I$127=2) -> 0 | T155: =Inputs!$I$100*Finance!T12*(Inputs!$I$127=2) -> 0 | U155: =Inputs!$I$100*Finance!U12*(Inputs!$I$127=2) -> 0 | V155: =Inputs!$I$100*Finance!V12*(Inputs!$I$127=2) -> 0 | W155: =Inputs!$I$100*Finance!W12*(Inputs!$I$127=2) -> 0 | X155: =Inputs!$I$100*Finance!X12*(Inputs!$I$127=2) -> 0 | Y155: =Inputs!$I$100*Finance!Y12*(Inputs!$I$127=2) -> 0 | Z155: =Inputs!$I$100*Finance!Z12*(Inputs!$I$127=2) -> 0 | AA155: =Inputs!$I$100*Finance!AA12*(Inputs!$I$127=2) -> 0 | AB155: =Inputs!$I$100*Finance!AB12*(Inputs!$I$127=2) -> 0 | AC155: =Inputs!$I$100*Finance!AC12*(Inputs!$I$127=2) -> 0 | AD155: =Inputs!$I$100*Finance!AD12*(Inputs!$I$127=2) -> 0 | AE155: =Inputs!$I$100*Finance!AE12*(Inputs!$I$127=2) -> 0 | AF155: =Inputs!$I$100*Finance!AF12*(Inputs!$I$127=2) -> 0 | AG155: =Inputs!$I$100*Finance!AG12*(Inputs!$I$127=2) -> 0 | AH155: =Inputs!$I$100*Finance!AH12*(Inputs!$I$127=2) -> 0 | AI155: =Inputs!$I$100*Finance!AI12*(Inputs!$I$127=2) -> 0 | AJ155: =Inputs!$I$100*Finance!AJ12*(Inputs!$I$127=2) -> 0 | AK155: =Inputs!$I$100*Finance!AK12*(Inputs!$I$127=2) -> 0 | AL155: =Inputs!$I$100*Finance!AL12*(Inputs!$I$127=2) -> 0 | AM155: =Inputs!$I$100*Finance!AM12*(Inputs!$I$127=2) -> 0 | AN155: =Inputs!$I$100*Finance!AN12*(Inputs!$I$127=2) -> 0 | AO155: =Inputs!$I$100*Finance!AO12*(Inputs!$I$127=2) -> 0 | AP155: =Inputs!$I$100*Finance!AP12*(Inputs!$I$127=2) -> 0 | AQ155: =Inputs!$I$100*Finance!AQ12*(Inputs!$I$127=2) -> 0 | AR155: =Inputs!$I$100*Finance!AR12*(Inputs!$I$127=2) -> 0 | AS155: =Inputs!$I$100*Finance!AS12*(Inputs!$I$127=2) -> 0 | AT155: =Inputs!$I$100*Finance!AT12*(Inputs!$I$127=2) -> 0 | AU155: =Inputs!$I$100*Finance!AU12*(Inputs!$I$127=2) -> 0 | AV155: =Inputs!$I$100*Finance!AV12*(Inputs!$I$127=2) -> 0 | AW155: =Inputs!$I$100*Finance!AW12*(Inputs!$I$127=2) -> 0 | AX155: =Inputs!$I$100*Finance!AX12*(Inputs!$I$127=2) -> 0
B157: End of sheet

Sheet Op Rav
A1: Op RAV | H1: Licence
E2: Parameter | G2: Units | H2: Terminology | I2: Constant | K2: Annual values
E3: Project year | K3: Year 1 | L3: Year 2 | M3: Year 3 | N3: Year 4 | O3: Year 5 | P3: Year 6 | Q3: Year 7 | R3: Year 8 | S3: Year 9 | T3: Year 10 | U3: Year 11 | V3: Year 12 | W3: Year 13 | X3: Year 14 | Y3: Year 15 | Z3: Year 16 | AA3: Year 17 | AB3: Year 18 | AC3: Year 19 | AD3: Year 20 | AE3: Year 21 | AF3: Year 22 | AG3: Year 23 | AH3: Year 24 | AI3: Year 25
B5: RAV
C7: Operational
E9: Opening operational RAV (before transfers) | G9: =Inputs!$I$11 -> £m 20/21 prices | K9: =J15 -> 0 | L9: 847.1271844 | M9: 811.8302184 | N9: 776.5332524 | O9: 741.2362864 | P9: 705.9393204 | Q9: 670.6423544 | R9: 639.3518564 | S9: 603.8323088 | T9: 568.3127612 | U9: 532.7932136 | V9: 497.2736661 | W9: 461.7541185 | X9: 426.2345709 | Y9: 390.7150233 | Z9: 380.235901 | AA9: 342.2123109 | AB9: 304.1887208 | AC9: 266.1651307 | AD9: 228.1415406 | AE9: 190.1179505 | AF9: 152.0943604 | AG9: 114.0707703 | AH9: 81.05526525 | AI9: 40.52763263
E10: Transfers of transaction costs | G10: =Inputs!$I$11 -> £m 20/21 prices | K10: =-SUM(Finance!K49:AX49) -> 40.9297955
E11: Transfers of pre-operational RAV | G11: =Inputs!$I$11 -> £m 20/21 prices | K11: =-SUM('Pre Op RAV'!K25:AX25) -> 841.494355
E12: Opening operational RAV (after transfers) | G12: =Inputs!$I$11 -> £m 20/21 prices | K12: =SUM(K9:K11) -> 882.4241505 | L12: =SUM(L9:L11) -> 847.1271844 | M12: =SUM(M9:M11) -> 811.8302184 | N12: 776.5332524 | O12: 741.2362864 | P12: 705.9393204 | Q12: 670.6423544 | R12: 639.3518564 | S12: 603.8323088 | T12: 568.3127612 | U12: 532.7932136 | V12: 497.2736661 | W12: 461.7541185 | X12: 426.2345709 | Y12: 390.7150233 | Z12: 380.235901 | AA12: 342.2123109 | AB12: 304.1887208 | AC12: 266.1651307 | AD12: 228.1415406 | AE12: 190.1179505 | AF12: 152.0943604 | AG12: 114.0707703 | AH12: 81.05526525 | AI12: 40.52763263
E13: Replacement Capex | G13: =Inputs!$I$11 -> £m 20/21 prices | K13: =Inputs!K59 -> 0 | L13: =Inputs!L59 -> 0 | M13: =Inputs!M59 -> 0 | N13: =Inputs!N59 -> 0 | O13: =Inputs!O59 -> 0 | P13: =Inputs!P59 -> 0 | Q13: =Inputs!Q59 -> 4.00646804 | R13: =Inputs!R59 -> 0 | S13: =Inputs!S59 -> 0 | T13: =Inputs!T59 -> 0 | U13: =Inputs!U59 -> 0 | V13: =Inputs!V59 -> 0 | W13: =Inputs!W59 -> 0 | X13: =Inputs!X59 -> 0 | Y13: =Inputs!Y59 -> 25.04042525 | Z13: =Inputs!Z59 -> 0 | AA13: =Inputs!AA59 -> 0 | AB13: =Inputs!AB59 -> 0 | AC13: =Inputs!AC59 -> 0 | AD13: =Inputs!AD59 -> 0 | AE13: =Inputs!AE59 -> 0 | AF13: =Inputs!AF59 -> 0 | AG13: =Inputs!AG59 -> 5.008085049 | AH13: =Inputs!AH59 -> 0 | AI13: =Inputs!AI59 -> 0
E14: Depreciation (negative) | G14: =Inputs!$I$11 -> £m 20/21 prices | K14: =- K25 -> -35.29696602 | L14: =- L25 -> -35.29696602 | M14: =- M25 -> -35.29696602 | N14: -35.29696602 | O14: -35.29696602 | P14: -35.29696602 | Q14: -35.29696602 | R14: -35.51954758 | S14: -35.51954758 | T14: -35.51954758 | U14: -35.51954758 | V14: -35.51954758 | W14: -35.51954758 | X14: -35.51954758 | Y14: -35.51954758 | Z14: -38.0235901 | AA14: -38.0235901 | AB14: -38.0235901 | AC14: -38.0235901 | AD14: -38.0235901 | AE14: -38.0235901 | AF14: -38.0235901 | AG14: -38.0235901 | AH14: -40.52763263 | AI14: -40.52763263
E15: Closing operational RAV | G15: =Inputs!$I$11 -> £m 20/21 prices | K15: =SUM(K12:K14) -> 847.1271844 | L15: 811.8302184 | M15: 776.5332524 | N15: 741.2362864 | O15: 705.9393204 | P15: 670.6423544 | Q15: 639.3518564 | R15: 603.8323088 | S15: 568.3127612 | T15: 532.7932136 | U15: 497.2736661 | V15: 461.7541185 | W15: 426.2345709 | X15: 390.7150233 | Y15: 380.235901 | Z15: 342.2123109 | AA15: 304.1887208 | AB15: 266.1651307 | AC15: 228.1415406 | AD15: 190.1179505 | AE15: 152.0943604 | AF15: 114.0707703 | AG15: 81.05526525 | AH15: 40.52763263 | AI15: 0
E17: Average operational RAV | G17: =Inputs!$I$11 -> £m 20/21 prices | K17: =AVERAGE(K12, K15) -> 864.7756675 | L17: =AVERAGE(L12, L15) -> 829.4787014 | M17: 794.1817354 | N17: 758.8847694 | O17: 723.5878034 | P17: 688.2908374 | Q17: 654.9971054 | R17: 621.5920826 | S17: 586.072535 | T17: 550.5529874 | U17: 515.0334399 | V17: 479.5138923 | W17: 443.9943447 | X17: 408.4747971 | Y17: 385.4754622 | Z17: 361.224106 | AA17: =AVERAGE(AA12, AA15) -> 323.2005159 | AB17: 285.1769258 | AC17: 247.1533357 | AD17: 209.1297456 | AE17: 171.1061555 | AF17: 133.0825654 | AG17: 97.56301778 | AH17: 60.79144894 | AI17: 20.26381631
B19: Operational RAV depreciation
E21: Number of operational years | G21: full years | I21: =Inputs!I155 -> 25
E22: Years remaining until end of operational period | G22: full years | K22: =I21 -> 25 | L22: =+K22-1 -> 24 | M22: =+L22-1 -> 23 | N22: 22 | O22: 21 | P22: 20 | Q22: 19 | R22: 18 | S22: 17 | T22: 16 | U22: 15 | V22: 14 | W22: 13 | X22: 12 | Y22: 11 | Z22: 10 | AA22: 9 | AB22: 8 | AC22: 7 | AD22: 6 | AE22: 5 | AF22: 4 | AG22: 3 | AH22: 2 | AI22: 1
E23: Year is before end of operational period | G23: flag | K23: =K22 > 0 -> TRUE | L23: TRUE | M23: TRUE | N23: TRUE | O23: TRUE | P23: TRUE | Q23: TRUE | R23: TRUE | S23: TRUE | T23: TRUE | U23: TRUE | V23: TRUE | W23: TRUE | X23: TRUE | Y23: TRUE | Z23: TRUE | AA23: TRUE | AB23: TRUE | AC23: TRUE | AD23: TRUE | AE23: TRUE | AF23: TRUE | AG23: TRUE | AH23: TRUE | AI23: TRUE
E25: RAV depreciation | G25: =Inputs!$I$11 -> £m 20/21 prices | K25: =IF(K23, IF(K22=1,SUM(K12:K13),K12 / K22), 0) -> 35.29696602 | L25: =IF(L23, IF(L22=1,SUM(L12:L13),L12 / L22), 0) -> 35.29696602 | M25: 35.29696602 | N25: 35.29696602 | O25: 35.29696602 | P25: 35.29696602 | Q25: 35.29696602 | R25: 35.51954758 | S25: 35.51954758 | T25: 35.51954758 | U25: 35.51954758 | V25: 35.51954758 | W25: 35.51954758 | X25: 35.51954758 | Y25: 35.51954758 | Z25: 38.0235901 | AA25: 38.0235901 | AB25: 38.0235901 | AC25: 38.0235901 | AD25: 38.0235901 | AE25: 38.0235901 | AF25: 38.0235901 | AG25: 38.0235901 | AH25: 40.52763263 | AI25: 40.52763263
E27: Depreciation equal to additions | G27: check | I27: =IF(ABS(SUM('Pre Op RAV'!K20:AX23,Finance!K43:AX46,Finance!K48:AX48,K13:AI13)-SUM(K25:AI25))<0.00000001,"TRUE","FALSE") -> TRUE
B29: Operational RAV return
E31: Cap return rate | G31: =Inputs!G68 -> real annual % | I31: =Inputs!I68 -> 0.0823
E32: Floor return rate | G32: =Inputs!G69 -> real annual % | I32: =Inputs!I69 -> -0.0051
E34: Opening operational RAV (after transfers) | G34: =Inputs!$I$11 -> £m 20/21 prices | K34: =K12 -> 882.4241505 | L34: 847.1271844 | M34: 811.8302184 | N34: 776.5332524 | O34: 741.2362864 | P34: 705.9393204 | Q34: 670.6423544 | R34: 639.3518564 | S34: 603.8323088 | T34: 568.3127612 | U34: 532.7932136 | V34: 497.2736661 | W34: 461.7541185 | X34: 426.2345709 | Y34: 390.7150233 | Z34: 380.235901 | AA34: 342.2123109 | AB34: 304.1887208 | AC34: 266.1651307 | AD34: 228.1415406 | AE34: 190.1179505 | AF34: 152.0943604 | AG34: 114.0707703 | AH34: 81.05526525 | AI34: 40.52763263
E35: Closing operational RAV | G35: =Inputs!$I$11 -> £m 20/21 prices | K35: =K15 -> 847.1271844 | L35: 811.8302184 | M35: 776.5332524 | N35: 741.2362864 | O35: 705.9393204 | P35: 670.6423544 | Q35: 639.3518564 | R35: 603.8323088 | S35: 568.3127612 | T35: 532.7932136 | U35: 497.2736661 | V35: 461.7541185 | W35: 426.2345709 | X35: 390.7150233 | Y35: 380.235901 | Z35: 342.2123109 | AA35: 304.1887208 | AB35: 266.1651307 | AC35: 228.1415406 | AD35: 190.1179505 | AE35: 152.0943604 | AF35: 114.0707703 | AG35: 81.05526525 | AH35: 40.52763263 | AI35: 0
E37: NPV neutral return base (cap) | G37: =Inputs!$I$11 -> £m 20/21 prices | K37: =0.5 * K$34 + 0.5 * K$35 / (1 + $I31) -> 832.5671452 | L37: =0.5 * L$34 + 0.5 * L$35 / (1 + $I31) -> 798.6122009 | M37: 764.6572567 | N37: 730.7023124 | O37: 696.7473682 | P37: 662.7924239 | Q37: 630.6883842 | R37: 598.633846 | S37: 564.4647829 | T37: 530.2957198 | U37: 496.1266567 | V37: 461.9575937 | W37: 427.7885306 | X37: 393.6194675 | Y37: 371.0185581 | Z37: 348.2128923 | AA37: 311.6349926 | AB37: 275.0570929 | AC37: 238.4791932 | AD37: 201.9012935 | AE37: 165.3233938 | AF37: 128.7454941 | AG37: 94.48122515 | AH37: 59.25055262 | AI37: 20.26381631
E38: NPV neutral return base (floor) | G38: =Inputs!$I$11 -> £m 20/21 prices | K38: =0.5 * K$34 + 0.5 * K$35 / (1 + $I32) -> 866.9469151 | L38: 831.5594805 | M38: 796.1720458 | N38: 760.7846111 | O38: 725.3971765 | P38: 690.0097418 | Q38: 656.63581 | R38: 623.1397481 | S38: 587.5291613 | T38: 551.9185746 | U38: 516.3079879 | V38: 480.6974012 | W38: 445.0868145 | X38: 409.4762277 | Y38: 386.450034 | Z38: 362.1012206 | AA38: 323.9801734 | AB38: 285.8591261 | AC38: 247.7380788 | AD38: 209.6170315 | AE38: 171.4959842 | AF38: 133.3749369 | AG38: 97.77076823 | AH38: 60.89532417 | AI38: 20.26381631
E40: Return (cap) | G40: =Inputs!$I$11 -> £m 20/21 prices | K40: =K37 * $I31 -> 68.52027605 | L40: 65.72578414 | M40: 62.93129223 | N40: 60.13680031 | O40: 57.3423084 | P40: 54.54781649 | Q40: 51.90565402 | R40: 49.26756552 | S40: 46.45545163 | T40: 43.64333774 | U40: 40.83122385 | V40: 38.01910996 | W40: 35.20699607 | X40: 32.39488218 | Y40: 30.53482733 | Z40: 28.65792103 | AA40: 25.64755989 | AB40: 22.63719874 | AC40: 19.6268376 | AD40: 16.61647645 | AE40: 13.60611531 | AF40: 10.59575417 | AG40: 7.77580483 | AH40: 4.876320481 | AI40: 1.667712083
E41: Return (floor) | G41: =Inputs!$I$11 -> £m 20/21 prices | K41: =K38 * $I32 -> -4.421429267 | L41: -4.24095335 | M41: -4.060477434 | N41: -3.880001517 | O41: -3.6995256 | P41: -3.519049683 | Q41: -3.348842631 | R41: -3.178012715 | S41: -2.996398723 | T41: -2.814784731 | U41: -2.633170738 | V41: -2.451556746 | W41: -2.269942754 | X41: -2.088328761 | Y41: -1.970895174 | Z41: -1.846716225 | AA41: -1.652298884 | AB41: -1.457881543 | AC41: -1.263464202 | AD41: -1.069046861 | AE41: -0.8746295194 | AF41: -0.6802121783 | AG41: -0.498630918 | AH41: -0.3105661532 | AI41: -0.1033454632
B43: End of sheet

Sheet Allowances Cap
A1: Allowances Cap | H1: Licence
E2: Parameter | G2: Units | H2: Terminology | I2: Constant | K2: Annual values
E3: Project year | K3: Year 1 | L3: Year 2 | M3: Year 3 | N3: Year 4 | O3: Year 5 | P3: Year 6 | Q3: Year 7 | R3: Year 8 | S3: Year 9 | T3: Year 10 | U3: Year 11 | V3: Year 12 | W3: Year 13 | X3: Year 14 | Y3: Year 15 | Z3: Year 16 | AA3: Year 17 | AB3: Year 18 | AC3: Year 19 | AD3: Year 20 | AE3: Year 21 | AF3: Year 22 | AG3: Year 23 | AH3: Year 24 | AI3: Year 25
E4: Year | K4: 1 | L4: =+K4+1 -> 2 | M4: =+L4+1 -> 3 | N4: 4 | O4: 5 | P4: 6 | Q4: 7 | R4: 8 | S4: 9 | T4: 10 | U4: 11 | V4: 12 | W4: 13 | X4: 14 | Y4: 15 | Z4: 16 | AA4: 17 | AB4: 18 | AC4: 19 | AD4: 20 | AE4: 21 | AF4: 22 | AG4: 23 | AH4: 24 | AI4: 25
B6: Unprofiled allowances except tax (cap)
E8: Controllable Opex | G8: =Inputs!$I$11 -> £m 20/21 prices | K8: =Inputs!K61 -> 13.41820065 | L8: =Inputs!L61 -> 20.64338562 | M8: =Inputs!M61 -> 18.06296241 | N8: =Inputs!N61 -> 18.06296241 | O8: =Inputs!O61 -> 18.06296241 | P8: =Inputs!P61 -> 18.06296241 | Q8: =Inputs!Q61 -> 18.06296241 | R8: =Inputs!R61 -> 18.06296241 | S8: =Inputs!S61 -> 18.06296241 | T8: =Inputs!T61 -> 18.06296241 | U8: =Inputs!U61 -> 18.06296241 | V8: =Inputs!V61 -> 18.06296241 | W8: =Inputs!W61 -> 18.06296241 | X8: =Inputs!X61 -> 18.06296241 | Y8: =Inputs!Y61 -> 18.06296241 | Z8: =Inputs!Z61 -> 18.06296241 | AA8: =Inputs!AA61 -> 18.06296241 | AB8: =Inputs!AB61 -> 18.06296241 | AC8: =Inputs!AC61 -> 18.06296241 | AD8: =Inputs!AD61 -> 18.06296241 | AE8: =Inputs!AE61 -> 18.06296241 | AF8: =Inputs!AF61 -> 18.06296241 | AG8: =Inputs!AG61 -> 18.06296241 | AH8: =Inputs!AH61 -> 18.06296241 | AI8: =Inputs!AI61 -> 18.06296241
E9: Non-controllable Opex (baseline) | G9: =Inputs!$I$11 -> £m 20/21 prices | K9: =Inputs!K62 -> 0 | L9: =Inputs!L62 -> 0 | M9: =Inputs!M62 -> 0 | N9: =Inputs!N62 -> 0 | O9: =Inputs!O62 -> 0 | P9: =Inputs!P62 -> 0 | Q9: =Inputs!Q62 -> 0 | R9: =Inputs!R62 -> 0 | S9: =Inputs!S62 -> 0 | T9: =Inputs!T62 -> 0 | U9: =Inputs!U62 -> 0 | V9: =Inputs!V62 -> 0 | W9: =Inputs!W62 -> 0 | X9: =Inputs!X62 -> 0 | Y9: =Inputs!Y62 -> 0 | Z9: =Inputs!Z62 -> 0 | AA9: =Inputs!AA62 -> 0 | AB9: =Inputs!AB62 -> 0 | AC9: =Inputs!AC62 -> 0 | AD9: =Inputs!AD62 -> 0 | AE9: =Inputs!AE62 -> 0 | AF9: =Inputs!AF62 -> 0 | AG9: =Inputs!AG62 -> 0 | AH9: =Inputs!AH62 -> 0 | AI9: =Inputs!AI62 -> 0
E10: Decommissioning baseline | G10: =Inputs!$I$11 -> £m 20/21 prices | K10: =Inputs!K60 -> 0.1857904706 | L10: =Inputs!L60 -> 0.1857904706 | M10: =Inputs!M60 -> 0.1857904706 | N10: =Inputs!N60 -> 0.1857904706 | O10: =Inputs!O60 -> 0.1857904706 | P10: =Inputs!P60 -> 0.1857904706 | Q10: =Inputs!Q60 -> 0.1857904706 | R10: =Inputs!R60 -> 0.1857904706 | S10: =Inputs!S60 -> 0.1857904706 | T10: =Inputs!T60 -> 0.1857904706 | U10: =Inputs!U60 -> 0.1857904706 | V10: =Inputs!V60 -> 0.1857904706 | W10: =Inputs!W60 -> 0.1857904706 | X10: =Inputs!X60 -> 0.1857904706 | Y10: =Inputs!Y60 -> 0.1857904706 | Z10: =Inputs!Z60 -> 0.1857904706 | AA10: =Inputs!AA60 -> 0.1857904706 | AB10: =Inputs!AB60 -> 0.1857904706 | AC10: =Inputs!AC60 -> 0.1857904706 | AD10: =Inputs!AD60 -> 0.1857904706 | AE10: =Inputs!AE60 -> 0.1857904706 | AF10: =Inputs!AF60 -> 0.1857904706 | AG10: =Inputs!AG60 -> 0.1857904706 | AH10: =Inputs!AH60 -> 0.1857904706 | AI10: =Inputs!AI60 -> 0.1857904706
E11: RAV depreciation | G11: =Inputs!$I$11 -> £m 20/21 prices | K11: ='Op Rav'!K25 -> 35.29696602 | L11: ='Op Rav'!L25 -> 35.29696602 | M11: ='Op Rav'!M25 -> 35.29696602 | N11: ='Op Rav'!N25 -> 35.29696602 | O11: ='Op Rav'!O25 -> 35.29696602 | P11: ='Op Rav'!P25 -> 35.29696602 | Q11: ='Op Rav'!Q25 -> 35.29696602 | R11: ='Op Rav'!R25 -> 35.51954758 | S11: ='Op Rav'!S25 -> 35.51954758 | T11: ='Op Rav'!T25 -> 35.51954758 | U11: ='Op Rav'!U25 -> 35.51954758 | V11: ='Op Rav'!V25 -> 35.51954758 | W11: ='Op Rav'!W25 -> 35.51954758 | X11: ='Op Rav'!X25 -> 35.51954758 | Y11: ='Op Rav'!Y25 -> 35.51954758 | Z11: ='Op Rav'!Z25 -> 38.0235901 | AA11: ='Op Rav'!AA25 -> 38.0235901 | AB11: ='Op Rav'!AB25 -> 38.0235901 | AC11: ='Op Rav'!AC25 -> 38.0235901 | AD11: ='Op Rav'!AD25 -> 38.0235901 | AE11: ='Op Rav'!AE25 -> 38.0235901 | AF11: ='Op Rav'!AF25 -> 38.0235901 | AG11: ='Op Rav'!AG25 -> 38.0235901 | AH11: ='Op Rav'!AH25 -> 40.52763263 | AI11: ='Op Rav'!AI25 -> 40.52763263
E12: Return (cap) | G12: =Inputs!$I$11 -> £m 20/21 prices | K12: ='Op Rav'!K40 -> 68.52027605 | L12: ='Op Rav'!L40 -> 65.72578414 | M12: ='Op Rav'!M40 -> 62.93129223 | N12: ='Op Rav'!N40 -> 60.13680031 | O12: ='Op Rav'!O40 -> 57.3423084 | P12: ='Op Rav'!P40 -> 54.54781649 | Q12: ='Op Rav'!Q40 -> 51.90565402 | R12: ='Op Rav'!R40 -> 49.26756552 | S12: ='Op Rav'!S40 -> 46.45545163 | T12: ='Op Rav'!T40 -> 43.64333774 | U12: ='Op Rav'!U40 -> 40.83122385 | V12: ='Op Rav'!V40 -> 38.01910996 | W12: ='Op Rav'!W40 -> 35.20699607 | X12: ='Op Rav'!X40 -> 32.39488218 | Y12: ='Op Rav'!Y40 -> 30.53482733 | Z12: ='Op Rav'!Z40 -> 28.65792103 | AA12: ='Op Rav'!AA40 -> 25.64755989 | AB12: ='Op Rav'!AB40 -> 22.63719874 | AC12: ='Op Rav'!AC40 -> 19.6268376 | AD12: ='Op Rav'!AD40 -> 16.61647645 | AE12: ='Op Rav'!AE40 -> 13.60611531 | AF12: ='Op Rav'!AF40 -> 10.59575417 | AG12: ='Op Rav'!AG40 -> 7.77580483 | AH12: ='Op Rav'!AH40 -> 4.876320481 | AI12: ='Op Rav'!AI40 -> 1.667712083
E13: Unprofiled allowances except tax (cap) | G13: =Inputs!$I$11 -> £m 20/21 prices | K13: =SUM(K8:K12) -> 117.4212332 | L13: =SUM(L8:L12) -> 121.8519262 | M13: 116.4770111 | N13: 113.6825192 | O13: 110.8880273 | P13: 108.0935354 | Q13: 105.4513729 | R13: 103.035866 | S13: 100.2237521 | T13: 97.4116382 | U13: 94.59952431 | V13: 91.78741042 | W13: 88.97529653 | X13: 86.16318264 | Y13: 84.30312779 | Z13: 84.93026402 | AA13: 81.91990287 | AB13: 78.90954173 | AC13: 75.89918059 | AD13: 72.88881944 | AE13: 69.8784583 | AF13: 66.86809715 | AG13: 64.04814782 | AH13: 63.65270599 | AI13: 60.44409759
B15: Profiled allowances except tax (cap)
C17: Annuity parameters
E19: Cap return rate | G19: =Inputs!G68 -> real annual % | I19: =Inputs!I68 -> 0.0823
E20: Number of operational years | G20: =Inputs!G155 -> full years | I20: =Inputs!I155 -> 25
E21: Annuity factor (cap) | G21: scalar | I21: =I19 / (1 - (1 + I19)^(-I20)) -> 0.09552605702
E23: Year is within operational period | G23: flag | K23: =AND(K4 > 0, K4<= $I20) -> TRUE | L23: TRUE | M23: TRUE | N23: TRUE | O23: TRUE | P23: TRUE | Q23: TRUE | R23: TRUE | S23: TRUE | T23: TRUE | U23: TRUE | V23: TRUE | W23: TRUE | X23: TRUE | Y23: TRUE | Z23: TRUE | AA23: TRUE | AB23: TRUE | AC23: TRUE | AD23: TRUE | AE23: TRUE | AF23: TRUE | AG23: TRUE | AH23: TRUE | AI23: TRUE
E24: Discount factor to start of operational period (cap) | G24: scalar | K24: =(1 + $I19) ^ - K4 -> 0.9239582371 | L24: 0.8536988239 | M24: 0.7887820603 | N24: 0.7288016819 | O24: 0.6733823172 | P24: 0.6221771387 | Q24: 0.5748656922 | R24: 0.5311518915 | S24: 0.4907621653 | T24: 0.4534437451 | U24: 0.4189630833 | V24: 0.3871043919 | W24: 0.3576682915 | X24: 0.3304705641 | Y24: 0.3053409998 | Z24: 0.2821223319 | AA24: 0.2606692524 | AB24: 0.2408475029 | AC24: 0.2225330342 | AD24: 0.20561123 | AE24: 0.1899761896 | AF24: 0.1755300652 | AG24: 0.1621824496 | AH24: 0.1498498102 | AI24: 0.1384549665
C26: Allowances except tax
E28: Discounted unprofiled allowances except tax (cap) | G28: =Inputs!$I$11 -> £m 20/21 prices | K28: =K13 * K$24 -> 108.4923156 | L28: =L13 * L$24 -> 104.0248461 | M28: 91.87497682 | N28: 82.85201121 | O28: 74.67003678 | P28: 67.25332656 | Q28: 60.62037649 | R28: 54.72769511 | S28: 49.18602559 | T28: 44.17069804 | U28: 39.63370839 | V28: 35.53130969 | W28: 31.8236423 | X28: 28.47439557 | Y28: =Y13 * Y$24 -> 25.74120133 | Z28: =Z13 * Z$24 -> 23.96072413 | AA28: 21.35399984 | AB28: 19.00516608 | AC28: 16.89007495 | AD28: 14.98675982 | AE28: 13.27524324 | AF28: 11.73736145 | AG28: 10.38748551 | AH28: 9.538345913 | AI28: 8.368785506
E29: NPV of allowances except tax (cap) | G29: =Inputs!$I$11 -> £m 20/21 prices | I29: =SUM(K28:AI28) -> 1048.580512
E31: Annuity factor (cap) | G31: =G$21 -> scalar | I31: =I$21 -> 0.09552605702
E33: Annuity of allowances except tax (cap) | G33: =Inputs!$I$11 -> £m 20/21 prices | I33: =I29 * I31 -> 100.1667618
E34: Annuitised allowances except tax (cap) | G34: =Inputs!$I$11 -> £m 20/21 prices | K34: =K$23 * $I33 -> 100.1667618 | L34: 100.1667618 | M34: 100.1667618 | N34: 100.1667618 | O34: 100.1667618 | P34: 100.1667618 | Q34: 100.1667618 | R34: 100.1667618 | S34: 100.1667618 | T34: 100.1667618 | U34: 100.1667618 | V34: 100.1667618 | W34: 100.1667618 | X34: =X$23 * $I33 -> 100.1667618 | Y34: =Y$23 * $I33 -> 100.1667618 | Z34: 100.1667618 | AA34: 100.1667618 | AB34: 100.1667618 | AC34: 100.1667618 | AD34: 100.1667618 | AE34: 100.1667618 | AF34: 100.1667618 | AG34: 100.1667618 | AH34: 100.1667618 | AI34: 100.1667618
B36: End of sheet

Sheet Allowances Floor
A1: Allowances Floor | H1: Licence
E2: Parameter | G2: Units | H2: Terminology | I2: Constant | K2: Annual values
E3: Project year | K3: Year 1 | L3: Year 2 | M3: Year 3 | N3: Year 4 | O3: Year 5 | P3: Year 6 | Q3: Year 7 | R3: Year 8 | S3: Year 9 | T3: Year 10 | U3: Year 11 | V3: Year 12 | W3: Year 13 | X3: Year 14 | Y3: Year 15 | Z3: Year 16 | AA3: Year 17 | AB3: Year 18 | AC3: Year 19 | AD3: Year 20 | AE3: Year 21 | AF3: Year 22 | AG3: Year 23 | AH3: Year 24 | AI3: Year 25
E4: Year | K4: 1 | L4: =+K4+1 -> 2 | M4: =+L4+1 -> 3 | N4: 4 | O4: 5 | P4: 6 | Q4: 7 | R4: 8 | S4: 9 | T4: 10 | U4: 11 | V4: 12 | W4: 13 | X4: 14 | Y4: 15 | Z4: 16 | AA4: 17 | AB4: 18 | AC4: 19 | AD4: 20 | AE4: 21 | AF4: 22 | AG4: 23 | AH4: 24 | AI4: 25
B6: Unprofiled allowances except tax (notional floor)
E8: Controllable Opex | G8: =Inputs!$I$11 -> £m 20/21 prices | K8: =Inputs!K61 -> 13.41820065 | L8: =Inputs!L61 -> 20.64338562 | M8: =Inputs!M61 -> 18.06296241 | N8: =Inputs!N61 -> 18.06296241 | O8: =Inputs!O61 -> 18.06296241 | P8: =Inputs!P61 -> 18.06296241 | Q8: =Inputs!Q61 -> 18.06296241 | R8: =Inputs!R61 -> 18.06296241 | S8: =Inputs!S61 -> 18.06296241 | T8: =Inputs!T61 -> 18.06296241 | U8: =Inputs!U61 -> 18.06296241 | V8: =Inputs!V61 -> 18.06296241 | W8: =Inputs!W61 -> 18.06296241 | X8: =Inputs!X61 -> 18.06296241 | Y8: =Inputs!Y61 -> 18.06296241 | Z8: =Inputs!Z61 -> 18.06296241 | AA8: =Inputs!AA61 -> 18.06296241 | AB8: =Inputs!AB61 -> 18.06296241 | AC8: =Inputs!AC61 -> 18.06296241 | AD8: =Inputs!AD61 -> 18.06296241 | AE8: =Inputs!AE61 -> 18.06296241 | AF8: =Inputs!AF61 -> 18.06296241 | AG8: =Inputs!AG61 -> 18.06296241 | AH8: =Inputs!AH61 -> 18.06296241 | AI8: =Inputs!AI61 -> 18.06296241
E9: Non-controllable Opex (baseline) | G9: =Inputs!$I$11 -> £m 20/21 prices | K9: =Inputs!K62 -> 0 | L9: =Inputs!L62 -> 0 | M9: =Inputs!M62 -> 0 | N9: =Inputs!N62 -> 0 | O9: =Inputs!O62 -> 0 | P9: =Inputs!P62 -> 0 | Q9: =Inputs!Q62 -> 0 | R9: =Inputs!R62 -> 0 | S9: =Inputs!S62 -> 0 | T9: =Inputs!T62 -> 0 | U9: =Inputs!U62 -> 0 | V9: =Inputs!V62 -> 0 | W9: =Inputs!W62 -> 0 | X9: =Inputs!X62 -> 0 | Y9: =Inputs!Y62 -> 0 | Z9: =Inputs!Z62 -> 0 | AA9: =Inputs!AA62 -> 0 | AB9: =Inputs!AB62 -> 0 | AC9: =Inputs!AC62 -> 0 | AD9: =Inputs!AD62 -> 0 | AE9: =Inputs!AE62 -> 0 | AF9: =Inputs!AF62 -> 0 | AG9: =Inputs!AG62 -> 0 | AH9: =Inputs!AH62 -> 0 | AI9: =Inputs!AI62 -> 0
E10: Decommissioning baseline | G10: =Inputs!$I$11 -> £m 20/21 prices | K10: =Inputs!K60 -> 0.1857904706 | L10: =Inputs!L60 -> 0.1857904706 | M10: =Inputs!M60 -> 0.1857904706 | N10: =Inputs!N60 -> 0.1857904706 | O10: =Inputs!O60 -> 0.1857904706 | P10: =Inputs!P60 -> 0.1857904706 | Q10: =Inputs!Q60 -> 0.1857904706 | R10: =Inputs!R60 -> 0.1857904706 | S10: =Inputs!S60 -> 0.1857904706 | T10: =Inputs!T60 -> 0.1857904706 | U10: =Inputs!U60 -> 0.1857904706 | V10: =Inputs!V60 -> 0.1857904706 | W10: =Inputs!W60 -> 0.1857904706 | X10: =Inputs!X60 -> 0.1857904706 | Y10: =Inputs!Y60 -> 0.1857904706 | Z10: =Inputs!Z60 -> 0.1857904706 | AA10: =Inputs!AA60 -> 0.1857904706 | AB10: =Inputs!AB60 -> 0.1857904706 | AC10: =Inputs!AC60 -> 0.1857904706 | AD10: =Inputs!AD60 -> 0.1857904706 | AE10: =Inputs!AE60 -> 0.1857904706 | AF10: =Inputs!AF60 -> 0.1857904706 | AG10: =Inputs!AG60 -> 0.1857904706 | AH10: =Inputs!AH60 -> 0.1857904706 | AI10: =Inputs!AI60 -> 0.1857904706
E11: RAV depreciation | G11: =Inputs!$I$11 -> £m 20/21 prices | K11: ='Op Rav'!K25 -> 35.29696602 | L11: ='Op Rav'!L25 -> 35.29696602 | M11: ='Op Rav'!M25 -> 35.29696602 | N11: ='Op Rav'!N25 -> 35.29696602 | O11: ='Op Rav'!O25 -> 35.29696602 | P11: ='Op Rav'!P25 -> 35.29696602 | Q11: ='Op Rav'!Q25 -> 35.29696602 | R11: ='Op Rav'!R25 -> 35.51954758 | S11: ='Op Rav'!S25 -> 35.51954758 | T11: ='Op Rav'!T25 -> 35.51954758 | U11: ='Op Rav'!U25 -> 35.51954758 | V11: ='Op Rav'!V25 -> 35.51954758 | W11: ='Op Rav'!W25 -> 35.51954758 | X11: ='Op Rav'!X25 -> 35.51954758 | Y11: ='Op Rav'!Y25 -> 35.51954758 | Z11: ='Op Rav'!Z25 -> 38.0235901 | AA11: ='Op Rav'!AA25 -> 38.0235901 | AB11: ='Op Rav'!AB25 -> 38.0235901 | AC11: ='Op Rav'!AC25 -> 38.0235901 | AD11: ='Op Rav'!AD25 -> 38.0235901 | AE11: ='Op Rav'!AE25 -> 38.0235901 | AF11: ='Op Rav'!AF25 -> 38.0235901 | AG11: ='Op Rav'!AG25 -> 38.0235901 | AH11: ='Op Rav'!AH25 -> 40.52763263 | AI11: ='Op Rav'!AI25 -> 40.52763263
E12: Return (floor) | G12: =Inputs!$I$11 -> £m 20/21 prices | K12: ='Op Rav'!K41 -> -4.421429267 | L12: ='Op Rav'!L41 -> -4.24095335 | M12: ='Op Rav'!M41 -> -4.060477434 | N12: ='Op Rav'!N41 -> -3.880001517 | O12: ='Op Rav'!O41 -> -3.6995256 | P12: ='Op Rav'!P41 -> -3.519049683 | Q12: ='Op Rav'!Q41 -> -3.348842631 | R12: ='Op Rav'!R41 -> -3.178012715 | S12: ='Op Rav'!S41 -> -2.996398723 | T12: ='Op Rav'!T41 -> -2.814784731 | U12: ='Op Rav'!U41 -> -2.633170738 | V12: ='Op Rav'!V41 -> -2.451556746 | W12: ='Op Rav'!W41 -> -2.269942754 | X12: ='Op Rav'!X41 -> -2.088328761 | Y12: ='Op Rav'!Y41 -> -1.970895174 | Z12: ='Op Rav'!Z41 -> -1.846716225 | AA12: ='Op Rav'!AA41 -> -1.652298884 | AB12: ='Op Rav'!AB41 -> -1.457881543 | AC12: ='Op Rav'!AC41 -> -1.263464202 | AD12: ='Op Rav'!AD41 -> -1.069046861 | AE12: ='Op Rav'!AE41 -> -0.8746295194 | AF12: ='Op Rav'!AF41 -> -0.6802121783 | AG12: ='Op Rav'!AG41 -> -0.498630918 | AH12: ='Op Rav'!AH41 -> -0.3105661532 | AI12: ='Op Rav'!AI41 -> -0.1033454632
E13: Unprofiled allowances except tax (floor) | G13: =Inputs!$I$11 -> £m 20/21 prices | K13: =SUM(K8:K12) -> 44.47952787 | L13: 51.88518876 | M13: 49.48524147 | N13: 49.66571739 | O13: 49.8461933 | P13: 50.02666922 | Q13: 50.19687627 | R13: 50.59028775 | S13: 50.77190174 | T13: 50.95351573 | U13: 51.13512972 | V13: 51.31674372 | W13: 51.49835771 | X13: 51.6799717 | Y13: 51.79740529 | Z13: 54.42562676 | AA13: 54.6200441 | AB13: 54.81446144 | AC13: 55.00887878 | AD13: 55.20329613 | AE13: 55.39771347 | AF13: 55.59213081 | AG13: 55.77371207 | AH13: 58.46581936 | AI13: 58.67304005
B15: Profiled allowances except tax (notional floor)
C17: Annuity parameters
E19: Floor return rate | G19: =Inputs!G69 -> real annual % | I19: =Inputs!I69 -> -0.0051
E20: Number of operational years | G20: =Inputs!G155 -> full years | I20: =Inputs!I155 -> 25
E21: Annuity factor (floor) | G21: scalar | I21: =I19 / (1 - (1 + I19)^(-I20)) -> 0.03740222444
E23: Year is within operational period | G23: flag | K23: =AND(K4 > 0, K4<= $I20) -> TRUE | L23: TRUE | M23: TRUE | N23: TRUE | O23: TRUE | P23: TRUE | Q23: TRUE | R23: TRUE | S23: TRUE | T23: TRUE | U23: TRUE | V23: TRUE | W23: TRUE | X23: TRUE | Y23: TRUE | Z23: TRUE | AA23: TRUE | AB23: TRUE | AC23: TRUE | AD23: TRUE | AE23: TRUE | AF23: TRUE | AG23: TRUE | AH23: TRUE | AI23: TRUE
E24: Discount factor to start of operational period (floor) | G24: scalar | K24: =(1 + $I19) ^ - K4 -> 1.005126143 | L24: 1.010278564 | M24: 1.015457397 | N24: 1.020662777 | O24: 1.025894841 | P24: 1.031153725 | Q24: 1.036439566 | R24: 1.041752504 | S24: 1.047092677 | T24: 1.052460224 | U24: 1.057855286 | V24: 1.063278004 | W24: 1.068728519 | X24: 1.074206975 | Y24: 1.079713514 | Z24: 1.08524828 | AA24: 1.090811418 | AB24: 1.096403074 | AC24: 1.102023393 | AD24: 1.107672523 | AE24: 1.113350611 | AF24: 1.119057806 | AG24: 1.124794257 | AH24: 1.130560113 | AI24: 1.136355526
C26: Allowances except tax
E28: Discounted unprofiled allowances except tax (floor) | G28: =Inputs!$I$11 -> £m 20/21 prices | K28: =K13 * K$24 -> 44.70753631 | L28: =L13 * L$24 -> 52.41849399 | M28: 50.25015448 | N28: 50.69194903 | O28: 51.13695253 | P28: 51.5851863 | Q28: 52.02602868 | R28: 52.70255895 | S28: 53.1628865 | T28: 53.62654858 | U28: 54.09356727 | V28: 54.56396481 | W28: 55.03776357 | X28: =X13 * X$24 -> 55.51498605 | Y28: 55.92635846 | Z28: 59.06531782 | AA28: 59.58016776 | AB28: 60.09874401 | AC28: 60.62107125 | AD28: 61.1471743 | AE28: 61.67707814 | AF28: 62.21080793 | AG28: 62.733951 | AH28: 66.09912335 | AI28: 66.67343331
E29: NPV of allowances except tax (floor) | G29: =Inputs!$I$11 -> £m 20/21 prices | I29: =SUM(K28:AI28) -> 1407.351804
E31: Annuity factor (floor) | G31: =G$21 -> scalar | I31: =I$21 -> 0.03740222444
E33: Annuity of allowances except tax (floor) | G33: =Inputs!$I$11 -> £m 20/21 prices | I33: =I29 * I31 -> 52.63808805
E34: Annuitised allowances except tax (floor) | G34: =Inputs!$I$11 -> £m 20/21 prices | K34: =K$23 * $I33 -> 52.63808805 | L34: 52.63808805 | M34: 52.63808805 | N34: 52.63808805 | O34: 52.63808805 | P34: 52.63808805 | Q34: 52.63808805 | R34: 52.63808805 | S34: 52.63808805 | T34: 52.63808805 | U34: 52.63808805 | V34: 52.63808805 | W34: 52.63808805 | X34: =X$23 * $I33 -> 52.63808805 | Y34: 52.63808805 | Z34: 52.63808805 | AA34: 52.63808805 | AB34: 52.63808805 | AC34: 52.63808805 | AD34: 52.63808805 | AE34: 52.63808805 | AF34: 52.63808805 | AG34: 52.63808805 | AH34: 52.63808805 | AI34: 52.63808805
B36: Unprofiled allowances except tax (actual floor during debt tenor and tail period)
E38: Controllable Opex | G38: =Inputs!$I$11 -> £m 20/21 prices | K38: =Inputs!K61*K56 -> 0 | L38: =Inputs!L61*L56 -> 0 | M38: =Inputs!M61*M56 -> 0 | N38: =Inputs!N61*N56 -> 18.06296241 | O38: =Inputs!O61*O56 -> 18.06296241 | P38: =Inputs!P61*P56 -> 18.06296241 | Q38: =Inputs!Q61*Q56 -> 18.06296241 | R38: =Inputs!R61*R56 -> 18.06296241 | S38: =Inputs!S61*S56 -> 18.06296241 | T38: =Inputs!T61*T56 -> 18.06296241 | U38: =Inputs!U61*U56 -> 18.06296241 | V38: =Inputs!V61*V56 -> 18.06296241 | W38: =Inputs!W61*W56 -> 18.06296241 | X38: =Inputs!X61*X56 -> 18.06296241 | Y38: =Inputs!Y61*Y56 -> 18.06296241 | Z38: =Inputs!Z61*Z56 -> 18.06296241 | AA38: =Inputs!AA61*AA56 -> 18.06296241 | AB38: =Inputs!AB61*AB56 -> 18.06296241 | AC38: =Inputs!AC61*AC56 -> 18.06296241 | AD38: =Inputs!AD61*AD56 -> 18.06296241 | AE38: =Inputs!AE61*AE56 -> 18.06296241 | AF38: =Inputs!AF61*AF56 -> 18.06296241 | AG38: =Inputs!AG61*AG56 -> 18.06296241 | AH38: =Inputs!AH61*AH56 -> 0 | AI38: =Inputs!AI61*AI56 -> 0
E39: Non-controllable Opex (baseline) | G39: =Inputs!$I$11 -> £m 20/21 prices | K39: =Inputs!K62*K56 -> 0 | L39: =Inputs!L62*L56 -> 0 | M39: =Inputs!M62*M56 -> 0 | N39: =Inputs!N62*N56 -> 0 | O39: =Inputs!O62*O56 -> 0 | P39: =Inputs!P62*P56 -> 0 | Q39: =Inputs!Q62*Q56 -> 0 | R39: =Inputs!R62*R56 -> 0 | S39: =Inputs!S62*S56 -> 0 | T39: =Inputs!T62*T56 -> 0 | U39: =Inputs!U62*U56 -> 0 | V39: =Inputs!V62*V56 -> 0 | W39: =Inputs!W62*W56 -> 0 | X39: =Inputs!X62*X56 -> 0 | Y39: =Inputs!Y62*Y56 -> 0 | Z39: =Inputs!Z62*Z56 -> 0 | AA39: =Inputs!AA62*AA56 -> 0 | AB39: =Inputs!AB62*AB56 -> 0 | AC39: =Inputs!AC62*AC56 -> 0 | AD39: =Inputs!AD62*AD56 -> 0 | AE39: =Inputs!AE62*AE56 -> 0 | AF39: =Inputs!AF62*AF56 -> 0 | AG39: =Inputs!AG62*AG56 -> 0 | AH39: =Inputs!AH62*AH56 -> 0 | AI39: =Inputs!AI62*AI56 -> 0
E40: Decommissioning baseline | G40: =Inputs!$I$11 -> £m 20/21 prices | K40: =Inputs!K60*K56 -> 0 | L40: =Inputs!L60*L56 -> 0 | M40: =Inputs!M60*M56 -> 0 | N40: =Inputs!N60*N56 -> 0.1857904706 | O40: =Inputs!O60*O56 -> 0.1857904706 | P40: =Inputs!P60*P56 -> 0.1857904706 | Q40: =Inputs!Q60*Q56 -> 0.1857904706 | R40: =Inputs!R60*R56 -> 0.1857904706 | S40: =Inputs!S60*S56 -> 0.1857904706 | T40: =Inputs!T60*T56 -> 0.1857904706 | U40: =Inputs!U60*U56 -> 0.1857904706 | V40: =Inputs!V60*V56 -> 0.1857904706 | W40: =Inputs!W60*W56 -> 0.1857904706 | X40: =Inputs!X60*X56 -> 0.1857904706 | Y40: =Inputs!Y60*Y56 -> 0.1857904706 | Z40: =Inputs!Z60*Z56 -> 0.1857904706 | AA40: =Inputs!AA60*AA56 -> 0.1857904706 | AB40: =Inputs!AB60*AB56 -> 0.1857904706 | AC40: =Inputs!AC60*AC56 -> 0.1857904706 | AD40: =Inputs!AD60*AD56 -> 0.1857904706 | AE40: =Inputs!AE60*AE56 -> 0.1857904706 | AF40: =Inputs!AF60*AF56 -> 0.1857904706 | AG40: =Inputs!AG60*AG56 -> 0.1857904706 | AH40: =Inputs!AH60*AH56 -> 0 | AI40: =Inputs!AI60*AI56 -> 0
E41: Total debt service including buffer | G41: =Inputs!$I$11 -> £m 20/21 prices | K41: =SUMIF(Finance!10:10,'Allowances Floor'!K4,Finance!151:151) -> 0 | L41: =SUMIF(Finance!10:10,'Allowances Floor'!L4,Finance!151:151) -> 0 | M41: =SUMIF(Finance!10:10,'Allowances Floor'!M4,Finance!151:151) -> 0 | N41: =SUMIF(Finance!10:10,'Allowances Floor'!N4,Finance!151:151) -> 23.89768397 | O41: =SUMIF(Finance!10:10,'Allowances Floor'!O4,Finance!151:151) -> 28.32421785 | P41: =SUMIF(Finance!10:10,'Allowances Floor'!P4,Finance!151:151) -> 28.44578622 | Q41: =SUMIF(Finance!10:10,'Allowances Floor'!Q4,Finance!151:151) -> 28.62265914 | R41: =SUMIF(Finance!10:10,'Allowances Floor'!R4,Finance!151:151) -> 28.31350329 | S41: =SUMIF(Finance!10:10,'Allowances Floor'!S4,Finance!151:151) -> 28.24719808 | T41: =SUMIF(Finance!10:10,'Allowances Floor'!T4,Finance!151:151) -> 24.11657655 | U41: =SUMIF(Finance!10:10,'Allowances Floor'!U4,Finance!151:151) -> 28.18516356 | V41: =SUMIF(Finance!10:10,'Allowances Floor'!V4,Finance!151:151) -> 28.72109785 | W41: =SUMIF(Finance!10:10,'Allowances Floor'!W4,Finance!151:151) -> 28.86475444 | X41: =SUMIF(Finance!10:10,'Allowances Floor'!X4,Finance!151:151) -> 29.00137787 | Y41: =SUMIF(Finance!10:10,'Allowances Floor'!Y4,Finance!151:151) -> 29.09036357 | Z41: =SUMIF(Finance!10:10,'Allowances Floor'!Z4,Finance!151:151) -> 29.1912676 | AA41: =SUMIF(Finance!10:10,'Allowances Floor'!AA4,Finance!151:151) -> 29.28774697 | AB41: =SUMIF(Finance!10:10,'Allowances Floor'!AB4,Finance!151:151) -> 10.04782057 | AC41: =SUMIF(Finance!10:10,'Allowances Floor'!AC4,Finance!151:151) -> 27.66843557 | AD41: =SUMIF(Finance!10:10,'Allowances Floor'!AD4,Finance!151:151) -> 29.40329199 | AE41: =SUMIF(Finance!10:10,'Allowances Floor'!AE4,Finance!151:151) -> 29.42122599 | AF41: =SUMIF(Finance!10:10,'Allowances Floor'!AF4,Finance!151:151) -> 29.41554377 | AG41: =SUMIF(Finance!10:10,'Allowances Floor'!AG4,Finance!151:151) -> 29.39830819 | AH41: =SUMIF(Finance!10:10,'Allowances Floor'!AH4,Finance!151:151) -> 0 | AI41: =SUMIF(Finance!10:10,'Allowances Floor'!AI4,Finance!151:151) -> 0
E42: Unprofiled allowances except tax (floor) | G42: =Inputs!$I$11 -> £m 20/21 prices | K42: =SUM(K38:K41) -> 0 | L42: 0 | M42: 0 | N42: 42.14643685 | O42: 46.57297074 | P42: 46.6945391 | Q42: 46.87141202 | R42: 46.56225617 | S42: 46.49595097 | T42: 42.36532944 | U42: 46.43391644 | V42: 46.96985074 | W42: 47.11350733 | X42: 47.25013076 | Y42: 47.33911645 | Z42: 47.44002048 | AA42: 47.53649985 | AB42: 28.29657345 | AC42: 45.91718846 | AD42: 47.65204488 | AE42: 47.66997888 | AF42: 47.66429665 | AG42: 47.64706108 | AH42: 0 | AI42: 0
B44: Profiled allowances except tax (actual floor during debt tenor and tail period)
C46: Annuity parameters during debt tenor
E48: Actual cost of debt | G48: nominal % | K48: =SUMIF(Finance!10:10,'Allowances Floor'!K4,Finance!125:125) -> 0 | L48: =SUMIF(Finance!10:10,'Allowances Floor'!L4,Finance!125:125) -> 0 | M48: =SUMIF(Finance!10:10,'Allowances Floor'!M4,Finance!125:125) -> 0 | N48: =SUMIF(Finance!10:10,'Allowances Floor'!N4,Finance!125:125) -> 0.024 | O48: =SUMIF(Finance!10:10,'Allowances Floor'!O4,Finance!125:125) -> 0.024 | P48: =SUMIF(Finance!10:10,'Allowances Floor'!P4,Finance!125:125) -> 0.024 | Q48: =SUMIF(Finance!10:10,'Allowances Floor'!Q4,Finance!125:125) -> 0.024 | R48: =SUMIF(Finance!10:10,'Allowances Floor'!R4,Finance!125:125) -> 0.024 | S48: =SUMIF(Finance!10:10,'Allowances Floor'!S4,Finance!125:125) -> 0.026 | T48: =SUMIF(Finance!10:10,'Allowances Floor'!T4,Finance!125:125) -> 0.026 | U48: =SUMIF(Finance!10:10,'Allowances Floor'!U4,Finance!125:125) -> 0.026 | V48: =SUMIF(Finance!10:10,'Allowances Floor'!V4,Finance!125:125) -> 0.026 | W48: =SUMIF(Finance!10:10,'Allowances Floor'!W4,Finance!125:125) -> 0.026 | X48: =SUMIF(Finance!10:10,'Allowances Floor'!X4,Finance!125:125) -> 0.028 | Y48: =SUMIF(Finance!10:10,'Allowances Floor'!Y4,Finance!125:125) -> 0.028 | Z48: =SUMIF(Finance!10:10,'Allowances Floor'!Z4,Finance!125:125) -> 0.028 | AA48: =SUMIF(Finance!10:10,'Allowances Floor'!AA4,Finance!125:125) -> 0.028 | AB48: =SUMIF(Finance!10:10,'Allowances Floor'!AB4,Finance!125:125) -> 0.028 | AC48: =SUMIF(Finance!10:10,'Allowances Floor'!AC4,Finance!125:125) -> 0.03 | AD48: =SUMIF(Finance!10:10,'Allowances Floor'!AD4,Finance!125:125) -> 0.03 | AE48: =SUMIF(Finance!10:10,'Allowances Floor'!AE4,Finance!125:125) -> 0.03 | AF48: =SUMIF(Finance!10:10,'Allowances Floor'!AF4,Finance!125:125) -> 0.03 | AG48: =SUMIF(Finance!10:10,'Allowances Floor'!AG4,Finance!125:125) -> 0.03 | AH48: =SUMIF(Finance!10:10,'Allowances Floor'!AH4,Finance!125:125) -> 0 | AI48: =SUMIF(Finance!10:10,'Allowances Floor'!AI4,Finance!125:125) -> 0
E49: Actual cost of debt | G49: real % | K49: =IF(K48=0,0,(1+K48)/(1+Inputs!$I$179)-1) -> 0 | L49: =IF(L48=0,0,(1+L48)/(1+Inputs!$I$179)-1) -> 0 | M49: =IF(M48=0,0,(1+M48)/(1+Inputs!$I$179)-1) -> 0 | N49: =IF(N48=0,0,(1+N48)/(1+Inputs!$I$179)-1) -> -0.007559604575 | O49: =IF(O48=0,0,(1+O48)/(1+Inputs!$I$179)-1) -> -0.007559604575 | P49: =IF(P48=0,0,(1+P48)/(1+Inputs!$I$179)-1) -> -0.007559604575 | Q49: =IF(Q48=0,0,(1+Q48)/(1+Inputs!$I$179)-1) -> -0.007559604575 | R49: =IF(R48=0,0,(1+R48)/(1+Inputs!$I$179)-1) -> -0.007559604575 | S49: =IF(S48=0,0,(1+S48)/(1+Inputs!$I$179)-1) -> -0.005621244427 | T49: =IF(T48=0,0,(1+T48)/(1+Inputs!$I$179)-1) -> -0.005621244427 | U49: =IF(U48=0,0,(1+U48)/(1+Inputs!$I$179)-1) -> -0.005621244427 | V49: =IF(V48=0,0,(1+V48)/(1+Inputs!$I$179)-1) -> -0.005621244427 | W49: =IF(W48=0,0,(1+W48)/(1+Inputs!$I$179)-1) -> -0.005621244427 | X49: =IF(X48=0,0,(1+X48)/(1+Inputs!$I$179)-1) -> -0.00368288428 | Y49: =IF(Y48=0,0,(1+Y48)/(1+Inputs!$I$179)-1) -> -0.00368288428 | Z49: =IF(Z48=0,0,(1+Z48)/(1+Inputs!$I$179)-1) -> -0.00368288428 | AA49: =IF(AA48=0,0,(1+AA48)/(1+Inputs!$I$179)-1) -> -0.00368288428 | AB49: =IF(AB48=0,0,(1+AB48)/(1+Inputs!$I$179)-1) -> -0.00368288428 | AC49: =IF(AC48=0,0,(1+AC48)/(1+Inputs!$I$179)-1) -> -0.001744524133 | AD49: =IF(AD48=0,0,(1+AD48)/(1+Inputs!$I$179)-1) -> -0.001744524133 | AE49: =IF(AE48=0,0,(1+AE48)/(1+Inputs!$I$179)-1) -> -0.001744524133 | AF49: =IF(AF48=0,0,(1+AF48)/(1+Inputs!$I$179)-1) -> -0.001744524133 | AG49: =IF(AG48=0,0,(1+AG48)/(1+Inputs!$I$179)-1) -> -0.001744524133 | AH49: =IF(AH48=0,0,(1+AH48)/(1+Inputs!$I$179)-1) -> 0 | AI49: =IF(AI48=0,0,(1+AI48)/(1+Inputs!$I$179)-1) -> 0
E50: Cost of debt weighting | G50: % | K50: =SUMIF(Finance!10:10,'Allowances Floor'!K4,Finance!140:140)/SUM(Finance!$K$140:$AX$140) -> 0 | L50: =SUMIF(Finance!10:10,'Allowances Floor'!L4,Finance!140:140)/SUM(Finance!$K$140:$AX$140) -> 0 | M50: =SUMIF(Finance!10:10,'Allowances Floor'!M4,Finance!140:140)/SUM(Finance!$K$140:$AX$140) -> 0 | N50: =SUMIF(Finance!10:10,'Allowances Floor'!N4,Finance!140:140)/SUM(Finance!$K$140:$AX$140) -> 0.07184450128 | O50: =SUMIF(Finance!10:10,'Allowances Floor'!O4,Finance!140:140)/SUM(Finance!$K$140:$AX$140) -> 0.07056882709 | P50: =SUMIF(Finance!10:10,'Allowances Floor'!P4,Finance!140:140)/SUM(Finance!$K$140:$AX$140) -> 0.06859379307 | Q50: =SUMIF(Finance!10:10,'Allowances Floor'!Q4,Finance!140:140)/SUM(Finance!$K$140:$AX$140) -> 0.06643844719 | R50: =SUMIF(Finance!10:10,'Allowances Floor'!R4,Finance!140:140)/SUM(Finance!$K$140:$AX$140) -> 0.06408609261 | S50: =SUMIF(Finance!10:10,'Allowances Floor'!S4,Finance!140:140)/SUM(Finance!$K$140:$AX$140) -> 0.06675768634 | T50: =SUMIF(Finance!10:10,'Allowances Floor'!T4,Finance!140:140)/SUM(Finance!$K$140:$AX$140) -> 0.06400105075 | U50: =SUMIF(Finance!10:10,'Allowances Floor'!U4,Finance!140:140)/SUM(Finance!$K$140:$AX$140) -> 0.06170769599 | V50: =SUMIF(Finance!10:10,'Allowances Floor'!V4,Finance!140:140)/SUM(Finance!$K$140:$AX$140) -> 0.05854000848 | W50: =SUMIF(Finance!10:10,'Allowances Floor'!W4,Finance!140:140)/SUM(Finance!$K$140:$AX$140) -> 0.05504458305 | X50: =SUMIF(Finance!10:10,'Allowances Floor'!X4,Finance!140:140)/SUM(Finance!$K$140:$AX$140) -> 0.05524361308 | Y50: =SUMIF(Finance!10:10,'Allowances Floor'!Y4,Finance!140:140)/SUM(Finance!$K$140:$AX$140) -> 0.05098175047 | Z50: =SUMIF(Finance!10:10,'Allowances Floor'!Z4,Finance!140:140)/SUM(Finance!$K$140:$AX$140) -> 0.04639744986 | AA50: =SUMIF(Finance!10:10,'Allowances Floor'!AA4,Finance!140:140)/SUM(Finance!$K$140:$AX$140) -> 0.04147209805 | AB50: =SUMIF(Finance!10:10,'Allowances Floor'!AB4,Finance!140:140)/SUM(Finance!$K$140:$AX$140) -> 0.03618967134 | AC50: =SUMIF(Finance!10:10,'Allowances Floor'!AC4,Finance!140:140)/SUM(Finance!$K$140:$AX$140) -> 0.03744129208 | AD50: =SUMIF(Finance!10:10,'Allowances Floor'!AD4,Finance!140:140)/SUM(Finance!$K$140:$AX$140) -> 0.0316209332 | AE50: =SUMIF(Finance!10:10,'Allowances Floor'!AE4,Finance!140:140)/SUM(Finance!$K$140:$AX$140) -> 0.02495593722 | AF50: =SUMIF(Finance!10:10,'Allowances Floor'!AF4,Finance!140:140)/SUM(Finance!$K$140:$AX$140) -> 0.01784408666 | AG50: =SUMIF(Finance!10:10,'Allowances Floor'!AG4,Finance!140:140)/SUM(Finance!$K$140:$AX$140) -> 0.01027048218 | AH50: =SUMIF(Finance!10:10,'Allowances Floor'!AH4,Finance!140:140)/SUM(Finance!$K$140:$AX$140) -> 0 | AI50: =SUMIF(Finance!10:10,'Allowances Floor'!AI4,Finance!140:140)/SUM(Finance!$K$140:$AX$140) -> 0
E52: Floor return rate | I52: =SUMPRODUCT(K49:AI49,K50:AI50) -> -0.005363406892
E53: Debt tenor | G53: =Inputs!G85 -> full years | I53: =Inputs!I85 -> 20
E54: Annuity factor over debt tenor | G54: scalar | I54: =I52 / (1 - (1 + I52)^(-I53)) -> 0.04723215452
E56: Year within debt tenor | G56: flag | K56: =(SUMIF(Inputs!164:164,'Allowances Floor'!K4,Inputs!171:171)<>0) -> FALSE | L56: =(SUMIF(Inputs!164:164,'Allowances Floor'!L4,Inputs!171:171)<>0) -> FALSE | M56: =(SUMIF(Inputs!164:164,'Allowances Floor'!M4,Inputs!171:171)<>0) -> FALSE | N56: =(SUMIF(Inputs!164:164,'Allowances Floor'!N4,Inputs!171:171)<>0) -> TRUE | O56: =(SUMIF(Inputs!164:164,'Allowances Floor'!O4,Inputs!171:171)<>0) -> TRUE | P56: =(SUMIF(Inputs!164:164,'Allowances Floor'!P4,Inputs!171:171)<>0) -> TRUE | Q56: =(SUMIF(Inputs!164:164,'Allowances Floor'!Q4,Inputs!171:171)<>0) -> TRUE | R56: =(SUMIF(Inputs!164:164,'Allowances Floor'!R4,Inputs!171:171)<>0) -> TRUE | S56: =(SUMIF(Inputs!164:164,'Allowances Floor'!S4,Inputs!171:171)<>0) -> TRUE | T56: =(SUMIF(Inputs!164:164,'Allowances Floor'!T4,Inputs!171:171)<>0) -> TRUE | U56: =(SUMIF(Inputs!164:164,'Allowances Floor'!U4,Inputs!171:171)<>0) -> TRUE | V56: =(SUMIF(Inputs!164:164,'Allowances Floor'!V4,Inputs!171:171)<>0) -> TRUE | W56: =(SUMIF(Inputs!164:164,'Allowances Floor'!W4,Inputs!171:171)<>0) -> TRUE | X56: =(SUMIF(Inputs!164:164,'Allowances Floor'!X4,Inputs!171:171)<>0) -> TRUE | Y56: =(SUMIF(Inputs!164:164,'Allowances Floor'!Y4,Inputs!171:171)<>0) -> TRUE | Z56: =(SUMIF(Inputs!164:164,'Allowances Floor'!Z4,Inputs!171:171)<>0) -> TRUE | AA56: =(SUMIF(Inputs!164:164,'Allowances Floor'!AA4,Inputs!171:171)<>0) -> TRUE | AB56: =(SUMIF(Inputs!164:164,'Allowances Floor'!AB4,Inputs!171:171)<>0) -> TRUE | AC56: =(SUMIF(Inputs!164:164,'Allowances Floor'!AC4,Inputs!171:171)<>0) -> TRUE | AD56: =(SUMIF(Inputs!164:164,'Allowances Floor'!AD4,Inputs!171:171)<>0) -> TRUE | AE56: =(SUMIF(Inputs!164:164,'Allowances Floor'!AE4,Inputs!171:171)<>0) -> TRUE | AF56: =(SUMIF(Inputs!164:164,'Allowances Floor'!AF4,Inputs!171:171)<>0) -> TRUE | AG56: =(SUMIF(Inputs!164:164,'Allowances Floor'!AG4,Inputs!171:171)<>0) -> TRUE | AH56: =(SUMIF(Inputs!164:164,'Allowances Floor'!AH4,Inputs!171:171)<>0) -> FALSE | AI56: =(SUMIF(Inputs!164:164,'Allowances Floor'!AI4,Inputs!171:171)<>0) -> FALSE
E57: Discount factor to start of debt period (floor) | G57: scalar | K57: =(1 + $I52) ^ - K4 -> 1.005392328 | L57: =(1 + $I52) ^ - L4 -> 1.010813733 | M57: 1.016264373 | N57: 1.021744404 | O57: 1.027253985 | P57: 1.032793275 | Q57: 1.038362436 | R57: 1.043961627 | S57: 1.04959101 | T57: 1.05525075 | U57: 1.060941008 | V57: 1.06666195 | W57: 1.072413741 | X57: 1.078196548 | Y57: 1.084010538 | Z57: 1.089855878 | AA57: 1.095732739 | AB57: 1.101641289 | AC57: 1.1075817 | AD57: 1.113554144 | AE57: 1.119558794 | AF57: 1.125595822 | AG57: 1.131665404 | AH57: 1.137767715 | AI57: 1.143902932
C59: Allowances except tax during debt tenor
E61: Discounted unprofiled allowances except tax (floor) during debt period | G61: =Inputs!$I$11 -> £m 20/21 prices | K61: =K42 * K$57 *K56 -> 0 | L61: =L42 * L$57 *L56 -> 0 | M61: 0 | N61: 43.06288599 | O61: 47.84226978 | P61: 48.22580599 | Q61: 48.66951355 | R61: 48.6092087 | S61: 48.80173215 | T61: 44.70604564 | U61: 49.26364611 | V61: 50.10095257 | W61: 50.52517265 | X61: 50.94492787 | Y61: 51.31610107 | Z61: 51.70278518 | AA61: 52.08729917 | AB61: 31.17267365 | AC61: 50.85703767 | AD61: 53.06313206 | AE61: 53.36934405 | AF61: 53.65073317 | AG61: 53.92053063 | AH61: 0 | AI61: 0
E62: NPV of allowances except tax (floor) during debt period | G62: =Inputs!$I$11 -> £m 20/21 prices | I62: =SUM(K61:AI61) -> 981.8917977
E64: Annuity factor (floor) | G64: =G$21 -> scalar | I64: =I$54 -> 0.04723215452
E66: Annuity of allowances except tax (floor) during debt tenor | G66: =Inputs!$I$11 -> £m 20/21 prices | I66: =I62 * I64 -> 46.37686511
E67: Annuitised allowances except tax (floor) during debt tenor | G67: =Inputs!$I$11 -> £m 20/21 prices | K67: =K$56 * $I66 -> 0 | L67: =L$56 * $I66 -> 0 | M67: =M$56 * $I66 -> 0 | N67: 46.37686511 | O67: 46.37686511 | P67: 46.37686511 | Q67: 46.37686511 | R67: 46.37686511 | S67: 46.37686511 | T67: 46.37686511 | U67: 46.37686511 | V67: 46.37686511 | W67: 46.37686511 | X67: 46.37686511 | Y67: 46.37686511 | Z67: 46.37686511 | AA67: 46.37686511 | AB67: 46.37686511 | AC67: 46.37686511 | AD67: 46.37686511 | AE67: 46.37686511 | AF67: 46.37686511 | AG67: 46.37686511 | AH67: 0 | AI67: 0
C69: Allowances except tax during debt tail period
E71: Debt tenor | G71: =Inputs!G85 -> full years | I71: =Inputs!I85 -> 20
E72: Debt tail requirement | G72: =Inputs!G86 -> full years | I72: =Inputs!I86 -> 2
E74: Year within tail requirement period | G74: flag | K74: =AND((SUMIF(Inputs!164:164,'Allowances Floor'!K4,Inputs!172:172)<>0),K56<>TRUE) -> FALSE | L74: =AND((SUMIF(Inputs!164:164,'Allowances Floor'!L4,Inputs!172:172)<>0),L56<>TRUE) -> FALSE | M74: =AND((SUMIF(Inputs!164:164,'Allowances Floor'!M4,Inputs!172:172)<>0),M56<>TRUE) -> FALSE | N74: =AND((SUMIF(Inputs!164:164,'Allowances Floor'!N4,Inputs!172:172)<>0),N56<>TRUE) -> FALSE | O74: =AND((SUMIF(Inputs!164:164,'Allowances Floor'!O4,Inputs!172:172)<>0),O56<>TRUE) -> FALSE | P74: =AND((SUMIF(Inputs!164:164,'Allowances Floor'!P4,Inputs!172:172)<>0),P56<>TRUE) -> FALSE | Q74: =AND((SUMIF(Inputs!164:164,'Allowances Floor'!Q4,Inputs!172:172)<>0),Q56<>TRUE) -> FALSE | R74: =AND((SUMIF(Inputs!164:164,'Allowances Floor'!R4,Inputs!172:172)<>0),R56<>TRUE) -> FALSE | S74: =AND((SUMIF(Inputs!164:164,'Allowances Floor'!S4,Inputs!172:172)<>0),S56<>TRUE) -> FALSE | T74: =AND((SUMIF(Inputs!164:164,'Allowances Floor'!T4,Inputs!172:172)<>0),T56<>TRUE) -> FALSE | U74: =AND((SUMIF(Inputs!164:164,'Allowances Floor'!U4,Inputs!172:172)<>0),U56<>TRUE) -> FALSE | V74: =AND((SUMIF(Inputs!164:164,'Allowances Floor'!V4,Inputs!172:172)<>0),V56<>TRUE) -> FALSE | W74: =AND((SUMIF(Inputs!164:164,'Allowances Floor'!W4,Inputs!172:172)<>0),W56<>TRUE) -> FALSE | X74: =AND((SUMIF(Inputs!164:164,'Allowances Floor'!X4,Inputs!172:172)<>0),X56<>TRUE) -> FALSE | Y74: =AND((SUMIF(Inputs!164:164,'Allowances Floor'!Y4,Inputs!172:172)<>0),Y56<>TRUE) -> FALSE | Z74: =AND((SUMIF(Inputs!164:164,'Allowances Floor'!Z4,Inputs!172:172)<>0),Z56<>TRUE) -> FALSE | AA74: =AND((SUMIF(Inputs!164:164,'Allowances Floor'!AA4,Inputs!172:172)<>0),AA56<>TRUE) -> FALSE | AB74: =AND((SUMIF(Inputs!164:164,'Allowances Floor'!AB4,Inputs!172:172)<>0),AB56<>TRUE) -> FALSE | AC74: =AND((SUMIF(Inputs!164:164,'Allowances Floor'!AC4,Inputs!172:172)<>0),AC56<>TRUE) -> FALSE | AD74: =AND((SUMIF(Inputs!164:164,'Allowances Floor'!AD4,Inputs!172:172)<>0),AD56<>TRUE) -> FALSE | AE74: =AND((SUMIF(Inputs!164:164,'Allowances Floor'!AE4,Inputs!172:172)<>0),AE56<>TRUE) -> FALSE | AF74: =AND((SUMIF(Inputs!164:164,'Allowances Floor'!AF4,Inputs!172:172)<>0),AF56<>TRUE) -> FALSE | AG74: =AND((SUMIF(Inputs!164:164,'Allowances Floor'!AG4,Inputs!172:172)<>0),AG56<>TRUE) -> FALSE | AH74: =AND((SUMIF(Inputs!164:164,'Allowances Floor'!AH4,Inputs!172:172)<>0),AH56<>TRUE) -> TRUE | AI74: =AND((SUMIF(Inputs!164:164,'Allowances Floor'!AI4,Inputs!172:172)<>0),AI56<>TRUE) -> TRUE
E76: Annuitised allowances except tax (floor) during tail period | G76: =Inputs!$I$11 -> £m 20/21 prices | K76: =K$74 * $I66 -> 0 | L76: =L$74 * $I66 -> 0 | M76: 0 | N76: 0 | O76: 0 | P76: 0 | Q76: 0 | R76: 0 | S76: 0 | T76: 0 | U76: 0 | V76: 0 | W76: 0 | X76: 0 | Y76: 0 | Z76: 0 | AA76: 0 | AB76: 0 | AC76: 0 | AD76: 0 | AE76: 0 | AF76: 0 | AG76: 0 | AH76: 46.37686511 | AI76: 46.37686511
B78: End of sheet

Sheet Tax Deductions
A1: Tax Deductions | H1: Licence
E2: Parameter | G2: Units | H2: Terminology | I2: Constant | K2: Annual values
E3: Project year | K3: Year 1 | L3: Year 2 | M3: Year 3 | N3: Year 4 | O3: Year 5 | P3: Year 6 | Q3: Year 7 | R3: Year 8 | S3: Year 9 | T3: Year 10 | U3: Year 11 | V3: Year 12 | W3: Year 13 | X3: Year 14 | Y3: Year 15 | Z3: Year 16 | AA3: Year 17 | AB3: Year 18 | AC3: Year 19 | AD3: Year 20 | AE3: Year 21 | AF3: Year 22 | AG3: Year 23 | AH3: Year 24 | AI3: Year 25
E4: Year | K4: 1 | L4: 2 | M4: 3 | N4: 4 | O4: 5 | P4: 6 | Q4: 7 | R4: 8 | S4: 9 | T4: 10 | U4: 11 | V4: 12 | W4: 13 | X4: 14 | Y4: 15 | Z4: 16 | AA4: 17 | AB4: 18 | AC4: 19 | AD4: 20 | AE4: 21 | AF4: 22 | AG4: 23 | AH4: 24 | AI4: 25
B6: Tax deductions
C8: Inflation
E10: =Inputs!E195 -> UK RPI uplift from 2019/20 term to start of regime | G10: scalar | I10: =Inputs!I195 -> 1.040079468
E11: =Inputs!E192 -> Long-term expected UK RPI inflation | G11: % | I11: =Inputs!I192 -> 0.0318
E12: Forecast UK inflation uplift | G12: scalar | K12: =I10*(1+$I$11)^0.5 -> 1.05648731 | L12: =K12*(1+$I$11) -> 1.090083606 | M12: =L12*(1+$I$11) -> 1.124748265 | N12: 1.16051526 | O12: 1.197419645 | P12: 1.23549759 | Q12: 1.274786413 | R12: 1.315324621 | S12: 1.357151944 | T12: 1.400309376 | U12: 1.444839214 | V12: 1.490785101 | W12: 1.538192067 | X12: 1.587106575 | Y12: 1.637576564 | Z12: 1.689651499 | AA12: 1.743382416 | AB12: 1.798821977 | AC12: 1.856024516 | AD12: 1.915046096 | AE12: 1.975944562 | AF12: 2.038779599 | AG12: 2.10361279 | AH12: 2.170507677 | AI12: 2.239529821
C14: Total tax deductions - Notional cost of debt
E16: Revenue pool additions | G16: £m nominal | K16: =K38 -> 14.17615871 | L16: 22.50301624 | M16: 20.31628564 | N16: 20.96234352 | O16: 21.62894604 | P16: 22.31674653 | Q16: 23.02641907 | R16: 23.75865919 | S16: 24.51418456 | T16: 25.29373562 | U16: 26.09807642 | V16: 26.92799525 | W16: 27.7843055 | X16: 28.66784641 | Y16: 29.57948393 | Z16: 30.52011152 | AA16: 31.49065106 | AB16: 32.49205377 | AC16: 33.52530108 | AD16: 34.59140565 | AE16: 35.69141235 | AF16: 36.82639926 | AG16: 37.99747876 | AH16: 39.20579858 | AI16: 40.45254298
E17: Capital allowances | G17: £m nominal | K17: =K53 -> 60.55130837 | L17: 55.7072037 | M17: 51.2506274 | N17: 47.15057721 | O17: 43.37853103 | P17: 39.90824855 | Q17: 37.12417995 | R17: 34.15424555 | S17: 31.42190591 | T17: 28.90815344 | U17: 26.59550116 | V17: 24.46786107 | W17: 22.51043218 | X17: 20.70959761 | Y17: 22.33327888 | Z17: 20.54661657 | AA17: 18.90288725 | AB17: 17.39065627 | AC17: 15.99940376 | AD17: 14.71945146 | AE17: 13.54189535 | AF17: 12.45854372 | AG17: 12.30466596 | AH17: 11.32029269 | AI17: 130.1833659
E18: Interest payable | G18: £m nominal | K18: =K69 -> 12.17808937 | L18: 11.82861041 | M18: 11.46985704 | N18: 11.10158314 | O18: 10.72353605 | P18: 10.33545641 | Q18: 9.937077992 | R18: 9.528127474 | S18: 9.108324302 | T18: 8.677380468 | U18: 8.235000324 | V18: 7.780880376 | W18: 7.314709075 | X18: 6.836166603 | Y18: 6.344924657 | Z18: 5.840646222 | AA18: 5.322985335 | AB18: 4.791586857 | AC18: 4.246086223 | AD18: 3.68610919 | AE18: 3.111271588 | AF18: 2.521179049 | AG18: 1.91542674 | AH18: 1.293599086 | AI18: 0.6552694809
E19: Debt transaction costs | G19: £m nominal | K19: =SUMPRODUCT(Finance!K43:AX43,Inputs!K183:AX183)+SUMPRODUCT(Finance!K45:AX45,Inputs!K183:AX183) -> 10.2160002
E20: Total tax deductions | G20: £m nominal | K20: =SUM(K16:K19) -> 97.12155665 | L20: 90.03883035 | M20: 83.03677008 | N20: 79.21450387 | O20: 75.73101313 | P20: 72.56045149 | Q20: 70.08767701 | R20: 67.44103222 | S20: =SUM(S16:S19) -> 65.04441477 | T20: 62.87926953 | U20: 60.9285779 | V20: 59.17673669 | W20: 57.60944675 | X20: 56.21361062 | Y20: 58.25768747 | Z20: 56.90737431 | AA20: 55.71652364 | AB20: 54.67429689 | AC20: 53.77079106 | AD20: 52.9969663 | AE20: 52.34457928 | AF20: 51.80612203 | AG20: 52.21757146 | AH20: 51.81969035 | AI20: 171.2911783
C22: Total tax deductions - Actual cost of debt
E24: Year within debt tenor or tail period | G24: flag | K24: =OR('Allowances Floor'!K56,'Allowances Floor'!K74) -> FALSE | L24: =OR('Allowances Floor'!L56,'Allowances Floor'!L74) -> FALSE | M24: =OR('Allowances Floor'!M56,'Allowances Floor'!M74) -> FALSE | N24: =OR('Allowances Floor'!N56,'Allowances Floor'!N74) -> TRUE | O24: =OR('Allowances Floor'!O56,'Allowances Floor'!O74) -> TRUE | P24: =OR('Allowances Floor'!P56,'Allowances Floor'!P74) -> TRUE | Q24: =OR('Allowances Floor'!Q56,'Allowances Floor'!Q74) -> TRUE | R24: =OR('Allowances Floor'!R56,'Allowances Floor'!R74) -> TRUE | S24: =OR('Allowances Floor'!S56,'Allowances Floor'!S74) -> TRUE | T24: =OR('Allowances Floor'!T56,'Allowances Floor'!T74) -> TRUE | U24: =OR('Allowances Floor'!U56,'Allowances Floor'!U74) -> TRUE | V24: =OR('Allowances Floor'!V56,'Allowances Floor'!V74) -> TRUE | W24: =OR('Allowances Floor'!W56,'Allowances Floor'!W74) -> TRUE | X24: =OR('Allowances Floor'!X56,'Allowances Floor'!X74) -> TRUE | Y24: =OR('Allowances Floor'!Y56,'Allowances Floor'!Y74) -> TRUE | Z24: =OR('Allowances Floor'!Z56,'Allowances Floor'!Z74) -> TRUE | AA24: =OR('Allowances Floor'!AA56,'Allowances Floor'!AA74) -> TRUE | AB24: =OR('Allowances Floor'!AB56,'Allowances Floor'!AB74) -> TRUE | AC24: =OR('Allowances Floor'!AC56,'Allowances Floor'!AC74) -> TRUE | AD24: =OR('Allowances Floor'!AD56,'Allowances Floor'!AD74) -> TRUE | AE24: =OR('Allowances Floor'!AE56,'Allowances Floor'!AE74) -> TRUE | AF24: =OR('Allowances Floor'!AF56,'Allowances Floor'!AF74) -> TRUE | AG24: =OR('Allowances Floor'!AG56,'Allowances Floor'!AG74) -> TRUE | AH24: =OR('Allowances Floor'!AH56,'Allowances Floor'!AH74) -> TRUE | AI24: =OR('Allowances Floor'!AI56,'Allowances Floor'!AI74) -> TRUE
E26: Revenue pool additions | G26: £m nominal | K26: =K38*K$24 -> 0 | L26: 0 | M26: 0 | N26: 20.96234352 | O26: 21.62894604 | P26: 22.31674653 | Q26: 23.02641907 | R26: 23.75865919 | S26: 24.51418456 | T26: 25.29373562 | U26: 26.09807642 | V26: 26.92799525 | W26: 27.7843055 | X26: 28.66784641 | Y26: 29.57948393 | Z26: 30.52011152 | AA26: 31.49065106 | AB26: 32.49205377 | AC26: 33.52530108 | AD26: 34.59140565 | AE26: 35.69141235 | AF26: 36.82639926 | AG26: 37.99747876 | AH26: 39.20579858 | AI26: 40.45254298
E27: Capital allowances | G27: £m nominal | K27: =K53*K$24 -> 0 | L27: 0 | M27: 0 | N27: 47.15057721 | O27: =O53*O$24 -> 43.37853103 | P27: 39.90824855 | Q27: 37.12417995 | R27: 34.15424555 | S27: 31.42190591 | T27: 28.90815344 | U27: 26.59550116 | V27: 24.46786107 | W27: 22.51043218 | X27: 20.70959761 | Y27: 22.33327888 | Z27: 20.54661657 | AA27: 18.90288725 | AB27: 17.39065627 | AC27: 15.99940376 | AD27: 14.71945146 | AE27: 13.54189535 | AF27: 12.45854372 | AG27: 12.30466596 | AH27: 11.32029269 | AI27: 130.1833659
E28: Financial expenses during operation | G28: £m nominal | K28: =SUMIF(Finance!10:10,'Tax Deductions'!K4,Finance!140:140)*K$24 -> 0 | L28: =SUMIF(Finance!10:10,'Tax Deductions'!L4,Finance!140:140)*L$24 -> 0 | M28: =SUMIF(Finance!10:10,'Tax Deductions'!M4,Finance!140:140)*M$24 -> 0 | N28: =SUMIF(Finance!10:10,'Tax Deductions'!N4,Finance!140:140)*N$24 -> 13.029 | O28: =SUMIF(Finance!10:10,'Tax Deductions'!O4,Finance!140:140)*O$24 -> 12.79765649 | P28: =SUMIF(Finance!10:10,'Tax Deductions'!P4,Finance!140:140)*P$24 -> 12.43948408 | Q28: =SUMIF(Finance!10:10,'Tax Deductions'!Q4,Finance!140:140)*Q$24 -> 12.04861211 | R28: =SUMIF(Finance!10:10,'Tax Deductions'!R4,Finance!140:140)*R$24 -> 11.62201262 | S28: =SUMIF(Finance!10:10,'Tax Deductions'!S4,Finance!140:140)*S$24 -> 12.10650613 | T28: =SUMIF(Finance!10:10,'Tax Deductions'!T4,Finance!140:140)*T$24 -> 11.60659028 | U28: =SUMIF(Finance!10:10,'Tax Deductions'!U4,Finance!140:140)*U$24 -> 11.1906904 | V28: =SUMIF(Finance!10:10,'Tax Deductions'!V4,Finance!140:140)*V$24 -> 10.61623029 | W28: =SUMIF(Finance!10:10,'Tax Deductions'!W4,Finance!140:140)*W$24 -> 9.9823349 | X28: =SUMIF(Finance!10:10,'Tax Deductions'!X4,Finance!140:140)*X$24 -> 10.018429 | Y28: =SUMIF(Finance!10:10,'Tax Deductions'!Y4,Finance!140:140)*Y$24 -> 9.24554023 | Z28: =SUMIF(Finance!10:10,'Tax Deductions'!Z4,Finance!140:140)*Z$24 -> 8.414177333 | AA28: =SUMIF(Finance!10:10,'Tax Deductions'!AA4,Finance!140:140)*AA$24 -> 7.520964805 | AB28: =SUMIF(Finance!10:10,'Tax Deductions'!AB4,Finance!140:140)*AB$24 -> 6.562996743 | AC28: =SUMIF(Finance!10:10,'Tax Deductions'!AC4,Finance!140:140)*AC$24 -> 6.789978159 | AD28: =SUMIF(Finance!10:10,'Tax Deductions'!AD4,Finance!140:140)*AD$24 -> 5.7344561 | AE28: =SUMIF(Finance!10:10,'Tax Deductions'!AE4,Finance!140:140)*AE$24 -> 4.525759109 | AF28: =SUMIF(Finance!10:10,'Tax Deductions'!AF4,Finance!140:140)*AF$24 -> 3.23602504 | AG28: =SUMIF(Finance!10:10,'Tax Deductions'!AG4,Finance!140:140)*AG$24 -> 1.8625519 | AH28: =SUMIF(Finance!10:10,'Tax Deductions'!AH4,Finance!140:140)*AH$24 -> 0 | AI28: =SUMIF(Finance!10:10,'Tax Deductions'!AI4,Finance!140:140)*AI$24 -> 0
E29: Debt transaction costs | G29: £m nominal | K29: =IF(Inputs!I128=1,'Tax Deductions'!K19,SUMPRODUCT(Finance!108:108,Finance!14:14)+SUMPRODUCT(Finance!109:109,Finance!14:14)) -> 8.82
E30: Total tax deductions | G30: £m nominal | K30: =SUM(K26:K29) -> 8.82 | L30: 0 | M30: 0 | N30: 81.14192073 | O30: 77.80513357 | P30: 74.66447916 | Q30: 72.19921113 | R30: 69.53491737 | S30: 68.0425966 | T30: 65.80847934 | U30: 63.88426798 | V30: 62.0120866 | W30: 60.27707258 | X30: 59.39587302 | Y30: 61.15830304 | Z30: 59.48090542 | AA30: 57.91450311 | AB30: 56.44570677 | AC30: 56.314683 | AD30: 55.04531321 | AE30: 53.7590668 | AF30: 52.52096802 | AG30: 52.16469662 | AH30: 50.52609127 | AI30: 170.6359089
B32: Tax pools
C34: Revenue pool
E36: Controllable Opex | G36: £m nominal | K36: =Inputs!K61* K$12 -> 14.17615871 | L36: =Inputs!L61* L$12 -> 22.50301624 | M36: =Inputs!M61* M$12 -> 20.31628564 | N36: =Inputs!N61* N$12 -> 20.96234352 | O36: =Inputs!O61* O$12 -> 21.62894604 | P36: =Inputs!P61* P$12 -> 22.31674653 | Q36: =Inputs!Q61* Q$12 -> 23.02641907 | R36: =Inputs!R61* R$12 -> 23.75865919 | S36: =Inputs!S61* S$12 -> 24.51418456 | T36: =Inputs!T61* T$12 -> 25.29373562 | U36: =Inputs!U61* U$12 -> 26.09807642 | V36: =Inputs!V61* V$12 -> 26.92799525 | W36: =Inputs!W61* W$12 -> 27.7843055 | X36: =Inputs!X61* X$12 -> 28.66784641 | Y36: =Inputs!Y61* Y$12 -> 29.57948393 | Z36: =Inputs!Z61* Z$12 -> 30.52011152 | AA36: =Inputs!AA61* AA$12 -> 31.49065106 | AB36: =Inputs!AB61* AB$12 -> 32.49205377 | AC36: =Inputs!AC61* AC$12 -> 33.52530108 | AD36: =Inputs!AD61* AD$12 -> 34.59140565 | AE36: =Inputs!AE61* AE$12 -> 35.69141235 | AF36: =Inputs!AF61* AF$12 -> 36.82639926 | AG36: =Inputs!AG61* AG$12 -> 37.99747876 | AH36: =Inputs!AH61* AH$12 -> 39.20579858 | AI36: =Inputs!AI61* AI$12 -> 40.45254298
E37: Non-controllable Opex (baseline) | G37: £m nominal | K37: =Inputs!K62* K$12 -> 0 | L37: =Inputs!L62* L$12 -> 0 | M37: =Inputs!M62* M$12 -> 0 | N37: =Inputs!N62* N$12 -> 0 | O37: =Inputs!O62* O$12 -> 0 | P37: =Inputs!P62* P$12 -> 0 | Q37: =Inputs!Q62* Q$12 -> 0 | R37: =Inputs!R62* R$12 -> 0 | S37: =Inputs!S62* S$12 -> 0 | T37: =Inputs!T62* T$12 -> 0 | U37: =Inputs!U62* U$12 -> 0 | V37: =Inputs!V62* V$12 -> 0 | W37: =Inputs!W62* W$12 -> 0 | X37: =Inputs!X62* X$12 -> 0 | Y37: =Inputs!Y62* Y$12 -> 0 | Z37: =Inputs!Z62* Z$12 -> 0 | AA37: =Inputs!AA62* AA$12 -> 0 | AB37: =Inputs!AB62* AB$12 -> 0 | AC37: =Inputs!AC62* AC$12 -> 0 | AD37: =Inputs!AD62* AD$12 -> 0 | AE37: =Inputs!AE62* AE$12 -> 0 | AF37: =Inputs!AF62* AF$12 -> 0 | AG37: =Inputs!AG62* AG$12 -> 0 | AH37: =Inputs!AH62* AH$12 -> 0 | AI37: =Inputs!AI62* AI$12 -> 0
E38: Revenue pool additions | G38: £m nominal | K38: =SUM(K36:K37) -> 14.17615871 | L38: 22.50301624 | M38: 20.31628564 | N38: 20.96234352 | O38: 21.62894604 | P38: 22.31674653 | Q38: 23.02641907 | R38: 23.75865919 | S38: 24.51418456 | T38: 25.29373562 | U38: 26.09807642 | V38: 26.92799525 | W38: 27.7843055 | X38: 28.66784641 | Y38: 29.57948393 | Z38: 30.52011152 | AA38: 31.49065106 | AB38: 32.49205377 | AC38: 33.52530108 | AD38: 34.59140565 | AE38: 35.69141235 | AF38: 36.82639926 | AG38: 37.99747876 | AH38: 39.20579858 | AI38: 40.45254298
C40: Capital allowance pool
E42: Capital allowance rate (declining balance) | G42: =Inputs!G190 -> % | K42: =Inputs!K190 -> 0.08 | L42: =Inputs!L190 -> 0.08 | M42: =Inputs!M190 -> 0.08 | N42: =Inputs!N190 -> 0.08 | O42: =Inputs!O190 -> 0.08 | P42: =Inputs!P190 -> 0.08 | Q42: =Inputs!Q190 -> 0.08 | R42: =Inputs!R190 -> 0.08 | S42: =Inputs!S190 -> 0.08 | T42: =Inputs!T190 -> 0.08 | U42: =Inputs!U190 -> 0.08 | V42: =Inputs!V190 -> 0.08 | W42: =Inputs!W190 -> 0.08 | X42: =Inputs!X190 -> 0.08 | Y42: =Inputs!Y190 -> 0.08 | Z42: =Inputs!Z190 -> 0.08 | AA42: =Inputs!AA190 -> 0.08 | AB42: =Inputs!AB190 -> 0.08 | AC42: =Inputs!AC190 -> 0.08 | AD42: =Inputs!AD190 -> 0.08 | AE42: =Inputs!AE190 -> 0.08 | AF42: =Inputs!AF190 -> 0.08 | AG42: =Inputs!AG190 -> 0.08 | AH42: =Inputs!AH190 -> 0.08 | AI42: =Inputs!AI190 -> 0.08
E43: Number of operational years | G43: =Inputs!G155 -> full years | I43: =Inputs!I155 -> 25
E45: Opening balance brought forward | G45: £m nominal | K45: =J51 -> 0 | L45: 696.3400462 | M45: 640.6328425 | N45: 589.3822151 | O45: 542.2316379 | P45: 498.8531069 | Q45: 458.9448583 | R45: 426.9280694 | S45: 392.7738239 | T45: 361.3519179 | U45: 332.4437645 | V45: 305.8482633 | W45: 281.3804023 | X45: 258.8699701 | Y45: 238.1603725 | Z45: 256.8327071 | AA45: 236.2860906 | AB45: 217.3832033 | AC45: 199.9925471 | AD45: 183.9931433 | AE45: 169.2736918 | AF45: 155.7317965 | AG45: 143.2732528 | AH45: 141.5036586 | AI45: 130.1833659
E46: Capex | G46: £m nominal | K46: =SUMPRODUCT('Pre Op RAV'!K21:AX21,Inputs!K183:AX183) -> 756.8913546
E47: Replacement Capex | G47: £m nominal | K47: ='Op Rav'!K13 * K$12 -> 0 | L47: ='Op Rav'!L13 * L$12 -> 0 | M47: ='Op Rav'!M13 * M$12 -> 0 | N47: ='Op Rav'!N13 * N$12 -> 0 | O47: ='Op Rav'!O13 * O$12 -> 0 | P47: ='Op Rav'!P13 * P$12 -> 0 | Q47: ='Op Rav'!Q13 * Q$12 -> 5.107391021 | R47: ='Op Rav'!R13 * R$12 -> 0 | S47: ='Op Rav'!S13 * S$12 -> 0 | T47: ='Op Rav'!T13 * T$12 -> 0 | U47: ='Op Rav'!U13 * U$12 -> 0 | V47: ='Op Rav'!V13 * V$12 -> 0 | W47: ='Op Rav'!W13 * W$12 -> 0 | X47: ='Op Rav'!X13 * X$12 -> 0 | Y47: ='Op Rav'!Y13 * Y$12 -> 41.00561354 | Z47: ='Op Rav'!Z13 * Z$12 -> 0 | AA47: ='Op Rav'!AA13 * AA$12 -> 0 | AB47: ='Op Rav'!AB13 * AB$12 -> 0 | AC47: ='Op Rav'!AC13 * AC$12 -> 0 | AD47: ='Op Rav'!AD13 * AD$12 -> 0 | AE47: ='Op Rav'!AE13 * AE$12 -> 0 | AF47: ='Op Rav'!AF13 * AF$12 -> 0 | AG47: ='Op Rav'!AG13 * AG$12 -> 10.53507176 | AH47: ='Op Rav'!AH13 * AH$12 -> 0 | AI47: ='Op Rav'!AI13 * AI$12 -> 0
E48: Tax book value pre-depreciation | G48: £m nominal | K48: =SUM(K45:K47) -> 756.8913546 | L48: 696.3400462 | M48: 640.6328425 | N48: 589.3822151 | O48: 542.2316379 | P48: 498.8531069 | Q48: 464.0522494 | R48: 426.9280694 | S48: 392.7738239 | T48: 361.3519179 | U48: 332.4437645 | V48: 305.8482633 | W48: 281.3804023 | X48: 258.8699701 | Y48: 279.165986 | Z48: 256.8327071 | AA48: 236.2860906 | AB48: 217.3832033 | AC48: 199.9925471 | AD48: 183.9931433 | AE48: 169.2736918 | AF48: 155.7317965 | AG48: 153.8083245 | AH48: 141.5036586 | AI48: 130.1833659
E49: Capital allowance (reducing balance) | G49: £m nominal | K49: =-K48 * K42 -> -60.55130837 | L49: =-L48 * L42 -> -55.7072037 | M49: =-M48 * M42 -> -51.2506274 | N49: -47.15057721 | O49: -43.37853103 | P49: -39.90824855 | Q49: -37.12417995 | R49: -34.15424555 | S49: -31.42190591 | T49: -28.90815344 | U49: -26.59550116 | V49: -24.46786107 | W49: -22.51043218 | X49: -20.70959761 | Y49: -22.33327888 | Z49: -20.54661657 | AA49: -18.90288725 | AB49: -17.39065627 | AC49: -15.99940376 | AD49: -14.71945146 | AE49: -13.54189535 | AF49: -12.45854372 | AG49: -12.30466596 | AH49: -11.32029269 | AI49: -10.41466927
E50: Write-back allowance | G50: £m nominal | AI50: =-SUM(AI48:AI49) -> -119.7686966
E51: Closing balance carried forward | G51: £m nominal | K51: =SUM(K48:K50) -> 696.3400462 | L51: =SUM(L48:L50) -> 640.6328425 | M51: 589.3822151 | N51: 542.2316379 | O51: 498.8531069 | P51: 458.9448583 | Q51: 426.9280694 | R51: 392.7738239 | S51: 361.3519179 | T51: 332.4437645 | U51: 305.8482633 | V51: 281.3804023 | W51: 258.8699701 | X51: 238.1603725 | Y51: 256.8327071 | Z51: 236.2860906 | AA51: 217.3832033 | AB51: 199.9925471 | AC51: 183.9931433 | AD51: 169.2736918 | AE51: 155.7317965 | AF51: 143.2732528 | AG51: 141.5036586 | AH51: 130.1833659 | AI51: =SUM(AI48:AI50) -> 0
E53: Capital allowances | G53: £m nominal | K53: =-(K49 + K50) -> 60.55130837 | L53: 55.7072037 | M53: 51.2506274 | N53: 47.15057721 | O53: 43.37853103 | P53: 39.90824855 | Q53: 37.12417995 | R53: 34.15424555 | S53: 31.42190591 | T53: 28.90815344 | U53: 26.59550116 | V53: =-(V49 + V50) -> 24.46786107 | W53: 22.51043218 | X53: 20.70959761 | Y53: 22.33327888 | Z53: 20.54661657 | AA53: 18.90288725 | AB53: 17.39065627 | AC53: 15.99940376 | AD53: 14.71945146 | AE53: 13.54189535 | AF53: 12.45854372 | AG53: 12.30466596 | AH53: 11.32029269 | AI53: 130.1833659
B55: Interest - Notional cost of debt
C57: Cost of debt
E59: Cost of debt (for tax) | G59: =Inputs!G69 -> real annual % | I59: =Inputs!I71 -> -0.0051
E60: Expected UK RPI inflation | G60: =Inputs!G192 -> % | I60: =Inputs!I192 -> 0.0318
E61: Cost of debt (for tax) | G61: nominal annual % | I61: =(1 + I59) * (1 + I$60) - 1 -> 0.02653782
C63: Net debt
E65: Number of operational years | G65: =Inputs!G155 -> full years | I65: =Inputs!I155 -> 25
E66: Operational notional gearing | G66: =Inputs!G74 -> % | I66: =Inputs!I74 -> 0.5
E68: Principal repayments | G68: £m nominal | K68: =K70 - K69 -> 13.16909078 | L68: =L70 - L69 -> 13.51856974 | M68: 13.87732311 | N68: 14.24559702 | O68: 14.6236441 | P68: 15.01172374 | Q68: 15.41010216 | R68: 15.81905268 | S68: 16.23885585 | T68: 16.66979969 | U68: 17.11217983 | V68: 17.56629978 | W68: 18.03247108 | X68: 18.51101355 | Y68: 19.0022555 | Z68: 19.50653393 | AA68: 20.02419482 | AB68: 20.5555933 | AC68: 21.10109393 | AD68: 21.66107096 | AE68: 22.23590857 | AF68: 22.82600111 | AG68: 23.43175341 | AH68: 24.05358107 | AI68: 24.69191067
E69: Net interest paid | G69: £m nominal | K69: =$I61 * K72 -> 12.17808937 | L69: 11.82861041 | M69: 11.46985704 | N69: 11.10158314 | O69: 10.72353605 | P69: 10.33545641 | Q69: 9.937077992 | R69: 9.528127474 | S69: 9.108324302 | T69: 8.677380468 | U69: 8.235000324 | V69: 7.780880376 | W69: 7.314709075 | X69: 6.836166603 | Y69: 6.344924657 | Z69: 5.840646222 | AA69: 5.322985335 | AB69: 4.791586857 | AC69: 4.246086223 | AD69: 3.68610919 | AE69: 3.111271588 | AF69: 2.521179049 | AG69: 1.91542674 | AH69: 1.293599086 | AI69: 0.6552694809
E70: Total | G70: £m nominal | K70: =$K$72*$I61/(1-(1+$I61)^(-$I65)) -> 25.34718015 | L70: =$K$72*$I61/(1-(1+$I61)^(-$I65)) -> 25.34718015 | M70: 25.34718015 | N70: 25.34718015 | O70: 25.34718015 | P70: 25.34718015 | Q70: 25.34718015 | R70: 25.34718015 | S70: 25.34718015 | T70: 25.34718015 | U70: 25.34718015 | V70: 25.34718015 | W70: 25.34718015 | X70: 25.34718015 | Y70: 25.34718015 | Z70: 25.34718015 | AA70: 25.34718015 | AB70: 25.34718015 | AC70: 25.34718015 | AD70: 25.34718015 | AE70: 25.34718015 | AF70: 25.34718015 | AG70: 25.34718015 | AH70: 25.34718015 | AI70: 25.34718015
E72: Opening net debt | G72: £m nominal | K72: ='Op Rav'!K12*I10*I66 -> 458.8956204 | L72: =K74 -> 445.7265296 | M72: =L74 -> 432.2079599 | N72: 418.3306367 | O72: 404.0850397 | P72: 389.4613956 | Q72: 374.4496719 | R72: 359.0395697 | S72: 343.220517 | T72: 326.9816612 | U72: 310.3118615 | V72: 293.1996817 | W72: 275.6333819 | X72: 257.6009108 | Y72: 239.0898973 | Z72: 220.0876418 | AA72: 200.5811078 | AB72: 180.556913 | AC72: 160.0013197 | AD72: 138.9002258 | AE72: 117.2391548 | AF72: 95.00324626 | AG72: 72.17724516 | AH72: 48.74549174 | AI72: 24.69191067
E73: Less principal repayment | G73: £m nominal | K73: =IF(K3 = "Year "&$I65, -K72, -K68) -> -13.16909078 | L73: -13.51856974 | M73: -13.87732311 | N73: -14.24559702 | O73: -14.6236441 | P73: -15.01172374 | Q73: -15.41010216 | R73: -15.81905268 | S73: -16.23885585 | T73: -16.66979969 | U73: -17.11217983 | V73: -17.56629978 | W73: -18.03247108 | X73: -18.51101355 | Y73: -19.0022555 | Z73: -19.50653393 | AA73: -20.02419482 | AB73: -20.5555933 | AC73: -21.10109393 | AD73: -21.66107096 | AE73: -22.23590857 | AF73: -22.82600111 | AG73: -23.43175341 | AH73: -24.05358107 | AI73: -24.69191067
E74: Closing net debt | G74: £m nominal | K74: =SUM(K72:K73) -> 445.7265296 | L74: =SUM(L72:L73) -> 432.2079599 | M74: 418.3306367 | N74: 404.0850397 | O74: 389.4613956 | P74: 374.4496719 | Q74: 359.0395697 | R74: 343.220517 | S74: 326.9816612 | T74: 310.3118615 | U74: 293.1996817 | V74: 275.6333819 | W74: 257.6009108 | X74: =SUM(X72:X73) -> 239.0898973 | Y74: =SUM(Y72:Y73) -> 220.0876418 | Z74: 200.5811078 | AA74: 180.556913 | AB74: 160.0013197 | AC74: 138.9002258 | AD74: 117.2391548 | AE74: 95.00324626 | AF74: 72.17724516 | AG74: 48.74549174 | AH74: 24.69191067 | AI74: 0
B76: End of sheet

Sheet Tax Cap
A1: Tax Cap | H1: Licence
E2: Parameter | G2: Units | H2: Terminology | I2: Constant | K2: Annual values
E3: Project year | K3: Year 1 | L3: Year 2 | M3: Year 3 | N3: Year 4 | O3: Year 5 | P3: Year 6 | Q3: Year 7 | R3: Year 8 | S3: Year 9 | T3: Year 10 | U3: Year 11 | V3: Year 12 | W3: Year 13 | X3: Year 14 | Y3: Year 15 | Z3: Year 16 | AA3: Year 17 | AB3: Year 18 | AC3: Year 19 | AD3: Year 20 | AE3: Year 21 | AF3: Year 22 | AG3: Year 23 | AH3: Year 24 | AI3: Year 25
B5: Unprofiled tax allowance (cap)
C7: Profits attributable to corporation tax
E9: Annuitised allowances except tax (cap) | G9: £m nominal prices | K9: ='Allowances Cap'!K34* 'Tax Deductions'!K$12 -> 105.8249127 | L9: ='Allowances Cap'!L34* 'Tax Deductions'!L$12 -> 109.1901449 | M9: ='Allowances Cap'!M34* 'Tax Deductions'!M$12 -> 112.6623915 | N9: ='Allowances Cap'!N34* 'Tax Deductions'!N$12 -> 116.2450556 | O9: ='Allowances Cap'!O34* 'Tax Deductions'!O$12 -> 119.9416483 | P9: ='Allowances Cap'!P34* 'Tax Deductions'!P$12 -> 123.7557928 | Q9: ='Allowances Cap'!Q34* 'Tax Deductions'!Q$12 -> 127.691227 | R9: ='Allowances Cap'!R34* 'Tax Deductions'!R$12 -> 131.751808 | S9: ='Allowances Cap'!S34* 'Tax Deductions'!S$12 -> 135.9415155 | T9: ='Allowances Cap'!T34* 'Tax Deductions'!T$12 -> 140.2644557 | U9: ='Allowances Cap'!U34* 'Tax Deductions'!U$12 -> 144.7248654 | V9: ='Allowances Cap'!V34* 'Tax Deductions'!V$12 -> 149.3271161 | W9: ='Allowances Cap'!W34* 'Tax Deductions'!W$12 -> 154.0757184 | X9: ='Allowances Cap'!X34* 'Tax Deductions'!X$12 -> 158.9753262 | Y9: ='Allowances Cap'!Y34* 'Tax Deductions'!Y$12 -> 164.0307416 | Z9: ='Allowances Cap'!Z34* 'Tax Deductions'!Z$12 -> 169.2469192 | AA9: ='Allowances Cap'!AA34* 'Tax Deductions'!AA$12 -> 174.6289712 | AB9: ='Allowances Cap'!AB34* 'Tax Deductions'!AB$12 -> 180.1821725 | AC9: ='Allowances Cap'!AC34* 'Tax Deductions'!AC$12 -> 185.9119656 | AD9: ='Allowances Cap'!AD34* 'Tax Deductions'!AD$12 -> 191.8239661 | AE9: ='Allowances Cap'!AE34* 'Tax Deductions'!AE$12 -> 197.9239682 | AF9: ='Allowances Cap'!AF34* 'Tax Deductions'!AF$12 -> 204.2179504 | AG9: ='Allowances Cap'!AG34* 'Tax Deductions'!AG$12 -> 210.7120812 | AH9: ='Allowances Cap'!AH34* 'Tax Deductions'!AH$12 -> 217.4127254 | AI9: ='Allowances Cap'!AI34* 'Tax Deductions'!AI$12 -> 224.3264501
E10: Less tax deductions | G10: £m nominal prices | K10: =-'Tax Deductions'!K20 -> -97.12155665 | L10: =-'Tax Deductions'!L20 -> -90.03883035 | M10: =-'Tax Deductions'!M20 -> -83.03677008 | N10: =-'Tax Deductions'!N20 -> -79.21450387 | O10: =-'Tax Deductions'!O20 -> -75.73101313 | P10: =-'Tax Deductions'!P20 -> -72.56045149 | Q10: =-'Tax Deductions'!Q20 -> -70.08767701 | R10: =-'Tax Deductions'!R20 -> -67.44103222 | S10: =-'Tax Deductions'!S20 -> -65.04441477 | T10: =-'Tax Deductions'!T20 -> -62.87926953 | U10: =-'Tax Deductions'!U20 -> -60.9285779 | V10: =-'Tax Deductions'!V20 -> -59.17673669 | W10: =-'Tax Deductions'!W20 -> -57.60944675 | X10: =-'Tax Deductions'!X20 -> -56.21361062 | Y10: =-'Tax Deductions'!Y20 -> -58.25768747 | Z10: =-'Tax Deductions'!Z20 -> -56.90737431 | AA10: =-'Tax Deductions'!AA20 -> -55.71652364 | AB10: =-'Tax Deductions'!AB20 -> -54.67429689 | AC10: =-'Tax Deductions'!AC20 -> -53.77079106 | AD10: =-'Tax Deductions'!AD20 -> -52.9969663 | AE10: =-'Tax Deductions'!AE20 -> -52.34457928 | AF10: =-'Tax Deductions'!AF20 -> -51.80612203 | AG10: =-'Tax Deductions'!AG20 -> -52.21757146 | AH10: =-'Tax Deductions'!AH20 -> -51.81969035 | AI10: =-'Tax Deductions'!AI20 -> -171.2911783
E11: Profits attributable to corporation tax | G11: £m nominal prices | K11: =SUM(K9:K10) -> 8.703356047 | L11: =SUM(L9:L10) -> 19.15131457 | M11: 29.62562145 | N11: 37.03055171 | O11: 44.21063522 | P11: 51.19534127 | Q11: 57.60354997 | R11: 64.31077577 | S11: 70.89710072 | T11: 77.38518615 | U11: 83.79628746 | V11: 90.15037939 | W11: 96.46627162 | X11: 102.7617156 | Y11: 105.7730541 | Z11: 112.3395449 | AA11: 118.9124476 | AB11: 125.5078756 | AC11: 132.1411745 | AD11: 138.8269998 | AE11: 145.5793889 | AF11: 152.4118284 | AG11: 158.4945098 | AH11: 165.593035 | AI11: 53.03527173
C13: Tax losses
E15: Taxable losses brought forward | G15: £m nominal prices | K15: =J18 -> 0 | L15: =K18 -> 0 | M15: 0 | N15: 0 | O15: 0 | P15: 0 | Q15: 0 | R15: 0 | S15: 0 | T15: 0 | U15: 0 | V15: 0 | W15: 0 | X15: 0 | Y15: 0 | Z15: 0 | AA15: 0 | AB15: 0 | AC15: 0 | AD15: 0 | AE15: 0 | AF15: 0 | AG15: 0 | AH15: 0 | AI15: 0
E16: In-year taxable loss | G16: £m nominal prices | K16: =MIN(K11, 0) -> 0 | L16: 0 | M16: 0 | N16: 0 | O16: 0 | P16: 0 | Q16: 0 | R16: 0 | S16: 0 | T16: 0 | U16: 0 | V16: 0 | W16: 0 | X16: 0 | Y16: 0 | Z16: 0 | AA16: 0 | AB16: 0 | AC16: 0 | AD16: 0 | AE16: 0 | AF16: 0 | AG16: 0 | AH16: 0 | AI16: 0
E17: Profits used to offset losses | G17: £m nominal prices | K17: =IF(K11 >= 0, MIN(K11, -K15), 0) -> 0 | L17: 0 | M17: 0 | N17: 0 | O17: 0 | P17: 0 | Q17: 0 | R17: 0 | S17: 0 | T17: 0 | U17: 0 | V17: 0 | W17: 0 | X17: 0 | Y17: 0 | Z17: 0 | AA17: 0 | AB17: 0 | AC17: 0 | AD17: 0 | AE17: 0 | AF17: 0 | AG17: 0 | AH17: 0 | AI17: 0
E18: Taxable losses carried forward | G18: £m nominal prices | K18: =SUM(K15:K17) -> 0 | L18: =SUM(L15:L17) -> 0 | M18: 0 | N18: 0 | O18: 0 | P18: 0 | Q18: 0 | R18: 0 | S18: 0 | T18: 0 | U18: 0 | V18: 0 | W18: 0 | X18: 0 | Y18: 0 | Z18: 0 | AA18: 0 | AB18: 0 | AC18: 0 | AD18: 0 | AE18: 0 | AF18: 0 | AG18: 0 | AH18: 0 | AI18: 0
C20: Tax allowance
E22: Profits attributable to corporation tax (after taxable losses) | G22: £m nominal prices | K22: =MAX(K11 - K17,0) -> 8.703356047 | L22: 19.15131457 | M22: 29.62562145 | N22: 37.03055171 | O22: 44.21063522 | P22: 51.19534127 | Q22: 57.60354997 | R22: 64.31077577 | S22: 70.89710072 | T22: 77.38518615 | U22: 83.79628746 | V22: 90.15037939 | W22: 96.46627162 | X22: =MAX(X11 - X17,0) -> 102.7617156 | Y22: =MAX(Y11 - Y17,0) -> 105.7730541 | Z22: 112.3395449 | AA22: 118.9124476 | AB22: 125.5078756 | AC22: 132.1411745 | AD22: 138.8269998 | AE22: 145.5793889 | AF22: 152.4118284 | AG22: 158.4945098 | AH22: 165.593035 | AI22: 53.03527173
E23: Corporation tax rate | G23: =Inputs!G189 -> % | K23: =Inputs!K189 -> 0.19 | L23: =Inputs!L189 -> 0.19 | M23: =Inputs!M189 -> 0.19 | N23: =Inputs!N189 -> 0.19 | O23: =Inputs!O189 -> 0.19 | P23: =Inputs!P189 -> 0.19 | Q23: =Inputs!Q189 -> 0.19 | R23: =Inputs!R189 -> 0.19 | S23: =Inputs!S189 -> 0.19 | T23: =Inputs!T189 -> 0.19 | U23: =Inputs!U189 -> 0.19 | V23: =Inputs!V189 -> 0.19 | W23: =Inputs!W189 -> 0.19 | X23: =Inputs!X189 -> 0.19 | Y23: =Inputs!Y189 -> 0.19 | Z23: =Inputs!Z189 -> 0.19 | AA23: =Inputs!AA189 -> 0.19 | AB23: =Inputs!AB189 -> 0.19 | AC23: =Inputs!AC189 -> 0.19 | AD23: =Inputs!AD189 -> 0.19 | AE23: =Inputs!AE189 -> 0.19 | AF23: =Inputs!AF189 -> 0.19 | AG23: =Inputs!AG189 -> 0.19 | AH23: =Inputs!AH189 -> 0.19 | AI23: =Inputs!AI189 -> 0.19
E24: Corporation tax charge after losses | G24: £m nominal prices | K24: =K22 * K23 -> 1.653637649 | L24: 3.638749768 | M24: 5.628868075 | N24: 7.035804825 | O24: 8.400020692 | P24: 9.727114841 | Q24: 10.94467449 | R24: 12.2190474 | S24: 13.47044914 | T24: 14.70318537 | U24: 15.92129462 | V24: 17.12857208 | W24: 18.32859161 | X24: =X22 * X23 -> 19.52472596 | Y24: =Y22 * Y23 -> 20.09688028 | Z24: 21.34451353 | AA24: 22.59336504 | AB24: 23.84649636 | AC24: 25.10682316 | AD24: 26.37712996 | AE24: 27.66008389 | AF24: 28.95824739 | AG24: 30.11395685 | AH24: 31.46267666 | AI24: 10.07670163
E26: Grossing-up factor for tax on tax charge after losses | G26: scalar | K26: =1 / (1 - K23) -> 1.234567901 | L26: 1.234567901 | M26: 1.234567901 | N26: 1.234567901 | O26: 1.234567901 | P26: 1.234567901 | Q26: 1.234567901 | R26: 1.234567901 | S26: 1.234567901 | T26: 1.234567901 | U26: 1.234567901 | V26: 1.234567901 | W26: 1.234567901 | X26: =1 / (1 - X23) -> 1.234567901 | Y26: =1 / (1 - Y23) -> 1.234567901 | Z26: 1.234567901 | AA26: 1.234567901 | AB26: 1.234567901 | AC26: 1.234567901 | AD26: 1.234567901 | AE26: 1.234567901 | AF26: 1.234567901 | AG26: 1.234567901 | AH26: 1.234567901 | AI26: 1.234567901
E28: Unprofiled tax allowance (cap) | G28: £m nominal prices | K28: =K24 * K26 -> 2.041527962 | L28: 4.492283664 | M28: 6.949219846 | N28: 8.686178796 | O28: 10.37039592 | P28: 12.00878375 | Q28: 13.51194382 | R28: 15.0852437 | S28: 16.63018412 | T28: 18.1520807 | U28: 19.65591928 | V28: 21.14638529 | W28: 22.62789087 | X28: =X24 * X26 -> 24.10459996 | Y28: =Y24 * Y26 -> 24.81096331 | Z28: =Z24 * Z26 -> 26.35125127 | AA28: 27.89304326 | AB28: 29.44011897 | AC28: 30.99607797 | AD28: 32.56435797 | AE28: 34.14825172 | AF28: 35.7509227 | AG28: 37.17772451 | AH28: 38.84281069 | AI28: 12.44037238
B30: Profiled tax allowance (cap)
E32: Unprofiled tax allowance (cap) | G32: =Inputs!$I$11 -> £m 20/21 prices | K32: ='Tax Cap'!K28 / 'Tax Deductions'!K12 -> 1.932373387 | L32: ='Tax Cap'!L28 / 'Tax Deductions'!L12 -> 4.121045064 | M32: ='Tax Cap'!M28 / 'Tax Deductions'!M12 -> 6.178466829 | N32: ='Tax Cap'!N28 / 'Tax Deductions'!N12 -> 7.484760517 | O32: ='Tax Cap'!O28 / 'Tax Deductions'!O12 -> 8.66061949 | P32: ='Tax Cap'!P28 / 'Tax Deductions'!P12 -> 9.719795372 | Q32: ='Tax Cap'!Q28 / 'Tax Deductions'!Q12 -> 10.59937859 | R32: ='Tax Cap'!R28 / 'Tax Deductions'!R12 -> 11.46883701 | S32: ='Tax Cap'!S28 / 'Tax Deductions'!S12 -> 12.25373783 | T32: ='Tax Cap'!T28 / 'Tax Deductions'!T12 -> 12.96290735 | U32: ='Tax Cap'!U28 / 'Tax Deductions'!U12 -> 13.60422606 | V32: ='Tax Cap'!V28 / 'Tax Deductions'!V12 -> 14.18473077 | W32: ='Tax Cap'!W28 / 'Tax Deductions'!W12 -> 14.71070574 | X32: ='Tax Cap'!X28 / 'Tax Deductions'!X12 -> 15.18776391 | Y32: ='Tax Cap'!Y28 / 'Tax Deductions'!Y12 -> 15.15102491 | Z32: ='Tax Cap'!Z28 / 'Tax Deductions'!Z12 -> 15.59567241 | AA32: ='Tax Cap'!AA28 / 'Tax Deductions'!AA12 -> 15.99938315 | AB32: ='Tax Cap'!AB28 / 'Tax Deductions'!AB12 -> 16.36633271 | AC32: ='Tax Cap'!AC28 / 'Tax Deductions'!AC12 -> 16.70025245 | AD32: ='Tax Cap'!AD28 / 'Tax Deductions'!AD12 -> 17.00447736 | AE32: ='Tax Cap'!AE28 / 'Tax Deductions'!AE12 -> 17.28198877 | AF32: ='Tax Cap'!AF28 / 'Tax Deductions'!AF12 -> 17.53545245 | AG32: ='Tax Cap'!AG28 / 'Tax Deductions'!AG12 -> 17.67327366 | AH32: ='Tax Cap'!AH28 / 'Tax Deductions'!AH12 -> 17.89572601 | AI32: ='Tax Cap'!AI28 / 'Tax Deductions'!AI12 -> 5.554903652
E33: Discount factor to start of operational period (cap) | G33: ='Allowances Cap'!G24 -> scalar | K33: ='Allowances Cap'!K24 -> 0.9239582371 | L33: ='Allowances Cap'!L24 -> 0.8536988239 | M33: ='Allowances Cap'!M24 -> 0.7887820603 | N33: ='Allowances Cap'!N24 -> 0.7288016819 | O33: ='Allowances Cap'!O24 -> 0.6733823172 | P33: ='Allowances Cap'!P24 -> 0.6221771387 | Q33: ='Allowances Cap'!Q24 -> 0.5748656922 | R33: ='Allowances Cap'!R24 -> 0.5311518915 | S33: ='Allowances Cap'!S24 -> 0.4907621653 | T33: ='Allowances Cap'!T24 -> 0.4534437451 | U33: ='Allowances Cap'!U24 -> 0.4189630833 | V33: ='Allowances Cap'!V24 -> 0.3871043919 | W33: ='Allowances Cap'!W24 -> 0.3576682915 | X33: ='Allowances Cap'!X24 -> 0.3304705641 | Y33: ='Allowances Cap'!Y24 -> 0.3053409998 | Z33: ='Allowances Cap'!Z24 -> 0.2821223319 | AA33: ='Allowances Cap'!AA24 -> 0.2606692524 | AB33: ='Allowances Cap'!AB24 -> 0.2408475029 | AC33: ='Allowances Cap'!AC24 -> 0.2225330342 | AD33: ='Allowances Cap'!AD24 -> 0.20561123 | AE33: ='Allowances Cap'!AE24 -> 0.1899761896 | AF33: ='Allowances Cap'!AF24 -> 0.1755300652 | AG33: ='Allowances Cap'!AG24 -> 0.1621824496 | AH33: ='Allowances Cap'!AH24 -> 0.1498498102 | AI33: ='Allowances Cap'!AI24 -> 0.1384549665
E35: Discounted unprofiled tax allowance (cap) | G35: =Inputs!$I$11 -> £m 20/21 prices | K35: =K32 * K33 -> 1.785432308 | L35: 3.518131324 | M35: 4.873463795 | N35: 5.454906054 | O35: 5.831908021 | P35: 6.047434473 | Q35: 6.093219113 | R35: 6.091694474 | S35: 6.013670912 | T35: 5.877949257 | U35: 5.699668495 | V35: 5.490971578 | W35: 5.26155299 | X35: =X32 * X33 -> 5.019108906 | Y35: =Y32 * Y33 -> 4.626229094 | Z35: 4.399887468 | AA35: 4.170547245 | AB35: 3.941790366 | AC35: 3.71635785 | AD35: 3.496311505 | AE35: 3.283166375 | AF35: 3.077999112 | AG35: 2.866294815 | AH35: 2.681671147 | AI35: 0.769103999
E36: NPV of tax allowance (cap) | G36: =Inputs!$I$11 -> £m 20/21 prices | I36: =SUM(K35:AI35) -> 110.0884707
E38: Annuity factor (cap) | G38: ='Allowances Cap'!G31 -> scalar | I38: ='Allowances Cap'!I31 -> 0.09552605702
E40: Annuity of tax allowance (cap) | G40: =Inputs!$I$11 -> £m 20/21 prices | I40: =I36 * I38 -> 10.51631753
B42: End of sheet

Sheet Tax Floor
A1: Tax Floor | H1: Licence
E2: Parameter | G2: Units | H2: Terminology | I2: Constant | K2: Annual values
E3: Project year | K3: Year 1 | L3: Year 2 | M3: Year 3 | N3: Year 4 | O3: Year 5 | P3: Year 6 | Q3: Year 7 | R3: Year 8 | S3: Year 9 | T3: Year 10 | U3: Year 11 | V3: Year 12 | W3: Year 13 | X3: Year 14 | Y3: Year 15 | Z3: Year 16 | AA3: Year 17 | AB3: Year 18 | AC3: Year 19 | AD3: Year 20 | AE3: Year 21 | AF3: Year 22 | AG3: Year 23 | AH3: Year 24 | AI3: Year 25
B5: Unprofiled tax allowance (notional floor)
C7: Profits attributable to corporation tax
E9: Annuitised allowances except tax (floor) | G9: £m nominal prices | K9: ='Allowances Floor'!K34* 'Tax Deductions'!K$12 -> 55.61147204 | L9: ='Allowances Floor'!L34* 'Tax Deductions'!L$12 -> 57.37991685 | M9: ='Allowances Floor'!M34* 'Tax Deductions'!M$12 -> 59.20459821 | N9: ='Allowances Floor'!N34* 'Tax Deductions'!N$12 -> 61.08730443 | O9: ='Allowances Floor'!O34* 'Tax Deductions'!O$12 -> 63.02988071 | P9: ='Allowances Floor'!P34* 'Tax Deductions'!P$12 -> 65.03423092 | Q9: ='Allowances Floor'!Q34* 'Tax Deductions'!Q$12 -> 67.10231946 | R9: ='Allowances Floor'!R34* 'Tax Deductions'!R$12 -> 69.23617322 | S9: ='Allowances Floor'!S34* 'Tax Deductions'!S$12 -> 71.43788353 | T9: ='Allowances Floor'!T34* 'Tax Deductions'!T$12 -> 73.70960822 | U9: ='Allowances Floor'!U34* 'Tax Deductions'!U$12 -> 76.05357377 | V9: ='Allowances Floor'!V34* 'Tax Deductions'!V$12 -> 78.47207741 | W9: ='Allowances Floor'!W34* 'Tax Deductions'!W$12 -> 80.96748947 | X9: ='Allowances Floor'!X34* 'Tax Deductions'!X$12 -> 83.54225564 | Y9: ='Allowances Floor'!Y34* 'Tax Deductions'!Y$12 -> 86.19889937 | Z9: ='Allowances Floor'!Z34* 'Tax Deductions'!Z$12 -> 88.94002437 | AA9: ='Allowances Floor'!AA34* 'Tax Deductions'!AA$12 -> 91.76831714 | AB9: ='Allowances Floor'!AB34* 'Tax Deductions'!AB$12 -> 94.68654963 | AC9: ='Allowances Floor'!AC34* 'Tax Deductions'!AC$12 -> 97.69758191 | AD9: ='Allowances Floor'!AD34* 'Tax Deductions'!AD$12 -> 100.804365 | AE9: ='Allowances Floor'!AE34* 'Tax Deductions'!AE$12 -> 104.0099438 | AF9: ='Allowances Floor'!AF34* 'Tax Deductions'!AF$12 -> 107.31746 | AG9: ='Allowances Floor'!AG34* 'Tax Deductions'!AG$12 -> 110.7301553 | AH9: ='Allowances Floor'!AH34* 'Tax Deductions'!AH$12 -> 114.2513742 | AI9: ='Allowances Floor'!AI34* 'Tax Deductions'!AI$12 -> 117.8845679
E10: Less tax deductions | G10: £m nominal prices | K10: =-'Tax Deductions'!K20 -> -97.12155665 | L10: =-'Tax Deductions'!L20 -> -90.03883035 | M10: =-'Tax Deductions'!M20 -> -83.03677008 | N10: =-'Tax Deductions'!N20 -> -79.21450387 | O10: =-'Tax Deductions'!O20 -> -75.73101313 | P10: =-'Tax Deductions'!P20 -> -72.56045149 | Q10: =-'Tax Deductions'!Q20 -> -70.08767701 | R10: =-'Tax Deductions'!R20 -> -67.44103222 | S10: =-'Tax Deductions'!S20 -> -65.04441477 | T10: =-'Tax Deductions'!T20 -> -62.87926953 | U10: =-'Tax Deductions'!U20 -> -60.9285779 | V10: =-'Tax Deductions'!V20 -> -59.17673669 | W10: =-'Tax Deductions'!W20 -> -57.60944675 | X10: =-'Tax Deductions'!X20 -> -56.21361062 | Y10: =-'Tax Deductions'!Y20 -> -58.25768747 | Z10: =-'Tax Deductions'!Z20 -> -56.90737431 | AA10: =-'Tax Deductions'!AA20 -> -55.71652364 | AB10: =-'Tax Deductions'!AB20 -> -54.67429689 | AC10: =-'Tax Deductions'!AC20 -> -53.77079106 | AD10: =-'Tax Deductions'!AD20 -> -52.9969663 | AE10: =-'Tax Deductions'!AE20 -> -52.34457928 | AF10: =-'Tax Deductions'!AF20 -> -51.80612203 | AG10: =-'Tax Deductions'!AG20 -> -52.21757146 | AH10: =-'Tax Deductions'!AH20 -> -51.81969035 | AI10: =-'Tax Deductions'!AI20 -> -171.2911783
E11: Profits attributable to corporation tax | G11: £m nominal prices | K11: =SUM(K9:K10) -> -41.51008461 | L11: =SUM(L9:L10) -> -32.6589135 | M11: -23.83217187 | N11: -18.12719944 | O11: -12.70113241 | P11: -7.526220575 | Q11: -2.985357546 | R11: 1.795141 | S11: 6.393468762 | T11: 10.8303387 | U11: 15.12499586 | V11: 19.29534072 | W11: 23.35804272 | X11: 27.32864502 | Y11: 27.9412119 | Z11: 32.03265006 | AA11: 36.0517935 | AB11: 40.01225274 | AC11: 43.92679084 | AD11: 47.80739871 | AE11: 51.66536453 | AF11: 55.511338 | AG11: 58.5125838 | AH11: 62.43168384 | AI11: -53.40661044
C13: Tax losses
E15: Taxable losses brought forward | G15: £m nominal prices | K15: =J18 -> 0 | L15: =K18 -> -41.51008461 | M15: -74.16899811 | N15: -98.00116998 | O15: -116.1283694 | P15: -128.8295018 | Q15: -136.3557224 | R15: -139.34108 | S15: -137.545939 | T15: -131.1524702 | U15: -120.3221315 | V15: -105.1971356 | W15: -85.90179491 | X15: -62.54375219 | Y15: -35.21510718 | Z15: -7.273895275 | AA15: 0 | AB15: 0 | AC15: 0 | AD15: 0 | AE15: 0 | AF15: 0 | AG15: 0 | AH15: 0 | AI15: 0
E16: In-year taxable loss | G16: £m nominal prices | K16: =MIN(K11, 0) -> -41.51008461 | L16: -32.6589135 | M16: -23.83217187 | N16: -18.12719944 | O16: -12.70113241 | P16: -7.526220575 | Q16: -2.985357546 | R16: 0 | S16: 0 | T16: 0 | U16: 0 | V16: 0 | W16: 0 | X16: 0 | Y16: 0 | Z16: 0 | AA16: 0 | AB16: 0 | AC16: 0 | AD16: 0 | AE16: 0 | AF16: 0 | AG16: 0 | AH16: 0 | AI16: -53.40661044
E17: Profits used to offset losses | G17: £m nominal prices | K17: =IF(K11 >= 0, MIN(K11, -K15), 0) -> 0 | L17: 0 | M17: 0 | N17: 0 | O17: 0 | P17: 0 | Q17: 0 | R17: 1.795141 | S17: 6.393468762 | T17: 10.8303387 | U17: 15.12499586 | V17: 19.29534072 | W17: 23.35804272 | X17: 27.32864502 | Y17: 27.9412119 | Z17: 7.273895275 | AA17: 0 | AB17: 0 | AC17: 0 | AD17: 0 | AE17: 0 | AF17: 0 | AG17: 0 | AH17: 0 | AI17: 0
E18: Taxable losses carried forward | G18: £m nominal prices | K18: =SUM(K15:K17) -> -41.51008461 | L18: =SUM(L15:L17) -> -74.16899811 | M18: -98.00116998 | N18: -116.1283694 | O18: -128.8295018 | P18: -136.3557224 | Q18: -139.34108 | R18: -137.545939 | S18: -131.1524702 | T18: -120.3221315 | U18: -105.1971356 | V18: -85.90179491 | W18: -62.54375219 | X18: -35.21510718 | Y18: -7.273895275 | Z18: 0 | AA18: 0 | AB18: 0 | AC18: 0 | AD18: 0 | AE18: 0 | AF18: 0 | AG18: 0 | AH18: 0 | AI18: -53.40661044
C20: Tax allowance
E22: Profits attributable to corporation tax (after taxable losses) | G22: £m nominal prices | K22: =MAX(K11 - K17,0) -> 0 | L22: 0 | M22: 0 | N22: 0 | O22: 0 | P22: 0 | Q22: 0 | R22: 0 | S22: 0 | T22: 0 | U22: 0 | V22: 0 | W22: 0 | X22: 0 | Y22: 0 | Z22: 24.75875478 | AA22: 36.0517935 | AB22: 40.01225274 | AC22: 43.92679084 | AD22: 47.80739871 | AE22: 51.66536453 | AF22: 55.511338 | AG22: 58.5125838 | AH22: 62.43168384 | AI22: 0
E23: Corporation tax rate | G23: =Inputs!G189 -> % | K23: =Inputs!K189 -> 0.19 | L23: =Inputs!L189 -> 0.19 | M23: =Inputs!M189 -> 0.19 | N23: =Inputs!N189 -> 0.19 | O23: =Inputs!O189 -> 0.19 | P23: =Inputs!P189 -> 0.19 | Q23: =Inputs!Q189 -> 0.19 | R23: =Inputs!R189 -> 0.19 | S23: =Inputs!S189 -> 0.19 | T23: =Inputs!T189 -> 0.19 | U23: =Inputs!U189 -> 0.19 | V23: =Inputs!V189 -> 0.19 | W23: =Inputs!W189 -> 0.19 | X23: =Inputs!X189 -> 0.19 | Y23: =Inputs!Y189 -> 0.19 | Z23: =Inputs!Z189 -> 0.19 | AA23: =Inputs!AA189 -> 0.19 | AB23: =Inputs!AB189 -> 0.19 | AC23: =Inputs!AC189 -> 0.19 | AD23: =Inputs!AD189 -> 0.19 | AE23: =Inputs!AE189 -> 0.19 | AF23: =Inputs!AF189 -> 0.19 | AG23: =Inputs!AG189 -> 0.19 | AH23: =Inputs!AH189 -> 0.19 | AI23: =Inputs!AI189 -> 0.19
E24: Corporation tax charge after losses | G24: £m nominal prices | K24: =K22 * K23 -> 0 | L24: =L22 * L23 -> 0 | M24: 0 | N24: 0 | O24: 0 | P24: 0 | Q24: 0 | R24: 0 | S24: 0 | T24: 0 | U24: 0 | V24: 0 | W24: 0 | X24: 0 | Y24: 0 | Z24: 4.704163409 | AA24: 6.849840765 | AB24: 7.60232802 | AC24: 8.34609026 | AD24: 9.083405754 | AE24: 9.816419261 | AF24: 10.54715422 | AG24: 11.11739092 | AH24: 11.86201993 | AI24: 0
E26: Grossing-up factor for tax on tax charge after losses | G26: scalar | K26: =1 / (1 - K23) -> 1.234567901 | L26: 1.234567901 | M26: 1.234567901 | N26: 1.234567901 | O26: 1.234567901 | P26: 1.234567901 | Q26: 1.234567901 | R26: 1.234567901 | S26: 1.234567901 | T26: 1.234567901 | U26: 1.234567901 | V26: 1.234567901 | W26: 1.234567901 | X26: 1.234567901 | Y26: 1.234567901 | Z26: 1.234567901 | AA26: 1.234567901 | AB26: 1.234567901 | AC26: 1.234567901 | AD26: 1.234567901 | AE26: 1.234567901 | AF26: 1.234567901 | AG26: 1.234567901 | AH26: 1.234567901 | AI26: 1.234567901
E28: Unprofiled tax allowance (floor) | G28: £m nominal prices | K28: =K24 * K26 -> 0 | L28: 0 | M28: 0 | N28: 0 | O28: 0 | P28: 0 | Q28: 0 | R28: 0 | S28: 0 | T28: 0 | U28: 0 | V28: 0 | W28: 0 | X28: 0 | Y28: 0 | Z28: 5.807609147 | AA28: 8.456593537 | AB28: 9.385590148 | AC28: 10.30381514 | AD28: 11.21408118 | AE28: 12.11903613 | AF28: 13.02117805 | AG28: 13.72517398 | AH28: 14.64446905 | AI28: 0
B30: Profiled tax allowance (notional floor)
E32: Unprofiled tax allowance (floor) | G32: =Inputs!$I$11 -> £m 20/21 prices | K32: ='Tax Floor'!K28 / 'Tax Deductions'!K$12 -> 0 | L32: ='Tax Floor'!L28 / 'Tax Deductions'!L$12 -> 0 | M32: ='Tax Floor'!M28 / 'Tax Deductions'!M$12 -> 0 | N32: ='Tax Floor'!N28 / 'Tax Deductions'!N$12 -> 0 | O32: ='Tax Floor'!O28 / 'Tax Deductions'!O$12 -> 0 | P32: ='Tax Floor'!P28 / 'Tax Deductions'!P$12 -> 0 | Q32: ='Tax Floor'!Q28 / 'Tax Deductions'!Q$12 -> 0 | R32: ='Tax Floor'!R28 / 'Tax Deductions'!R$12 -> 0 | S32: ='Tax Floor'!S28 / 'Tax Deductions'!S$12 -> 0 | T32: ='Tax Floor'!T28 / 'Tax Deductions'!T$12 -> 0 | U32: ='Tax Floor'!U28 / 'Tax Deductions'!U$12 -> 0 | V32: ='Tax Floor'!V28 / 'Tax Deductions'!V$12 -> 0 | W32: ='Tax Floor'!W28 / 'Tax Deductions'!W$12 -> 0 | X32: ='Tax Floor'!X28 / 'Tax Deductions'!X$12 -> 0 | Y32: ='Tax Floor'!Y28 / 'Tax Deductions'!Y$12 -> 0 | Z32: ='Tax Floor'!Z28 / 'Tax Deductions'!Z$12 -> 3.437163907 | AA32: ='Tax Floor'!AA28 / 'Tax Deductions'!AA$12 -> 4.850681903 | AB32: ='Tax Floor'!AB28 / 'Tax Deductions'!AB$12 -> 5.217631465 | AC32: ='Tax Floor'!AC28 / 'Tax Deductions'!AC$12 -> 5.551551203 | AD32: ='Tax Floor'!AD28 / 'Tax Deductions'!AD$12 -> 5.855776111 | AE32: ='Tax Floor'!AE28 / 'Tax Deductions'!AE$12 -> 6.133287523 | AF32: ='Tax Floor'!AF28 / 'Tax Deductions'!AF$12 -> 6.386751201 | AG32: ='Tax Floor'!AG28 / 'Tax Deductions'!AG$12 -> 6.524572414 | AH32: ='Tax Floor'!AH28 / 'Tax Deductions'!AH$12 -> 6.747024766 | AI32: ='Tax Floor'!AI28 / 'Tax Deductions'!AI$12 -> 0
E33: Discount factor to start of operational period (floor) | G33: ='Allowances Floor'!G24 -> scalar | K33: ='Allowances Floor'!K24 -> 1.005126143 | L33: ='Allowances Floor'!L24 -> 1.010278564 | M33: ='Allowances Floor'!M24 -> 1.015457397 | N33: ='Allowances Floor'!N24 -> 1.020662777 | O33: ='Allowances Floor'!O24 -> 1.025894841 | P33: ='Allowances Floor'!P24 -> 1.031153725 | Q33: ='Allowances Floor'!Q24 -> 1.036439566 | R33: ='Allowances Floor'!R24 -> 1.041752504 | S33: ='Allowances Floor'!S24 -> 1.047092677 | T33: ='Allowances Floor'!T24 -> 1.052460224 | U33: ='Allowances Floor'!U24 -> 1.057855286 | V33: ='Allowances Floor'!V24 -> 1.063278004 | W33: ='Allowances Floor'!W24 -> 1.068728519 | X33: ='Allowances Floor'!X24 -> 1.074206975 | Y33: ='Allowances Floor'!Y24 -> 1.079713514 | Z33: ='Allowances Floor'!Z24 -> 1.08524828 | AA33: ='Allowances Floor'!AA24 -> 1.090811418 | AB33: ='Allowances Floor'!AB24 -> 1.096403074 | AC33: ='Allowances Floor'!AC24 -> 1.102023393 | AD33: ='Allowances Floor'!AD24 -> 1.107672523 | AE33: ='Allowances Floor'!AE24 -> 1.113350611 | AF33: ='Allowances Floor'!AF24 -> 1.119057806 | AG33: ='Allowances Floor'!AG24 -> 1.124794257 | AH33: ='Allowances Floor'!AH24 -> 1.130560113 | AI33: ='Allowances Floor'!AI24 -> 1.136355526
E35: Discounted unprofiled tax allowance (floor) | G35: =Inputs!$I$11 -> £m 20/21 prices | K35: =K32*K33 -> 0 | L35: =L32*L33 -> 0 | M35: 0 | N35: 0 | O35: 0 | P35: 0 | Q35: 0 | R35: 0 | S35: 0 | T35: 0 | U35: 0 | V35: 0 | W35: 0 | X35: 0 | Y35: 0 | Z35: 3.730176218 | AA35: 5.291179205 | AB35: 5.720627176 | AC35: 6.117939294 | AD35: 6.486282298 | AE35: 6.828499411 | AF35: 7.147143785 | AG35: 7.338801577 | AH35: 7.627917083 | AI35: 0
E36: NPV of tax allowance (floor) | G36: =Inputs!$I$11 -> £m 20/21 prices | I36: =SUM(K35:AI35) -> 56.28856605
E38: Annuity factor (floor) | G38: ='Allowances Floor'!G31 -> scalar | I38: ='Allowances Floor'!I31 -> 0.03740222444
E40: Annuity of tax allowance (floor) | G40: =Inputs!$I$11 -> £m 20/21 prices | I40: =I36 * I38 -> 2.105317581
B42: Unprofiled tax allowance (actual floor)
C44: Profits attributable to corporation tax
E46: Annuitised allowances except tax (floor) | G46: £m nominal prices | K46: =('Allowances Floor'!K67+'Allowances Floor'!K76)* 'Tax Deductions'!K$12 -> 0 | L46: =('Allowances Floor'!L67+'Allowances Floor'!L76)* 'Tax Deductions'!L$12 -> 0 | M46: =('Allowances Floor'!M67+'Allowances Floor'!M76)* 'Tax Deductions'!M$12 -> 0 | N46: =('Allowances Floor'!N67+'Allowances Floor'!N76)* 'Tax Deductions'!N$12 -> 53.82105966 | O46: =('Allowances Floor'!O67+'Allowances Floor'!O76)* 'Tax Deductions'!O$12 -> 55.53256936 | P46: =('Allowances Floor'!P67+'Allowances Floor'!P76)* 'Tax Deductions'!P$12 -> 57.29850506 | Q46: =('Allowances Floor'!Q67+'Allowances Floor'!Q76)* 'Tax Deductions'!Q$12 -> 59.12059753 | R46: =('Allowances Floor'!R67+'Allowances Floor'!R76)* 'Tax Deductions'!R$12 -> 61.00063253 | S46: =('Allowances Floor'!S67+'Allowances Floor'!S76)* 'Tax Deductions'!S$12 -> 62.94045264 | T46: =('Allowances Floor'!T67+'Allowances Floor'!T76)* 'Tax Deductions'!T$12 -> 64.94195903 | U46: =('Allowances Floor'!U67+'Allowances Floor'!U76)* 'Tax Deductions'!U$12 -> 67.00711333 | V46: =('Allowances Floor'!V67+'Allowances Floor'!V76)* 'Tax Deductions'!V$12 -> 69.13793954 | W46: =('Allowances Floor'!W67+'Allowances Floor'!W76)* 'Tax Deductions'!W$12 -> 71.33652601 | X46: =('Allowances Floor'!X67+'Allowances Floor'!X76)* 'Tax Deductions'!X$12 -> 73.60502754 | Y46: =('Allowances Floor'!Y67+'Allowances Floor'!Y76)* 'Tax Deductions'!Y$12 -> 75.94566742 | Z46: =('Allowances Floor'!Z67+'Allowances Floor'!Z76)* 'Tax Deductions'!Z$12 -> 78.36073964 | AA46: =('Allowances Floor'!AA67+'Allowances Floor'!AA76)* 'Tax Deductions'!AA$12 -> 80.85261116 | AB46: =('Allowances Floor'!AB67+'Allowances Floor'!AB76)* 'Tax Deductions'!AB$12 -> 83.4237242 | AC46: =('Allowances Floor'!AC67+'Allowances Floor'!AC76)* 'Tax Deductions'!AC$12 -> 86.07659862 | AD46: =('Allowances Floor'!AD67+'Allowances Floor'!AD76)* 'Tax Deductions'!AD$12 -> 88.81383446 | AE46: =('Allowances Floor'!AE67+'Allowances Floor'!AE76)* 'Tax Deductions'!AE$12 -> 91.6381144 | AF46: =('Allowances Floor'!AF67+'Allowances Floor'!AF76)* 'Tax Deductions'!AF$12 -> 94.55220643 | AG46: =('Allowances Floor'!AG67+'Allowances Floor'!AG76)* 'Tax Deductions'!AG$12 -> 97.5589666 | AH46: =('Allowances Floor'!AH67+'Allowances Floor'!AH76)* 'Tax Deductions'!AH$12 -> 100.6613417 | AI46: =('Allowances Floor'!AI67+'Allowances Floor'!AI76)* 'Tax Deductions'!AI$12 -> 103.8623724
E47: Less tax deductions | G47: £m nominal prices | K47: =-'Tax Deductions'!K30 -> -8.82 | L47: =-'Tax Deductions'!L30 -> 0 | M47: =-'Tax Deductions'!M30 -> 0 | N47: =-'Tax Deductions'!N30 -> -81.14192073 | O47: =-'Tax Deductions'!O30 -> -77.80513357 | P47: =-'Tax Deductions'!P30 -> -74.66447916 | Q47: =-'Tax Deductions'!Q30 -> -72.19921113 | R47: =-'Tax Deductions'!R30 -> -69.53491737 | S47: =-'Tax Deductions'!S30 -> -68.0425966 | T47: =-'Tax Deductions'!T30 -> -65.80847934 | U47: =-'Tax Deductions'!U30 -> -63.88426798 | V47: =-'Tax Deductions'!V30 -> -62.0120866 | W47: =-'Tax Deductions'!W30 -> -60.27707258 | X47: =-'Tax Deductions'!X30 -> -59.39587302 | Y47: =-'Tax Deductions'!Y30 -> -61.15830304 | Z47: =-'Tax Deductions'!Z30 -> -59.48090542 | AA47: =-'Tax Deductions'!AA30 -> -57.91450311 | AB47: =-'Tax Deductions'!AB30 -> -56.44570677 | AC47: =-'Tax Deductions'!AC30 -> -56.314683 | AD47: =-'Tax Deductions'!AD30 -> -55.04531321 | AE47: =-'Tax Deductions'!AE30 -> -53.7590668 | AF47: =-'Tax Deductions'!AF30 -> -52.52096802 | AG47: =-'Tax Deductions'!AG30 -> -52.16469662 | AH47: =-'Tax Deductions'!AH30 -> -50.52609127 | AI47: =-'Tax Deductions'!AI30 -> -170.6359089
E48: Profits attributable to corporation tax | G48: £m nominal prices | K48: =SUM(K46:K47) -> -8.82 | L48: =SUM(L46:L47) -> 0 | M48: 0 | N48: -27.32086107 | O48: -22.27256421 | P48: -17.36597409 | Q48: -13.0786136 | R48: -8.53428484 | S48: -5.102143955 | T48: -0.8665203051 | U48: 3.12284535 | V48: 7.125852933 | W48: 11.05945343 | X48: 14.20915453 | Y48: 14.78736438 | Z48: 18.87983422 | AA48: 22.93810805 | AB48: 26.97801742 | AC48: 29.76191563 | AD48: 33.76852125 | AE48: 37.87904759 | AF48: 42.03123841 | AG48: 45.39426998 | AH48: 50.13525047 | AI48: -66.77353645
C50: Tax losses
E52: Taxable losses brought forward | G52: £m nominal prices | K52: =J55 -> 0 | L52: =K55 -> -8.82 | M52: -8.82 | N52: -8.82 | O52: -36.14086107 | P52: -58.41342528 | Q52: -75.77939937 | R52: -88.85801297 | S52: -97.39229781 | T52: -102.4944418 | U52: -103.3609621 | V52: -100.2381167 | W52: -93.11226379 | X52: -82.05281035 | Y52: -67.84365583 | Z52: -53.05629145 | AA52: -34.17645723 | AB52: -11.23834918 | AC52: 0 | AD52: 0 | AE52: 0 | AF52: 0 | AG52: 0 | AH52: 0 | AI52: 0
E53: In-year taxable loss | G53: £m nominal prices | K53: =MIN(K48, 0) -> -8.82 | L53: 0 | M53: 0 | N53: -27.32086107 | O53: -22.27256421 | P53: -17.36597409 | Q53: -13.0786136 | R53: -8.53428484 | S53: -5.102143955 | T53: -0.8665203051 | U53: 0 | V53: 0 | W53: 0 | X53: 0 | Y53: 0 | Z53: 0 | AA53: 0 | AB53: 0 | AC53: 0 | AD53: 0 | AE53: 0 | AF53: 0 | AG53: 0 | AH53: 0 | AI53: -66.77353645
E54: Profits used to offset losses | G54: £m nominal prices | K54: =IF(K48 >= 0, MIN(K48, -K52), 0) -> 0 | L54: 0 | M54: 0 | N54: 0 | O54: 0 | P54: 0 | Q54: 0 | R54: 0 | S54: 0 | T54: 0 | U54: 3.12284535 | V54: 7.125852933 | W54: 11.05945343 | X54: 14.20915453 | Y54: 14.78736438 | Z54: 18.87983422 | AA54: 22.93810805 | AB54: 11.23834918 | AC54: 0 | AD54: 0 | AE54: 0 | AF54: 0 | AG54: 0 | AH54: 0 | AI54: 0
E55: Taxable losses carried forward | G55: £m nominal prices | K55: =SUM(K52:K54) -> -8.82 | L55: =SUM(L52:L54) -> -8.82 | M55: -8.82 | N55: -36.14086107 | O55: -58.41342528 | P55: -75.77939937 | Q55: -88.85801297 | R55: -97.39229781 | S55: -102.4944418 | T55: -103.3609621 | U55: -100.2381167 | V55: -93.11226379 | W55: -82.05281035 | X55: -67.84365583 | Y55: -53.05629145 | Z55: -34.17645723 | AA55: -11.23834918 | AB55: 0 | AC55: 0 | AD55: 0 | AE55: 0 | AF55: 0 | AG55: 0 | AH55: 0 | AI55: -66.77353645
C57: Tax allowance
E59: Profits attributable to corporation tax (after taxable losses) | G59: £m nominal prices | K59: =MAX(K48 - K54,0) -> 0 | L59: 0 | M59: 0 | N59: 0 | O59: =MAX(O48 - O54,0) -> 0 | P59: 0 | Q59: 0 | R59: 0 | S59: 0 | T59: 0 | U59: 0 | V59: 0 | W59: 0 | X59: 0 | Y59: 0 | Z59: 0 | AA59: 0 | AB59: 15.73966824 | AC59: 29.76191563 | AD59: 33.76852125 | AE59: 37.87904759 | AF59: 42.03123841 | AG59: 45.39426998 | AH59: 50.13525047 | AI59: 0
E60: Corporation tax rate | G60: =Inputs!G189 -> % | K60: =Inputs!K189 -> 0.19 | L60: =Inputs!L189 -> 0.19 | M60: =Inputs!M189 -> 0.19 | N60: =Inputs!N189 -> 0.19 | O60: =Inputs!O189 -> 0.19 | P60: =Inputs!P189 -> 0.19 | Q60: =Inputs!Q189 -> 0.19 | R60: =Inputs!R189 -> 0.19 | S60: =Inputs!S189 -> 0.19 | T60: =Inputs!T189 -> 0.19 | U60: =Inputs!U189 -> 0.19 | V60: =Inputs!V189 -> 0.19 | W60: =Inputs!W189 -> 0.19 | X60: =Inputs!X189 -> 0.19 | Y60: =Inputs!Y189 -> 0.19 | Z60: =Inputs!Z189 -> 0.19 | AA60: =Inputs!AA189 -> 0.19 | AB60: =Inputs!AB189 -> 0.19 | AC60: =Inputs!AC189 -> 0.19 | AD60: =Inputs!AD189 -> 0.19 | AE60: =Inputs!AE189 -> 0.19 | AF60: =Inputs!AF189 -> 0.19 | AG60: =Inputs!AG189 -> 0.19 | AH60: =Inputs!AH189 -> 0.19 | AI60: =Inputs!AI189 -> 0.19
E61: Corporation tax charge after losses | G61: £m nominal prices | K61: =K59 * K60 -> 0 | L61: =L59 * L60 -> 0 | M61: 0 | N61: 0 | O61: 0 | P61: 0 | Q61: 0 | R61: 0 | S61: 0 | T61: 0 | U61: 0 | V61: 0 | W61: 0 | X61: 0 | Y61: 0 | Z61: 0 | AA61: 0 | AB61: 2.990536965 | AC61: 5.654763969 | AD61: 6.416019037 | AE61: 7.197019043 | AF61: 7.985935299 | AG61: 8.624911296 | AH61: 9.525697589 | AI61: 0
E63: Grossing-up factor for tax on tax charge after losses | G63: scalar | K63: =1 / (1 - K60) -> 1.234567901 | L63: 1.234567901 | M63: 1.234567901 | N63: 1.234567901 | O63: 1.234567901 | P63: 1.234567901 | Q63: 1.234567901 | R63: 1.234567901 | S63: 1.234567901 | T63: 1.234567901 | U63: 1.234567901 | V63: 1.234567901 | W63: 1.234567901 | X63: 1.234567901 | Y63: 1.234567901 | Z63: 1.234567901 | AA63: 1.234567901 | AB63: 1.234567901 | AC63: 1.234567901 | AD63: 1.234567901 | AE63: 1.234567901 | AF63: 1.234567901 | AG63: 1.234567901 | AH63: 1.234567901 | AI63: 1.234567901
E65: Unprofiled tax allowance (floor) | G65: £m nominal prices | K65: =K61 * K63 -> 0 | L65: 0 | M65: 0 | N65: 0 | O65: 0 | P65: 0 | Q65: 0 | R65: 0 | S65: 0 | T65: 0 | U65: 0 | V65: 0 | W65: 0 | X65: 0 | Y65: 0 | Z65: 0 | AA65: 0 | AB65: 3.692020944 | AC65: 6.981190085 | AD65: 7.921011157 | AE65: 8.885208695 | AF65: 9.859179381 | AG65: 10.64803864 | AH65: 11.76012048 | AI65: 0
B67: Profiled tax allowance (actual floor)
E69: Unprofiled tax allowance (floor) | G69: =Inputs!$I$11 -> £m 20/21 prices | K69: ='Tax Floor'!K65 / 'Tax Deductions'!K$12 -> 0 | L69: ='Tax Floor'!L65 / 'Tax Deductions'!L$12 -> 0 | M69: ='Tax Floor'!M65 / 'Tax Deductions'!M$12 -> 0 | N69: ='Tax Floor'!N65 / 'Tax Deductions'!N$12 -> 0 | O69: ='Tax Floor'!O65 / 'Tax Deductions'!O$12 -> 0 | P69: ='Tax Floor'!P65 / 'Tax Deductions'!P$12 -> 0 | Q69: ='Tax Floor'!Q65 / 'Tax Deductions'!Q$12 -> 0 | R69: ='Tax Floor'!R65 / 'Tax Deductions'!R$12 -> 0 | S69: ='Tax Floor'!S65 / 'Tax Deductions'!S$12 -> 0 | T69: ='Tax Floor'!T65 / 'Tax Deductions'!T$12 -> 0 | U69: ='Tax Floor'!U65 / 'Tax Deductions'!U$12 -> 0 | V69: ='Tax Floor'!V65 / 'Tax Deductions'!V$12 -> 0 | W69: ='Tax Floor'!W65 / 'Tax Deductions'!W$12 -> 0 | X69: ='Tax Floor'!X65 / 'Tax Deductions'!X$12 -> 0 | Y69: ='Tax Floor'!Y65 / 'Tax Deductions'!Y$12 -> 0 | Z69: ='Tax Floor'!Z65 / 'Tax Deductions'!Z$12 -> 0 | AA69: ='Tax Floor'!AA65 / 'Tax Deductions'!AA$12 -> 0 | AB69: ='Tax Floor'!AB65 / 'Tax Deductions'!AB$12 -> 2.052465998 | AC69: ='Tax Floor'!AC65 / 'Tax Deductions'!AC$12 -> 3.761367387 | AD69: ='Tax Floor'!AD65 / 'Tax Deductions'!AD$12 -> 4.136198692 | AE69: ='Tax Floor'!AE65 / 'Tax Deductions'!AE$12 -> 4.496689263 | AF69: ='Tax Floor'!AF65 / 'Tax Deductions'!AF$12 -> 4.835824033 | AG69: ='Tax Floor'!AG65 / 'Tax Deductions'!AG$12 -> 5.061786413 | AH69: ='Tax Floor'!AH65 / 'Tax Deductions'!AH$12 -> 5.418142773 | AI69: ='Tax Floor'!AI65 / 'Tax Deductions'!AI$12 -> 0
E70: Discount factor to start of operational period (floor) | G70: ='Allowances Floor'!G57 -> scalar | K70: ='Allowances Floor'!K57 -> 1.005392328 | L70: ='Allowances Floor'!L57 -> 1.010813733 | M70: ='Allowances Floor'!M57 -> 1.016264373 | N70: ='Allowances Floor'!N57 -> 1.021744404 | O70: ='Allowances Floor'!O57 -> 1.027253985 | P70: ='Allowances Floor'!P57 -> 1.032793275 | Q70: ='Allowances Floor'!Q57 -> 1.038362436 | R70: ='Allowances Floor'!R57 -> 1.043961627 | S70: ='Allowances Floor'!S57 -> 1.04959101 | T70: ='Allowances Floor'!T57 -> 1.05525075 | U70: ='Allowances Floor'!U57 -> 1.060941008 | V70: ='Allowances Floor'!V57 -> 1.06666195 | W70: ='Allowances Floor'!W57 -> 1.072413741 | X70: ='Allowances Floor'!X57 -> 1.078196548 | Y70: ='Allowances Floor'!Y57 -> 1.084010538 | Z70: ='Allowances Floor'!Z57 -> 1.089855878 | AA70: ='Allowances Floor'!AA57 -> 1.095732739 | AB70: ='Allowances Floor'!AB57 -> 1.101641289 | AC70: ='Allowances Floor'!AC57 -> 1.1075817 | AD70: ='Allowances Floor'!AD57 -> 1.113554144 | AE70: ='Allowances Floor'!AE57 -> 1.119558794 | AF70: ='Allowances Floor'!AF57 -> 1.125595822 | AG70: ='Allowances Floor'!AG57 -> 1.131665404 | AH70: ='Allowances Floor'!AH57 -> 1.137767715 | AI70: ='Allowances Floor'!AI57 -> 1.143902932
E72: Discounted unprofiled tax allowance (floor) | G72: =Inputs!$I$11 -> £m 20/21 prices | K72: =K69*K70 -> 0 | L72: =L69*L70 -> 0 | M72: 0 | N72: 0 | O72: 0 | P72: 0 | Q72: 0 | R72: 0 | S72: 0 | T72: 0 | U72: 0 | V72: 0 | W72: 0 | X72: 0 | Y72: 0 | Z72: 0 | AA72: 0 | AB72: 2.261081288 | AC72: 4.166021687 | AD72: 4.605881196 | AE72: 5.034308007 | AF72: 5.443183328 | AG72: 5.728248566 | AH72: 6.164587924 | AI72: 0
E73: NPV of tax allowance (floor) | G73: =Inputs!$I$11 -> £m 20/21 prices | I73: =SUM(K72:AI72) -> 33.40331199
E75: Annuity factor (floor) | G75: ='Allowances Floor'!G64 -> scalar | I75: ='Allowances Floor'!I64 -> 0.04723215452
E77: Annuity of tax allowance (floor) | G77: =Inputs!$I$11 -> £m 20/21 prices | I77: =I73 * I75 -> 1.577710394
B79: End of sheet

Sheet Cap Floor Levels
A1: Cap Floor Levels | H1: Licence
E2: Parameter | G2: Units | H2: Terminology | I2: Constant
B4: Cap and floor levels and adjustments
C6: Cap and Notional Floor levels at FPA (Preliminary) / PCR (Final) and PCA adjustments at PCR
C7: Relevant stage: FPA for preliminary levels; PCR for final levels
E8: Cap at relevant stage excluding tax (calculated through the model) | G8: =Inputs!$I$11 -> £m 20/21 prices | I8: ='Allowances Cap'!$I33 -> 100.1667618
E9: Floor at relevant stage excluding tax (calculated through the model) | G9: =Inputs!$I$11 -> £m 20/21 prices | I9: ='Allowances Floor'!$I33 -> 52.63808805
E11: Cap at relevant stage - tax element (calculated through the model) | G11: =Inputs!$I$11 -> £m 20/21 prices | I11: =IF(Inputs!$I$199="No",'Tax Cap'!I40,0) -> 10.51631753
E12: Floor at relevant stage - tax element (calculated through the model) | G12: =Inputs!$I$11 -> £m 20/21 prices | I12: =IF(Inputs!$I$199="No",'Tax Floor'!I40,0) -> 2.105317581
E14: Cap at relevant stage - tax element (previously calculated through the model and fixed) | G14: =Inputs!$I$11 -> £m 20/21 prices
E15: Floor at relevant stage - tax element (previously calculated through the model and fixed) | G15: =Inputs!$I$11 -> £m 20/21 prices
E17: Cap at relevant stage including tax (calculated through the model) | G17: =Inputs!$I$11 -> £m 20/21 prices | I17: =I8+IF(Inputs!$I$199="Yes",I14,I11) -> 110.6830793
E18: Floor at relevant stage including tax (calculated through the model) | G18: =Inputs!$I$11 -> £m 20/21 prices | I18: =I9+IF(Inputs!$I$199="Yes",I15,I12) -> 54.74340563
E20: Preliminary Cap including tax (hardcoded at FPA) | G20: =Inputs!$I$11 -> £m 20/21 prices | H20: PCL
E21: Preliminary Floor including tax (hardcoded at FPA) | G21: =Inputs!$I$11 -> £m 20/21 prices | H21: PFL
E23: Cap PCA adjustment (at PCR) | G23: =Inputs!$I$11 -> £m 20/21 prices | H23: PCAC | I23: =I17-I20 -> 110.6830793
E24: Floor PCA adjustment (at PCR) | G24: =Inputs!$I$11 -> £m 20/21 prices | H24: PCAF | I24: =I18-I21 -> 54.74340563
C26: Actual floor level at FPA (Preliminary) / PCR (Final)
C27: Relevant stage: FPA for preliminary levels; PCR for final levels
E28: Floor at relevant stage excluding tax during debt tenor and tail period (calculated through the model) | G28: =Inputs!$I$11 -> £m 20/21 prices | I28: ='Allowances Floor'!$I66 -> 46.37686511
E30: Floor at relevant stage - tax element during debt tenor and tail period (calculated through the model) | G30: =Inputs!$I$11 -> £m 20/21 prices | I30: =IF(Inputs!$I$199="No",'Tax Floor'!I77,0) -> 1.577710394
E32: Floor at relevant stage - tax element during debt tenor and tail period (previously calculated through the model and fixed) | G32: =Inputs!$I$11 -> £m 20/21 prices
E34: Floor at relevant stage including tax during debt tenor and tail period (calculated through the model) | G34: =Inputs!$I$11 -> £m 20/21 prices | I34: =I28+IF(Inputs!$I$199="Yes",I32,I30) -> 47.9545755
E36: Preliminary Floor including tax during debt tenor and tail period (hardcoded at FPA) | G36: =Inputs!$I$11 -> £m 20/21 prices
E38: Floor adjustment during debt tenor and tail period (at PCR) | G38: =Inputs!$I$11 -> £m 20/21 prices | I38: =I34-I36 -> 47.9545755
B40: End of sheet
